Workbook

Sheet OK
A1: test_id | B1: gene_id | C1: gene | D1: locus | E1: sample_2 | F1: sample_1 | G1: status | H1: value_2 | I1: value_1 | J1: log2(fold_change) | K1: test_stat | L1: p_value | M1: q_value | N1: significant
A2: ENSMUSG00000000001.4 | B2: ENSMUSG00000000001.4 | C2: Gnai3 | D2: chr3:108107279-108146146 | E2: WT_U | F2: WT_D | G2: OK | H2: 52.5405 | I2: 50.2617 | J2: =LOG(I2/H2,2) -> -0.06397046162 | K2: 0.374672 | L2: 0.5928 | M2: 0.824641 | N2: no
A3: ENSMUSG00000000028.14 | B3: ENSMUSG00000000028.14 | C3: Cdc45 | D3: chr16:18780446-18835261 | E3: WT_U | F3: WT_D | G3: OK | H3: 32.7228 | I3: 32.6077 | J3: -0.005083517531 | K3: 0.0212913 | L3: 0.97515 | M3: 0.989009 | N3: no
A4: ENSMUSG00000000037.16 | B4: ENSMUSG00000000037.16 | C4: Scml2 | D4: chrX:161117192-161258213 | E4: WT_U | F4: WT_D | G4: OK | H4: 6.68094 | I4: 5.69158 | J4: -0.2312218977 | K4: 0.630529 | L4: 0.34185 | M4: 0.608378 | N4: no
A5: ENSMUSG00000000049.11 | B5: ENSMUSG00000000049.11 | C5: Apoh | D5: chr11:107933386-108414396 | E5: WT_U | F5: WT_D | G5: OK | H5: 0.0394979 | I5: 0.103277 | J5: 1.386671143 | K5: -0.194541 | L5: 0.36285 | M5: 0.630705 | N5: no
A6: ENSMUSG00000000056.7 | B6: ENSMUSG00000000056.7 | C6: Narf | D6: chr11:121237252-121255856 | E6: WT_U | F6: WT_D | G6: OK | H6: 6.06142 | I6: 3.54251 | J6: -0.7748838857 | K6: 3.78495 | L6: 5e-05 | M6: 0.00046241 | N6: yes
A7: ENSMUSG00000000078.6 | B7: ENSMUSG00000000078.6 | C7: Klf6 | D7: chr13:5861488-5870393 | E7: WT_U | F7: WT_D | G7: OK | H7: 21.832 | I7: 21.6658 | J7: -0.01102479126 | K7: 0.0643838 | L7: 0.9281 | M7: 0.974465 | N7: no
A8: ENSMUSG00000000088.6 | B8: ENSMUSG00000000088.6 | C8: Cox5a | D8: chr9:57521231-57543187 | E8: WT_U | F8: WT_D | G8: OK | H8: 242.907 | I8: 220.027 | J8: -0.1427234947 | K8: 0.765662 | L8: 0.27545 | M8: 0.53099 | N8: no
A9: ENSMUSG00000000093.6 | B9: ENSMUSG00000000093.6 | C9: Tbx2 | D9: chr11:85832550-85841948 | E9: WT_U | F9: WT_D | G9: OK | H9: 11.7553 | I9: 8.92727 | J9: -0.3970203925 | K9: 2.0182 | L9: 0.00365 | M9: 0.0197639 | N9: yes
A10: ENSMUSG00000000094.12 | B10: ENSMUSG00000000094.12 | C10: Tbx4 | D10: chr11:85886421-85916097 | E10: WT_U | F10: WT_D | G10: OK | H10: 1.10842 | I10: 1.00538 | J10: -0.1407637528 | K10: 0.604759 | L10: 0.3873 | M10: 0.65633 | N10: no
A11: ENSMUSG00000000120.6 | B11: ENSMUSG00000000120.6 | C11: Ngfr | D11: chr11:95568817-95587735 | E11: WT_U | F11: WT_D | G11: OK | H11: 93.5808 | I11: 74.3631 | J11: -0.3316256484 | K11: 1.93892 | L11: 0.00645 | M11: 0.0317759 | N11: yes
A12: ENSMUSG00000000125.5 | B12: ENSMUSG00000000125.5 | C12: Wnt3 | D12: chr11:103774149-103817957 | E12: WT_U | F12: WT_D | G12: OK | H12: 2.20987 | I12: 3.02174 | J12: 0.4514180291 | K12: -2.13722 | L12: 0.0023 | M12: 0.0133873 | N12: yes
A13: ENSMUSG00000000126.11 | B13: ENSMUSG00000000126.11 | C13: Wnt9a | D13: chr11:59306927-59333552 | E13: WT_U | F13: WT_D | G13: OK | H13: 0.348958 | I13: 0.479135 | J13: 0.4573787972 | K13: -1.67115 | L13: 0.0171 | M13: 0.0700235 | N13: no
A14: ENSMUSG00000000127.14 | B14: ENSMUSG00000000127.14 | C14: Fer | D14: chr17:63896017-64139494 | E14: WT_U | F14: WT_D | G14: OK | H14: 17.575 | I14: 16.8157 | J14: -0.06371585301 | K14: 0.326405 | L14: 0.6376 | M14: 0.852268 | N14: no
A15: ENSMUSG00000000131.15 | B15: ENSMUSG00000000131.15 | C15: Xpo6 | D15: chr7:126101714-126200501 | E15: WT_U | F15: WT_D | G15: OK | H15: 28.3736 | I15: 26.5241 | J15: -0.09724540992 | K15: 0.400102 | L15: 0.49625 | M15: 0.75392 | N15: no
A16: ENSMUSG00000000134.17 | B16: ENSMUSG00000000134.17 | C16: Tfe3 | D16: chrX:7762559-7775202 | E16: WT_U | F16: WT_D | G16: OK | H16: 18.6426 | I16: 23.5048 | J16: 0.3343523246 | K16: -0.873069 | L16: 0.18705 | M16: 0.415803 | N16: no
A17: ENSMUSG00000000142.15 | B17: ENSMUSG00000000142.15 | C17: Axin2 | D17: chr11:108920348-108950783 | E17: WT_U | F17: WT_D | G17: OK | H17: 3.73627 | I17: 4.2741 | J17: 0.1940219482 | K17: -0.690852 | L17: 0.30195 | M17: 0.562999 | N17: no
A18: ENSMUSG00000000148.17 | B18: ENSMUSG00000000148.17 | C18: Brat1 | D18: chr5:140705010-140719379 | E18: WT_U | F18: WT_D | G18: OK | H18: 12.7678 | I18: 13.3139 | J18: 0.06042327951 | K18: -0.302434 | L18: 0.6706 | M18: 0.871914 | N18: no
A19: ENSMUSG00000000149.10 | B19: ENSMUSG00000000149.10 | C19: Gna12 | D19: chr5:140724126-140830431 | E19: WT_U | F19: WT_D | G19: OK | H19: 24.582 | I19: 28.7564 | J19: 0.2262807781 | K19: -1.28119 | L19: 0.06415 | M19: 0.194308 | N19: no
A20: ENSMUSG00000000154.15 | B20: ENSMUSG00000000154.15 | C20: Slc22a18 | D20: chr7:143473720-143499334 | E20: WT_U | F20: WT_D | G20: OK | H20: 0.948369 | I20: 0.99738 | J20: 0.07269476839 | K20: -0.125644 | L20: 0.8572 | M20: 0.952851 | N20: no
A21: ENSMUSG00000000159.15 | B21: ENSMUSG00000000159.15 | C21: Igsf5 | D21: chr16:96361667-96525793 | E21: WT_U | F21: WT_D | G21: OK | H21: 0.485141 | I21: 0.521173 | J21: 0.1033582362 | K21: -0.0666146 | L21: 0.9291 | M21: 0.974695 | N21: no
A22: ENSMUSG00000000167.14 | B22: ENSMUSG00000000167.14 | C22: Pih1d2 | D22: chr9:50603900-50625000 | E22: WT_U | F22: WT_D | G22: OK | H22: 2.94959 | I22: 2.53867 | J22: -0.2164415582 | K22: 0.214185 | L22: 0.72825 | M22: 0.902717 | N22: no
A23: ENSMUSG00000000168.9 | B23: ENSMUSG00000000168.9 | C23: Dlat | D23: chr9:50634632-50659780 | E23: WT_U | F23: WT_D | G23: OK | H23: 46.6665 | I23: 46.5089 | J23: -0.004880450318 | K23: 0.0189943 | L23: 0.97585 | M23: 0.989148 | N23: no
A24: ENSMUSG00000000171.4 | B24: ENSMUSG00000000171.4 | C24: Sdhd | D24: chr9:50596337-50603849 | E24: WT_U | F24: WT_D | G24: OK | H24: 94.7292 | I24: 74.8404 | J24: -0.3399919314 | K24: 1.98507 | L24: 0.0043 | M24: 0.0226542 | N24: yes
A25: ENSMUSG00000000184.12 | B25: ENSMUSG00000000184.12 | C25: Ccnd2 | D25: chr6:127122965-127212411 | E25: WT_U | F25: WT_D | G25: OK | H25: 0.185401 | I25: 0.291079 | J25: 0.650761734 | K25: -0.678122 | L25: 0.1271 | M25: 0.31968 | N25: no
A26: ENSMUSG00000000194.13 | B26: ENSMUSG00000000194.13 | C26: Gpr107 | D26: chr2:31152315-31218775 | E26: WT_U | F26: WT_D | G26: OK | H26: 20.3688 | I26: 18.2492 | J26: -0.1585277672 | K26: 0.57056 | L26: 0.3371 | M26: 0.603149 | N26: no
A27: ENSMUSG00000000202.9 | B27: ENSMUSG00000000202.9 | C27: Btbd17 | D27: chr11:114791216-114795945 | E27: WT_U | F27: WT_D | G27: OK | H27: 0.0992665 | I27: 0.0612123 | J27: -0.6974853486 | K27: 0.489303 | L27: 0.24685 | M27: 0.496281 | N27: no
A28: ENSMUSG00000000204.15 | B28: ENSMUSG00000000204.15 | C28: Slfn4 | D28: chr11:83175185-83190221 | E28: WT_U | F28: WT_D | G28: OK | H28: 0.0598919 | I28: 0.0861849 | J28: 0.5250742237 | K28: -1.14603 | L28: 0.1032 | M28: 0.275311 | N28: no
A29: ENSMUSG00000000214.10 | B29: ENSMUSG00000000214.10 | C29: Th | D29: chr7:142892751-142931128 | E29: WT_U | F29: WT_D | G29: OK | H29: 1.84539 | I29: 1.45912 | J29: -0.3388272067 | K29: 1.4102 | L29: 0.04235 | M29: 0.142148 | N29: no
A30: ENSMUSG00000000223.13 | B30: ENSMUSG00000000223.13 | C30: Drp2 | D30: chrX:134404550-134456573 | E30: WT_U | F30: WT_D | G30: OK | H30: 0.689688 | I30: 0.818478 | J30: 0.2469997735 | K30: -1.04168 | L30: 0.13255 | M30: 0.328799 | N30: no
A31: ENSMUSG00000000244.16 | B31: ENSMUSG00000000244.16 | C31: Tspan32 | D31: chr7:142988968-143019644 | E31: WT_U | F31: WT_D | G31: OK | H31: 0.0932845 | I31: 0.0590382 | J31: -0.659988649 | K31: 0.480816 | L31: 0.27315 | M31: 0.528355 | N31: no
A32: ENSMUSG00000000247.11 | B32: ENSMUSG00000000247.11 | C32: Lhx2 | D32: chr2:38339280-38369733 | E32: WT_U | F32: WT_D | G32: OK | H32: 1.84557 | I32: 2.04704 | J32: 0.1494728354 | K32: -0.60208 | L32: 0.37165 | M32: 0.640303 | N32: no
A33: ENSMUSG00000000253.12 | B33: ENSMUSG00000000253.12 | C33: Gmpr | D33: chr13:45507443-45546382 | E33: WT_U | F33: WT_D | G33: OK | H33: 8.63107 | I33: 6.25952 | J33: -0.4634873915 | K33: 2.17349 | L33: 0.0013 | M33: 0.00823191 | N33: yes
A34: ENSMUSG00000000266.11 | B34: ENSMUSG00000000266.11 | C34: Mid2 | D34: chrX:140664598-140767715 | E34: WT_U | F34: WT_D | G34: OK | H34: 4.89337 | I34: 4.57687 | J34: -0.09646705804 | K34: 0.384264 | L34: 0.5426 | M34: 0.790155 | N34: no
A35: ENSMUSG00000000275.16 | B35: ENSMUSG00000000275.16 | C35: Trim25 | D35: chr11:88999375-89020293 | E35: WT_U | F35: WT_D | G35: OK | H35: 16.1279 | I35: 15.2479 | J35: -0.08094803585 | K35: 0.381412 | L35: 0.57555 | M35: 0.813658 | N35: no
A36: ENSMUSG00000000276.11 | B36: ENSMUSG00000000276.11 | C36: Dgke | D36: chr11:89035178-89069098 | E36: WT_U | F36: WT_D | G36: OK | H36: 4.13174 | I36: 3.81441 | J36: -0.1152895488 | K36: 0.556 | L36: 0.42865 | M36: 0.695907 | N36: no
A37: ENSMUSG00000000278.10 | B37: ENSMUSG00000000278.10 | C37: Scpep1 | D37: chr11:88905927-88955465 | E37: WT_U | F37: WT_D | G37: OK | H37: 58.3994 | I37: 78.6192 | J37: 0.4289281367 | K37: -2.5072 | L37: 0.00035 | M37: 0.00265006 | N37: yes
A38: ENSMUSG00000000282.12 | B38: ENSMUSG00000000282.12 | C38: Mnt | D38: chr11:74830919-74845725 | E38: WT_U | F38: WT_D | G38: OK | H38: 16.6366 | I38: 19.6668 | J38: 0.2414016128 | K38: -0.832144 | L38: 0.2288 | M38: 0.473317 | N38: no
A39: ENSMUSG00000000290.13 | B39: ENSMUSG00000000290.13 | C39: Itgb2 | D39: chr10:77530251-77565708 | E39: WT_U | F39: WT_D | G39: OK | H39: 0.0855821 | I39: 0.526577 | J39: 2.621263523 | K39: -4.67504 | L39: 5e-05 | M39: 0.00046241 | N39: yes
A40: ENSMUSG00000000295.12 | B40: ENSMUSG00000000295.12 | C40: Hddc2 | D40: chr10:31313381-31328204 | E40: WT_U | F40: WT_D | G40: OK | H40: 35.4605 | I40: 31.0694 | J40: -0.1907184977 | K40: 0.947883 | L40: 0.17415 | M40: 0.396243 | N40: no
A41: ENSMUSG00000000296.7 | B41: ENSMUSG00000000296.7 | C41: Tpd52l1 | D41: chr10:31332379-31445921 | E41: WT_U | F41: WT_D | G41: OK | H41: 1.12156 | I41: 1.15064 | J41: 0.03692972677 | K41: -0.133623 | L41: 0.8504 | M41: 0.950491 | N41: no
A42: ENSMUSG00000000301.16 | B42: ENSMUSG00000000301.16 | C42: Pemt | D42: chr11:59970613-60046489 | E42: WT_U | F42: WT_D | G42: OK | H42: 11.1347 | I42: 12.9855 | J42: 0.2218388769 | K42: -0.862991 | L42: 0.20985 | M42: 0.448687 | N42: no
A43: ENSMUSG00000000303.12 | B43: ENSMUSG00000000303.12 | C43: Cdh1 | D43: chr8:106603350-106670246 | E43: WT_U | F43: WT_D | G43: OK | H43: 0.0791798 | I43: 0.0739987 | J43: -0.0976324974 | K43: 0.187909 | L43: 0.7578 | M43: 0.915366 | N43: no
A44: ENSMUSG00000000308.14 | B44: ENSMUSG00000000308.14 | C44: Ckmt1 | D44: chr2:121357713-121387168 | E44: WT_U | F44: WT_D | G44: OK | H44: 6.75931 | I44: 4.48516 | J44: -0.59171653 | K44: 2.75745 | L44: 5e-05 | M44: 0.00046241 | N44: yes
A45: ENSMUSG00000000317.11 | B45: ENSMUSG00000000317.11 | C45: Bcl6b | D45: chr11:70224127-70229798 | E45: WT_U | F45: WT_D | G45: OK | H45: 0.387092 | I45: 0.293965 | J45: -0.3970320964 | K45: 0.979264 | L45: 0.1134 | M45: 0.294967 | N45: no
A46: ENSMUSG00000000325.15 | B46: ENSMUSG00000000325.15 | C46: Arvcf | D46: chr16:18348181-18479073 | E46: WT_U | F46: WT_D | G46: OK | H46: 22.3611 | I46: 30.8188 | J46: 0.4628195285 | K46: -1.45251 | L46: 0.0186 | M46: 0.0748204 | N46: no
A47: ENSMUSG00000000326.12 | B47: ENSMUSG00000000326.12 | C47: Comt | D47: chr16:18348181-18479073 | E47: WT_U | F47: WT_D | G47: OK | H47: 34.1703 | I47: 33.8543 | J47: -0.01340382486 | K47: 0.0392596 | L47: 0.9561 | M47: 0.982921 | N47: no
A48: ENSMUSG00000000339.14 | B48: ENSMUSG00000000339.14 | C48: Rtca | D48: chr3:116488962-116508208 | E48: WT_U | F48: WT_D | G48: OK | H48: 34.0477 | I48: 32.2497 | J48: -0.07827160413 | K48: 0.365954 | L48: 0.5977 | M48: 0.827906 | N48: no
A49: ENSMUSG00000000340.10 | B49: ENSMUSG00000000340.10 | C49: Dbt | D49: chr3:116513069-116549981 | E49: WT_U | F49: WT_D | G49: OK | H49: 13.1391 | I49: 10.4155 | J49: -0.3351343594 | K49: 1.25502 | L49: 0.04025 | M49: 0.136596 | N49: no
A50: ENSMUSG00000000346.8 | B50: ENSMUSG00000000346.8 | C50: Dazap2 | D50: chr15:100615627-100620731 | E50: WT_U | F50: WT_D | G50: OK | H50: 77.0826 | I50: 77.097 | J50: 0.0002694884232 | K50: -0.00158459 | L50: 0.9983 | M50: 0.999128 | N50: no
A51: ENSMUSG00000000355.13 | B51: ENSMUSG00000000355.13 | C51: Mcts1 | D51: chrX:38600577-38613426 | E51: WT_U | F51: WT_D | G51: OK | H51: 24.6247 | I51: 25.6796 | J51: 0.06051658192 | K51: -0.291255 | L51: 0.67425 | M51: 0.873635 | N51: no
A52: ENSMUSG00000000359.3 | B52: ENSMUSG00000000359.3 | C52: Rem1 | D52: chr2:152626950-152635198 | E52: WT_U | F52: WT_D | G52: OK | H52: 0.313766 | I52: 0.230354 | J52: -0.4458363789 | K52: 1.01517 | L52: 0.12355 | M52: 0.313585 | N52: no
A53: ENSMUSG00000000365.8 | B53: ENSMUSG00000000365.8 | C53: Rnf17 | D53: chr14:56402696-56525032 | E53: WT_U | F53: WT_D | G53: OK | H53: 0.119081 | I53: 0.121656 | J53: 0.03086423289 | K53: -0.092263 | L53: 0.8954 | M53: 0.964238 | N53: no
A54: ENSMUSG00000000374.7 | B54: ENSMUSG00000000374.7 | C54: Trappc10 | D54: chr10:78186724-78244642 | E54: WT_U | F54: WT_D | G54: OK | H54: 17.2205 | I54: 16.8973 | J54: -0.02733429387 | K54: 0.159537 | L54: 0.81575 | M54: 0.938501 | N54: no
A55: ENSMUSG00000000378.15 | B55: ENSMUSG00000000378.15 | C55: Ccm2 | D55: chr11:6546886-6596744 | E55: WT_U | F55: WT_D | G55: OK | H55: 15.4433 | I55: 16.4591 | J55: 0.09190438222 | K55: -0.41399 | L55: 0.5334 | M55: 0.783258 | N55: no
A56: ENSMUSG00000000384.15 | B56: ENSMUSG00000000384.15 | C56: Tbrg4 | D56: chr11:6615597-6626067 | E56: WT_U | F56: WT_D | G56: OK | H56: 59.156 | I56: 54.5121 | J56: -0.1179480047 | K56: 0.498204 | L56: 0.47245 | M56: 0.733772 | N56: no
A57: ENSMUSG00000000386.14 | B57: ENSMUSG00000000386.14 | C57: Mx1 | D57: chr16:97447034-97462907 | E57: WT_U | F57: WT_D | G57: OK | H57: 0.318147 | I57: 1.11825 | J57: 1.813477336 | K57: -5.12957 | L57: 5e-05 | M57: 0.00046241 | N57: yes
A58: ENSMUSG00000000399.10 | B58: ENSMUSG00000000399.10 | C58: Ndufa9 | D58: chr6:126821720-126849136 | E58: WT_U | F58: WT_D | G58: OK | H58: 84.9252 | I58: 83.7675 | J58: -0.01980209304 | K58: 0.115287 | L58: 0.86695 | M58: 0.955768 | N58: no
A59: ENSMUSG00000000402.2 | B59: ENSMUSG00000000402.2 | C59: Egfl6 | D59: chrX:166523006-166585720 | E59: WT_U | F59: WT_D | G59: OK | H59: 0.0865453 | I59: 0.0773769 | J59: -0.1615525432 | K59: 0.3274 | L59: 0.6436 | M59: 0.855915 | N59: no
A60: ENSMUSG00000000409.14 | B60: ENSMUSG00000000409.14 | C60: Lck | D60: chr4:129548343-129573641 | E60: WT_U | F60: WT_D | G60: OK | H60: 19.7073 | I60: 34.2224 | J60: 0.7962108055 | K60: -2.9677 | L60: 5e-05 | M60: 0.00046241 | N60: yes
A61: ENSMUSG00000000416.16 | B61: ENSMUSG00000000416.16 | C61: Cttnbp2 | D61: chr6:18366477-18514843 | E61: WT_U | F61: WT_D | G61: OK | H61: 0.442667 | I61: 0.384112 | J61: -0.2046947916 | K61: 0.56577 | L61: 0.3316 | M61: 0.596922 | N61: no
A62: ENSMUSG00000000420.15 | B62: ENSMUSG00000000420.15 | C62: Galnt1 | D62: chr18:24205343-24286818 | E62: WT_U | F62: WT_D | G62: OK | H62: 45.0935 | I62: 35.4486 | J62: -0.3471908402 | K62: 1.54679 | L62: 0.02525 | M62: 0.0951564 | N62: no
A63: ENSMUSG00000000439.9 | B63: ENSMUSG00000000439.9 | C63: Mkrn2 | D63: chr6:115601901-115677780 | E63: WT_U | F63: WT_D | G63: OK | H63: 19.2677 | I63: 19.6263 | J63: 0.02660385159 | K63: -0.0298442 | L63: 0.96445 | M63: 0.98581 | N63: no
A64: ENSMUSG00000000440.12 | B64: ENSMUSG00000000440.12 | C64: Pparg | D64: chr6:115360950-115490399 | E64: WT_U | F64: WT_D | G64: OK | H64: 5.86211 | I64: 10.5055 | J64: 0.8416528825 | K64: -2.49863 | L64: 5e-05 | M64: 0.00046241 | N64: yes
A65: ENSMUSG00000000441.17 | B65: ENSMUSG00000000441.17 | C65: Raf1 | D65: chr6:115601901-115677780 | E65: WT_U | F65: WT_D | G65: OK | H65: 50.0115 | I65: 50.6277 | J65: 0.01766706798 | K65: -0.0739293 | L65: 0.9121 | M65: 0.969262 | N65: no
A66: ENSMUSG00000000486.13 | B66: ENSMUSG00000000486.13 | C66: Sept1 | D66: chr7:127214446-127238179 | E66: WT_U | F66: WT_D | G66: OK | H66: 2.76399 | I66: 2.3231 | J66: =LOG(I66/H66,2) -> -0.2507011385 | K66: 0.184203 | L66: 0.78655 | M66: 0.927594 | N66: no
A67: ENSMUSG00000000489.6 | B67: ENSMUSG00000000489.6 | C67: Pdgfb | D67: chr15:79995899-80014808 | E67: WT_U | F67: WT_D | G67: OK | H67: 0.109625 | I67: 0.112093 | J67: 0.03211934466 | K67: -0.0759738 | L67: 0.9199 | M67: 0.971749 | N67: no
A68: ENSMUSG00000000530.16 | B68: ENSMUSG00000000530.16 | C68: Acvrl1 | D68: chr15:101128521-101145336 | E68: WT_U | F68: WT_D | G68: OK | H68: 0.988849 | I68: 0.247976 | J68: -1.995549736 | K68: 2.36005 | L68: 0.0001 | M68: 0.000870202 | N68: yes
A69: ENSMUSG00000000531.4 | B69: ENSMUSG00000000531.4 | C69: Grasp | D69: chr15:101224206-101232755 | E69: WT_U | F69: WT_D | G69: OK | H69: 9.33606 | I69: 7.04576 | J69: -0.4060584997 | K69: 2.00755 | L69: 0.0052 | M69: 0.0265674 | N69: yes
A70: ENSMUSG00000000532.10 | B70: ENSMUSG00000000532.10 | C70: Acvr1b | D70: chr15:101174066-101213679 | E70: WT_U | F70: WT_D | G70: OK | H70: 11.4577 | I70: 10.9956 | J70: -0.05939113862 | K70: 0.304076 | L70: 0.66085 | M70: 0.866481 | N70: no
A71: ENSMUSG00000000538.18 | B71: ENSMUSG00000000538.18 | C71: Tom1l2 | D71: chr11:60226713-60352905 | E71: WT_U | F71: WT_D | G71: OK | H71: 14.1131 | I71: 16.0539 | J71: 0.1858888996 | K71: -0.905514 | L71: 0.1688 | M71: 0.387831 | N71: no
A72: ENSMUSG00000000552.9 | B72: ENSMUSG00000000552.9 | C72: Zfp385a | D72: chr15:103313894-103340086 | E72: WT_U | F72: WT_D | G72: OK | H72: 12.2857 | I72: 10.7051 | J72: -0.1986817877 | K72: 1.00104 | L72: 0.14985 | M72: 0.358138 | N72: no
A73: ENSMUSG00000000555.6 | B73: ENSMUSG00000000555.6 | C73: Itga5 | D73: chr15:103344288-103366763 | E73: WT_U | F73: WT_D | G73: OK | H73: 2.54409 | I73: 1.67039 | J73: -0.6069647283 | K73: 2.90403 | L73: 5e-05 | M73: 0.00046241 | N73: yes
A74: ENSMUSG00000000561.14 | B74: ENSMUSG00000000561.14 | C74: Wdr77 | D74: chr3:105942697-105987423 | E74: WT_U | F74: WT_D | G74: OK | H74: 55.3785 | I74: 58.4971 | J74: 0.07903912778 | K74: -0.187334 | L74: 0.77705 | M74: 0.92369 | N74: no
A75: ENSMUSG00000000563.17 | B75: ENSMUSG00000000563.17 | C75: Atp5f1 | D75: chr3:105942697-105987423 | E75: WT_U | F75: WT_D | G75: OK | H75: 251.712 | I75: 218.792 | J75: -0.2022140087 | K75: 0.939293 | L75: 0.17 | M75: 0.389766 | N75: no
A76: ENSMUSG00000000567.5 | B76: ENSMUSG00000000567.5 | C76: Sox9 | D76: chr11:112782223-112787760 | E76: WT_U | F76: WT_D | G76: OK | H76: 15.9287 | I76: 10.0684 | J76: -0.6617940895 | K76: 3.59119 | L76: 5e-05 | M76: 0.00046241 | N76: yes
A77: ENSMUSG00000000568.15 | B77: ENSMUSG00000000568.15 | C77: Hnrnpd | D77: chr5:99955934-99978938 | E77: WT_U | F77: WT_D | G77: OK | H77: 361.811 | I77: 333.184 | J77: -0.1189171484 | K77: 0.519853 | L77: 0.4575 | M77: 0.721673 | N77: no
A78: ENSMUSG00000000579.14 | B78: ENSMUSG00000000579.14 | C78: Dynlt1c | D78: chr17:6601670-6609774 | E78: WT_U | F78: WT_D | G78: OK | H78: 2.31034 | I78: 2.59583 | J78: 0.1680907241 | K78: -0.440707 | L78: 0.52265 | M78: 0.775048 | N78: no
A79: ENSMUSG00000000581.8 | B79: ENSMUSG00000000581.8 | C79: C1d | D79: chr11:17257578-17269176 | E79: WT_U | F79: WT_D | G79: OK | H79: 41.9967 | I79: 39.2684 | J79: -0.09690715257 | K79: 0.227372 | L79: 0.74125 | M79: 0.908351 | N79: no
A80: ENSMUSG00000000594.7 | B80: ENSMUSG00000000594.7 | C80: Gm2a | D80: chr11:55098114-55113029 | E80: WT_U | F80: WT_D | G80: OK | H80: 3.82079 | I80: 2.99964 | J80: -0.3490815989 | K80: 1.71898 | L80: 0.01335 | M80: 0.0574153 | N80: no
A81: ENSMUSG00000000600.15 | B81: ENSMUSG00000000600.15 | C81: Krit1 | D81: chr5:3803183-3866596 | E81: WT_U | F81: WT_D | G81: OK | H81: 29.4936 | I81: 33.01 | J81: 0.1625012095 | K81: -0.848768 | L81: 0.2027 | M81: 0.438973 | N81: no
A82: ENSMUSG00000000605.8 | B82: ENSMUSG00000000605.8 | C82: Clcn4 | D82: chr7:7282315-7299511 | E82: WT_U | F82: WT_D | G82: OK | H82: 14.2248 | I82: 17.1591 | J82: 0.2705655166 | K82: -1.57544 | L82: 0.02355 | M82: 0.0901261 | N82: no
A83: ENSMUSG00000000627.15 | B83: ENSMUSG00000000627.15 | C83: Sema4f | D83: chr6:82911884-82939769 | E83: WT_U | F83: WT_D | G83: OK | H83: 0.46595 | I83: 0.519619 | J83: 0.1572790333 | K83: -0.408913 | L83: 0.4625 | M83: 0.72538 | N83: no
A84: ENSMUSG00000000628.10 | B84: ENSMUSG00000000628.10 | C84: Hk2 | D84: chr6:82725024-82774454 | E84: WT_U | F84: WT_D | G84: OK | H84: 38.1006 | I84: 30.7684 | J84: -0.3083642937 | K84: 1.70428 | L84: 0.01165 | M84: 0.0514489 | N84: no
A85: ENSMUSG00000000631.19 | B85: ENSMUSG00000000631.19 | C85: Myo18a | D85: chr11:77763245-77865980 | E85: WT_U | F85: WT_D | G85: OK | H85: 19.9878 | I85: 20.6904 | J85: 0.04984184907 | K85: -0.115187 | L85: 0.8606 | M85: 0.953869 | N85: no
A86: ENSMUSG00000000632.13 | B86: ENSMUSG00000000632.13 | C86: Sez6 | D86: chr11:77930799-77979048 | E86: WT_U | F86: WT_D | G86: OK | H86: 18.9763 | I86: 17.6514 | J86: -0.1044161093 | K86: 0.314196 | L86: 0.6517 | M86: 0.860678 | N86: no
A87: ENSMUSG00000000686.11 | B87: ENSMUSG00000000686.11 | C87: Abhd15 | D87: chr11:77508098-77607815 | E87: WT_U | F87: WT_D | G87: OK | H87: 1.04872 | I87: 1.36795 | J87: 0.3833859581 | K87: -0.219252 | L87: 0.7558 | M87: 0.914449 | N87: no
A88: ENSMUSG00000000693.10 | B88: ENSMUSG00000000693.10 | C88: Loxl3 | D88: chr6:83034172-83057808 | E88: WT_U | F88: WT_D | G88: OK | H88: 1.54895 | I88: 1.24937 | J88: -0.3100897815 | K88: 0.150949 | L88: 0.6587 | M88: 0.864975 | N88: no
A89: ENSMUSG00000000708.14 | B89: ENSMUSG00000000708.14 | C89: Kat2b | D89: chr17:53566860-53672720 | E89: WT_U | F89: WT_D | G89: OK | H89: 15.3621 | I89: 13.9915 | J89: -0.1348248069 | K89: 0.301111 | L89: 0.6237 | M89: 0.843967 | N89: no
A90: ENSMUSG00000000711.2 | B90: ENSMUSG00000000711.2 | C90: Rab5b | D90: chr10:128677192-128696268 | E90: WT_U | F90: WT_D | G90: OK | H90: 28.4157 | I90: 30.9989 | J90: 0.1255287666 | K90: -0.733037 | L90: 0.2963 | M90: 0.556128 | N90: no
A91: ENSMUSG00000000730.13 | B91: ENSMUSG00000000730.13 | C91: Dnmt3l | D91: chr10:78030021-78063622 | E91: WT_U | F91: WT_D | G91: OK | H91: 0.0303538 | I91: 0.570378 | J91: 4.231969293 | K91: -1.8317 | L91: 0.0001 | M91: 0.000870202 | N91: yes
A92: ENSMUSG00000000731.15 | B92: ENSMUSG00000000731.15 | C92: Aire | D92: chr10:78030021-78063622 | E92: WT_U | F92: WT_D | G92: OK | H92: 0.114148 | I92: 0.00498251 | J92: -4.517889071 | K92: 0.701493 | L92: 5e-05 | M92: 0.00046241 | N92: yes
A93: ENSMUSG00000000732.8 | B93: ENSMUSG00000000732.8 | C93: Icosl | D93: chr10:78069359-78079525 | E93: WT_U | F93: WT_D | G93: OK | H93: 2.91364 | I93: 2.58206 | J93: -0.1743001083 | K93: 0.819454 | L93: 0.2442 | M93: 0.492713 | N93: no
A94: ENSMUSG00000000751.13 | B94: ENSMUSG00000000751.13 | C94: Rpa1 | D94: chr11:75298165-75348324 | E94: WT_U | F94: WT_D | G94: OK | H94: 59.7733 | I94: 51.8727 | J94: -0.2045257295 | K94: 0.906855 | L94: 0.19305 | M94: 0.42488 | N94: no
A95: ENSMUSG00000000753.15 | B95: ENSMUSG00000000753.15 | C95: Serpinf1 | D95: chr11:75409768-75422701 | E95: WT_U | F95: WT_D | G95: OK | H95: 14.5589 | I95: 19.7719 | J95: 0.4415501583 | K95: -1.82576 | L95: 0.0085 | M95: 0.0398455 | N95: yes
A96: ENSMUSG00000000759.14 | B96: ENSMUSG00000000759.14 | C96: Tubgcp3 | D96: chr8:12614276-12679229 | E96: WT_U | F96: WT_D | G96: OK | H96: 62.5462 | I96: 53.9844 | J96: -0.2123796675 | K96: 0.537815 | L96: 0.4095 | M96: 0.678067 | N96: no
A97: ENSMUSG00000000776.12 | B97: ENSMUSG00000000776.12 | C97: Polr3d | D97: chr14:70438747-70443471 | E97: WT_U | F97: WT_D | G97: OK | H97: 23.2974 | I97: 22.8279 | J97: -0.0293708102 | K97: 0.150757 | L97: 0.83255 | M97: 0.944308 | N97: no
A98: ENSMUSG00000000782.15 | B98: ENSMUSG00000000782.15 | C98: Tcf7 | D98: chr11:51949881-52286179 | E98: WT_U | F98: WT_D | G98: OK | H98: 3.66087 | I98: 4.59118 | J98: 0.3266784514 | K98: -0.183763 | L98: 0.82245 | M98: 0.940658 | N98: no
A99: ENSMUSG00000000787.12 | B99: ENSMUSG00000000787.12 | C99: Ddx3x | D99: chrX:13280969-13294052 | E99: WT_U | F99: WT_D | G99: OK | H99: 244.299 | I99: 227.698 | J99: -0.1015263386 | K99: 0.358676 | L99: 0.60865 | M99: 0.835084 | N99: no
A100: ENSMUSG00000000792.2 | B100: ENSMUSG00000000792.2 | C100: Slc5a5 | D100: chr8:70882888-70892757 | E100: WT_U | F100: WT_D | G100: OK | H100: 0.416493 | I100: 0.286258 | J100: -0.5409762359 | K100: 1.84194 | L100: 0.00935 | M100: 0.0430664 | N100: yes
A101: ENSMUSG00000000794.9 | B101: ENSMUSG00000000794.9 | C101: Kcnn3 | D101: chr3:89520163-89675132 | E101: WT_U | F101: WT_D | G101: OK | H101: 3.95755 | I101: 1.88747 | J101: -1.068153864 | K101: 4.50227 | L101: 5e-05 | M101: 0.00046241 | N101: yes
A102: ENSMUSG00000000804.14 | B102: ENSMUSG00000000804.14 | C102: Usp32 | D102: chr11:84984441-85140161 | E102: WT_U | F102: WT_D | G102: OK | H102: 20.4167 | I102: 20.3453 | J102: -0.005054145099 | K102: 0.00944072 | L102: 0.9894 | M102: 0.994801 | N102: no
A103: ENSMUSG00000000811.13 | B103: ENSMUSG00000000811.13 | C103: Txnrd3 | D103: chr6:89643987-89675529 | E103: WT_U | F103: WT_D | G103: OK | H103: 11.4524 | I103: 11.2928 | J103: -0.02024672525 | K103: 0.102704 | L103: 0.87845 | M103: 0.95941 | N103: no
A104: ENSMUSG00000000817.10 | B104: ENSMUSG00000000817.10 | C104: Fasl | D104: chr1:161780688-161788495 | E104: WT_U | F104: WT_D | G104: OK | H104: 0.0613443 | I104: 0.0923666 | J104: 0.5904419662 | K104: -0.379901 | L104: 0.5699 | M104: 0.810393 | N104: no
A105: ENSMUSG00000000823.16 | B105: ENSMUSG00000000823.16 | C105: Znf512b | D105: chr2:181569148-181655660 | E105: WT_U | F105: WT_D | G105: OK | H105: 22.466 | I105: 25.0124 | J105: 0.1549002141 | K105: -0.292027 | L105: 0.6382 | M105: 0.852581 | N105: no
A106: ENSMUSG00000000826.16 | B106: ENSMUSG00000000826.16 | C106: Dnajc5 | D106: chr2:181520484-181555133 | E106: WT_U | F106: WT_D | G106: OK | H106: 30.5532 | I106: 27.6955 | J106: -0.1416719047 | K106: 0.65157 | L106: 0.33755 | M106: 0.603631 | N106: no
A107: ENSMUSG00000000827.18 | B107: ENSMUSG00000000827.18 | C107: Tpd52l2 | D107: chr2:181497141-181517966 | E107: WT_U | F107: WT_D | G107: OK | H107: 84.1261 | I107: 84.2195 | J107: 0.001600846481 | K107: -0.00775474 | L107: 0.99075 | M107: 0.995429 | N107: no
A108: ENSMUSG00000000838.17 | B108: ENSMUSG00000000838.17 | C108: Fmr1 | D108: chrX:68678484-68717963 | E108: WT_U | F108: WT_D | G108: OK | H108: 35.8944 | I108: 32.8267 | J108: -0.1288890561 | K108: 0.53546 | L108: 0.4313 | M108: 0.698015 | N108: no
A109: ENSMUSG00000000861.15 | B109: ENSMUSG00000000861.15 | C109: Bcl11a | D109: chr11:24078055-24174123 | E109: WT_U | F109: WT_D | G109: OK | H109: 6.39482 | I109: 7.10688 | J109: 0.1523125885 | K109: -0.654915 | L109: 0.33575 | M109: 0.60184 | N109: no
A110: ENSMUSG00000000876.11 | B110: ENSMUSG00000000876.11 | C110: Pxmp4 | D110: chr2:154585757-154603708 | E110: WT_U | F110: WT_D | G110: OK | H110: 4.12456 | I110: 3.48692 | J110: -0.2422869588 | K110: 0.823844 | L110: 0.2362 | M110: 0.482961 | N110: no
A111: ENSMUSG00000000881.12 | B111: ENSMUSG00000000881.12 | C111: Dlg3 | D111: chrX:100767721-100818410 | E111: WT_U | F111: WT_D | G111: OK | H111: 1.93704 | I111: 1.36935 | J111: -0.5003625056 | K111: 1.15039 | L111: 0.08445 | M111: 0.238123 | N111: no
A112: ENSMUSG00000000884.16 | B112: ENSMUSG00000000884.16 | C112: Gnb1l | D112: chr16:18498767-18566679 | E112: WT_U | F112: WT_D | G112: OK | H112: 2.98374 | I112: 2.9438 | J112: -0.01944216723 | K112: 0.0495204 | L112: 0.93575 | M112: 0.976864 | N112: no
A113: ENSMUSG00000000889.8 | B113: ENSMUSG00000000889.8 | C113: Dbh | D113: chr2:27165232-27183200 | E113: WT_U | F113: WT_D | G113: OK | H113: 3.96222 | I113: 2.40962 | J113: -0.7175033376 | K113: 3.13757 | L113: 5e-05 | M113: 0.00046241 | N113: yes
A114: ENSMUSG00000000901.15 | B114: ENSMUSG00000000901.15 | C114: Mmp11 | D114: chr10:75923221-75932502 | E114: WT_U | F114: WT_D | G114: OK | H114: 10.6846 | I114: 18.4633 | J114: 0.7891275344 | K114: -3.49534 | L114: 5e-05 | M114: 0.00046241 | N114: yes
A115: ENSMUSG00000000902.13 | B115: ENSMUSG00000000902.13 | C115: Smarcb1 | D115: chr10:75896768-75921617 | E115: WT_U | F115: WT_D | G115: OK | H115: 84.0354 | I115: 102.055 | J115: 0.2802777685 | K115: -1.56931 | L115: 0.0257 | M115: 0.0965074 | N115: no
A116: ENSMUSG00000000903.3 | B116: ENSMUSG00000000903.3 | C116: Vpreb3 | D116: chr10:75943056-75949657 | E116: WT_U | F116: WT_D | G116: OK | H116: 0.236481 | I116: 0.325909 | J116: 0.4627449175 | K116: -0.783404 | L116: 0.2646 | M116: 0.518149 | N116: no
A117: ENSMUSG00000000915.15 | B117: ENSMUSG00000000915.15 | C117: Hip1r | D117: chr5:123973627-124032270 | E117: WT_U | F117: WT_D | G117: OK | H117: 6.92512 | I117: 6.1006 | J117: -0.1828879306 | K117: 0.352374 | L117: 0.6115 | M117: 0.836771 | N117: no
A118: ENSMUSG00000000916.15 | B118: ENSMUSG00000000916.15 | C118: Nsun5 | D118: chr5:135369952-135394546 | E118: WT_U | F118: WT_D | G118: OK | H118: 14.721 | I118: 14.6448 | J118: -0.007487186377 | K118: 0.0125886 | L118: 0.98365 | M118: 0.992156 | N118: no
A119: ENSMUSG00000000934.8 | B119: ENSMUSG00000000934.8 | C119: Top1mt | D119: chr15:75657034-75678800 | E119: WT_U | F119: WT_D | G119: OK | H119: 14.7006 | I119: 15.2167 | J119: 0.04978048045 | K119: -0.251318 | L119: 0.7191 | M119: 0.898281 | N119: no
A120: ENSMUSG00000000948.16 | B120: ENSMUSG00000000948.16 | C120: Gm38393 | D120: chr7:59937370-60140219 | E120: WT_U | F120: WT_D | G120: OK | H120: 6.66718 | I120: 6.36336 | J120: -0.06728793465 | K120: 0.0692179 | L120: 0.88935 | M120: 0.962429 | N120: no
A121: ENSMUSG00000000958.9 | B121: ENSMUSG00000000958.9 | C121: Slc7a7 | D121: chr14:54360840-54417780 | E121: WT_U | F121: WT_D | G121: OK | H121: 1.42424 | I121: 1.62346 | J121: 0.1888795622 | K121: -0.148849 | L121: 0.75935 | M121: 0.915902 | N121: no
A122: ENSMUSG00000000959.6 | B122: ENSMUSG00000000959.6 | C122: Oxa1l | D122: chr14:54360840-54417780 | E122: WT_U | F122: WT_D | G122: OK | H122: 22.2946 | I122: 23.5551 | J122: 0.07934514111 | K122: -0.357321 | L122: 0.60915 | M122: 0.835393 | N122: no
A123: ENSMUSG00000000976.13 | B123: ENSMUSG00000000976.13 | C123: Heatr6 | D123: chr11:83753695-83783754 | E123: WT_U | F123: WT_D | G123: OK | H123: 8.35619 | I123: 9.03008 | J123: 0.1118934727 | K123: -0.429607 | L123: 0.4574 | M123: 0.721606 | N123: no
A124: ENSMUSG00000001014.5 | B124: ENSMUSG00000001014.5 | C124: Icam4 | D124: chr9:21029372-21030531 | E124: WT_U | F124: WT_D | G124: OK | H124: 0.64364 | I124: 0.270449 | J124: -1.250897424 | K124: 2.82375 | L124: 0.00095 | M124: 0.00629407 | N124: yes
A125: ENSMUSG00000001016.12 | B125: ENSMUSG00000001016.12 | C125: Ilf2 | D125: chr3:90476125-90491033 | E125: WT_U | F125: WT_D | G125: OK | H125: 107.756 | I125: 102.418 | J125: -0.07329891098 | K125: 0.400944 | L125: 0.5682 | M125: 0.809067 | N125: no
A126: ENSMUSG00000001017.15 | B126: ENSMUSG00000001017.15 | C126: Chtop | D126: chr3:90498955-90509498 | E126: WT_U | F126: WT_D | G126: OK | H126: 63.8581 | I126: 66.7893 | J126: 0.06474736545 | K126: -0.362491 | L126: 0.61285 | M126: 0.837715 | N126: no
A127: ENSMUSG00000001018.15 | B127: ENSMUSG00000001018.15 | C127: Snapin | D127: chr3:90476125-90491033 | E127: WT_U | F127: WT_D | G127: OK | H127: 11.3931 | I127: 12.9766 | J127: 0.1877520823 | K127: -0.284017 | L127: 0.6986 | M127: 0.887601 | N127: no
A128: ENSMUSG00000001020.8 | B128: ENSMUSG00000001020.8 | C128: S100a4 | D128: chr3:90560555-90606045 | E128: WT_U | F128: WT_D | G128: OK | H128: 15.5086 | I128: 4.6188 | J128: -1.747478474 | K128: 6.70341 | L128: 5e-05 | M128: 0.00046241 | N128: yes
A129: ENSMUSG00000001021.12 | B129: ENSMUSG00000001021.12 | C129: S100a3 | D129: chr3:90560555-90606045 | E129: WT_U | F129: WT_D | G129: OK | H129: 0.214323 | I129: 0.222654 | J129: 0.05501684951 | K129: -0.0419816 | L129: 0.9465 | M129: 0.980091 | N129: no
A130: ENSMUSG00000001025.8 | B130: ENSMUSG00000001025.8 | C130: S100a6 | D130: chr3:90612881-90624181 | E130: WT_U | F130: WT_D | G130: OK | H130: 92.7309 | I130: 46.9917 | J130: =LOG(I130/H130,2) -> -0.9806441966 | K130: 4.92132 | L130: 5e-05 | M130: 0.00046241 | N130: yes
A131: ENSMUSG00000001027.7 | B131: ENSMUSG00000001027.7 | C131: Scn4a | D131: chr11:106318591-106349389 | E131: WT_U | F131: WT_D | G131: OK | H131: 0.834472 | I131: 0.6757 | J131: -0.3044807869 | K131: 1.16985 | L131: 0.3933 | M131: 0.662353 | N131: no
A132: ENSMUSG00000001029.15 | B132: ENSMUSG00000001029.15 | C132: Icam2 | D132: chr11:106377655-106388075 | E132: WT_U | F132: WT_D | G132: OK | H132: 17.5114 | I132: 13.2851 | J132: -0.3984853415 | K132: 1.90271 | L132: 0.00595 | M132: 0.0296952 | N132: yes
A133: ENSMUSG00000001034.17 | B133: ENSMUSG00000001034.17 | C133: Mapk7 | D133: chr11:61485430-61494406 | E133: WT_U | F133: WT_D | G133: OK | H133: 20.8117 | I133: 20.9645 | J133: 0.01055360637 | K133: -0.0365227 | L133: 0.9573 | M133: 0.983347 | N133: no
A134: ENSMUSG00000001036.17 | B134: ENSMUSG00000001036.17 | C134: Epn2 | D134: chr11:61517248-61579687 | E134: WT_U | F134: WT_D | G134: OK | H134: 24.2533 | I134: 24.3054 | J134: 0.003095817659 | K134: -0.00823544 | L134: 0.9896 | M134: 0.994922 | N134: no
A135: ENSMUSG00000001039.12 | B135: ENSMUSG00000001039.12 | C135: B9d1 | D135: chr11:61505143-61512931 | E135: WT_U | F135: WT_D | G135: OK | H135: 9.57646 | I135: 11.9065 | J135: 0.314185027 | K135: -1.39924 | L135: 0.045 | M135: 0.148814 | N135: no
A136: ENSMUSG00000001052.15 | B136: ENSMUSG00000001052.15 | C136: Sec24b | D136: chr3:129982758-130061553 | E136: WT_U | F136: WT_D | G136: OK | H136: 38.7502 | I136: 36.6871 | J136: -0.07893088795 | K136: 0.254705 | L136: 0.69405 | M136: 0.885176 | N136: no
A137: ENSMUSG00000001053.15 | B137: ENSMUSG00000001053.15 | C137: N4bp3 | D137: chr11:51643062-51650842 | E137: WT_U | F137: WT_D | G137: OK | H137: 9.07893 | I137: 6.83426 | J137: -0.4097371441 | K137: 1.94592 | L137: 0.00435 | M137: 0.0228744 | N137: yes
A138: ENSMUSG00000001054.9 | B138: ENSMUSG00000001054.9 | C138: Rmnd5b | D138: chr11:51619734-51635896 | E138: WT_U | F138: WT_D | G138: OK | H138: 9.03151 | I138: 9.76215 | J138: 0.112231704 | K138: -0.172356 | L138: 0.7767 | M138: 0.923565 | N138: no
A139: ENSMUSG00000001056.3 | B139: ENSMUSG00000001056.3 | C139: Nhp2 | D139: chr11:51619734-51635896 | E139: WT_U | F139: WT_D | G139: OK | H139: 201.089 | I139: 185.075 | J139: -0.1197241367 | K139: 0.666401 | L139: 0.34105 | M139: 0.607429 | N139: no
A140: ENSMUSG00000001076.6 | B140: ENSMUSG00000001076.6 | C140: C1ql4 | D140: chr15:99084685-99087817 | E140: WT_U | F140: WT_D | G140: OK | H140: 0.340698 | I140: 0.361202 | J140: 0.08431240274 | K140: -0.18065 | L140: 0.79855 | M140: 0.932099 | N140: no
A141: ENSMUSG00000001082.12 | B141: ENSMUSG00000001082.12 | C141: Mfsd10 | D141: chr5:34633641-34637212 | E141: WT_U | F141: WT_D | G141: OK | H141: 30.1267 | I141: 30.7828 | J141: 0.03108181247 | K141: -0.115269 | L141: 0.85505 | M141: 0.951908 | N141: no
A142: ENSMUSG00000001089.14 | B142: ENSMUSG00000001089.14 | C142: Luzp1 | D142: chr4:136469760-136602723 | E142: WT_U | F142: WT_D | G142: OK | H142: 33.2609 | I142: 27.0674 | J142: -0.2972708928 | K142: 0.897121 | L142: 0.1271 | M142: 0.31968 | N142: no
A143: ENSMUSG00000001098.15 | B143: ENSMUSG00000001098.15 | C143: Kctd10 | D143: chr5:114289165-114380508 | E143: WT_U | F143: WT_D | G143: OK | H143: 28.7394 | I143: 27.9744 | J143: -0.03892275424 | K143: 0.189375 | L143: 0.78295 | M143: 0.926139 | N143: no
A144: ENSMUSG00000001100.10 | B144: ENSMUSG00000001100.10 | C144: Poldip2 | D144: chr11:78512192-78522736 | E144: WT_U | F144: WT_D | G144: OK | H144: 34.7217 | I144: 38.8179 | J144: 0.1608844872 | K144: -0.829177 | L144: 0.2169 | M144: 0.458226 | N144: no
A145: ENSMUSG00000001105.15 | B145: ENSMUSG00000001105.15 | C145: Ift20 | D145: chr11:78536360-78541737 | E145: WT_U | F145: WT_D | G145: OK | H145: 36.8303 | I145: 35.9464 | J145: -0.03504585544 | K145: 0.161032 | L145: 0.81585 | M145: 0.938573 | N145: no
A146: ENSMUSG00000001119.7 | B146: ENSMUSG00000001119.7 | C146: Col6a1 | D146: chr10:76708791-76726168 | E146: WT_U | F146: WT_D | G146: OK | H146: 1.57292 | I146: 0.916479 | J146: -0.7792715673 | K146: 3.50871 | L146: 5e-05 | M146: 0.00046241 | N146: yes
A147: ENSMUSG00000001120.15 | B147: ENSMUSG00000001120.15 | C147: Pcbp3 | D147: chr10:76761856-76961887 | E147: WT_U | F147: WT_D | G147: OK | H147: 533.008 | I147: 461.717 | J147: -0.2071483347 | K147: 0.990231 | L147: 0.15715 | M147: 0.369903 | N147: no
A148: ENSMUSG00000001123.15 | B148: ENSMUSG00000001123.15 | C148: Lgals9 | D148: chr11:78962973-78984946 | E148: WT_U | F148: WT_D | G148: OK | H148: 4.31839 | I148: 3.09666 | J148: -0.4797805511 | K148: 2.17367 | L148: 0.0016 | M148: 0.00983992 | N148: yes
A149: ENSMUSG00000001127.12 | B149: ENSMUSG00000001127.12 | C149: Araf | D149: chrX:20797813-20921004 | E149: WT_U | F149: WT_D | G149: OK | H149: 28.2707 | I149: 33.6929 | J149: 0.2531370032 | K149: -0.86797 | L149: 0.1957 | M149: 0.4288 | N149: no
A150: ENSMUSG00000001128.7 | B150: ENSMUSG00000001128.7 | C150: Cfp | D150: chrX:20925453-20931555 | E150: WT_U | F150: WT_D | G150: OK | H150: 1.47719 | I150: 1.37295 | J150: -0.1055763147 | K150: 0.254988 | L150: 0.71165 | M150: 0.894484 | N150: no
A151: ENSMUSG00000001131.11 | B151: ENSMUSG00000001131.11 | C151: Timp1 | D151: chrX:20797813-20921004 | E151: WT_U | F151: WT_D | G151: OK | H151: 0.873361 | I151: 0.806038 | J151: -0.1157302539 | K151: 0.0474305 | L151: 0.94925 | M151: 0.981063 | N151: no
A152: ENSMUSG00000001134.9 | B152: ENSMUSG00000001134.9 | C152: Uxt | D152: chrX:20933394-20986737 | E152: WT_U | F152: WT_D | G152: OK | H152: 22.5022 | I152: 24.2407 | J152: 0.1073653021 | K152: -0.243747 | L152: 0.73405 | M152: 0.905308 | N152: no
A153: ENSMUSG00000001138.13 | B153: ENSMUSG00000001138.13 | C153: Cnnm3 | D153: chr1:36511866-36528237 | E153: WT_U | F153: WT_D | G153: OK | H153: 7.1154 | I153: 7.56102 | J153: 0.08763600893 | K153: -0.253165 | L153: 0.7057 | M153: 0.891613 | N153: no
A154: ENSMUSG00000001143.13 | B154: ENSMUSG00000001143.13 | C154: Lman2l | D154: chr1:36372290-36445271 | E154: WT_U | F154: WT_D | G154: OK | H154: 22.7051 | I154: 28.4246 | J154: 0.3241236564 | K154: -1.36212 | L154: 0.04975 | M154: 0.160647 | N154: no
A155: ENSMUSG00000001150.6 | B155: ENSMUSG00000001150.6 | C155: Mcm3ap | D155: chr10:76449080-76515856 | E155: WT_U | F155: WT_D | G155: OK | H155: 13.5083 | I155: 13.0088 | J155: -0.05435823858 | K155: 0.305577 | L155: 0.66175 | M155: 0.867116 | N155: no
A156: ENSMUSG00000001151.9 | B156: ENSMUSG00000001151.9 | C156: Pcnt | D156: chr10:76351253-76442912 | E156: WT_U | F156: WT_D | G156: OK | H156: 13.4078 | I156: 12.43 | J156: -0.1092462377 | K156: 0.63863 | L156: 0.3646 | M156: 0.632639 | N156: no
A157: ENSMUSG00000001156.9 | B157: ENSMUSG00000001156.9 | C157: Mxd1 | D157: chr6:86647041-86669161 | E157: WT_U | F157: WT_D | G157: OK | H157: 1.78123 | I157: 1.78159 | J157: 0.0002915500735 | K157: -0.00102162 | L157: 0.99855 | M157: 0.999158 | N157: no
A158: ENSMUSG00000001157.13 | B158: ENSMUSG00000001157.13 | C158: Gmcl1 | D158: chr6:86691767-86733383 | E158: WT_U | F158: WT_D | G158: OK | H158: 14.2824 | I158: 14.1928 | J158: -0.009079191878 | K158: 0.0431289 | L158: 0.94825 | M158: 0.980768 | N158: no
A159: ENSMUSG00000001158.13 | B159: ENSMUSG00000001158.13 | C159: Snrnp27 | D159: chr6:86675150-86684522 | E159: WT_U | F159: WT_D | G159: OK | H159: 76.5547 | I159: 73.3518 | J159: -0.06165858425 | K159: 0.314673 | L159: 0.64765 | M159: 0.858328 | N159: no
A160: ENSMUSG00000001166.17 | B160: ENSMUSG00000001166.17 | C160: Oas1c | D160: chr5:120777795-120812514 | E160: WT_U | F160: WT_D | G160: OK | H160: 1.7034 | I160: 1.38444 | J160: -0.2991147245 | K160: 1.10472 | L160: 0.0797 | M160: 0.228178 | N160: no
A161: ENSMUSG00000001173.15 | B161: ENSMUSG00000001173.15 | C161: Ocrl | D161: chrX:47912386-47965868 | E161: WT_U | F161: WT_D | G161: OK | H161: 5.71127 | I161: 5.72734 | J161: 0.004053661163 | K161: -0.0189602 | L161: 0.9774 | M161: 0.989848 | N161: no
A162: ENSMUSG00000001175.13 | B162: ENSMUSG00000001175.13 | C162: Calm1 | D162: chr12:100199434-100209814 | E162: WT_U | F162: WT_D | G162: OK | H162: 270.68 | I162: 268.636 | J162: -0.0109356399 | K162: 0.0357471 | L162: 0.95985 | M162: 0.984241 | N162: no
A163: ENSMUSG00000001211.14 | B163: ENSMUSG00000001211.14 | C163: Agpat3 | D163: chr10:78269177-78352489 | E163: WT_U | F163: WT_D | G163: OK | H163: 76.3921 | I163: 95.8071 | J163: 0.3267091227 | K163: -1.39248 | L163: 0.04435 | M163: 0.147204 | N163: no
A164: ENSMUSG00000001227.11 | B164: ENSMUSG00000001227.11 | C164: Sema6b | D164: chr17:56123084-56140343 | E164: WT_U | F164: WT_D | G164: OK | H164: 1.33772 | I164: 0.823959 | J164: -0.699131719 | K164: 3.08682 | L164: 5e-05 | M164: 0.00046241 | N164: yes
A165: ENSMUSG00000001228.14 | B165: ENSMUSG00000001228.14 | C165: Uhrf1 | D165: chr17:56303320-56323486 | E165: WT_U | F165: WT_D | G165: OK | H165: 102.09 | I165: 87.007 | J165: -0.2306381768 | K165: 0.802809 | L165: 0.2336 | M165: 0.479612 | N165: no
A166: ENSMUSG00000001229.7 | B166: ENSMUSG00000001229.7 | C166: Dpp9 | D166: chr17:56186681-56218889 | E166: WT_U | F166: WT_D | G166: OK | H166: 25.5341 | I166: 26.8118 | J166: 0.07044286806 | K166: -0.411046 | L166: 0.56265 | M166: 0.805238 | N166: no
A167: ENSMUSG00000001240.13 | B167: ENSMUSG00000001240.13 | C167: Ramp2 | D167: chr11:101246027-101259549 | E167: WT_U | F167: WT_D | G167: OK | H167: 20.7193 | I167: 10.1455 | J167: -1.030135295 | K167: 1.88918 | L167: 0.01205 | M167: 0.0528728 | N167: no
A168: ENSMUSG00000001248.14 | B168: ENSMUSG00000001248.14 | C168: Gramd1a | D168: chr7:31130126-31170641 | E168: WT_U | F168: WT_D | G168: OK | H168: 37.86 | I168: 42.4283 | J168: 0.1643524634 | K168: -0.878129 | L168: 0.18605 | M168: 0.414334 | N168: no
A169: ENSMUSG00000001249.14 | B169: ENSMUSG00000001249.14 | C169: Hpn | D169: chr7:31098724-31115290 | E169: WT_U | F169: WT_D | G169: OK | H169: 1.22863 | I169: 1.43421 | J169: 0.2232057661 | K169: -0.58404 | L169: 0.3946 | M169: 0.663672 | N169: no
A170: ENSMUSG00000001270.8 | B170: ENSMUSG00000001270.8 | C170: Ckb | D170: chr12:111669354-111672338 | E170: WT_U | F170: WT_D | G170: OK | H170: 11.7257 | I170: 10.193 | J170: -0.2020953237 | K170: 0.997562 | L170: 0.15285 | M170: 0.363013 | N170: no
A171: ENSMUSG00000001280.12 | B171: ENSMUSG00000001280.12 | C171: Sp1 | D171: chr15:102406142-102436404 | E171: WT_U | F171: WT_D | G171: OK | H171: 29.6087 | I171: 28.2527 | J171: -0.06763240208 | K171: 0.271433 | L171: 0.5943 | M171: 0.82573 | N171: no
A172: ENSMUSG00000001281.9 | B172: ENSMUSG00000001281.9 | C172: Itgb7 | D172: chr15:102215994-102231935 | E172: WT_U | F172: WT_D | G172: OK | H172: 0.110629 | I172: 0.105492 | J172: -0.06859602339 | K172: 0.123359 | L172: 0.83945 | M172: 0.946835 | N172: no
A173: ENSMUSG00000001285.12 | B173: ENSMUSG00000001285.12 | C173: Myg1 | D173: chr15:102326115-102338139 | E173: WT_U | F173: WT_D | G173: OK | H173: 67.4688 | I173: 66.7733 | J173: -0.01494916094 | K173: 0.0436876 | L173: 0.9514 | M173: 0.981594 | N173: no
A174: ENSMUSG00000001288.14 | B174: ENSMUSG00000001288.14 | C174: Rarg | D174: chr15:102234937-102257517 | E174: WT_U | F174: WT_D | G174: OK | H174: 5.51297 | I174: 4.58834 | J174: -0.2648574504 | K174: 1.01076 | L174: 0.13465 | M174: 0.332477 | N174: no
A175: ENSMUSG00000001289.12 | B175: ENSMUSG00000001289.12 | C175: Pfdn5 | D175: chr15:102326115-102338139 | E175: WT_U | F175: WT_D | G175: OK | H175: 232.264 | I175: 218.073 | J175: -0.09095440102 | K175: 0.349045 | L175: 0.61405 | M175: 0.838394 | N175: no
A176: ENSMUSG00000001300.15 | B176: ENSMUSG00000001300.15 | C176: Efnb2 | D176: chr8:8617433-8660773 | E176: WT_U | F176: WT_D | G176: OK | H176: 0.904745 | I176: 1.03479 | J176: 0.1937548825 | K176: -0.854274 | L176: 0.21535 | M176: 0.456154 | N176: no
A177: ENSMUSG00000001305.5 | B177: ENSMUSG00000001305.5 | C177: Rrp15 | D177: chr1:186720977-186749358 | E177: WT_U | F177: WT_D | G177: OK | H177: 102.181 | I177: 104.989 | J177: 0.03911122056 | K177: -0.227281 | L177: 0.74325 | M177: 0.908979 | N177: no
A178: ENSMUSG00000001313.12 | B178: ENSMUSG00000001313.12 | C178: Rnd2 | D178: chr11:101458744-101471853 | E178: WT_U | F178: WT_D | G178: OK | H178: 26.4717 | I178: 32.5176 | J178: 0.2967699345 | K178: -0.551163 | L178: 0.4219 | M178: 0.689709 | N178: no
A179: ENSMUSG00000001323.17 | B179: ENSMUSG00000001323.17 | C179: Srr | D179: chr11:74898070-75164448 | E179: WT_U | F179: WT_D | G179: OK | H179: 4.78878 | I179: 5.63526 | J179: 0.2348240164 | K179: -0.19685 | L179: 0.7463 | M179: 0.910309 | N179: no
A180: ENSMUSG00000001333.9 | B180: ENSMUSG00000001333.9 | C180: Sync | D180: chr4:129287616-129335370 | E180: WT_U | F180: WT_D | G180: OK | H180: 2.99133 | I180: 2.99771 | J180: 0.003073747326 | K180: -0.00228054 | L180: 0.99725 | M180: 0.998566 | N180: no
A181: ENSMUSG00000001334.9 | B181: ENSMUSG00000001334.9 | C181: Fndc5 | D181: chr4:129136998-129144593 | E181: WT_U | F181: WT_D | G181: OK | H181: 4.64354 | I181: 2.39092 | J181: -0.9576592041 | K181: 4.57327 | L181: 5e-05 | M181: 0.00046241 | N181: yes
A182: ENSMUSG00000001348.14 | B182: ENSMUSG00000001348.14 | C182: Acp5 | D182: chr9:22126730-22135746 | E182: WT_U | F182: WT_D | G182: OK | H182: 0.101605 | I182: 0.0543313 | J182: -0.9031159268 | K182: 1.17599 | L182: 0.06895 | M182: 0.204974 | N182: no
A183: ENSMUSG00000001349.4 | B183: ENSMUSG00000001349.4 | C183: Cnn1 | D183: chr9:22099280-22109630 | E183: WT_U | F183: WT_D | G183: OK | H183: 0.0802677 | I183: 0.0246628 | J183: -1.702482959 | K183: 2.35539 | L183: 0.0061 | M183: 0.0302974 | N183: yes
A184: ENSMUSG00000001366.14 | B184: ENSMUSG00000001366.14 | C184: Fbxo9 | D184: chr9:78081498-78109065 | E184: WT_U | F184: WT_D | G184: OK | H184: 13.06 | I184: 12.5528 | J184: -0.05714569243 | K184: 0.254851 | L184: 0.7017 | M184: 0.889419 | N184: no
A185: ENSMUSG00000001376.17 | B185: ENSMUSG00000001376.17 | C185: Ccdc132 | D185: chr6:3498381-3603531 | E185: WT_U | F185: WT_D | G185: OK | H185: 24.5342 | I185: 25.4905 | J185: 0.05516544289 | K185: -0.288895 | L185: 0.6563 | M185: 0.863407 | N185: no
A186: ENSMUSG00000001380.6 | B186: ENSMUSG00000001380.6 | C186: Hars | D186: chr18:36766529-36792562 | E186: WT_U | F186: WT_D | G186: OK | H186: 69.3792 | I186: 65.4181 | J186: -0.08481334678 | K186: 0.44083 | L186: 0.5271 | M186: 0.778444 | N186: no
A187: ENSMUSG00000001383.8 | B187: ENSMUSG00000001383.8 | C187: Zmat2 | D187: chr18:36793922-36799660 | E187: WT_U | F187: WT_D | G187: OK | H187: 55.9839 | I187: 51.9992 | J187: -0.1065225649 | K187: 0.623073 | L187: 0.3718 | M187: 0.640407 | N187: no
A188: ENSMUSG00000001403.13 | B188: ENSMUSG00000001403.13 | C188: Ube2c | D188: chr2:164769897-164779967 | E188: WT_U | F188: WT_D | G188: OK | H188: 193.619 | I188: 185.204 | J188: -0.06410527449 | K188: 0.37494 | L188: 0.58455 | M188: 0.819319 | N188: no
A189: ENSMUSG00000001415.10 | B189: ENSMUSG00000001415.10 | C189: Smg5 | D189: chr3:88336259-88362338 | E189: WT_U | F189: WT_D | G189: OK | H189: 51.017 | I189: 47.6719 | J189: -0.09783893903 | K189: 0.391765 | L189: 0.53805 | M189: 0.786776 | N189: no
A190: ENSMUSG00000001416.13 | B190: ENSMUSG00000001416.13 | C190: Cct3 | D190: chr3:88297115-88321767 | E190: WT_U | F190: WT_D | G190: OK | H190: 313.302 | I190: 299.943 | J190: -0.06286561673 | K190: 0.362863 | L190: 0.60395 | M190: 0.831974 | N190: no
A191: ENSMUSG00000001418.13 | B191: ENSMUSG00000001418.13 | C191: Glmp | D191: chr3:88325022-88336148 | E191: WT_U | F191: WT_D | G191: OK | H191: 14.9802 | I191: 16.0642 | J191: 0.1007922508 | K191: -0.357365 | L191: 0.60805 | M191: 0.834741 | N191: no
A192: ENSMUSG00000001419.17 | B192: ENSMUSG00000001419.17 | C192: Mef2d | D192: chr3:88142371-88177785 | E192: WT_U | F192: WT_D | G192: OK | H192: 51.9719 | I192: 43.3618 | J192: -0.2613071564 | K192: 1.0153 | L192: 0.13225 | M192: 0.32829 | N192: no
A193: ENSMUSG00000001420.13 | B193: ENSMUSG00000001420.13 | C193: Tmem79 | D193: chr3:88325022-88336148 | E193: WT_U | F193: WT_D | G193: OK | H193: 1.47683 | I193: 1.29393 | J193: -0.1907441935 | K193: 0.252705 | L193: 0.7204 | M193: 0.898885 | N193: no
A194: ENSMUSG00000001424.14 | B194: ENSMUSG00000001424.14 | C194: Snd1 | D194: chr6:28475138-28935162 | E194: WT_U | F194: WT_D | G194: OK | H194: 326.553 | I194: 374.321 | J194: =LOG(I194/H194,2) -> 0.1969588258 | K194: -0.556785 | L194: 0.4256 | M194: 0.69319 | N194: no
A195: ENSMUSG00000001435.14 | B195: ENSMUSG00000001435.14 | C195: Col18a1 | D195: chr10:77032240-77166548 | E195: WT_U | F195: WT_D | G195: OK | H195: 6.91773 | I195: 6.59965 | J195: -0.06790919033 | K195: 0.133998 | L195: 0.8281 | M195: 0.942986 | N195: no
A196: ENSMUSG00000001436.15 | B196: ENSMUSG00000001436.15 | C196: Slc19a1 | D196: chr10:77032240-77166548 | E196: WT_U | F196: WT_D | G196: OK | H196: 41.8884 | I196: 38.6399 | J196: -0.1164594185 | K196: 0.455624 | L196: 0.5113 | M196: 0.766281 | N196: no
A197: ENSMUSG00000001440.5 | B197: ENSMUSG00000001440.5 | C197: Kpnb1 | D197: chr11:97159713-97187881 | E197: WT_U | F197: WT_D | G197: OK | H197: 353.967 | I197: 321.793 | J197: -0.1374819222 | K197: 0.381735 | L197: 0.58945 | M197: 0.82239 | N197: no
A198: ENSMUSG00000001441.13 | B198: ENSMUSG00000001441.13 | C198: Npepps | D198: chr11:97205841-97282897 | E198: WT_U | F198: WT_D | G198: OK | H198: 46.5239 | I198: 40.0093 | J198: -0.2176366523 | K198: 0.969462 | L198: 0.08375 | M198: 0.236762 | N198: no
A199: ENSMUSG00000001444.2 | B199: ENSMUSG00000001444.2 | C199: Tbx21 | D199: chr11:97098070-97115331 | E199: WT_U | F199: WT_D | G199: OK | H199: 0.268378 | I199: 0.304161 | J199: 0.1805687673 | K199: -0.5535 | L199: 0.4419 | M199: 0.707502 | N199: no
A200: ENSMUSG00000001445.10 | B200: ENSMUSG00000001445.10 | C200: Mrpl10 | D200: chr11:97041559-97068904 | E200: WT_U | F200: WT_D | G200: OK | H200: 63.8243 | I200: 63.4591 | J200: -0.008278749228 | K200: 0.0451299 | L200: 0.9463 | M200: 0.980056 | N200: no
... 4300 more rows

Sheet Undiff_FPKMover1
A1: test_id | B1: gene_id | C1: gene | D1: locus | E1: sample_2 | F1: sample_1 | G1: status | H1: value_2 | I1: value_1 | J1: log2(fold_change) | K1: test_stat | L1: p_value | M1: q_value | N1: significant
A2: ENSMUSG00000000001.4 | B2: ENSMUSG00000000001.4 | C2: Gnai3 | D2: chr3:108107279-108146146 | E2: WT_U | F2: WT_D | G2: OK | H2: 52.5405 | I2: 50.2617 | J2: =LOG(I2/H2,2) -> -0.06397046162 | K2: 0.374672 | L2: 0.5928 | M2: 0.824641 | N2: no
A3: ENSMUSG00000000028.14 | B3: ENSMUSG00000000028.14 | C3: Cdc45 | D3: chr16:18780446-18835261 | E3: WT_U | F3: WT_D | G3: OK | H3: 32.7228 | I3: 32.6077 | J3: -0.005083517531 | K3: 0.0212913 | L3: 0.97515 | M3: 0.989009 | N3: no
A4: ENSMUSG00000000037.16 | B4: ENSMUSG00000000037.16 | C4: Scml2 | D4: chrX:161117192-161258213 | E4: WT_U | F4: WT_D | G4: OK | H4: 6.68094 | I4: 5.69158 | J4: -0.2312218977 | K4: 0.630529 | L4: 0.34185 | M4: 0.608378 | N4: no
A5: ENSMUSG00000000056.7 | B5: ENSMUSG00000000056.7 | C5: Narf | D5: chr11:121237252-121255856 | E5: WT_U | F5: WT_D | G5: OK | H5: 6.06142 | I5: 3.54251 | J5: -0.7748838857 | K5: 3.78495 | L5: 5e-05 | M5: 0.00046241 | N5: yes
A6: ENSMUSG00000000078.6 | B6: ENSMUSG00000000078.6 | C6: Klf6 | D6: chr13:5861488-5870393 | E6: WT_U | F6: WT_D | G6: OK | H6: 21.832 | I6: 21.6658 | J6: -0.01102479126 | K6: 0.0643838 | L6: 0.9281 | M6: 0.974465 | N6: no
A7: ENSMUSG00000000088.6 | B7: ENSMUSG00000000088.6 | C7: Cox5a | D7: chr9:57521231-57543187 | E7: WT_U | F7: WT_D | G7: OK | H7: 242.907 | I7: 220.027 | J7: -0.1427234947 | K7: 0.765662 | L7: 0.27545 | M7: 0.53099 | N7: no
A8: ENSMUSG00000000093.6 | B8: ENSMUSG00000000093.6 | C8: Tbx2 | D8: chr11:85832550-85841948 | E8: WT_U | F8: WT_D | G8: OK | H8: 11.7553 | I8: 8.92727 | J8: -0.3970203925 | K8: 2.0182 | L8: 0.00365 | M8: 0.0197639 | N8: yes
A9: ENSMUSG00000000094.12 | B9: ENSMUSG00000000094.12 | C9: Tbx4 | D9: chr11:85886421-85916097 | E9: WT_U | F9: WT_D | G9: OK | H9: 1.10842 | I9: 1.00538 | J9: -0.1407637528 | K9: 0.604759 | L9: 0.3873 | M9: 0.65633 | N9: no
A10: ENSMUSG00000000120.6 | B10: ENSMUSG00000000120.6 | C10: Ngfr | D10: chr11:95568817-95587735 | E10: WT_U | F10: WT_D | G10: OK | H10: 93.5808 | I10: 74.3631 | J10: -0.3316256484 | K10: 1.93892 | L10: 0.00645 | M10: 0.0317759 | N10: yes
A11: ENSMUSG00000000125.5 | B11: ENSMUSG00000000125.5 | C11: Wnt3 | D11: chr11:103774149-103817957 | E11: WT_U | F11: WT_D | G11: OK | H11: 2.20987 | I11: 3.02174 | J11: 0.4514180291 | K11: -2.13722 | L11: 0.0023 | M11: 0.0133873 | N11: yes
A12: ENSMUSG00000000127.14 | B12: ENSMUSG00000000127.14 | C12: Fer | D12: chr17:63896017-64139494 | E12: WT_U | F12: WT_D | G12: OK | H12: 17.575 | I12: 16.8157 | J12: -0.06371585301 | K12: 0.326405 | L12: 0.6376 | M12: 0.852268 | N12: no
A13: ENSMUSG00000000131.15 | B13: ENSMUSG00000000131.15 | C13: Xpo6 | D13: chr7:126101714-126200501 | E13: WT_U | F13: WT_D | G13: OK | H13: 28.3736 | I13: 26.5241 | J13: -0.09724540992 | K13: 0.400102 | L13: 0.49625 | M13: 0.75392 | N13: no
A14: ENSMUSG00000000134.17 | B14: ENSMUSG00000000134.17 | C14: Tfe3 | D14: chrX:7762559-7775202 | E14: WT_U | F14: WT_D | G14: OK | H14: 18.6426 | I14: 23.5048 | J14: 0.3343523246 | K14: -0.873069 | L14: 0.18705 | M14: 0.415803 | N14: no
A15: ENSMUSG00000000142.15 | B15: ENSMUSG00000000142.15 | C15: Axin2 | D15: chr11:108920348-108950783 | E15: WT_U | F15: WT_D | G15: OK | H15: 3.73627 | I15: 4.2741 | J15: 0.1940219482 | K15: -0.690852 | L15: 0.30195 | M15: 0.562999 | N15: no
A16: ENSMUSG00000000148.17 | B16: ENSMUSG00000000148.17 | C16: Brat1 | D16: chr5:140705010-140719379 | E16: WT_U | F16: WT_D | G16: OK | H16: 12.7678 | I16: 13.3139 | J16: 0.06042327951 | K16: -0.302434 | L16: 0.6706 | M16: 0.871914 | N16: no
A17: ENSMUSG00000000149.10 | B17: ENSMUSG00000000149.10 | C17: Gna12 | D17: chr5:140724126-140830431 | E17: WT_U | F17: WT_D | G17: OK | H17: 24.582 | I17: 28.7564 | J17: 0.2262807781 | K17: -1.28119 | L17: 0.06415 | M17: 0.194308 | N17: no
A18: ENSMUSG00000000167.14 | B18: ENSMUSG00000000167.14 | C18: Pih1d2 | D18: chr9:50603900-50625000 | E18: WT_U | F18: WT_D | G18: OK | H18: 2.94959 | I18: 2.53867 | J18: -0.2164415582 | K18: 0.214185 | L18: 0.72825 | M18: 0.902717 | N18: no
A19: ENSMUSG00000000168.9 | B19: ENSMUSG00000000168.9 | C19: Dlat | D19: chr9:50634632-50659780 | E19: WT_U | F19: WT_D | G19: OK | H19: 46.6665 | I19: 46.5089 | J19: -0.004880450318 | K19: 0.0189943 | L19: 0.97585 | M19: 0.989148 | N19: no
A20: ENSMUSG00000000171.4 | B20: ENSMUSG00000000171.4 | C20: Sdhd | D20: chr9:50596337-50603849 | E20: WT_U | F20: WT_D | G20: OK | H20: 94.7292 | I20: 74.8404 | J20: -0.3399919314 | K20: 1.98507 | L20: 0.0043 | M20: 0.0226542 | N20: yes
A21: ENSMUSG00000000194.13 | B21: ENSMUSG00000000194.13 | C21: Gpr107 | D21: chr2:31152315-31218775 | E21: WT_U | F21: WT_D | G21: OK | H21: 20.3688 | I21: 18.2492 | J21: -0.1585277672 | K21: 0.57056 | L21: 0.3371 | M21: 0.603149 | N21: no
A22: ENSMUSG00000000214.10 | B22: ENSMUSG00000000214.10 | C22: Th | D22: chr7:142892751-142931128 | E22: WT_U | F22: WT_D | G22: OK | H22: 1.84539 | I22: 1.45912 | J22: -0.3388272067 | K22: 1.4102 | L22: 0.04235 | M22: 0.142148 | N22: no
A23: ENSMUSG00000000247.11 | B23: ENSMUSG00000000247.11 | C23: Lhx2 | D23: chr2:38339280-38369733 | E23: WT_U | F23: WT_D | G23: OK | H23: 1.84557 | I23: 2.04704 | J23: 0.1494728354 | K23: -0.60208 | L23: 0.37165 | M23: 0.640303 | N23: no
A24: ENSMUSG00000000253.12 | B24: ENSMUSG00000000253.12 | C24: Gmpr | D24: chr13:45507443-45546382 | E24: WT_U | F24: WT_D | G24: OK | H24: 8.63107 | I24: 6.25952 | J24: -0.4634873915 | K24: 2.17349 | L24: 0.0013 | M24: 0.00823191 | N24: yes
A25: ENSMUSG00000000266.11 | B25: ENSMUSG00000000266.11 | C25: Mid2 | D25: chrX:140664598-140767715 | E25: WT_U | F25: WT_D | G25: OK | H25: 4.89337 | I25: 4.57687 | J25: -0.09646705804 | K25: 0.384264 | L25: 0.5426 | M25: 0.790155 | N25: no
A26: ENSMUSG00000000275.16 | B26: ENSMUSG00000000275.16 | C26: Trim25 | D26: chr11:88999375-89020293 | E26: WT_U | F26: WT_D | G26: OK | H26: 16.1279 | I26: 15.2479 | J26: -0.08094803585 | K26: 0.381412 | L26: 0.57555 | M26: 0.813658 | N26: no
A27: ENSMUSG00000000276.11 | B27: ENSMUSG00000000276.11 | C27: Dgke | D27: chr11:89035178-89069098 | E27: WT_U | F27: WT_D | G27: OK | H27: 4.13174 | I27: 3.81441 | J27: -0.1152895488 | K27: 0.556 | L27: 0.42865 | M27: 0.695907 | N27: no
A28: ENSMUSG00000000278.10 | B28: ENSMUSG00000000278.10 | C28: Scpep1 | D28: chr11:88905927-88955465 | E28: WT_U | F28: WT_D | G28: OK | H28: 58.3994 | I28: 78.6192 | J28: 0.4289281367 | K28: -2.5072 | L28: 0.00035 | M28: 0.00265006 | N28: yes
A29: ENSMUSG00000000282.12 | B29: ENSMUSG00000000282.12 | C29: Mnt | D29: chr11:74830919-74845725 | E29: WT_U | F29: WT_D | G29: OK | H29: 16.6366 | I29: 19.6668 | J29: 0.2414016128 | K29: -0.832144 | L29: 0.2288 | M29: 0.473317 | N29: no
A30: ENSMUSG00000000295.12 | B30: ENSMUSG00000000295.12 | C30: Hddc2 | D30: chr10:31313381-31328204 | E30: WT_U | F30: WT_D | G30: OK | H30: 35.4605 | I30: 31.0694 | J30: -0.1907184977 | K30: 0.947883 | L30: 0.17415 | M30: 0.396243 | N30: no
A31: ENSMUSG00000000296.7 | B31: ENSMUSG00000000296.7 | C31: Tpd52l1 | D31: chr10:31332379-31445921 | E31: WT_U | F31: WT_D | G31: OK | H31: 1.12156 | I31: 1.15064 | J31: 0.03692972677 | K31: -0.133623 | L31: 0.8504 | M31: 0.950491 | N31: no
A32: ENSMUSG00000000301.16 | B32: ENSMUSG00000000301.16 | C32: Pemt | D32: chr11:59970613-60046489 | E32: WT_U | F32: WT_D | G32: OK | H32: 11.1347 | I32: 12.9855 | J32: 0.2218388769 | K32: -0.862991 | L32: 0.20985 | M32: 0.448687 | N32: no
A33: ENSMUSG00000000308.14 | B33: ENSMUSG00000000308.14 | C33: Ckmt1 | D33: chr2:121357713-121387168 | E33: WT_U | F33: WT_D | G33: OK | H33: 6.75931 | I33: 4.48516 | J33: -0.59171653 | K33: 2.75745 | L33: 5e-05 | M33: 0.00046241 | N33: yes
A34: ENSMUSG00000000325.15 | B34: ENSMUSG00000000325.15 | C34: Arvcf | D34: chr16:18348181-18479073 | E34: WT_U | F34: WT_D | G34: OK | H34: 22.3611 | I34: 30.8188 | J34: 0.4628195285 | K34: -1.45251 | L34: 0.0186 | M34: 0.0748204 | N34: no
A35: ENSMUSG00000000326.12 | B35: ENSMUSG00000000326.12 | C35: Comt | D35: chr16:18348181-18479073 | E35: WT_U | F35: WT_D | G35: OK | H35: 34.1703 | I35: 33.8543 | J35: -0.01340382486 | K35: 0.0392596 | L35: 0.9561 | M35: 0.982921 | N35: no
A36: ENSMUSG00000000339.14 | B36: ENSMUSG00000000339.14 | C36: Rtca | D36: chr3:116488962-116508208 | E36: WT_U | F36: WT_D | G36: OK | H36: 34.0477 | I36: 32.2497 | J36: -0.07827160413 | K36: 0.365954 | L36: 0.5977 | M36: 0.827906 | N36: no
A37: ENSMUSG00000000340.10 | B37: ENSMUSG00000000340.10 | C37: Dbt | D37: chr3:116513069-116549981 | E37: WT_U | F37: WT_D | G37: OK | H37: 13.1391 | I37: 10.4155 | J37: -0.3351343594 | K37: 1.25502 | L37: 0.04025 | M37: 0.136596 | N37: no
A38: ENSMUSG00000000346.8 | B38: ENSMUSG00000000346.8 | C38: Dazap2 | D38: chr15:100615627-100620731 | E38: WT_U | F38: WT_D | G38: OK | H38: 77.0826 | I38: 77.097 | J38: 0.0002694884232 | K38: -0.00158459 | L38: 0.9983 | M38: 0.999128 | N38: no
A39: ENSMUSG00000000355.13 | B39: ENSMUSG00000000355.13 | C39: Mcts1 | D39: chrX:38600577-38613426 | E39: WT_U | F39: WT_D | G39: OK | H39: 24.6247 | I39: 25.6796 | J39: 0.06051658192 | K39: -0.291255 | L39: 0.67425 | M39: 0.873635 | N39: no
A40: ENSMUSG00000000374.7 | B40: ENSMUSG00000000374.7 | C40: Trappc10 | D40: chr10:78186724-78244642 | E40: WT_U | F40: WT_D | G40: OK | H40: 17.2205 | I40: 16.8973 | J40: -0.02733429387 | K40: 0.159537 | L40: 0.81575 | M40: 0.938501 | N40: no
A41: ENSMUSG00000000378.15 | B41: ENSMUSG00000000378.15 | C41: Ccm2 | D41: chr11:6546886-6596744 | E41: WT_U | F41: WT_D | G41: OK | H41: 15.4433 | I41: 16.4591 | J41: 0.09190438222 | K41: -0.41399 | L41: 0.5334 | M41: 0.783258 | N41: no
A42: ENSMUSG00000000384.15 | B42: ENSMUSG00000000384.15 | C42: Tbrg4 | D42: chr11:6615597-6626067 | E42: WT_U | F42: WT_D | G42: OK | H42: 59.156 | I42: 54.5121 | J42: -0.1179480047 | K42: 0.498204 | L42: 0.47245 | M42: 0.733772 | N42: no
A43: ENSMUSG00000000399.10 | B43: ENSMUSG00000000399.10 | C43: Ndufa9 | D43: chr6:126821720-126849136 | E43: WT_U | F43: WT_D | G43: OK | H43: 84.9252 | I43: 83.7675 | J43: -0.01980209304 | K43: 0.115287 | L43: 0.86695 | M43: 0.955768 | N43: no
A44: ENSMUSG00000000409.14 | B44: ENSMUSG00000000409.14 | C44: Lck | D44: chr4:129548343-129573641 | E44: WT_U | F44: WT_D | G44: OK | H44: 19.7073 | I44: 34.2224 | J44: 0.7962108055 | K44: -2.9677 | L44: 5e-05 | M44: 0.00046241 | N44: yes
A45: ENSMUSG00000000420.15 | B45: ENSMUSG00000000420.15 | C45: Galnt1 | D45: chr18:24205343-24286818 | E45: WT_U | F45: WT_D | G45: OK | H45: 45.0935 | I45: 35.4486 | J45: -0.3471908402 | K45: 1.54679 | L45: 0.02525 | M45: 0.0951564 | N45: no
A46: ENSMUSG00000000439.9 | B46: ENSMUSG00000000439.9 | C46: Mkrn2 | D46: chr6:115601901-115677780 | E46: WT_U | F46: WT_D | G46: OK | H46: 19.2677 | I46: 19.6263 | J46: 0.02660385159 | K46: -0.0298442 | L46: 0.96445 | M46: 0.98581 | N46: no
A47: ENSMUSG00000000440.12 | B47: ENSMUSG00000000440.12 | C47: Pparg | D47: chr6:115360950-115490399 | E47: WT_U | F47: WT_D | G47: OK | H47: 5.86211 | I47: 10.5055 | J47: 0.8416528825 | K47: -2.49863 | L47: 5e-05 | M47: 0.00046241 | N47: yes
A48: ENSMUSG00000000441.17 | B48: ENSMUSG00000000441.17 | C48: Raf1 | D48: chr6:115601901-115677780 | E48: WT_U | F48: WT_D | G48: OK | H48: 50.0115 | I48: 50.6277 | J48: 0.01766706798 | K48: -0.0739293 | L48: 0.9121 | M48: 0.969262 | N48: no
A49: ENSMUSG00000000486.13 | B49: ENSMUSG00000000486.13 | C49: Sept1 | D49: chr7:127214446-127238179 | E49: WT_U | F49: WT_D | G49: OK | H49: 2.76399 | I49: 2.3231 | J49: -0.2507011385 | K49: 0.184203 | L49: 0.78655 | M49: 0.927594 | N49: no
A50: ENSMUSG00000000531.4 | B50: ENSMUSG00000000531.4 | C50: Grasp | D50: chr15:101224206-101232755 | E50: WT_U | F50: WT_D | G50: OK | H50: 9.33606 | I50: 7.04576 | J50: -0.4060584997 | K50: 2.00755 | L50: 0.0052 | M50: 0.0265674 | N50: yes
A51: ENSMUSG00000000532.10 | B51: ENSMUSG00000000532.10 | C51: Acvr1b | D51: chr15:101174066-101213679 | E51: WT_U | F51: WT_D | G51: OK | H51: 11.4577 | I51: 10.9956 | J51: -0.05939113862 | K51: 0.304076 | L51: 0.66085 | M51: 0.866481 | N51: no
A52: ENSMUSG00000000538.18 | B52: ENSMUSG00000000538.18 | C52: Tom1l2 | D52: chr11:60226713-60352905 | E52: WT_U | F52: WT_D | G52: OK | H52: 14.1131 | I52: 16.0539 | J52: 0.1858888996 | K52: -0.905514 | L52: 0.1688 | M52: 0.387831 | N52: no
A53: ENSMUSG00000000552.9 | B53: ENSMUSG00000000552.9 | C53: Zfp385a | D53: chr15:103313894-103340086 | E53: WT_U | F53: WT_D | G53: OK | H53: 12.2857 | I53: 10.7051 | J53: -0.1986817877 | K53: 1.00104 | L53: 0.14985 | M53: 0.358138 | N53: no
A54: ENSMUSG00000000555.6 | B54: ENSMUSG00000000555.6 | C54: Itga5 | D54: chr15:103344288-103366763 | E54: WT_U | F54: WT_D | G54: OK | H54: 2.54409 | I54: 1.67039 | J54: -0.6069647283 | K54: 2.90403 | L54: 5e-05 | M54: 0.00046241 | N54: yes
A55: ENSMUSG00000000561.14 | B55: ENSMUSG00000000561.14 | C55: Wdr77 | D55: chr3:105942697-105987423 | E55: WT_U | F55: WT_D | G55: OK | H55: 55.3785 | I55: 58.4971 | J55: 0.07903912778 | K55: -0.187334 | L55: 0.77705 | M55: 0.92369 | N55: no
A56: ENSMUSG00000000563.17 | B56: ENSMUSG00000000563.17 | C56: Atp5f1 | D56: chr3:105942697-105987423 | E56: WT_U | F56: WT_D | G56: OK | H56: 251.712 | I56: 218.792 | J56: -0.2022140087 | K56: 0.939293 | L56: 0.17 | M56: 0.389766 | N56: no
A57: ENSMUSG00000000567.5 | B57: ENSMUSG00000000567.5 | C57: Sox9 | D57: chr11:112782223-112787760 | E57: WT_U | F57: WT_D | G57: OK | H57: 15.9287 | I57: 10.0684 | J57: -0.6617940895 | K57: 3.59119 | L57: 5e-05 | M57: 0.00046241 | N57: yes
A58: ENSMUSG00000000568.15 | B58: ENSMUSG00000000568.15 | C58: Hnrnpd | D58: chr5:99955934-99978938 | E58: WT_U | F58: WT_D | G58: OK | H58: 361.811 | I58: 333.184 | J58: -0.1189171484 | K58: 0.519853 | L58: 0.4575 | M58: 0.721673 | N58: no
A59: ENSMUSG00000000579.14 | B59: ENSMUSG00000000579.14 | C59: Dynlt1c | D59: chr17:6601670-6609774 | E59: WT_U | F59: WT_D | G59: OK | H59: 2.31034 | I59: 2.59583 | J59: 0.1680907241 | K59: -0.440707 | L59: 0.52265 | M59: 0.775048 | N59: no
A60: ENSMUSG00000000581.8 | B60: ENSMUSG00000000581.8 | C60: C1d | D60: chr11:17257578-17269176 | E60: WT_U | F60: WT_D | G60: OK | H60: 41.9967 | I60: 39.2684 | J60: -0.09690715257 | K60: 0.227372 | L60: 0.74125 | M60: 0.908351 | N60: no
A61: ENSMUSG00000000594.7 | B61: ENSMUSG00000000594.7 | C61: Gm2a | D61: chr11:55098114-55113029 | E61: WT_U | F61: WT_D | G61: OK | H61: 3.82079 | I61: 2.99964 | J61: -0.3490815989 | K61: 1.71898 | L61: 0.01335 | M61: 0.0574153 | N61: no
A62: ENSMUSG00000000600.15 | B62: ENSMUSG00000000600.15 | C62: Krit1 | D62: chr5:3803183-3866596 | E62: WT_U | F62: WT_D | G62: OK | H62: 29.4936 | I62: 33.01 | J62: 0.1625012095 | K62: -0.848768 | L62: 0.2027 | M62: 0.438973 | N62: no
A63: ENSMUSG00000000605.8 | B63: ENSMUSG00000000605.8 | C63: Clcn4 | D63: chr7:7282315-7299511 | E63: WT_U | F63: WT_D | G63: OK | H63: 14.2248 | I63: 17.1591 | J63: 0.2705655166 | K63: -1.57544 | L63: 0.02355 | M63: 0.0901261 | N63: no
A64: ENSMUSG00000000628.10 | B64: ENSMUSG00000000628.10 | C64: Hk2 | D64: chr6:82725024-82774454 | E64: WT_U | F64: WT_D | G64: OK | H64: 38.1006 | I64: 30.7684 | J64: -0.3083642937 | K64: 1.70428 | L64: 0.01165 | M64: 0.0514489 | N64: no
A65: ENSMUSG00000000631.19 | B65: ENSMUSG00000000631.19 | C65: Myo18a | D65: chr11:77763245-77865980 | E65: WT_U | F65: WT_D | G65: OK | H65: 19.9878 | I65: 20.6904 | J65: 0.04984184907 | K65: -0.115187 | L65: 0.8606 | M65: 0.953869 | N65: no
A66: ENSMUSG00000000632.13 | B66: ENSMUSG00000000632.13 | C66: Sez6 | D66: chr11:77930799-77979048 | E66: WT_U | F66: WT_D | G66: OK | H66: 18.9763 | I66: 17.6514 | J66: =LOG(I66/H66,2) -> -0.1044161093 | K66: 0.314196 | L66: 0.6517 | M66: 0.860678 | N66: no
A67: ENSMUSG00000000686.11 | B67: ENSMUSG00000000686.11 | C67: Abhd15 | D67: chr11:77508098-77607815 | E67: WT_U | F67: WT_D | G67: OK | H67: 1.04872 | I67: 1.36795 | J67: 0.3833859581 | K67: -0.219252 | L67: 0.7558 | M67: 0.914449 | N67: no
A68: ENSMUSG00000000693.10 | B68: ENSMUSG00000000693.10 | C68: Loxl3 | D68: chr6:83034172-83057808 | E68: WT_U | F68: WT_D | G68: OK | H68: 1.54895 | I68: 1.24937 | J68: -0.3100897815 | K68: 0.150949 | L68: 0.6587 | M68: 0.864975 | N68: no
A69: ENSMUSG00000000708.14 | B69: ENSMUSG00000000708.14 | C69: Kat2b | D69: chr17:53566860-53672720 | E69: WT_U | F69: WT_D | G69: OK | H69: 15.3621 | I69: 13.9915 | J69: -0.1348248069 | K69: 0.301111 | L69: 0.6237 | M69: 0.843967 | N69: no
A70: ENSMUSG00000000711.2 | B70: ENSMUSG00000000711.2 | C70: Rab5b | D70: chr10:128677192-128696268 | E70: WT_U | F70: WT_D | G70: OK | H70: 28.4157 | I70: 30.9989 | J70: 0.1255287666 | K70: -0.733037 | L70: 0.2963 | M70: 0.556128 | N70: no
A71: ENSMUSG00000000732.8 | B71: ENSMUSG00000000732.8 | C71: Icosl | D71: chr10:78069359-78079525 | E71: WT_U | F71: WT_D | G71: OK | H71: 2.91364 | I71: 2.58206 | J71: -0.1743001083 | K71: 0.819454 | L71: 0.2442 | M71: 0.492713 | N71: no
A72: ENSMUSG00000000751.13 | B72: ENSMUSG00000000751.13 | C72: Rpa1 | D72: chr11:75298165-75348324 | E72: WT_U | F72: WT_D | G72: OK | H72: 59.7733 | I72: 51.8727 | J72: -0.2045257295 | K72: 0.906855 | L72: 0.19305 | M72: 0.42488 | N72: no
A73: ENSMUSG00000000753.15 | B73: ENSMUSG00000000753.15 | C73: Serpinf1 | D73: chr11:75409768-75422701 | E73: WT_U | F73: WT_D | G73: OK | H73: 14.5589 | I73: 19.7719 | J73: 0.4415501583 | K73: -1.82576 | L73: 0.0085 | M73: 0.0398455 | N73: yes
A74: ENSMUSG00000000759.14 | B74: ENSMUSG00000000759.14 | C74: Tubgcp3 | D74: chr8:12614276-12679229 | E74: WT_U | F74: WT_D | G74: OK | H74: 62.5462 | I74: 53.9844 | J74: -0.2123796675 | K74: 0.537815 | L74: 0.4095 | M74: 0.678067 | N74: no
A75: ENSMUSG00000000776.12 | B75: ENSMUSG00000000776.12 | C75: Polr3d | D75: chr14:70438747-70443471 | E75: WT_U | F75: WT_D | G75: OK | H75: 23.2974 | I75: 22.8279 | J75: -0.0293708102 | K75: 0.150757 | L75: 0.83255 | M75: 0.944308 | N75: no
A76: ENSMUSG00000000782.15 | B76: ENSMUSG00000000782.15 | C76: Tcf7 | D76: chr11:51949881-52286179 | E76: WT_U | F76: WT_D | G76: OK | H76: 3.66087 | I76: 4.59118 | J76: 0.3266784514 | K76: -0.183763 | L76: 0.82245 | M76: 0.940658 | N76: no
A77: ENSMUSG00000000787.12 | B77: ENSMUSG00000000787.12 | C77: Ddx3x | D77: chrX:13280969-13294052 | E77: WT_U | F77: WT_D | G77: OK | H77: 244.299 | I77: 227.698 | J77: -0.1015263386 | K77: 0.358676 | L77: 0.60865 | M77: 0.835084 | N77: no
A78: ENSMUSG00000000794.9 | B78: ENSMUSG00000000794.9 | C78: Kcnn3 | D78: chr3:89520163-89675132 | E78: WT_U | F78: WT_D | G78: OK | H78: 3.95755 | I78: 1.88747 | J78: -1.068153864 | K78: 4.50227 | L78: 5e-05 | M78: 0.00046241 | N78: yes
A79: ENSMUSG00000000804.14 | B79: ENSMUSG00000000804.14 | C79: Usp32 | D79: chr11:84984441-85140161 | E79: WT_U | F79: WT_D | G79: OK | H79: 20.4167 | I79: 20.3453 | J79: -0.005054145099 | K79: 0.00944072 | L79: 0.9894 | M79: 0.994801 | N79: no
A80: ENSMUSG00000000811.13 | B80: ENSMUSG00000000811.13 | C80: Txnrd3 | D80: chr6:89643987-89675529 | E80: WT_U | F80: WT_D | G80: OK | H80: 11.4524 | I80: 11.2928 | J80: -0.02024672525 | K80: 0.102704 | L80: 0.87845 | M80: 0.95941 | N80: no
A81: ENSMUSG00000000823.16 | B81: ENSMUSG00000000823.16 | C81: Znf512b | D81: chr2:181569148-181655660 | E81: WT_U | F81: WT_D | G81: OK | H81: 22.466 | I81: 25.0124 | J81: 0.1549002141 | K81: -0.292027 | L81: 0.6382 | M81: 0.852581 | N81: no
A82: ENSMUSG00000000826.16 | B82: ENSMUSG00000000826.16 | C82: Dnajc5 | D82: chr2:181520484-181555133 | E82: WT_U | F82: WT_D | G82: OK | H82: 30.5532 | I82: 27.6955 | J82: -0.1416719047 | K82: 0.65157 | L82: 0.33755 | M82: 0.603631 | N82: no
A83: ENSMUSG00000000827.18 | B83: ENSMUSG00000000827.18 | C83: Tpd52l2 | D83: chr2:181497141-181517966 | E83: WT_U | F83: WT_D | G83: OK | H83: 84.1261 | I83: 84.2195 | J83: 0.001600846481 | K83: -0.00775474 | L83: 0.99075 | M83: 0.995429 | N83: no
A84: ENSMUSG00000000838.17 | B84: ENSMUSG00000000838.17 | C84: Fmr1 | D84: chrX:68678484-68717963 | E84: WT_U | F84: WT_D | G84: OK | H84: 35.8944 | I84: 32.8267 | J84: -0.1288890561 | K84: 0.53546 | L84: 0.4313 | M84: 0.698015 | N84: no
A85: ENSMUSG00000000861.15 | B85: ENSMUSG00000000861.15 | C85: Bcl11a | D85: chr11:24078055-24174123 | E85: WT_U | F85: WT_D | G85: OK | H85: 6.39482 | I85: 7.10688 | J85: 0.1523125885 | K85: -0.654915 | L85: 0.33575 | M85: 0.60184 | N85: no
A86: ENSMUSG00000000876.11 | B86: ENSMUSG00000000876.11 | C86: Pxmp4 | D86: chr2:154585757-154603708 | E86: WT_U | F86: WT_D | G86: OK | H86: 4.12456 | I86: 3.48692 | J86: -0.2422869588 | K86: 0.823844 | L86: 0.2362 | M86: 0.482961 | N86: no
A87: ENSMUSG00000000881.12 | B87: ENSMUSG00000000881.12 | C87: Dlg3 | D87: chrX:100767721-100818410 | E87: WT_U | F87: WT_D | G87: OK | H87: 1.93704 | I87: 1.36935 | J87: -0.5003625056 | K87: 1.15039 | L87: 0.08445 | M87: 0.238123 | N87: no
A88: ENSMUSG00000000884.16 | B88: ENSMUSG00000000884.16 | C88: Gnb1l | D88: chr16:18498767-18566679 | E88: WT_U | F88: WT_D | G88: OK | H88: 2.98374 | I88: 2.9438 | J88: -0.01944216723 | K88: 0.0495204 | L88: 0.93575 | M88: 0.976864 | N88: no
A89: ENSMUSG00000000889.8 | B89: ENSMUSG00000000889.8 | C89: Dbh | D89: chr2:27165232-27183200 | E89: WT_U | F89: WT_D | G89: OK | H89: 3.96222 | I89: 2.40962 | J89: -0.7175033376 | K89: 3.13757 | L89: 5e-05 | M89: 0.00046241 | N89: yes
A90: ENSMUSG00000000901.15 | B90: ENSMUSG00000000901.15 | C90: Mmp11 | D90: chr10:75923221-75932502 | E90: WT_U | F90: WT_D | G90: OK | H90: 10.6846 | I90: 18.4633 | J90: 0.7891275344 | K90: -3.49534 | L90: 5e-05 | M90: 0.00046241 | N90: yes
A91: ENSMUSG00000000902.13 | B91: ENSMUSG00000000902.13 | C91: Smarcb1 | D91: chr10:75896768-75921617 | E91: WT_U | F91: WT_D | G91: OK | H91: 84.0354 | I91: 102.055 | J91: 0.2802777685 | K91: -1.56931 | L91: 0.0257 | M91: 0.0965074 | N91: no
A92: ENSMUSG00000000915.15 | B92: ENSMUSG00000000915.15 | C92: Hip1r | D92: chr5:123973627-124032270 | E92: WT_U | F92: WT_D | G92: OK | H92: 6.92512 | I92: 6.1006 | J92: -0.1828879306 | K92: 0.352374 | L92: 0.6115 | M92: 0.836771 | N92: no
A93: ENSMUSG00000000916.15 | B93: ENSMUSG00000000916.15 | C93: Nsun5 | D93: chr5:135369952-135394546 | E93: WT_U | F93: WT_D | G93: OK | H93: 14.721 | I93: 14.6448 | J93: -0.007487186377 | K93: 0.0125886 | L93: 0.98365 | M93: 0.992156 | N93: no
A94: ENSMUSG00000000934.8 | B94: ENSMUSG00000000934.8 | C94: Top1mt | D94: chr15:75657034-75678800 | E94: WT_U | F94: WT_D | G94: OK | H94: 14.7006 | I94: 15.2167 | J94: 0.04978048045 | K94: -0.251318 | L94: 0.7191 | M94: 0.898281 | N94: no
A95: ENSMUSG00000000948.16 | B95: ENSMUSG00000000948.16 | C95: Gm38393 | D95: chr7:59937370-60140219 | E95: WT_U | F95: WT_D | G95: OK | H95: 6.66718 | I95: 6.36336 | J95: -0.06728793465 | K95: 0.0692179 | L95: 0.88935 | M95: 0.962429 | N95: no
A96: ENSMUSG00000000958.9 | B96: ENSMUSG00000000958.9 | C96: Slc7a7 | D96: chr14:54360840-54417780 | E96: WT_U | F96: WT_D | G96: OK | H96: 1.42424 | I96: 1.62346 | J96: 0.1888795622 | K96: -0.148849 | L96: 0.75935 | M96: 0.915902 | N96: no
A97: ENSMUSG00000000959.6 | B97: ENSMUSG00000000959.6 | C97: Oxa1l | D97: chr14:54360840-54417780 | E97: WT_U | F97: WT_D | G97: OK | H97: 22.2946 | I97: 23.5551 | J97: 0.07934514111 | K97: -0.357321 | L97: 0.60915 | M97: 0.835393 | N97: no
A98: ENSMUSG00000000976.13 | B98: ENSMUSG00000000976.13 | C98: Heatr6 | D98: chr11:83753695-83783754 | E98: WT_U | F98: WT_D | G98: OK | H98: 8.35619 | I98: 9.03008 | J98: 0.1118934727 | K98: -0.429607 | L98: 0.4574 | M98: 0.721606 | N98: no
A99: ENSMUSG00000001016.12 | B99: ENSMUSG00000001016.12 | C99: Ilf2 | D99: chr3:90476125-90491033 | E99: WT_U | F99: WT_D | G99: OK | H99: 107.756 | I99: 102.418 | J99: -0.07329891098 | K99: 0.400944 | L99: 0.5682 | M99: 0.809067 | N99: no
A100: ENSMUSG00000001017.15 | B100: ENSMUSG00000001017.15 | C100: Chtop | D100: chr3:90498955-90509498 | E100: WT_U | F100: WT_D | G100: OK | H100: 63.8581 | I100: 66.7893 | J100: 0.06474736545 | K100: -0.362491 | L100: 0.61285 | M100: 0.837715 | N100: no
A101: ENSMUSG00000001018.15 | B101: ENSMUSG00000001018.15 | C101: Snapin | D101: chr3:90476125-90491033 | E101: WT_U | F101: WT_D | G101: OK | H101: 11.3931 | I101: 12.9766 | J101: 0.1877520823 | K101: -0.284017 | L101: 0.6986 | M101: 0.887601 | N101: no
A102: ENSMUSG00000001020.8 | B102: ENSMUSG00000001020.8 | C102: S100a4 | D102: chr3:90560555-90606045 | E102: WT_U | F102: WT_D | G102: OK | H102: 15.5086 | I102: 4.6188 | J102: -1.747478474 | K102: 6.70341 | L102: 5e-05 | M102: 0.00046241 | N102: yes
A103: ENSMUSG00000001025.8 | B103: ENSMUSG00000001025.8 | C103: S100a6 | D103: chr3:90612881-90624181 | E103: WT_U | F103: WT_D | G103: OK | H103: 92.7309 | I103: 46.9917 | J103: -0.9806441966 | K103: 4.92132 | L103: 5e-05 | M103: 0.00046241 | N103: yes
A104: ENSMUSG00000001029.15 | B104: ENSMUSG00000001029.15 | C104: Icam2 | D104: chr11:106377655-106388075 | E104: WT_U | F104: WT_D | G104: OK | H104: 17.5114 | I104: 13.2851 | J104: -0.3984853415 | K104: 1.90271 | L104: 0.00595 | M104: 0.0296952 | N104: yes
A105: ENSMUSG00000001034.17 | B105: ENSMUSG00000001034.17 | C105: Mapk7 | D105: chr11:61485430-61494406 | E105: WT_U | F105: WT_D | G105: OK | H105: 20.8117 | I105: 20.9645 | J105: 0.01055360637 | K105: -0.0365227 | L105: 0.9573 | M105: 0.983347 | N105: no
A106: ENSMUSG00000001036.17 | B106: ENSMUSG00000001036.17 | C106: Epn2 | D106: chr11:61517248-61579687 | E106: WT_U | F106: WT_D | G106: OK | H106: 24.2533 | I106: 24.3054 | J106: 0.003095817659 | K106: -0.00823544 | L106: 0.9896 | M106: 0.994922 | N106: no
A107: ENSMUSG00000001039.12 | B107: ENSMUSG00000001039.12 | C107: B9d1 | D107: chr11:61505143-61512931 | E107: WT_U | F107: WT_D | G107: OK | H107: 9.57646 | I107: 11.9065 | J107: 0.314185027 | K107: -1.39924 | L107: 0.045 | M107: 0.148814 | N107: no
A108: ENSMUSG00000001052.15 | B108: ENSMUSG00000001052.15 | C108: Sec24b | D108: chr3:129982758-130061553 | E108: WT_U | F108: WT_D | G108: OK | H108: 38.7502 | I108: 36.6871 | J108: -0.07893088795 | K108: 0.254705 | L108: 0.69405 | M108: 0.885176 | N108: no
A109: ENSMUSG00000001053.15 | B109: ENSMUSG00000001053.15 | C109: N4bp3 | D109: chr11:51643062-51650842 | E109: WT_U | F109: WT_D | G109: OK | H109: 9.07893 | I109: 6.83426 | J109: -0.4097371441 | K109: 1.94592 | L109: 0.00435 | M109: 0.0228744 | N109: yes
A110: ENSMUSG00000001054.9 | B110: ENSMUSG00000001054.9 | C110: Rmnd5b | D110: chr11:51619734-51635896 | E110: WT_U | F110: WT_D | G110: OK | H110: 9.03151 | I110: 9.76215 | J110: 0.112231704 | K110: -0.172356 | L110: 0.7767 | M110: 0.923565 | N110: no
A111: ENSMUSG00000001056.3 | B111: ENSMUSG00000001056.3 | C111: Nhp2 | D111: chr11:51619734-51635896 | E111: WT_U | F111: WT_D | G111: OK | H111: 201.089 | I111: 185.075 | J111: -0.1197241367 | K111: 0.666401 | L111: 0.34105 | M111: 0.607429 | N111: no
A112: ENSMUSG00000001082.12 | B112: ENSMUSG00000001082.12 | C112: Mfsd10 | D112: chr5:34633641-34637212 | E112: WT_U | F112: WT_D | G112: OK | H112: 30.1267 | I112: 30.7828 | J112: 0.03108181247 | K112: -0.115269 | L112: 0.85505 | M112: 0.951908 | N112: no
A113: ENSMUSG00000001089.14 | B113: ENSMUSG00000001089.14 | C113: Luzp1 | D113: chr4:136469760-136602723 | E113: WT_U | F113: WT_D | G113: OK | H113: 33.2609 | I113: 27.0674 | J113: -0.2972708928 | K113: 0.897121 | L113: 0.1271 | M113: 0.31968 | N113: no
A114: ENSMUSG00000001098.15 | B114: ENSMUSG00000001098.15 | C114: Kctd10 | D114: chr5:114289165-114380508 | E114: WT_U | F114: WT_D | G114: OK | H114: 28.7394 | I114: 27.9744 | J114: -0.03892275424 | K114: 0.189375 | L114: 0.78295 | M114: 0.926139 | N114: no
A115: ENSMUSG00000001100.10 | B115: ENSMUSG00000001100.10 | C115: Poldip2 | D115: chr11:78512192-78522736 | E115: WT_U | F115: WT_D | G115: OK | H115: 34.7217 | I115: 38.8179 | J115: 0.1608844872 | K115: -0.829177 | L115: 0.2169 | M115: 0.458226 | N115: no
A116: ENSMUSG00000001105.15 | B116: ENSMUSG00000001105.15 | C116: Ift20 | D116: chr11:78536360-78541737 | E116: WT_U | F116: WT_D | G116: OK | H116: 36.8303 | I116: 35.9464 | J116: -0.03504585544 | K116: 0.161032 | L116: 0.81585 | M116: 0.938573 | N116: no
A117: ENSMUSG00000001119.7 | B117: ENSMUSG00000001119.7 | C117: Col6a1 | D117: chr10:76708791-76726168 | E117: WT_U | F117: WT_D | G117: OK | H117: 1.57292 | I117: 0.916479 | J117: -0.7792715673 | K117: 3.50871 | L117: 5e-05 | M117: 0.00046241 | N117: yes
A118: ENSMUSG00000001120.15 | B118: ENSMUSG00000001120.15 | C118: Pcbp3 | D118: chr10:76761856-76961887 | E118: WT_U | F118: WT_D | G118: OK | H118: 533.008 | I118: 461.717 | J118: -0.2071483347 | K118: 0.990231 | L118: 0.15715 | M118: 0.369903 | N118: no
A119: ENSMUSG00000001123.15 | B119: ENSMUSG00000001123.15 | C119: Lgals9 | D119: chr11:78962973-78984946 | E119: WT_U | F119: WT_D | G119: OK | H119: 4.31839 | I119: 3.09666 | J119: -0.4797805511 | K119: 2.17367 | L119: 0.0016 | M119: 0.00983992 | N119: yes
A120: ENSMUSG00000001127.12 | B120: ENSMUSG00000001127.12 | C120: Araf | D120: chrX:20797813-20921004 | E120: WT_U | F120: WT_D | G120: OK | H120: 28.2707 | I120: 33.6929 | J120: 0.2531370032 | K120: -0.86797 | L120: 0.1957 | M120: 0.4288 | N120: no
A121: ENSMUSG00000001128.7 | B121: ENSMUSG00000001128.7 | C121: Cfp | D121: chrX:20925453-20931555 | E121: WT_U | F121: WT_D | G121: OK | H121: 1.47719 | I121: 1.37295 | J121: -0.1055763147 | K121: 0.254988 | L121: 0.71165 | M121: 0.894484 | N121: no
A122: ENSMUSG00000001134.9 | B122: ENSMUSG00000001134.9 | C122: Uxt | D122: chrX:20933394-20986737 | E122: WT_U | F122: WT_D | G122: OK | H122: 22.5022 | I122: 24.2407 | J122: 0.1073653021 | K122: -0.243747 | L122: 0.73405 | M122: 0.905308 | N122: no
A123: ENSMUSG00000001138.13 | B123: ENSMUSG00000001138.13 | C123: Cnnm3 | D123: chr1:36511866-36528237 | E123: WT_U | F123: WT_D | G123: OK | H123: 7.1154 | I123: 7.56102 | J123: 0.08763600893 | K123: -0.253165 | L123: 0.7057 | M123: 0.891613 | N123: no
A124: ENSMUSG00000001143.13 | B124: ENSMUSG00000001143.13 | C124: Lman2l | D124: chr1:36372290-36445271 | E124: WT_U | F124: WT_D | G124: OK | H124: 22.7051 | I124: 28.4246 | J124: 0.3241236564 | K124: -1.36212 | L124: 0.04975 | M124: 0.160647 | N124: no
A125: ENSMUSG00000001150.6 | B125: ENSMUSG00000001150.6 | C125: Mcm3ap | D125: chr10:76449080-76515856 | E125: WT_U | F125: WT_D | G125: OK | H125: 13.5083 | I125: 13.0088 | J125: -0.05435823858 | K125: 0.305577 | L125: 0.66175 | M125: 0.867116 | N125: no
A126: ENSMUSG00000001151.9 | B126: ENSMUSG00000001151.9 | C126: Pcnt | D126: chr10:76351253-76442912 | E126: WT_U | F126: WT_D | G126: OK | H126: 13.4078 | I126: 12.43 | J126: -0.1092462377 | K126: 0.63863 | L126: 0.3646 | M126: 0.632639 | N126: no
A127: ENSMUSG00000001156.9 | B127: ENSMUSG00000001156.9 | C127: Mxd1 | D127: chr6:86647041-86669161 | E127: WT_U | F127: WT_D | G127: OK | H127: 1.78123 | I127: 1.78159 | J127: 0.0002915500735 | K127: -0.00102162 | L127: 0.99855 | M127: 0.999158 | N127: no
A128: ENSMUSG00000001157.13 | B128: ENSMUSG00000001157.13 | C128: Gmcl1 | D128: chr6:86691767-86733383 | E128: WT_U | F128: WT_D | G128: OK | H128: 14.2824 | I128: 14.1928 | J128: -0.009079191878 | K128: 0.0431289 | L128: 0.94825 | M128: 0.980768 | N128: no
A129: ENSMUSG00000001158.13 | B129: ENSMUSG00000001158.13 | C129: Snrnp27 | D129: chr6:86675150-86684522 | E129: WT_U | F129: WT_D | G129: OK | H129: 76.5547 | I129: 73.3518 | J129: -0.06165858425 | K129: 0.314673 | L129: 0.64765 | M129: 0.858328 | N129: no
A130: ENSMUSG00000001166.17 | B130: ENSMUSG00000001166.17 | C130: Oas1c | D130: chr5:120777795-120812514 | E130: WT_U | F130: WT_D | G130: OK | H130: 1.7034 | I130: 1.38444 | J130: =LOG(I130/H130,2) -> -0.2991147245 | K130: 1.10472 | L130: 0.0797 | M130: 0.228178 | N130: no
A131: ENSMUSG00000001173.15 | B131: ENSMUSG00000001173.15 | C131: Ocrl | D131: chrX:47912386-47965868 | E131: WT_U | F131: WT_D | G131: OK | H131: 5.71127 | I131: 5.72734 | J131: 0.004053661163 | K131: -0.0189602 | L131: 0.9774 | M131: 0.989848 | N131: no
A132: ENSMUSG00000001175.13 | B132: ENSMUSG00000001175.13 | C132: Calm1 | D132: chr12:100199434-100209814 | E132: WT_U | F132: WT_D | G132: OK | H132: 270.68 | I132: 268.636 | J132: -0.0109356399 | K132: 0.0357471 | L132: 0.95985 | M132: 0.984241 | N132: no
A133: ENSMUSG00000001211.14 | B133: ENSMUSG00000001211.14 | C133: Agpat3 | D133: chr10:78269177-78352489 | E133: WT_U | F133: WT_D | G133: OK | H133: 76.3921 | I133: 95.8071 | J133: 0.3267091227 | K133: -1.39248 | L133: 0.04435 | M133: 0.147204 | N133: no
A134: ENSMUSG00000001227.11 | B134: ENSMUSG00000001227.11 | C134: Sema6b | D134: chr17:56123084-56140343 | E134: WT_U | F134: WT_D | G134: OK | H134: 1.33772 | I134: 0.823959 | J134: -0.699131719 | K134: 3.08682 | L134: 5e-05 | M134: 0.00046241 | N134: yes
A135: ENSMUSG00000001228.14 | B135: ENSMUSG00000001228.14 | C135: Uhrf1 | D135: chr17:56303320-56323486 | E135: WT_U | F135: WT_D | G135: OK | H135: 102.09 | I135: 87.007 | J135: -0.2306381768 | K135: 0.802809 | L135: 0.2336 | M135: 0.479612 | N135: no
A136: ENSMUSG00000001229.7 | B136: ENSMUSG00000001229.7 | C136: Dpp9 | D136: chr17:56186681-56218889 | E136: WT_U | F136: WT_D | G136: OK | H136: 25.5341 | I136: 26.8118 | J136: 0.07044286806 | K136: -0.411046 | L136: 0.56265 | M136: 0.805238 | N136: no
A137: ENSMUSG00000001240.13 | B137: ENSMUSG00000001240.13 | C137: Ramp2 | D137: chr11:101246027-101259549 | E137: WT_U | F137: WT_D | G137: OK | H137: 20.7193 | I137: 10.1455 | J137: -1.030135295 | K137: 1.88918 | L137: 0.01205 | M137: 0.0528728 | N137: no
A138: ENSMUSG00000001248.14 | B138: ENSMUSG00000001248.14 | C138: Gramd1a | D138: chr7:31130126-31170641 | E138: WT_U | F138: WT_D | G138: OK | H138: 37.86 | I138: 42.4283 | J138: 0.1643524634 | K138: -0.878129 | L138: 0.18605 | M138: 0.414334 | N138: no
A139: ENSMUSG00000001249.14 | B139: ENSMUSG00000001249.14 | C139: Hpn | D139: chr7:31098724-31115290 | E139: WT_U | F139: WT_D | G139: OK | H139: 1.22863 | I139: 1.43421 | J139: 0.2232057661 | K139: -0.58404 | L139: 0.3946 | M139: 0.663672 | N139: no
A140: ENSMUSG00000001270.8 | B140: ENSMUSG00000001270.8 | C140: Ckb | D140: chr12:111669354-111672338 | E140: WT_U | F140: WT_D | G140: OK | H140: 11.7257 | I140: 10.193 | J140: -0.2020953237 | K140: 0.997562 | L140: 0.15285 | M140: 0.363013 | N140: no
A141: ENSMUSG00000001280.12 | B141: ENSMUSG00000001280.12 | C141: Sp1 | D141: chr15:102406142-102436404 | E141: WT_U | F141: WT_D | G141: OK | H141: 29.6087 | I141: 28.2527 | J141: -0.06763240208 | K141: 0.271433 | L141: 0.5943 | M141: 0.82573 | N141: no
A142: ENSMUSG00000001285.12 | B142: ENSMUSG00000001285.12 | C142: Myg1 | D142: chr15:102326115-102338139 | E142: WT_U | F142: WT_D | G142: OK | H142: 67.4688 | I142: 66.7733 | J142: -0.01494916094 | K142: 0.0436876 | L142: 0.9514 | M142: 0.981594 | N142: no
A143: ENSMUSG00000001288.14 | B143: ENSMUSG00000001288.14 | C143: Rarg | D143: chr15:102234937-102257517 | E143: WT_U | F143: WT_D | G143: OK | H143: 5.51297 | I143: 4.58834 | J143: -0.2648574504 | K143: 1.01076 | L143: 0.13465 | M143: 0.332477 | N143: no
A144: ENSMUSG00000001289.12 | B144: ENSMUSG00000001289.12 | C144: Pfdn5 | D144: chr15:102326115-102338139 | E144: WT_U | F144: WT_D | G144: OK | H144: 232.264 | I144: 218.073 | J144: -0.09095440102 | K144: 0.349045 | L144: 0.61405 | M144: 0.838394 | N144: no
A145: ENSMUSG00000001305.5 | B145: ENSMUSG00000001305.5 | C145: Rrp15 | D145: chr1:186720977-186749358 | E145: WT_U | F145: WT_D | G145: OK | H145: 102.181 | I145: 104.989 | J145: 0.03911122056 | K145: -0.227281 | L145: 0.74325 | M145: 0.908979 | N145: no
A146: ENSMUSG00000001313.12 | B146: ENSMUSG00000001313.12 | C146: Rnd2 | D146: chr11:101458744-101471853 | E146: WT_U | F146: WT_D | G146: OK | H146: 26.4717 | I146: 32.5176 | J146: 0.2967699345 | K146: -0.551163 | L146: 0.4219 | M146: 0.689709 | N146: no
A147: ENSMUSG00000001323.17 | B147: ENSMUSG00000001323.17 | C147: Srr | D147: chr11:74898070-75164448 | E147: WT_U | F147: WT_D | G147: OK | H147: 4.78878 | I147: 5.63526 | J147: 0.2348240164 | K147: -0.19685 | L147: 0.7463 | M147: 0.910309 | N147: no
A148: ENSMUSG00000001333.9 | B148: ENSMUSG00000001333.9 | C148: Sync | D148: chr4:129287616-129335370 | E148: WT_U | F148: WT_D | G148: OK | H148: 2.99133 | I148: 2.99771 | J148: 0.003073747326 | K148: -0.00228054 | L148: 0.99725 | M148: 0.998566 | N148: no
A149: ENSMUSG00000001334.9 | B149: ENSMUSG00000001334.9 | C149: Fndc5 | D149: chr4:129136998-129144593 | E149: WT_U | F149: WT_D | G149: OK | H149: 4.64354 | I149: 2.39092 | J149: -0.9576592041 | K149: 4.57327 | L149: 5e-05 | M149: 0.00046241 | N149: yes
A150: ENSMUSG00000001366.14 | B150: ENSMUSG00000001366.14 | C150: Fbxo9 | D150: chr9:78081498-78109065 | E150: WT_U | F150: WT_D | G150: OK | H150: 13.06 | I150: 12.5528 | J150: -0.05714569243 | K150: 0.254851 | L150: 0.7017 | M150: 0.889419 | N150: no
A151: ENSMUSG00000001376.17 | B151: ENSMUSG00000001376.17 | C151: Ccdc132 | D151: chr6:3498381-3603531 | E151: WT_U | F151: WT_D | G151: OK | H151: 24.5342 | I151: 25.4905 | J151: 0.05516544289 | K151: -0.288895 | L151: 0.6563 | M151: 0.863407 | N151: no
A152: ENSMUSG00000001380.6 | B152: ENSMUSG00000001380.6 | C152: Hars | D152: chr18:36766529-36792562 | E152: WT_U | F152: WT_D | G152: OK | H152: 69.3792 | I152: 65.4181 | J152: -0.08481334678 | K152: 0.44083 | L152: 0.5271 | M152: 0.778444 | N152: no
A153: ENSMUSG00000001383.8 | B153: ENSMUSG00000001383.8 | C153: Zmat2 | D153: chr18:36793922-36799660 | E153: WT_U | F153: WT_D | G153: OK | H153: 55.9839 | I153: 51.9992 | J153: -0.1065225649 | K153: 0.623073 | L153: 0.3718 | M153: 0.640407 | N153: no
A154: ENSMUSG00000001403.13 | B154: ENSMUSG00000001403.13 | C154: Ube2c | D154: chr2:164769897-164779967 | E154: WT_U | F154: WT_D | G154: OK | H154: 193.619 | I154: 185.204 | J154: -0.06410527449 | K154: 0.37494 | L154: 0.58455 | M154: 0.819319 | N154: no
A155: ENSMUSG00000001415.10 | B155: ENSMUSG00000001415.10 | C155: Smg5 | D155: chr3:88336259-88362338 | E155: WT_U | F155: WT_D | G155: OK | H155: 51.017 | I155: 47.6719 | J155: -0.09783893903 | K155: 0.391765 | L155: 0.53805 | M155: 0.786776 | N155: no
A156: ENSMUSG00000001416.13 | B156: ENSMUSG00000001416.13 | C156: Cct3 | D156: chr3:88297115-88321767 | E156: WT_U | F156: WT_D | G156: OK | H156: 313.302 | I156: 299.943 | J156: -0.06286561673 | K156: 0.362863 | L156: 0.60395 | M156: 0.831974 | N156: no
A157: ENSMUSG00000001418.13 | B157: ENSMUSG00000001418.13 | C157: Glmp | D157: chr3:88325022-88336148 | E157: WT_U | F157: WT_D | G157: OK | H157: 14.9802 | I157: 16.0642 | J157: 0.1007922508 | K157: -0.357365 | L157: 0.60805 | M157: 0.834741 | N157: no
A158: ENSMUSG00000001419.17 | B158: ENSMUSG00000001419.17 | C158: Mef2d | D158: chr3:88142371-88177785 | E158: WT_U | F158: WT_D | G158: OK | H158: 51.9719 | I158: 43.3618 | J158: -0.2613071564 | K158: 1.0153 | L158: 0.13225 | M158: 0.32829 | N158: no
A159: ENSMUSG00000001420.13 | B159: ENSMUSG00000001420.13 | C159: Tmem79 | D159: chr3:88325022-88336148 | E159: WT_U | F159: WT_D | G159: OK | H159: 1.47683 | I159: 1.29393 | J159: -0.1907441935 | K159: 0.252705 | L159: 0.7204 | M159: 0.898885 | N159: no
A160: ENSMUSG00000001424.14 | B160: ENSMUSG00000001424.14 | C160: Snd1 | D160: chr6:28475138-28935162 | E160: WT_U | F160: WT_D | G160: OK | H160: 326.553 | I160: 374.321 | J160: 0.1969588258 | K160: -0.556785 | L160: 0.4256 | M160: 0.69319 | N160: no
A161: ENSMUSG00000001435.14 | B161: ENSMUSG00000001435.14 | C161: Col18a1 | D161: chr10:77032240-77166548 | E161: WT_U | F161: WT_D | G161: OK | H161: 6.91773 | I161: 6.59965 | J161: -0.06790919033 | K161: 0.133998 | L161: 0.8281 | M161: 0.942986 | N161: no
A162: ENSMUSG00000001436.15 | B162: ENSMUSG00000001436.15 | C162: Slc19a1 | D162: chr10:77032240-77166548 | E162: WT_U | F162: WT_D | G162: OK | H162: 41.8884 | I162: 38.6399 | J162: -0.1164594185 | K162: 0.455624 | L162: 0.5113 | M162: 0.766281 | N162: no
A163: ENSMUSG00000001440.5 | B163: ENSMUSG00000001440.5 | C163: Kpnb1 | D163: chr11:97159713-97187881 | E163: WT_U | F163: WT_D | G163: OK | H163: 353.967 | I163: 321.793 | J163: -0.1374819222 | K163: 0.381735 | L163: 0.58945 | M163: 0.82239 | N163: no
A164: ENSMUSG00000001441.13 | B164: ENSMUSG00000001441.13 | C164: Npepps | D164: chr11:97205841-97282897 | E164: WT_U | F164: WT_D | G164: OK | H164: 46.5239 | I164: 40.0093 | J164: -0.2176366523 | K164: 0.969462 | L164: 0.08375 | M164: 0.236762 | N164: no
A165: ENSMUSG00000001445.10 | B165: ENSMUSG00000001445.10 | C165: Mrpl10 | D165: chr11:97041559-97068904 | E165: WT_U | F165: WT_D | G165: OK | H165: 63.8243 | I165: 63.4591 | J165: -0.008278749228 | K165: 0.0451299 | L165: 0.9463 | M165: 0.980056 | N165: no
A166: ENSMUSG00000001467.5 | B166: ENSMUSG00000001467.5 | C166: Cyp51 | D166: chr5:3928053-4104746 | E166: WT_U | F166: WT_D | G166: OK | H166: 61.444 | I166: 66.6165 | J166: 0.116607419 | K166: -0.486629 | L166: 0.4417 | M166: 0.707374 | N166: no
A167: ENSMUSG00000001473.6 | B167: ENSMUSG00000001473.6 | C167: Tubb6 | D167: chr18:67390716-67402748 | E167: WT_U | F167: WT_D | G167: OK | H167: 95.6769 | I167: 85.7722 | J167: -0.1576605206 | K167: 0.923113 | L167: 0.18835 | M167: 0.417784 | N167: no
A168: ENSMUSG00000001507.16 | B168: ENSMUSG00000001507.16 | C168: Itga3 | D168: chr11:95044473-95076801 | E168: WT_U | F168: WT_D | G168: OK | H168: 2.62183 | I168: 3.55666 | J168: 0.4399489222 | K168: -1.15683 | L168: 0.08745 | M168: 0.244062 | N168: no
A169: ENSMUSG00000001517.14 | B169: ENSMUSG00000001517.14 | C169: Foxm1 | D169: chr6:128362966-128424931 | E169: WT_U | F169: WT_D | G169: OK | H169: 40.1122 | I169: 37.3222 | J169: -0.1040070646 | K169: 0.365136 | L169: 0.5635 | M169: 0.805925 | N169: no
A170: ENSMUSG00000001518.12 | B170: ENSMUSG00000001518.12 | C170: Itfg2 | D170: chr6:128362966-128424931 | E170: WT_U | F170: WT_D | G170: OK | H170: 17.5456 | I170: 20.9769 | J170: 0.257692206 | K170: -0.421006 | L170: 0.4252 | M170: 0.69282 | N170: no
A171: ENSMUSG00000001520.12 | B171: ENSMUSG00000001520.12 | C171: Nrip2 | D171: chr6:128362966-128424931 | E171: WT_U | F171: WT_D | G171: OK | H171: 1.0025 | I171: 4.01111 | J171: 2.000399294 | K171: -1.4046 | L171: 0.02355 | M171: 0.0901261 | N171: no
A172: ENSMUSG00000001521.12 | B172: ENSMUSG00000001521.12 | C172: Tulp3 | D172: chr6:128321160-128355851 | E172: WT_U | F172: WT_D | G172: OK | H172: 18.8635 | I172: 18.6071 | J172: -0.01974416113 | K172: 0.109533 | L172: 0.86765 | M172: 0.955909 | N172: no
A173: ENSMUSG00000001524.14 | B173: ENSMUSG00000001524.14 | C173: Gtf2h4 | D173: chr17:35667729-35673739 | E173: WT_U | F173: WT_D | G173: OK | H173: 16.6867 | I173: 16.7514 | J173: 0.005583001764 | K173: -0.025256 | L173: 0.97085 | M173: 0.987908 | N173: no
A174: ENSMUSG00000001525.10 | B174: ENSMUSG00000001525.10 | C174: Tubb5 | D174: chr17:35833920-35838306 | E174: WT_U | F174: WT_D | G174: OK | H174: 662.41 | I174: 698.71 | J174: 0.07696933591 | K174: -0.376912 | L174: 0.5782 | M174: 0.815128 | N174: no
A175: ENSMUSG00000001552.14 | B175: ENSMUSG00000001552.14 | C175: Jup | D175: chr11:100368957-100397763 | E175: WT_U | F175: WT_D | G175: OK | H175: 25.3887 | I175: 16.809 | J175: -0.5949526269 | K175: 2.27955 | L175: 0.00075 | M175: 0.0051382 | N175: yes
A176: ENSMUSG00000001555.10 | B176: ENSMUSG00000001555.10 | C176: Fkbp10 | D176: chr11:100415696-100441808 | E176: WT_U | F176: WT_D | G176: OK | H176: 3.56799 | I176: 1.95783 | J176: -0.8658560718 | K176: 1.39118 | L176: 0.03265 | M176: 0.116262 | N176: no
A177: ENSMUSG00000001569.10 | B177: ENSMUSG00000001569.10 | C177: Nom1 | D177: chr5:29434663-29457843 | E177: WT_U | F177: WT_D | G177: OK | H177: 14.2489 | I177: 14.3013 | J177: 0.005295746091 | K177: -0.0112483 | L177: 0.98725 | M177: 0.993796 | N177: no
A178: ENSMUSG00000001576.14 | B178: ENSMUSG00000001576.14 | C178: Ergic1 | D178: chr17:26554253-26656931 | E178: WT_U | F178: WT_D | G178: OK | H178: 54.8096 | I178: 57.7064 | J178: 0.07430272568 | K178: -0.363512 | L178: 0.5872 | M178: 0.821057 | N178: no
A179: ENSMUSG00000001604.14 | B179: ENSMUSG00000001604.14 | C179: Tcea3 | D179: chr4:136247728-136274898 | E179: WT_U | F179: WT_D | G179: OK | H179: 1.62799 | I179: 0.881577 | J179: -0.8849333477 | K179: 2.89133 | L179: 0.00015 | M179: 0.00125317 | N179: yes
A180: ENSMUSG00000001627.11 | B180: ENSMUSG00000001627.11 | C180: Ifrd1 | D180: chr12:40201566-40248504 | E180: WT_U | F180: WT_D | G180: OK | H180: 195.961 | I180: 193.669 | J180: -0.01697351423 | K180: 0.0642071 | L180: 0.92745 | M180: 0.974249 | N180: no
A181: ENSMUSG00000001630.13 | B181: ENSMUSG00000001630.13 | C181: Stk38l | D181: chr6:146724994-146778812 | E181: WT_U | F181: WT_D | G181: OK | H181: 6.82614 | I181: 6.77098 | J181: -0.01170534569 | K181: 0.0486172 | L181: 0.9385 | M181: 0.977689 | N181: no
A182: ENSMUSG00000001632.16 | B182: ENSMUSG00000001632.16 | C182: Brpf1 | D182: chr6:113307136-113326747 | E182: WT_U | F182: WT_D | G182: OK | H182: 16.3785 | I182: 15.8325 | J182: -0.04891415659 | K182: 0.220379 | L182: 0.71345 | M182: 0.895365 | N182: no
A183: ENSMUSG00000001642.18 | B183: ENSMUSG00000001642.18 | C183: Akr1b3 | D183: chr6:34290264-34324249 | E183: WT_U | F183: WT_D | G183: OK | H183: 107.062 | I183: 80.0163 | J183: -0.4200806844 | K183: 2.4274 | L183: 0.0006 | M183: 0.00423598 | N183: yes
A184: ENSMUSG00000001661.5 | B184: ENSMUSG00000001661.5 | C184: Hoxc6 | D184: chr15:102966795-103017429 | E184: WT_U | F184: WT_D | G184: OK | H184: 12.4652 | I184: 11.6301 | J184: -0.1000425289 | K184: 0.188912 | L184: 0.78845 | M184: 0.928316 | N184: no
A185: ENSMUSG00000001666.8 | B185: ENSMUSG00000001666.8 | C185: Ddt | D185: chr10:75771229-75781414 | E185: WT_U | F185: WT_D | G185: OK | H185: 45.628 | I185: 49.9765 | J185: 0.1313304509 | K185: -0.658387 | L185: 0.3403 | M185: 0.606578 | N185: no
A186: ENSMUSG00000001674.11 | B186: ENSMUSG00000001674.11 | C186: Ddx18 | D186: chr1:121553834-121567989 | E186: WT_U | F186: WT_D | G186: OK | H186: 66.2599 | I186: 63.4296 | J186: -0.06297978182 | K186: 0.257491 | L186: 0.70325 | M186: 0.890427 | N186: no
A187: ENSMUSG00000001687.15 | B187: ENSMUSG00000001687.15 | C187: Ubl3 | D187: chr5:148504634-148552789 | E187: WT_U | F187: WT_D | G187: OK | H187: 28.0803 | I187: 32.2392 | J187: 0.1992575956 | K187: -0.812314 | L187: 0.24005 | M187: 0.487728 | N187: no
A188: ENSMUSG00000001700.9 | B188: ENSMUSG00000001700.9 | C188: Gramd3 | D188: chr18:56432131-56503792 | E188: WT_U | F188: WT_D | G188: OK | H188: 3.85388 | I188: 3.10002 | J188: -0.3140341273 | K188: 1.49928 | L188: 0.0321 | M188: 0.114784 | N188: no
A189: ENSMUSG00000001707.7 | B189: ENSMUSG00000001707.7 | C189: Eef1e1 | D189: chr13:38645697-38659028 | E189: WT_U | F189: WT_D | G189: OK | H189: 59.0932 | I189: 56.7392 | J189: -0.05864631615 | K189: 0.300338 | L189: 0.6654 | M189: 0.869273 | N189: no
A190: ENSMUSG00000001729.14 | B190: ENSMUSG00000001729.14 | C190: Akt1 | D190: chr12:112653820-112674884 | E190: WT_U | F190: WT_D | G190: OK | H190: 56.7996 | I190: 54.1166 | J190: -0.06980956835 | K190: 0.336716 | L190: 0.6106 | M190: 0.836214 | N190: no
A191: ENSMUSG00000001750.15 | B191: ENSMUSG00000001750.15 | C191: Tcirg1 | D191: chr19:3896049-3907133 | E191: WT_U | F191: WT_D | G191: OK | H191: 6.98512 | I191: 4.58489 | J191: -0.6073977791 | K191: 1.83983 | L191: 0.01085 | M191: 0.0486036 | N191: yes
A192: ENSMUSG00000001751.9 | B192: ENSMUSG00000001751.9 | C192: Naglu | D192: chr11:101070011-101077672 | E192: WT_U | F192: WT_D | G192: OK | H192: 12.8944 | I192: 12.5542 | J192: -0.03857454577 | K192: 0.193891 | L192: 0.77715 | M192: 0.923717 | N192: no
A193: ENSMUSG00000001755.12 | B193: ENSMUSG00000001755.12 | C193: Coasy | D193: chr11:101082564-101086619 | E193: WT_U | F193: WT_D | G193: OK | H193: 31.483 | I193: 37.7007 | J193: 0.2600182896 | K193: -1.12476 | L193: 0.10645 | M193: 0.281619 | N193: no
A194: ENSMUSG00000001763.14 | B194: ENSMUSG00000001763.14 | C194: Tspan33 | D194: chr6:29694221-29718559 | E194: WT_U | F194: WT_D | G194: OK | H194: 1.88971 | I194: 2.02109 | J194: =LOG(I194/H194,2) -> 0.09696871542 | K194: -0.422176 | L194: 0.5481 | M194: 0.79455 | N194: no
A195: ENSMUSG00000001767.5 | B195: ENSMUSG00000001767.5 | C195: Crnkl1 | D195: chr2:145917478-146215039 | E195: WT_U | F195: WT_D | G195: OK | H195: 12.5041 | I195: 12.4066 | J195: -0.01129341887 | K195: 0.0483928 | L195: 0.93565 | M195: 0.976831 | N195: no
A196: ENSMUSG00000001774.7 | B196: ENSMUSG00000001774.7 | C196: Chordc1 | D196: chr9:18292266-18314000 | E196: WT_U | F196: WT_D | G196: OK | H196: 53.664 | I196: 63.6541 | J196: 0.246298848 | K196: -1.44099 | L196: 0.03895 | M196: 0.133167 | N196: no
A197: ENSMUSG00000001783.3 | B197: ENSMUSG00000001783.3 | C197: Rtcb | D197: chr10:85927680-85957823 | E197: WT_U | F197: WT_D | G197: OK | H197: 92.5604 | I197: 96.2852 | J197: 0.05691895936 | K197: -0.331195 | L197: 0.63685 | M197: 0.851742 | N197: no
A198: ENSMUSG00000001785.11 | B198: ENSMUSG00000001785.11 | C198: Pwp1 | D198: chr10:85871830-85889096 | E198: WT_U | F198: WT_D | G198: OK | H198: 42.083 | I198: 40.1249 | J198: -0.06873975797 | K198: 0.37696 | L198: 0.59425 | M198: 0.825718 | N198: no
A199: ENSMUSG00000001786.14 | B199: ENSMUSG00000001786.14 | C199: Fbxo7 | D199: chr10:86020440-86051873 | E199: WT_U | F199: WT_D | G199: OK | H199: 8.12284 | I199: 8.26798 | J199: 0.02555067182 | K199: -0.0972132 | L199: 0.8827 | M199: 0.960534 | N199: no
A200: ENSMUSG00000001794.12 | B200: ENSMUSG00000001794.12 | C200: Capns1 | D200: chr7:30186941-30195164 | E200: WT_U | F200: WT_D | G200: OK | H200: 106.36 | I200: 114.598 | J200: 0.1076261836 | K200: -0.575121 | L200: 0.4032 | M200: 0.672123 | N200: no
... 4300 more rows

Sheet Diff_FPKMover1
A1: test_id | B1: gene_id | C1: gene | D1: locus | E1: sample_2 | F1: sample_1 | G1: status | H1: value_2 | I1: value_1 | J1: log2(fold_change) | K1: test_stat | L1: p_value | M1: q_value | N1: significant
A2: ENSMUSG00000000001.4 | B2: ENSMUSG00000000001.4 | C2: Gnai3 | D2: chr3:108107279-108146146 | E2: WT_U | F2: WT_D | G2: OK | H2: 52.5405 | I2: 50.2617 | J2: =LOG(I2/H2,2) -> -0.06397046162 | K2: 0.374672 | L2: 0.5928 | M2: 0.824641 | N2: no
A3: ENSMUSG00000000028.14 | B3: ENSMUSG00000000028.14 | C3: Cdc45 | D3: chr16:18780446-18835261 | E3: WT_U | F3: WT_D | G3: OK | H3: 32.7228 | I3: 32.6077 | J3: -0.005083517531 | K3: 0.0212913 | L3: 0.97515 | M3: 0.989009 | N3: no
A4: ENSMUSG00000000037.16 | B4: ENSMUSG00000000037.16 | C4: Scml2 | D4: chrX:161117192-161258213 | E4: WT_U | F4: WT_D | G4: OK | H4: 6.68094 | I4: 5.69158 | J4: -0.2312218977 | K4: 0.630529 | L4: 0.34185 | M4: 0.608378 | N4: no
A5: ENSMUSG00000000056.7 | B5: ENSMUSG00000000056.7 | C5: Narf | D5: chr11:121237252-121255856 | E5: WT_U | F5: WT_D | G5: OK | H5: 6.06142 | I5: 3.54251 | J5: -0.7748838857 | K5: 3.78495 | L5: 5e-05 | M5: 0.00046241 | N5: yes
A6: ENSMUSG00000000078.6 | B6: ENSMUSG00000000078.6 | C6: Klf6 | D6: chr13:5861488-5870393 | E6: WT_U | F6: WT_D | G6: OK | H6: 21.832 | I6: 21.6658 | J6: -0.01102479126 | K6: 0.0643838 | L6: 0.9281 | M6: 0.974465 | N6: no
A7: ENSMUSG00000000088.6 | B7: ENSMUSG00000000088.6 | C7: Cox5a | D7: chr9:57521231-57543187 | E7: WT_U | F7: WT_D | G7: OK | H7: 242.907 | I7: 220.027 | J7: -0.1427234947 | K7: 0.765662 | L7: 0.27545 | M7: 0.53099 | N7: no
A8: ENSMUSG00000000093.6 | B8: ENSMUSG00000000093.6 | C8: Tbx2 | D8: chr11:85832550-85841948 | E8: WT_U | F8: WT_D | G8: OK | H8: 11.7553 | I8: 8.92727 | J8: -0.3970203925 | K8: 2.0182 | L8: 0.00365 | M8: 0.0197639 | N8: yes
A9: ENSMUSG00000000094.12 | B9: ENSMUSG00000000094.12 | C9: Tbx4 | D9: chr11:85886421-85916097 | E9: WT_U | F9: WT_D | G9: OK | H9: 1.10842 | I9: 1.00538 | J9: -0.1407637528 | K9: 0.604759 | L9: 0.3873 | M9: 0.65633 | N9: no
A10: ENSMUSG00000000120.6 | B10: ENSMUSG00000000120.6 | C10: Ngfr | D10: chr11:95568817-95587735 | E10: WT_U | F10: WT_D | G10: OK | H10: 93.5808 | I10: 74.3631 | J10: -0.3316256484 | K10: 1.93892 | L10: 0.00645 | M10: 0.0317759 | N10: yes
A11: ENSMUSG00000000125.5 | B11: ENSMUSG00000000125.5 | C11: Wnt3 | D11: chr11:103774149-103817957 | E11: WT_U | F11: WT_D | G11: OK | H11: 2.20987 | I11: 3.02174 | J11: 0.4514180291 | K11: -2.13722 | L11: 0.0023 | M11: 0.0133873 | N11: yes
A12: ENSMUSG00000000127.14 | B12: ENSMUSG00000000127.14 | C12: Fer | D12: chr17:63896017-64139494 | E12: WT_U | F12: WT_D | G12: OK | H12: 17.575 | I12: 16.8157 | J12: -0.06371585301 | K12: 0.326405 | L12: 0.6376 | M12: 0.852268 | N12: no
A13: ENSMUSG00000000131.15 | B13: ENSMUSG00000000131.15 | C13: Xpo6 | D13: chr7:126101714-126200501 | E13: WT_U | F13: WT_D | G13: OK | H13: 28.3736 | I13: 26.5241 | J13: -0.09724540992 | K13: 0.400102 | L13: 0.49625 | M13: 0.75392 | N13: no
A14: ENSMUSG00000000134.17 | B14: ENSMUSG00000000134.17 | C14: Tfe3 | D14: chrX:7762559-7775202 | E14: WT_U | F14: WT_D | G14: OK | H14: 18.6426 | I14: 23.5048 | J14: 0.3343523246 | K14: -0.873069 | L14: 0.18705 | M14: 0.415803 | N14: no
A15: ENSMUSG00000000142.15 | B15: ENSMUSG00000000142.15 | C15: Axin2 | D15: chr11:108920348-108950783 | E15: WT_U | F15: WT_D | G15: OK | H15: 3.73627 | I15: 4.2741 | J15: 0.1940219482 | K15: -0.690852 | L15: 0.30195 | M15: 0.562999 | N15: no
A16: ENSMUSG00000000148.17 | B16: ENSMUSG00000000148.17 | C16: Brat1 | D16: chr5:140705010-140719379 | E16: WT_U | F16: WT_D | G16: OK | H16: 12.7678 | I16: 13.3139 | J16: 0.06042327951 | K16: -0.302434 | L16: 0.6706 | M16: 0.871914 | N16: no
A17: ENSMUSG00000000149.10 | B17: ENSMUSG00000000149.10 | C17: Gna12 | D17: chr5:140724126-140830431 | E17: WT_U | F17: WT_D | G17: OK | H17: 24.582 | I17: 28.7564 | J17: 0.2262807781 | K17: -1.28119 | L17: 0.06415 | M17: 0.194308 | N17: no
A18: ENSMUSG00000000167.14 | B18: ENSMUSG00000000167.14 | C18: Pih1d2 | D18: chr9:50603900-50625000 | E18: WT_U | F18: WT_D | G18: OK | H18: 2.94959 | I18: 2.53867 | J18: -0.2164415582 | K18: 0.214185 | L18: 0.72825 | M18: 0.902717 | N18: no
A19: ENSMUSG00000000168.9 | B19: ENSMUSG00000000168.9 | C19: Dlat | D19: chr9:50634632-50659780 | E19: WT_U | F19: WT_D | G19: OK | H19: 46.6665 | I19: 46.5089 | J19: -0.004880450318 | K19: 0.0189943 | L19: 0.97585 | M19: 0.989148 | N19: no
A20: ENSMUSG00000000171.4 | B20: ENSMUSG00000000171.4 | C20: Sdhd | D20: chr9:50596337-50603849 | E20: WT_U | F20: WT_D | G20: OK | H20: 94.7292 | I20: 74.8404 | J20: -0.3399919314 | K20: 1.98507 | L20: 0.0043 | M20: 0.0226542 | N20: yes
A21: ENSMUSG00000000194.13 | B21: ENSMUSG00000000194.13 | C21: Gpr107 | D21: chr2:31152315-31218775 | E21: WT_U | F21: WT_D | G21: OK | H21: 20.3688 | I21: 18.2492 | J21: -0.1585277672 | K21: 0.57056 | L21: 0.3371 | M21: 0.603149 | N21: no
A22: ENSMUSG00000000214.10 | B22: ENSMUSG00000000214.10 | C22: Th | D22: chr7:142892751-142931128 | E22: WT_U | F22: WT_D | G22: OK | H22: 1.84539 | I22: 1.45912 | J22: -0.3388272067 | K22: 1.4102 | L22: 0.04235 | M22: 0.142148 | N22: no
A23: ENSMUSG00000000247.11 | B23: ENSMUSG00000000247.11 | C23: Lhx2 | D23: chr2:38339280-38369733 | E23: WT_U | F23: WT_D | G23: OK | H23: 1.84557 | I23: 2.04704 | J23: 0.1494728354 | K23: -0.60208 | L23: 0.37165 | M23: 0.640303 | N23: no
A24: ENSMUSG00000000253.12 | B24: ENSMUSG00000000253.12 | C24: Gmpr | D24: chr13:45507443-45546382 | E24: WT_U | F24: WT_D | G24: OK | H24: 8.63107 | I24: 6.25952 | J24: -0.4634873915 | K24: 2.17349 | L24: 0.0013 | M24: 0.00823191 | N24: yes
A25: ENSMUSG00000000266.11 | B25: ENSMUSG00000000266.11 | C25: Mid2 | D25: chrX:140664598-140767715 | E25: WT_U | F25: WT_D | G25: OK | H25: 4.89337 | I25: 4.57687 | J25: -0.09646705804 | K25: 0.384264 | L25: 0.5426 | M25: 0.790155 | N25: no
A26: ENSMUSG00000000275.16 | B26: ENSMUSG00000000275.16 | C26: Trim25 | D26: chr11:88999375-89020293 | E26: WT_U | F26: WT_D | G26: OK | H26: 16.1279 | I26: 15.2479 | J26: -0.08094803585 | K26: 0.381412 | L26: 0.57555 | M26: 0.813658 | N26: no
A27: ENSMUSG00000000276.11 | B27: ENSMUSG00000000276.11 | C27: Dgke | D27: chr11:89035178-89069098 | E27: WT_U | F27: WT_D | G27: OK | H27: 4.13174 | I27: 3.81441 | J27: -0.1152895488 | K27: 0.556 | L27: 0.42865 | M27: 0.695907 | N27: no
A28: ENSMUSG00000000278.10 | B28: ENSMUSG00000000278.10 | C28: Scpep1 | D28: chr11:88905927-88955465 | E28: WT_U | F28: WT_D | G28: OK | H28: 58.3994 | I28: 78.6192 | J28: 0.4289281367 | K28: -2.5072 | L28: 0.00035 | M28: 0.00265006 | N28: yes
A29: ENSMUSG00000000282.12 | B29: ENSMUSG00000000282.12 | C29: Mnt | D29: chr11:74830919-74845725 | E29: WT_U | F29: WT_D | G29: OK | H29: 16.6366 | I29: 19.6668 | J29: 0.2414016128 | K29: -0.832144 | L29: 0.2288 | M29: 0.473317 | N29: no
A30: ENSMUSG00000000295.12 | B30: ENSMUSG00000000295.12 | C30: Hddc2 | D30: chr10:31313381-31328204 | E30: WT_U | F30: WT_D | G30: OK | H30: 35.4605 | I30: 31.0694 | J30: -0.1907184977 | K30: 0.947883 | L30: 0.17415 | M30: 0.396243 | N30: no
A31: ENSMUSG00000000296.7 | B31: ENSMUSG00000000296.7 | C31: Tpd52l1 | D31: chr10:31332379-31445921 | E31: WT_U | F31: WT_D | G31: OK | H31: 1.12156 | I31: 1.15064 | J31: 0.03692972677 | K31: -0.133623 | L31: 0.8504 | M31: 0.950491 | N31: no
A32: ENSMUSG00000000301.16 | B32: ENSMUSG00000000301.16 | C32: Pemt | D32: chr11:59970613-60046489 | E32: WT_U | F32: WT_D | G32: OK | H32: 11.1347 | I32: 12.9855 | J32: 0.2218388769 | K32: -0.862991 | L32: 0.20985 | M32: 0.448687 | N32: no
A33: ENSMUSG00000000308.14 | B33: ENSMUSG00000000308.14 | C33: Ckmt1 | D33: chr2:121357713-121387168 | E33: WT_U | F33: WT_D | G33: OK | H33: 6.75931 | I33: 4.48516 | J33: -0.59171653 | K33: 2.75745 | L33: 5e-05 | M33: 0.00046241 | N33: yes
A34: ENSMUSG00000000325.15 | B34: ENSMUSG00000000325.15 | C34: Arvcf | D34: chr16:18348181-18479073 | E34: WT_U | F34: WT_D | G34: OK | H34: 22.3611 | I34: 30.8188 | J34: 0.4628195285 | K34: -1.45251 | L34: 0.0186 | M34: 0.0748204 | N34: no
A35: ENSMUSG00000000326.12 | B35: ENSMUSG00000000326.12 | C35: Comt | D35: chr16:18348181-18479073 | E35: WT_U | F35: WT_D | G35: OK | H35: 34.1703 | I35: 33.8543 | J35: -0.01340382486 | K35: 0.0392596 | L35: 0.9561 | M35: 0.982921 | N35: no
A36: ENSMUSG00000000339.14 | B36: ENSMUSG00000000339.14 | C36: Rtca | D36: chr3:116488962-116508208 | E36: WT_U | F36: WT_D | G36: OK | H36: 34.0477 | I36: 32.2497 | J36: -0.07827160413 | K36: 0.365954 | L36: 0.5977 | M36: 0.827906 | N36: no
A37: ENSMUSG00000000340.10 | B37: ENSMUSG00000000340.10 | C37: Dbt | D37: chr3:116513069-116549981 | E37: WT_U | F37: WT_D | G37: OK | H37: 13.1391 | I37: 10.4155 | J37: -0.3351343594 | K37: 1.25502 | L37: 0.04025 | M37: 0.136596 | N37: no
A38: ENSMUSG00000000346.8 | B38: ENSMUSG00000000346.8 | C38: Dazap2 | D38: chr15:100615627-100620731 | E38: WT_U | F38: WT_D | G38: OK | H38: 77.0826 | I38: 77.097 | J38: 0.0002694884232 | K38: -0.00158459 | L38: 0.9983 | M38: 0.999128 | N38: no
A39: ENSMUSG00000000355.13 | B39: ENSMUSG00000000355.13 | C39: Mcts1 | D39: chrX:38600577-38613426 | E39: WT_U | F39: WT_D | G39: OK | H39: 24.6247 | I39: 25.6796 | J39: 0.06051658192 | K39: -0.291255 | L39: 0.67425 | M39: 0.873635 | N39: no
A40: ENSMUSG00000000374.7 | B40: ENSMUSG00000000374.7 | C40: Trappc10 | D40: chr10:78186724-78244642 | E40: WT_U | F40: WT_D | G40: OK | H40: 17.2205 | I40: 16.8973 | J40: -0.02733429387 | K40: 0.159537 | L40: 0.81575 | M40: 0.938501 | N40: no
A41: ENSMUSG00000000378.15 | B41: ENSMUSG00000000378.15 | C41: Ccm2 | D41: chr11:6546886-6596744 | E41: WT_U | F41: WT_D | G41: OK | H41: 15.4433 | I41: 16.4591 | J41: 0.09190438222 | K41: -0.41399 | L41: 0.5334 | M41: 0.783258 | N41: no
A42: ENSMUSG00000000384.15 | B42: ENSMUSG00000000384.15 | C42: Tbrg4 | D42: chr11:6615597-6626067 | E42: WT_U | F42: WT_D | G42: OK | H42: 59.156 | I42: 54.5121 | J42: -0.1179480047 | K42: 0.498204 | L42: 0.47245 | M42: 0.733772 | N42: no
A43: ENSMUSG00000000386.14 | B43: ENSMUSG00000000386.14 | C43: Mx1 | D43: chr16:97447034-97462907 | E43: WT_U | F43: WT_D | G43: OK | H43: 0.318147 | I43: 1.11825 | J43: 1.813477336 | K43: -5.12957 | L43: 5e-05 | M43: 0.00046241 | N43: yes
A44: ENSMUSG00000000399.10 | B44: ENSMUSG00000000399.10 | C44: Ndufa9 | D44: chr6:126821720-126849136 | E44: WT_U | F44: WT_D | G44: OK | H44: 84.9252 | I44: 83.7675 | J44: -0.01980209304 | K44: 0.115287 | L44: 0.86695 | M44: 0.955768 | N44: no
A45: ENSMUSG00000000409.14 | B45: ENSMUSG00000000409.14 | C45: Lck | D45: chr4:129548343-129573641 | E45: WT_U | F45: WT_D | G45: OK | H45: 19.7073 | I45: 34.2224 | J45: 0.7962108055 | K45: -2.9677 | L45: 5e-05 | M45: 0.00046241 | N45: yes
A46: ENSMUSG00000000420.15 | B46: ENSMUSG00000000420.15 | C46: Galnt1 | D46: chr18:24205343-24286818 | E46: WT_U | F46: WT_D | G46: OK | H46: 45.0935 | I46: 35.4486 | J46: -0.3471908402 | K46: 1.54679 | L46: 0.02525 | M46: 0.0951564 | N46: no
A47: ENSMUSG00000000439.9 | B47: ENSMUSG00000000439.9 | C47: Mkrn2 | D47: chr6:115601901-115677780 | E47: WT_U | F47: WT_D | G47: OK | H47: 19.2677 | I47: 19.6263 | J47: 0.02660385159 | K47: -0.0298442 | L47: 0.96445 | M47: 0.98581 | N47: no
A48: ENSMUSG00000000440.12 | B48: ENSMUSG00000000440.12 | C48: Pparg | D48: chr6:115360950-115490399 | E48: WT_U | F48: WT_D | G48: OK | H48: 5.86211 | I48: 10.5055 | J48: 0.8416528825 | K48: -2.49863 | L48: 5e-05 | M48: 0.00046241 | N48: yes
A49: ENSMUSG00000000441.17 | B49: ENSMUSG00000000441.17 | C49: Raf1 | D49: chr6:115601901-115677780 | E49: WT_U | F49: WT_D | G49: OK | H49: 50.0115 | I49: 50.6277 | J49: 0.01766706798 | K49: -0.0739293 | L49: 0.9121 | M49: 0.969262 | N49: no
A50: ENSMUSG00000000486.13 | B50: ENSMUSG00000000486.13 | C50: Sept1 | D50: chr7:127214446-127238179 | E50: WT_U | F50: WT_D | G50: OK | H50: 2.76399 | I50: 2.3231 | J50: -0.2507011385 | K50: 0.184203 | L50: 0.78655 | M50: 0.927594 | N50: no
A51: ENSMUSG00000000531.4 | B51: ENSMUSG00000000531.4 | C51: Grasp | D51: chr15:101224206-101232755 | E51: WT_U | F51: WT_D | G51: OK | H51: 9.33606 | I51: 7.04576 | J51: -0.4060584997 | K51: 2.00755 | L51: 0.0052 | M51: 0.0265674 | N51: yes
A52: ENSMUSG00000000532.10 | B52: ENSMUSG00000000532.10 | C52: Acvr1b | D52: chr15:101174066-101213679 | E52: WT_U | F52: WT_D | G52: OK | H52: 11.4577 | I52: 10.9956 | J52: -0.05939113862 | K52: 0.304076 | L52: 0.66085 | M52: 0.866481 | N52: no
A53: ENSMUSG00000000538.18 | B53: ENSMUSG00000000538.18 | C53: Tom1l2 | D53: chr11:60226713-60352905 | E53: WT_U | F53: WT_D | G53: OK | H53: 14.1131 | I53: 16.0539 | J53: 0.1858888996 | K53: -0.905514 | L53: 0.1688 | M53: 0.387831 | N53: no
A54: ENSMUSG00000000552.9 | B54: ENSMUSG00000000552.9 | C54: Zfp385a | D54: chr15:103313894-103340086 | E54: WT_U | F54: WT_D | G54: OK | H54: 12.2857 | I54: 10.7051 | J54: -0.1986817877 | K54: 1.00104 | L54: 0.14985 | M54: 0.358138 | N54: no
A55: ENSMUSG00000000555.6 | B55: ENSMUSG00000000555.6 | C55: Itga5 | D55: chr15:103344288-103366763 | E55: WT_U | F55: WT_D | G55: OK | H55: 2.54409 | I55: 1.67039 | J55: -0.6069647283 | K55: 2.90403 | L55: 5e-05 | M55: 0.00046241 | N55: yes
A56: ENSMUSG00000000561.14 | B56: ENSMUSG00000000561.14 | C56: Wdr77 | D56: chr3:105942697-105987423 | E56: WT_U | F56: WT_D | G56: OK | H56: 55.3785 | I56: 58.4971 | J56: 0.07903912778 | K56: -0.187334 | L56: 0.77705 | M56: 0.92369 | N56: no
A57: ENSMUSG00000000563.17 | B57: ENSMUSG00000000563.17 | C57: Atp5f1 | D57: chr3:105942697-105987423 | E57: WT_U | F57: WT_D | G57: OK | H57: 251.712 | I57: 218.792 | J57: -0.2022140087 | K57: 0.939293 | L57: 0.17 | M57: 0.389766 | N57: no
A58: ENSMUSG00000000567.5 | B58: ENSMUSG00000000567.5 | C58: Sox9 | D58: chr11:112782223-112787760 | E58: WT_U | F58: WT_D | G58: OK | H58: 15.9287 | I58: 10.0684 | J58: -0.6617940895 | K58: 3.59119 | L58: 5e-05 | M58: 0.00046241 | N58: yes
A59: ENSMUSG00000000568.15 | B59: ENSMUSG00000000568.15 | C59: Hnrnpd | D59: chr5:99955934-99978938 | E59: WT_U | F59: WT_D | G59: OK | H59: 361.811 | I59: 333.184 | J59: -0.1189171484 | K59: 0.519853 | L59: 0.4575 | M59: 0.721673 | N59: no
A60: ENSMUSG00000000579.14 | B60: ENSMUSG00000000579.14 | C60: Dynlt1c | D60: chr17:6601670-6609774 | E60: WT_U | F60: WT_D | G60: OK | H60: 2.31034 | I60: 2.59583 | J60: 0.1680907241 | K60: -0.440707 | L60: 0.52265 | M60: 0.775048 | N60: no
A61: ENSMUSG00000000581.8 | B61: ENSMUSG00000000581.8 | C61: C1d | D61: chr11:17257578-17269176 | E61: WT_U | F61: WT_D | G61: OK | H61: 41.9967 | I61: 39.2684 | J61: -0.09690715257 | K61: 0.227372 | L61: 0.74125 | M61: 0.908351 | N61: no
A62: ENSMUSG00000000594.7 | B62: ENSMUSG00000000594.7 | C62: Gm2a | D62: chr11:55098114-55113029 | E62: WT_U | F62: WT_D | G62: OK | H62: 3.82079 | I62: 2.99964 | J62: -0.3490815989 | K62: 1.71898 | L62: 0.01335 | M62: 0.0574153 | N62: no
A63: ENSMUSG00000000600.15 | B63: ENSMUSG00000000600.15 | C63: Krit1 | D63: chr5:3803183-3866596 | E63: WT_U | F63: WT_D | G63: OK | H63: 29.4936 | I63: 33.01 | J63: 0.1625012095 | K63: -0.848768 | L63: 0.2027 | M63: 0.438973 | N63: no
A64: ENSMUSG00000000605.8 | B64: ENSMUSG00000000605.8 | C64: Clcn4 | D64: chr7:7282315-7299511 | E64: WT_U | F64: WT_D | G64: OK | H64: 14.2248 | I64: 17.1591 | J64: 0.2705655166 | K64: -1.57544 | L64: 0.02355 | M64: 0.0901261 | N64: no
A65: ENSMUSG00000000628.10 | B65: ENSMUSG00000000628.10 | C65: Hk2 | D65: chr6:82725024-82774454 | E65: WT_U | F65: WT_D | G65: OK | H65: 38.1006 | I65: 30.7684 | J65: -0.3083642937 | K65: 1.70428 | L65: 0.01165 | M65: 0.0514489 | N65: no
A66: ENSMUSG00000000631.19 | B66: ENSMUSG00000000631.19 | C66: Myo18a | D66: chr11:77763245-77865980 | E66: WT_U | F66: WT_D | G66: OK | H66: 19.9878 | I66: 20.6904 | J66: =LOG(I66/H66,2) -> 0.04984184907 | K66: -0.115187 | L66: 0.8606 | M66: 0.953869 | N66: no
A67: ENSMUSG00000000632.13 | B67: ENSMUSG00000000632.13 | C67: Sez6 | D67: chr11:77930799-77979048 | E67: WT_U | F67: WT_D | G67: OK | H67: 18.9763 | I67: 17.6514 | J67: -0.1044161093 | K67: 0.314196 | L67: 0.6517 | M67: 0.860678 | N67: no
A68: ENSMUSG00000000686.11 | B68: ENSMUSG00000000686.11 | C68: Abhd15 | D68: chr11:77508098-77607815 | E68: WT_U | F68: WT_D | G68: OK | H68: 1.04872 | I68: 1.36795 | J68: 0.3833859581 | K68: -0.219252 | L68: 0.7558 | M68: 0.914449 | N68: no
A69: ENSMUSG00000000693.10 | B69: ENSMUSG00000000693.10 | C69: Loxl3 | D69: chr6:83034172-83057808 | E69: WT_U | F69: WT_D | G69: OK | H69: 1.54895 | I69: 1.24937 | J69: -0.3100897815 | K69: 0.150949 | L69: 0.6587 | M69: 0.864975 | N69: no
A70: ENSMUSG00000000708.14 | B70: ENSMUSG00000000708.14 | C70: Kat2b | D70: chr17:53566860-53672720 | E70: WT_U | F70: WT_D | G70: OK | H70: 15.3621 | I70: 13.9915 | J70: -0.1348248069 | K70: 0.301111 | L70: 0.6237 | M70: 0.843967 | N70: no
A71: ENSMUSG00000000711.2 | B71: ENSMUSG00000000711.2 | C71: Rab5b | D71: chr10:128677192-128696268 | E71: WT_U | F71: WT_D | G71: OK | H71: 28.4157 | I71: 30.9989 | J71: 0.1255287666 | K71: -0.733037 | L71: 0.2963 | M71: 0.556128 | N71: no
A72: ENSMUSG00000000732.8 | B72: ENSMUSG00000000732.8 | C72: Icosl | D72: chr10:78069359-78079525 | E72: WT_U | F72: WT_D | G72: OK | H72: 2.91364 | I72: 2.58206 | J72: -0.1743001083 | K72: 0.819454 | L72: 0.2442 | M72: 0.492713 | N72: no
A73: ENSMUSG00000000751.13 | B73: ENSMUSG00000000751.13 | C73: Rpa1 | D73: chr11:75298165-75348324 | E73: WT_U | F73: WT_D | G73: OK | H73: 59.7733 | I73: 51.8727 | J73: -0.2045257295 | K73: 0.906855 | L73: 0.19305 | M73: 0.42488 | N73: no
A74: ENSMUSG00000000753.15 | B74: ENSMUSG00000000753.15 | C74: Serpinf1 | D74: chr11:75409768-75422701 | E74: WT_U | F74: WT_D | G74: OK | H74: 14.5589 | I74: 19.7719 | J74: 0.4415501583 | K74: -1.82576 | L74: 0.0085 | M74: 0.0398455 | N74: yes
A75: ENSMUSG00000000759.14 | B75: ENSMUSG00000000759.14 | C75: Tubgcp3 | D75: chr8:12614276-12679229 | E75: WT_U | F75: WT_D | G75: OK | H75: 62.5462 | I75: 53.9844 | J75: -0.2123796675 | K75: 0.537815 | L75: 0.4095 | M75: 0.678067 | N75: no
A76: ENSMUSG00000000776.12 | B76: ENSMUSG00000000776.12 | C76: Polr3d | D76: chr14:70438747-70443471 | E76: WT_U | F76: WT_D | G76: OK | H76: 23.2974 | I76: 22.8279 | J76: -0.0293708102 | K76: 0.150757 | L76: 0.83255 | M76: 0.944308 | N76: no
A77: ENSMUSG00000000782.15 | B77: ENSMUSG00000000782.15 | C77: Tcf7 | D77: chr11:51949881-52286179 | E77: WT_U | F77: WT_D | G77: OK | H77: 3.66087 | I77: 4.59118 | J77: 0.3266784514 | K77: -0.183763 | L77: 0.82245 | M77: 0.940658 | N77: no
A78: ENSMUSG00000000787.12 | B78: ENSMUSG00000000787.12 | C78: Ddx3x | D78: chrX:13280969-13294052 | E78: WT_U | F78: WT_D | G78: OK | H78: 244.299 | I78: 227.698 | J78: -0.1015263386 | K78: 0.358676 | L78: 0.60865 | M78: 0.835084 | N78: no
A79: ENSMUSG00000000794.9 | B79: ENSMUSG00000000794.9 | C79: Kcnn3 | D79: chr3:89520163-89675132 | E79: WT_U | F79: WT_D | G79: OK | H79: 3.95755 | I79: 1.88747 | J79: -1.068153864 | K79: 4.50227 | L79: 5e-05 | M79: 0.00046241 | N79: yes
A80: ENSMUSG00000000804.14 | B80: ENSMUSG00000000804.14 | C80: Usp32 | D80: chr11:84984441-85140161 | E80: WT_U | F80: WT_D | G80: OK | H80: 20.4167 | I80: 20.3453 | J80: -0.005054145099 | K80: 0.00944072 | L80: 0.9894 | M80: 0.994801 | N80: no
A81: ENSMUSG00000000811.13 | B81: ENSMUSG00000000811.13 | C81: Txnrd3 | D81: chr6:89643987-89675529 | E81: WT_U | F81: WT_D | G81: OK | H81: 11.4524 | I81: 11.2928 | J81: -0.02024672525 | K81: 0.102704 | L81: 0.87845 | M81: 0.95941 | N81: no
A82: ENSMUSG00000000823.16 | B82: ENSMUSG00000000823.16 | C82: Znf512b | D82: chr2:181569148-181655660 | E82: WT_U | F82: WT_D | G82: OK | H82: 22.466 | I82: 25.0124 | J82: 0.1549002141 | K82: -0.292027 | L82: 0.6382 | M82: 0.852581 | N82: no
A83: ENSMUSG00000000826.16 | B83: ENSMUSG00000000826.16 | C83: Dnajc5 | D83: chr2:181520484-181555133 | E83: WT_U | F83: WT_D | G83: OK | H83: 30.5532 | I83: 27.6955 | J83: -0.1416719047 | K83: 0.65157 | L83: 0.33755 | M83: 0.603631 | N83: no
A84: ENSMUSG00000000827.18 | B84: ENSMUSG00000000827.18 | C84: Tpd52l2 | D84: chr2:181497141-181517966 | E84: WT_U | F84: WT_D | G84: OK | H84: 84.1261 | I84: 84.2195 | J84: 0.001600846481 | K84: -0.00775474 | L84: 0.99075 | M84: 0.995429 | N84: no
A85: ENSMUSG00000000838.17 | B85: ENSMUSG00000000838.17 | C85: Fmr1 | D85: chrX:68678484-68717963 | E85: WT_U | F85: WT_D | G85: OK | H85: 35.8944 | I85: 32.8267 | J85: -0.1288890561 | K85: 0.53546 | L85: 0.4313 | M85: 0.698015 | N85: no
A86: ENSMUSG00000000861.15 | B86: ENSMUSG00000000861.15 | C86: Bcl11a | D86: chr11:24078055-24174123 | E86: WT_U | F86: WT_D | G86: OK | H86: 6.39482 | I86: 7.10688 | J86: 0.1523125885 | K86: -0.654915 | L86: 0.33575 | M86: 0.60184 | N86: no
A87: ENSMUSG00000000876.11 | B87: ENSMUSG00000000876.11 | C87: Pxmp4 | D87: chr2:154585757-154603708 | E87: WT_U | F87: WT_D | G87: OK | H87: 4.12456 | I87: 3.48692 | J87: -0.2422869588 | K87: 0.823844 | L87: 0.2362 | M87: 0.482961 | N87: no
A88: ENSMUSG00000000881.12 | B88: ENSMUSG00000000881.12 | C88: Dlg3 | D88: chrX:100767721-100818410 | E88: WT_U | F88: WT_D | G88: OK | H88: 1.93704 | I88: 1.36935 | J88: -0.5003625056 | K88: 1.15039 | L88: 0.08445 | M88: 0.238123 | N88: no
A89: ENSMUSG00000000884.16 | B89: ENSMUSG00000000884.16 | C89: Gnb1l | D89: chr16:18498767-18566679 | E89: WT_U | F89: WT_D | G89: OK | H89: 2.98374 | I89: 2.9438 | J89: -0.01944216723 | K89: 0.0495204 | L89: 0.93575 | M89: 0.976864 | N89: no
A90: ENSMUSG00000000889.8 | B90: ENSMUSG00000000889.8 | C90: Dbh | D90: chr2:27165232-27183200 | E90: WT_U | F90: WT_D | G90: OK | H90: 3.96222 | I90: 2.40962 | J90: -0.7175033376 | K90: 3.13757 | L90: 5e-05 | M90: 0.00046241 | N90: yes
A91: ENSMUSG00000000901.15 | B91: ENSMUSG00000000901.15 | C91: Mmp11 | D91: chr10:75923221-75932502 | E91: WT_U | F91: WT_D | G91: OK | H91: 10.6846 | I91: 18.4633 | J91: 0.7891275344 | K91: -3.49534 | L91: 5e-05 | M91: 0.00046241 | N91: yes
A92: ENSMUSG00000000902.13 | B92: ENSMUSG00000000902.13 | C92: Smarcb1 | D92: chr10:75896768-75921617 | E92: WT_U | F92: WT_D | G92: OK | H92: 84.0354 | I92: 102.055 | J92: 0.2802777685 | K92: -1.56931 | L92: 0.0257 | M92: 0.0965074 | N92: no
A93: ENSMUSG00000000915.15 | B93: ENSMUSG00000000915.15 | C93: Hip1r | D93: chr5:123973627-124032270 | E93: WT_U | F93: WT_D | G93: OK | H93: 6.92512 | I93: 6.1006 | J93: -0.1828879306 | K93: 0.352374 | L93: 0.6115 | M93: 0.836771 | N93: no
A94: ENSMUSG00000000916.15 | B94: ENSMUSG00000000916.15 | C94: Nsun5 | D94: chr5:135369952-135394546 | E94: WT_U | F94: WT_D | G94: OK | H94: 14.721 | I94: 14.6448 | J94: -0.007487186377 | K94: 0.0125886 | L94: 0.98365 | M94: 0.992156 | N94: no
A95: ENSMUSG00000000934.8 | B95: ENSMUSG00000000934.8 | C95: Top1mt | D95: chr15:75657034-75678800 | E95: WT_U | F95: WT_D | G95: OK | H95: 14.7006 | I95: 15.2167 | J95: 0.04978048045 | K95: -0.251318 | L95: 0.7191 | M95: 0.898281 | N95: no
A96: ENSMUSG00000000948.16 | B96: ENSMUSG00000000948.16 | C96: Gm38393 | D96: chr7:59937370-60140219 | E96: WT_U | F96: WT_D | G96: OK | H96: 6.66718 | I96: 6.36336 | J96: -0.06728793465 | K96: 0.0692179 | L96: 0.88935 | M96: 0.962429 | N96: no
A97: ENSMUSG00000000958.9 | B97: ENSMUSG00000000958.9 | C97: Slc7a7 | D97: chr14:54360840-54417780 | E97: WT_U | F97: WT_D | G97: OK | H97: 1.42424 | I97: 1.62346 | J97: 0.1888795622 | K97: -0.148849 | L97: 0.75935 | M97: 0.915902 | N97: no
A98: ENSMUSG00000000959.6 | B98: ENSMUSG00000000959.6 | C98: Oxa1l | D98: chr14:54360840-54417780 | E98: WT_U | F98: WT_D | G98: OK | H98: 22.2946 | I98: 23.5551 | J98: 0.07934514111 | K98: -0.357321 | L98: 0.60915 | M98: 0.835393 | N98: no
A99: ENSMUSG00000000976.13 | B99: ENSMUSG00000000976.13 | C99: Heatr6 | D99: chr11:83753695-83783754 | E99: WT_U | F99: WT_D | G99: OK | H99: 8.35619 | I99: 9.03008 | J99: 0.1118934727 | K99: -0.429607 | L99: 0.4574 | M99: 0.721606 | N99: no
A100: ENSMUSG00000001016.12 | B100: ENSMUSG00000001016.12 | C100: Ilf2 | D100: chr3:90476125-90491033 | E100: WT_U | F100: WT_D | G100: OK | H100: 107.756 | I100: 102.418 | J100: -0.07329891098 | K100: 0.400944 | L100: 0.5682 | M100: 0.809067 | N100: no
A101: ENSMUSG00000001017.15 | B101: ENSMUSG00000001017.15 | C101: Chtop | D101: chr3:90498955-90509498 | E101: WT_U | F101: WT_D | G101: OK | H101: 63.8581 | I101: 66.7893 | J101: 0.06474736545 | K101: -0.362491 | L101: 0.61285 | M101: 0.837715 | N101: no
A102: ENSMUSG00000001018.15 | B102: ENSMUSG00000001018.15 | C102: Snapin | D102: chr3:90476125-90491033 | E102: WT_U | F102: WT_D | G102: OK | H102: 11.3931 | I102: 12.9766 | J102: 0.1877520823 | K102: -0.284017 | L102: 0.6986 | M102: 0.887601 | N102: no
A103: ENSMUSG00000001020.8 | B103: ENSMUSG00000001020.8 | C103: S100a4 | D103: chr3:90560555-90606045 | E103: WT_U | F103: WT_D | G103: OK | H103: 15.5086 | I103: 4.6188 | J103: -1.747478474 | K103: 6.70341 | L103: 5e-05 | M103: 0.00046241 | N103: yes
A104: ENSMUSG00000001025.8 | B104: ENSMUSG00000001025.8 | C104: S100a6 | D104: chr3:90612881-90624181 | E104: WT_U | F104: WT_D | G104: OK | H104: 92.7309 | I104: 46.9917 | J104: -0.9806441966 | K104: 4.92132 | L104: 5e-05 | M104: 0.00046241 | N104: yes
A105: ENSMUSG00000001029.15 | B105: ENSMUSG00000001029.15 | C105: Icam2 | D105: chr11:106377655-106388075 | E105: WT_U | F105: WT_D | G105: OK | H105: 17.5114 | I105: 13.2851 | J105: -0.3984853415 | K105: 1.90271 | L105: 0.00595 | M105: 0.0296952 | N105: yes
A106: ENSMUSG00000001034.17 | B106: ENSMUSG00000001034.17 | C106: Mapk7 | D106: chr11:61485430-61494406 | E106: WT_U | F106: WT_D | G106: OK | H106: 20.8117 | I106: 20.9645 | J106: 0.01055360637 | K106: -0.0365227 | L106: 0.9573 | M106: 0.983347 | N106: no
A107: ENSMUSG00000001036.17 | B107: ENSMUSG00000001036.17 | C107: Epn2 | D107: chr11:61517248-61579687 | E107: WT_U | F107: WT_D | G107: OK | H107: 24.2533 | I107: 24.3054 | J107: 0.003095817659 | K107: -0.00823544 | L107: 0.9896 | M107: 0.994922 | N107: no
A108: ENSMUSG00000001039.12 | B108: ENSMUSG00000001039.12 | C108: B9d1 | D108: chr11:61505143-61512931 | E108: WT_U | F108: WT_D | G108: OK | H108: 9.57646 | I108: 11.9065 | J108: 0.314185027 | K108: -1.39924 | L108: 0.045 | M108: 0.148814 | N108: no
A109: ENSMUSG00000001052.15 | B109: ENSMUSG00000001052.15 | C109: Sec24b | D109: chr3:129982758-130061553 | E109: WT_U | F109: WT_D | G109: OK | H109: 38.7502 | I109: 36.6871 | J109: -0.07893088795 | K109: 0.254705 | L109: 0.69405 | M109: 0.885176 | N109: no
A110: ENSMUSG00000001053.15 | B110: ENSMUSG00000001053.15 | C110: N4bp3 | D110: chr11:51643062-51650842 | E110: WT_U | F110: WT_D | G110: OK | H110: 9.07893 | I110: 6.83426 | J110: -0.4097371441 | K110: 1.94592 | L110: 0.00435 | M110: 0.0228744 | N110: yes
A111: ENSMUSG00000001054.9 | B111: ENSMUSG00000001054.9 | C111: Rmnd5b | D111: chr11:51619734-51635896 | E111: WT_U | F111: WT_D | G111: OK | H111: 9.03151 | I111: 9.76215 | J111: 0.112231704 | K111: -0.172356 | L111: 0.7767 | M111: 0.923565 | N111: no
A112: ENSMUSG00000001056.3 | B112: ENSMUSG00000001056.3 | C112: Nhp2 | D112: chr11:51619734-51635896 | E112: WT_U | F112: WT_D | G112: OK | H112: 201.089 | I112: 185.075 | J112: -0.1197241367 | K112: 0.666401 | L112: 0.34105 | M112: 0.607429 | N112: no
A113: ENSMUSG00000001082.12 | B113: ENSMUSG00000001082.12 | C113: Mfsd10 | D113: chr5:34633641-34637212 | E113: WT_U | F113: WT_D | G113: OK | H113: 30.1267 | I113: 30.7828 | J113: 0.03108181247 | K113: -0.115269 | L113: 0.85505 | M113: 0.951908 | N113: no
A114: ENSMUSG00000001089.14 | B114: ENSMUSG00000001089.14 | C114: Luzp1 | D114: chr4:136469760-136602723 | E114: WT_U | F114: WT_D | G114: OK | H114: 33.2609 | I114: 27.0674 | J114: -0.2972708928 | K114: 0.897121 | L114: 0.1271 | M114: 0.31968 | N114: no
A115: ENSMUSG00000001098.15 | B115: ENSMUSG00000001098.15 | C115: Kctd10 | D115: chr5:114289165-114380508 | E115: WT_U | F115: WT_D | G115: OK | H115: 28.7394 | I115: 27.9744 | J115: -0.03892275424 | K115: 0.189375 | L115: 0.78295 | M115: 0.926139 | N115: no
A116: ENSMUSG00000001100.10 | B116: ENSMUSG00000001100.10 | C116: Poldip2 | D116: chr11:78512192-78522736 | E116: WT_U | F116: WT_D | G116: OK | H116: 34.7217 | I116: 38.8179 | J116: 0.1608844872 | K116: -0.829177 | L116: 0.2169 | M116: 0.458226 | N116: no
A117: ENSMUSG00000001105.15 | B117: ENSMUSG00000001105.15 | C117: Ift20 | D117: chr11:78536360-78541737 | E117: WT_U | F117: WT_D | G117: OK | H117: 36.8303 | I117: 35.9464 | J117: -0.03504585544 | K117: 0.161032 | L117: 0.81585 | M117: 0.938573 | N117: no
A118: ENSMUSG00000001120.15 | B118: ENSMUSG00000001120.15 | C118: Pcbp3 | D118: chr10:76761856-76961887 | E118: WT_U | F118: WT_D | G118: OK | H118: 533.008 | I118: 461.717 | J118: -0.2071483347 | K118: 0.990231 | L118: 0.15715 | M118: 0.369903 | N118: no
A119: ENSMUSG00000001123.15 | B119: ENSMUSG00000001123.15 | C119: Lgals9 | D119: chr11:78962973-78984946 | E119: WT_U | F119: WT_D | G119: OK | H119: 4.31839 | I119: 3.09666 | J119: -0.4797805511 | K119: 2.17367 | L119: 0.0016 | M119: 0.00983992 | N119: yes
A120: ENSMUSG00000001127.12 | B120: ENSMUSG00000001127.12 | C120: Araf | D120: chrX:20797813-20921004 | E120: WT_U | F120: WT_D | G120: OK | H120: 28.2707 | I120: 33.6929 | J120: 0.2531370032 | K120: -0.86797 | L120: 0.1957 | M120: 0.4288 | N120: no
A121: ENSMUSG00000001128.7 | B121: ENSMUSG00000001128.7 | C121: Cfp | D121: chrX:20925453-20931555 | E121: WT_U | F121: WT_D | G121: OK | H121: 1.47719 | I121: 1.37295 | J121: -0.1055763147 | K121: 0.254988 | L121: 0.71165 | M121: 0.894484 | N121: no
A122: ENSMUSG00000001134.9 | B122: ENSMUSG00000001134.9 | C122: Uxt | D122: chrX:20933394-20986737 | E122: WT_U | F122: WT_D | G122: OK | H122: 22.5022 | I122: 24.2407 | J122: 0.1073653021 | K122: -0.243747 | L122: 0.73405 | M122: 0.905308 | N122: no
A123: ENSMUSG00000001138.13 | B123: ENSMUSG00000001138.13 | C123: Cnnm3 | D123: chr1:36511866-36528237 | E123: WT_U | F123: WT_D | G123: OK | H123: 7.1154 | I123: 7.56102 | J123: 0.08763600893 | K123: -0.253165 | L123: 0.7057 | M123: 0.891613 | N123: no
A124: ENSMUSG00000001143.13 | B124: ENSMUSG00000001143.13 | C124: Lman2l | D124: chr1:36372290-36445271 | E124: WT_U | F124: WT_D | G124: OK | H124: 22.7051 | I124: 28.4246 | J124: 0.3241236564 | K124: -1.36212 | L124: 0.04975 | M124: 0.160647 | N124: no
A125: ENSMUSG00000001150.6 | B125: ENSMUSG00000001150.6 | C125: Mcm3ap | D125: chr10:76449080-76515856 | E125: WT_U | F125: WT_D | G125: OK | H125: 13.5083 | I125: 13.0088 | J125: -0.05435823858 | K125: 0.305577 | L125: 0.66175 | M125: 0.867116 | N125: no
A126: ENSMUSG00000001151.9 | B126: ENSMUSG00000001151.9 | C126: Pcnt | D126: chr10:76351253-76442912 | E126: WT_U | F126: WT_D | G126: OK | H126: 13.4078 | I126: 12.43 | J126: -0.1092462377 | K126: 0.63863 | L126: 0.3646 | M126: 0.632639 | N126: no
A127: ENSMUSG00000001156.9 | B127: ENSMUSG00000001156.9 | C127: Mxd1 | D127: chr6:86647041-86669161 | E127: WT_U | F127: WT_D | G127: OK | H127: 1.78123 | I127: 1.78159 | J127: 0.0002915500735 | K127: -0.00102162 | L127: 0.99855 | M127: 0.999158 | N127: no
A128: ENSMUSG00000001157.13 | B128: ENSMUSG00000001157.13 | C128: Gmcl1 | D128: chr6:86691767-86733383 | E128: WT_U | F128: WT_D | G128: OK | H128: 14.2824 | I128: 14.1928 | J128: -0.009079191878 | K128: 0.0431289 | L128: 0.94825 | M128: 0.980768 | N128: no
A129: ENSMUSG00000001158.13 | B129: ENSMUSG00000001158.13 | C129: Snrnp27 | D129: chr6:86675150-86684522 | E129: WT_U | F129: WT_D | G129: OK | H129: 76.5547 | I129: 73.3518 | J129: -0.06165858425 | K129: 0.314673 | L129: 0.64765 | M129: 0.858328 | N129: no
A130: ENSMUSG00000001166.17 | B130: ENSMUSG00000001166.17 | C130: Oas1c | D130: chr5:120777795-120812514 | E130: WT_U | F130: WT_D | G130: OK | H130: 1.7034 | I130: 1.38444 | J130: =LOG(I130/H130,2) -> -0.2991147245 | K130: 1.10472 | L130: 0.0797 | M130: 0.228178 | N130: no
A131: ENSMUSG00000001173.15 | B131: ENSMUSG00000001173.15 | C131: Ocrl | D131: chrX:47912386-47965868 | E131: WT_U | F131: WT_D | G131: OK | H131: 5.71127 | I131: 5.72734 | J131: 0.004053661163 | K131: -0.0189602 | L131: 0.9774 | M131: 0.989848 | N131: no
A132: ENSMUSG00000001175.13 | B132: ENSMUSG00000001175.13 | C132: Calm1 | D132: chr12:100199434-100209814 | E132: WT_U | F132: WT_D | G132: OK | H132: 270.68 | I132: 268.636 | J132: -0.0109356399 | K132: 0.0357471 | L132: 0.95985 | M132: 0.984241 | N132: no
A133: ENSMUSG00000001211.14 | B133: ENSMUSG00000001211.14 | C133: Agpat3 | D133: chr10:78269177-78352489 | E133: WT_U | F133: WT_D | G133: OK | H133: 76.3921 | I133: 95.8071 | J133: 0.3267091227 | K133: -1.39248 | L133: 0.04435 | M133: 0.147204 | N133: no
A134: ENSMUSG00000001228.14 | B134: ENSMUSG00000001228.14 | C134: Uhrf1 | D134: chr17:56303320-56323486 | E134: WT_U | F134: WT_D | G134: OK | H134: 102.09 | I134: 87.007 | J134: -0.2306381768 | K134: 0.802809 | L134: 0.2336 | M134: 0.479612 | N134: no
A135: ENSMUSG00000001229.7 | B135: ENSMUSG00000001229.7 | C135: Dpp9 | D135: chr17:56186681-56218889 | E135: WT_U | F135: WT_D | G135: OK | H135: 25.5341 | I135: 26.8118 | J135: 0.07044286806 | K135: -0.411046 | L135: 0.56265 | M135: 0.805238 | N135: no
A136: ENSMUSG00000001240.13 | B136: ENSMUSG00000001240.13 | C136: Ramp2 | D136: chr11:101246027-101259549 | E136: WT_U | F136: WT_D | G136: OK | H136: 20.7193 | I136: 10.1455 | J136: -1.030135295 | K136: 1.88918 | L136: 0.01205 | M136: 0.0528728 | N136: no
A137: ENSMUSG00000001248.14 | B137: ENSMUSG00000001248.14 | C137: Gramd1a | D137: chr7:31130126-31170641 | E137: WT_U | F137: WT_D | G137: OK | H137: 37.86 | I137: 42.4283 | J137: 0.1643524634 | K137: -0.878129 | L137: 0.18605 | M137: 0.414334 | N137: no
A138: ENSMUSG00000001249.14 | B138: ENSMUSG00000001249.14 | C138: Hpn | D138: chr7:31098724-31115290 | E138: WT_U | F138: WT_D | G138: OK | H138: 1.22863 | I138: 1.43421 | J138: 0.2232057661 | K138: -0.58404 | L138: 0.3946 | M138: 0.663672 | N138: no
A139: ENSMUSG00000001270.8 | B139: ENSMUSG00000001270.8 | C139: Ckb | D139: chr12:111669354-111672338 | E139: WT_U | F139: WT_D | G139: OK | H139: 11.7257 | I139: 10.193 | J139: -0.2020953237 | K139: 0.997562 | L139: 0.15285 | M139: 0.363013 | N139: no
A140: ENSMUSG00000001280.12 | B140: ENSMUSG00000001280.12 | C140: Sp1 | D140: chr15:102406142-102436404 | E140: WT_U | F140: WT_D | G140: OK | H140: 29.6087 | I140: 28.2527 | J140: -0.06763240208 | K140: 0.271433 | L140: 0.5943 | M140: 0.82573 | N140: no
A141: ENSMUSG00000001285.12 | B141: ENSMUSG00000001285.12 | C141: Myg1 | D141: chr15:102326115-102338139 | E141: WT_U | F141: WT_D | G141: OK | H141: 67.4688 | I141: 66.7733 | J141: -0.01494916094 | K141: 0.0436876 | L141: 0.9514 | M141: 0.981594 | N141: no
A142: ENSMUSG00000001288.14 | B142: ENSMUSG00000001288.14 | C142: Rarg | D142: chr15:102234937-102257517 | E142: WT_U | F142: WT_D | G142: OK | H142: 5.51297 | I142: 4.58834 | J142: -0.2648574504 | K142: 1.01076 | L142: 0.13465 | M142: 0.332477 | N142: no
A143: ENSMUSG00000001289.12 | B143: ENSMUSG00000001289.12 | C143: Pfdn5 | D143: chr15:102326115-102338139 | E143: WT_U | F143: WT_D | G143: OK | H143: 232.264 | I143: 218.073 | J143: -0.09095440102 | K143: 0.349045 | L143: 0.61405 | M143: 0.838394 | N143: no
A144: ENSMUSG00000001300.15 | B144: ENSMUSG00000001300.15 | C144: Efnb2 | D144: chr8:8617433-8660773 | E144: WT_U | F144: WT_D | G144: OK | H144: 0.904745 | I144: 1.03479 | J144: 0.1937548825 | K144: -0.854274 | L144: 0.21535 | M144: 0.456154 | N144: no
A145: ENSMUSG00000001305.5 | B145: ENSMUSG00000001305.5 | C145: Rrp15 | D145: chr1:186720977-186749358 | E145: WT_U | F145: WT_D | G145: OK | H145: 102.181 | I145: 104.989 | J145: 0.03911122056 | K145: -0.227281 | L145: 0.74325 | M145: 0.908979 | N145: no
A146: ENSMUSG00000001313.12 | B146: ENSMUSG00000001313.12 | C146: Rnd2 | D146: chr11:101458744-101471853 | E146: WT_U | F146: WT_D | G146: OK | H146: 26.4717 | I146: 32.5176 | J146: 0.2967699345 | K146: -0.551163 | L146: 0.4219 | M146: 0.689709 | N146: no
A147: ENSMUSG00000001323.17 | B147: ENSMUSG00000001323.17 | C147: Srr | D147: chr11:74898070-75164448 | E147: WT_U | F147: WT_D | G147: OK | H147: 4.78878 | I147: 5.63526 | J147: 0.2348240164 | K147: -0.19685 | L147: 0.7463 | M147: 0.910309 | N147: no
A148: ENSMUSG00000001333.9 | B148: ENSMUSG00000001333.9 | C148: Sync | D148: chr4:129287616-129335370 | E148: WT_U | F148: WT_D | G148: OK | H148: 2.99133 | I148: 2.99771 | J148: 0.003073747326 | K148: -0.00228054 | L148: 0.99725 | M148: 0.998566 | N148: no
A149: ENSMUSG00000001334.9 | B149: ENSMUSG00000001334.9 | C149: Fndc5 | D149: chr4:129136998-129144593 | E149: WT_U | F149: WT_D | G149: OK | H149: 4.64354 | I149: 2.39092 | J149: -0.9576592041 | K149: 4.57327 | L149: 5e-05 | M149: 0.00046241 | N149: yes
A150: ENSMUSG00000001366.14 | B150: ENSMUSG00000001366.14 | C150: Fbxo9 | D150: chr9:78081498-78109065 | E150: WT_U | F150: WT_D | G150: OK | H150: 13.06 | I150: 12.5528 | J150: -0.05714569243 | K150: 0.254851 | L150: 0.7017 | M150: 0.889419 | N150: no
A151: ENSMUSG00000001376.17 | B151: ENSMUSG00000001376.17 | C151: Ccdc132 | D151: chr6:3498381-3603531 | E151: WT_U | F151: WT_D | G151: OK | H151: 24.5342 | I151: 25.4905 | J151: 0.05516544289 | K151: -0.288895 | L151: 0.6563 | M151: 0.863407 | N151: no
A152: ENSMUSG00000001380.6 | B152: ENSMUSG00000001380.6 | C152: Hars | D152: chr18:36766529-36792562 | E152: WT_U | F152: WT_D | G152: OK | H152: 69.3792 | I152: 65.4181 | J152: -0.08481334678 | K152: 0.44083 | L152: 0.5271 | M152: 0.778444 | N152: no
A153: ENSMUSG00000001383.8 | B153: ENSMUSG00000001383.8 | C153: Zmat2 | D153: chr18:36793922-36799660 | E153: WT_U | F153: WT_D | G153: OK | H153: 55.9839 | I153: 51.9992 | J153: -0.1065225649 | K153: 0.623073 | L153: 0.3718 | M153: 0.640407 | N153: no
A154: ENSMUSG00000001403.13 | B154: ENSMUSG00000001403.13 | C154: Ube2c | D154: chr2:164769897-164779967 | E154: WT_U | F154: WT_D | G154: OK | H154: 193.619 | I154: 185.204 | J154: -0.06410527449 | K154: 0.37494 | L154: 0.58455 | M154: 0.819319 | N154: no
A155: ENSMUSG00000001415.10 | B155: ENSMUSG00000001415.10 | C155: Smg5 | D155: chr3:88336259-88362338 | E155: WT_U | F155: WT_D | G155: OK | H155: 51.017 | I155: 47.6719 | J155: -0.09783893903 | K155: 0.391765 | L155: 0.53805 | M155: 0.786776 | N155: no
A156: ENSMUSG00000001416.13 | B156: ENSMUSG00000001416.13 | C156: Cct3 | D156: chr3:88297115-88321767 | E156: WT_U | F156: WT_D | G156: OK | H156: 313.302 | I156: 299.943 | J156: -0.06286561673 | K156: 0.362863 | L156: 0.60395 | M156: 0.831974 | N156: no
A157: ENSMUSG00000001418.13 | B157: ENSMUSG00000001418.13 | C157: Glmp | D157: chr3:88325022-88336148 | E157: WT_U | F157: WT_D | G157: OK | H157: 14.9802 | I157: 16.0642 | J157: 0.1007922508 | K157: -0.357365 | L157: 0.60805 | M157: 0.834741 | N157: no
A158: ENSMUSG00000001419.17 | B158: ENSMUSG00000001419.17 | C158: Mef2d | D158: chr3:88142371-88177785 | E158: WT_U | F158: WT_D | G158: OK | H158: 51.9719 | I158: 43.3618 | J158: -0.2613071564 | K158: 1.0153 | L158: 0.13225 | M158: 0.32829 | N158: no
A159: ENSMUSG00000001420.13 | B159: ENSMUSG00000001420.13 | C159: Tmem79 | D159: chr3:88325022-88336148 | E159: WT_U | F159: WT_D | G159: OK | H159: 1.47683 | I159: 1.29393 | J159: -0.1907441935 | K159: 0.252705 | L159: 0.7204 | M159: 0.898885 | N159: no
A160: ENSMUSG00000001424.14 | B160: ENSMUSG00000001424.14 | C160: Snd1 | D160: chr6:28475138-28935162 | E160: WT_U | F160: WT_D | G160: OK | H160: 326.553 | I160: 374.321 | J160: 0.1969588258 | K160: -0.556785 | L160: 0.4256 | M160: 0.69319 | N160: no
A161: ENSMUSG00000001435.14 | B161: ENSMUSG00000001435.14 | C161: Col18a1 | D161: chr10:77032240-77166548 | E161: WT_U | F161: WT_D | G161: OK | H161: 6.91773 | I161: 6.59965 | J161: -0.06790919033 | K161: 0.133998 | L161: 0.8281 | M161: 0.942986 | N161: no
A162: ENSMUSG00000001436.15 | B162: ENSMUSG00000001436.15 | C162: Slc19a1 | D162: chr10:77032240-77166548 | E162: WT_U | F162: WT_D | G162: OK | H162: 41.8884 | I162: 38.6399 | J162: -0.1164594185 | K162: 0.455624 | L162: 0.5113 | M162: 0.766281 | N162: no
A163: ENSMUSG00000001440.5 | B163: ENSMUSG00000001440.5 | C163: Kpnb1 | D163: chr11:97159713-97187881 | E163: WT_U | F163: WT_D | G163: OK | H163: 353.967 | I163: 321.793 | J163: -0.1374819222 | K163: 0.381735 | L163: 0.58945 | M163: 0.82239 | N163: no
A164: ENSMUSG00000001441.13 | B164: ENSMUSG00000001441.13 | C164: Npepps | D164: chr11:97205841-97282897 | E164: WT_U | F164: WT_D | G164: OK | H164: 46.5239 | I164: 40.0093 | J164: -0.2176366523 | K164: 0.969462 | L164: 0.08375 | M164: 0.236762 | N164: no
A165: ENSMUSG00000001445.10 | B165: ENSMUSG00000001445.10 | C165: Mrpl10 | D165: chr11:97041559-97068904 | E165: WT_U | F165: WT_D | G165: OK | H165: 63.8243 | I165: 63.4591 | J165: -0.008278749228 | K165: 0.0451299 | L165: 0.9463 | M165: 0.980056 | N165: no
A166: ENSMUSG00000001467.5 | B166: ENSMUSG00000001467.5 | C166: Cyp51 | D166: chr5:3928053-4104746 | E166: WT_U | F166: WT_D | G166: OK | H166: 61.444 | I166: 66.6165 | J166: 0.116607419 | K166: -0.486629 | L166: 0.4417 | M166: 0.707374 | N166: no
A167: ENSMUSG00000001473.6 | B167: ENSMUSG00000001473.6 | C167: Tubb6 | D167: chr18:67390716-67402748 | E167: WT_U | F167: WT_D | G167: OK | H167: 95.6769 | I167: 85.7722 | J167: -0.1576605206 | K167: 0.923113 | L167: 0.18835 | M167: 0.417784 | N167: no
A168: ENSMUSG00000001507.16 | B168: ENSMUSG00000001507.16 | C168: Itga3 | D168: chr11:95044473-95076801 | E168: WT_U | F168: WT_D | G168: OK | H168: 2.62183 | I168: 3.55666 | J168: 0.4399489222 | K168: -1.15683 | L168: 0.08745 | M168: 0.244062 | N168: no
A169: ENSMUSG00000001517.14 | B169: ENSMUSG00000001517.14 | C169: Foxm1 | D169: chr6:128362966-128424931 | E169: WT_U | F169: WT_D | G169: OK | H169: 40.1122 | I169: 37.3222 | J169: -0.1040070646 | K169: 0.365136 | L169: 0.5635 | M169: 0.805925 | N169: no
A170: ENSMUSG00000001518.12 | B170: ENSMUSG00000001518.12 | C170: Itfg2 | D170: chr6:128362966-128424931 | E170: WT_U | F170: WT_D | G170: OK | H170: 17.5456 | I170: 20.9769 | J170: 0.257692206 | K170: -0.421006 | L170: 0.4252 | M170: 0.69282 | N170: no
A171: ENSMUSG00000001520.12 | B171: ENSMUSG00000001520.12 | C171: Nrip2 | D171: chr6:128362966-128424931 | E171: WT_U | F171: WT_D | G171: OK | H171: 1.0025 | I171: 4.01111 | J171: 2.000399294 | K171: -1.4046 | L171: 0.02355 | M171: 0.0901261 | N171: no
A172: ENSMUSG00000001521.12 | B172: ENSMUSG00000001521.12 | C172: Tulp3 | D172: chr6:128321160-128355851 | E172: WT_U | F172: WT_D | G172: OK | H172: 18.8635 | I172: 18.6071 | J172: -0.01974416113 | K172: 0.109533 | L172: 0.86765 | M172: 0.955909 | N172: no
A173: ENSMUSG00000001524.14 | B173: ENSMUSG00000001524.14 | C173: Gtf2h4 | D173: chr17:35667729-35673739 | E173: WT_U | F173: WT_D | G173: OK | H173: 16.6867 | I173: 16.7514 | J173: 0.005583001764 | K173: -0.025256 | L173: 0.97085 | M173: 0.987908 | N173: no
A174: ENSMUSG00000001525.10 | B174: ENSMUSG00000001525.10 | C174: Tubb5 | D174: chr17:35833920-35838306 | E174: WT_U | F174: WT_D | G174: OK | H174: 662.41 | I174: 698.71 | J174: 0.07696933591 | K174: -0.376912 | L174: 0.5782 | M174: 0.815128 | N174: no
A175: ENSMUSG00000001552.14 | B175: ENSMUSG00000001552.14 | C175: Jup | D175: chr11:100368957-100397763 | E175: WT_U | F175: WT_D | G175: OK | H175: 25.3887 | I175: 16.809 | J175: -0.5949526269 | K175: 2.27955 | L175: 0.00075 | M175: 0.0051382 | N175: yes
A176: ENSMUSG00000001555.10 | B176: ENSMUSG00000001555.10 | C176: Fkbp10 | D176: chr11:100415696-100441808 | E176: WT_U | F176: WT_D | G176: OK | H176: 3.56799 | I176: 1.95783 | J176: -0.8658560718 | K176: 1.39118 | L176: 0.03265 | M176: 0.116262 | N176: no
A177: ENSMUSG00000001569.10 | B177: ENSMUSG00000001569.10 | C177: Nom1 | D177: chr5:29434663-29457843 | E177: WT_U | F177: WT_D | G177: OK | H177: 14.2489 | I177: 14.3013 | J177: 0.005295746091 | K177: -0.0112483 | L177: 0.98725 | M177: 0.993796 | N177: no
A178: ENSMUSG00000001576.14 | B178: ENSMUSG00000001576.14 | C178: Ergic1 | D178: chr17:26554253-26656931 | E178: WT_U | F178: WT_D | G178: OK | H178: 54.8096 | I178: 57.7064 | J178: 0.07430272568 | K178: -0.363512 | L178: 0.5872 | M178: 0.821057 | N178: no
A179: ENSMUSG00000001622.15 | B179: ENSMUSG00000001622.15 | C179: Csn3 | D179: chr5:87908578-88008534 | E179: WT_U | F179: WT_D | G179: OK | H179: 0 | I179: 1.14601 | K179: -nan | L179: 5e-05 | M179: 0.00046241 | N179: yes
A180: ENSMUSG00000001627.11 | B180: ENSMUSG00000001627.11 | C180: Ifrd1 | D180: chr12:40201566-40248504 | E180: WT_U | F180: WT_D | G180: OK | H180: 195.961 | I180: 193.669 | J180: -0.01697351423 | K180: 0.0642071 | L180: 0.92745 | M180: 0.974249 | N180: no
A181: ENSMUSG00000001630.13 | B181: ENSMUSG00000001630.13 | C181: Stk38l | D181: chr6:146724994-146778812 | E181: WT_U | F181: WT_D | G181: OK | H181: 6.82614 | I181: 6.77098 | J181: -0.01170534569 | K181: 0.0486172 | L181: 0.9385 | M181: 0.977689 | N181: no
A182: ENSMUSG00000001632.16 | B182: ENSMUSG00000001632.16 | C182: Brpf1 | D182: chr6:113307136-113326747 | E182: WT_U | F182: WT_D | G182: OK | H182: 16.3785 | I182: 15.8325 | J182: -0.04891415659 | K182: 0.220379 | L182: 0.71345 | M182: 0.895365 | N182: no
A183: ENSMUSG00000001642.18 | B183: ENSMUSG00000001642.18 | C183: Akr1b3 | D183: chr6:34290264-34324249 | E183: WT_U | F183: WT_D | G183: OK | H183: 107.062 | I183: 80.0163 | J183: -0.4200806844 | K183: 2.4274 | L183: 0.0006 | M183: 0.00423598 | N183: yes
A184: ENSMUSG00000001661.5 | B184: ENSMUSG00000001661.5 | C184: Hoxc6 | D184: chr15:102966795-103017429 | E184: WT_U | F184: WT_D | G184: OK | H184: 12.4652 | I184: 11.6301 | J184: -0.1000425289 | K184: 0.188912 | L184: 0.78845 | M184: 0.928316 | N184: no
A185: ENSMUSG00000001666.8 | B185: ENSMUSG00000001666.8 | C185: Ddt | D185: chr10:75771229-75781414 | E185: WT_U | F185: WT_D | G185: OK | H185: 45.628 | I185: 49.9765 | J185: 0.1313304509 | K185: -0.658387 | L185: 0.3403 | M185: 0.606578 | N185: no
A186: ENSMUSG00000001674.11 | B186: ENSMUSG00000001674.11 | C186: Ddx18 | D186: chr1:121553834-121567989 | E186: WT_U | F186: WT_D | G186: OK | H186: 66.2599 | I186: 63.4296 | J186: -0.06297978182 | K186: 0.257491 | L186: 0.70325 | M186: 0.890427 | N186: no
A187: ENSMUSG00000001687.15 | B187: ENSMUSG00000001687.15 | C187: Ubl3 | D187: chr5:148504634-148552789 | E187: WT_U | F187: WT_D | G187: OK | H187: 28.0803 | I187: 32.2392 | J187: 0.1992575956 | K187: -0.812314 | L187: 0.24005 | M187: 0.487728 | N187: no
A188: ENSMUSG00000001700.9 | B188: ENSMUSG00000001700.9 | C188: Gramd3 | D188: chr18:56432131-56503792 | E188: WT_U | F188: WT_D | G188: OK | H188: 3.85388 | I188: 3.10002 | J188: -0.3140341273 | K188: 1.49928 | L188: 0.0321 | M188: 0.114784 | N188: no
A189: ENSMUSG00000001707.7 | B189: ENSMUSG00000001707.7 | C189: Eef1e1 | D189: chr13:38645697-38659028 | E189: WT_U | F189: WT_D | G189: OK | H189: 59.0932 | I189: 56.7392 | J189: -0.05864631615 | K189: 0.300338 | L189: 0.6654 | M189: 0.869273 | N189: no
A190: ENSMUSG00000001729.14 | B190: ENSMUSG00000001729.14 | C190: Akt1 | D190: chr12:112653820-112674884 | E190: WT_U | F190: WT_D | G190: OK | H190: 56.7996 | I190: 54.1166 | J190: -0.06980956835 | K190: 0.336716 | L190: 0.6106 | M190: 0.836214 | N190: no
A191: ENSMUSG00000001750.15 | B191: ENSMUSG00000001750.15 | C191: Tcirg1 | D191: chr19:3896049-3907133 | E191: WT_U | F191: WT_D | G191: OK | H191: 6.98512 | I191: 4.58489 | J191: -0.6073977791 | K191: 1.83983 | L191: 0.01085 | M191: 0.0486036 | N191: yes
A192: ENSMUSG00000001751.9 | B192: ENSMUSG00000001751.9 | C192: Naglu | D192: chr11:101070011-101077672 | E192: WT_U | F192: WT_D | G192: OK | H192: 12.8944 | I192: 12.5542 | J192: -0.03857454577 | K192: 0.193891 | L192: 0.77715 | M192: 0.923717 | N192: no
A193: ENSMUSG00000001755.12 | B193: ENSMUSG00000001755.12 | C193: Coasy | D193: chr11:101082564-101086619 | E193: WT_U | F193: WT_D | G193: OK | H193: 31.483 | I193: 37.7007 | J193: 0.2600182896 | K193: -1.12476 | L193: 0.10645 | M193: 0.281619 | N193: no
A194: ENSMUSG00000001763.14 | B194: ENSMUSG00000001763.14 | C194: Tspan33 | D194: chr6:29694221-29718559 | E194: WT_U | F194: WT_D | G194: OK | H194: 1.88971 | I194: 2.02109 | J194: =LOG(I194/H194,2) -> 0.09696871542 | K194: -0.422176 | L194: 0.5481 | M194: 0.79455 | N194: no
A195: ENSMUSG00000001767.5 | B195: ENSMUSG00000001767.5 | C195: Crnkl1 | D195: chr2:145917478-146215039 | E195: WT_U | F195: WT_D | G195: OK | H195: 12.5041 | I195: 12.4066 | J195: -0.01129341887 | K195: 0.0483928 | L195: 0.93565 | M195: 0.976831 | N195: no
A196: ENSMUSG00000001774.7 | B196: ENSMUSG00000001774.7 | C196: Chordc1 | D196: chr9:18292266-18314000 | E196: WT_U | F196: WT_D | G196: OK | H196: 53.664 | I196: 63.6541 | J196: 0.246298848 | K196: -1.44099 | L196: 0.03895 | M196: 0.133167 | N196: no
A197: ENSMUSG00000001783.3 | B197: ENSMUSG00000001783.3 | C197: Rtcb | D197: chr10:85927680-85957823 | E197: WT_U | F197: WT_D | G197: OK | H197: 92.5604 | I197: 96.2852 | J197: 0.05691895936 | K197: -0.331195 | L197: 0.63685 | M197: 0.851742 | N197: no
A198: ENSMUSG00000001785.11 | B198: ENSMUSG00000001785.11 | C198: Pwp1 | D198: chr10:85871830-85889096 | E198: WT_U | F198: WT_D | G198: OK | H198: 42.083 | I198: 40.1249 | J198: -0.06873975797 | K198: 0.37696 | L198: 0.59425 | M198: 0.825718 | N198: no
A199: ENSMUSG00000001786.14 | B199: ENSMUSG00000001786.14 | C199: Fbxo7 | D199: chr10:86020440-86051873 | E199: WT_U | F199: WT_D | G199: OK | H199: 8.12284 | I199: 8.26798 | J199: 0.02555067182 | K199: -0.0972132 | L199: 0.8827 | M199: 0.960534 | N199: no
A200: ENSMUSG00000001794.12 | B200: ENSMUSG00000001794.12 | C200: Capns1 | D200: chr7:30186941-30195164 | E200: WT_U | F200: WT_D | G200: OK | H200: 106.36 | I200: 114.598 | J200: 0.1076261836 | K200: -0.575121 | L200: 0.4032 | M200: 0.672123 | N200: no
... 4300 more rows

Sheet Significant
A1: test_id | B1: gene_id | C1: gene | D1: locus | E1: sample_2 | F1: sample_1 | G1: status | H1: value_2 | I1: value_1 | J1: log2(fold_change) | K1: test_stat | L1: p_value | M1: q_value | N1: significant
A2: ENSMUSG00000000056.7 | B2: ENSMUSG00000000056.7 | C2: Narf | D2: chr11:121237252-121255856 | E2: WT_U | F2: WT_D | G2: OK | H2: 6.06142 | I2: 3.54251 | J2: =LOG(I2/H2,2) -> -0.7748838857 | K2: 3.78495 | L2: 5e-05 | M2: 0.00046241 | N2: yes
A3: ENSMUSG00000000093.6 | B3: ENSMUSG00000000093.6 | C3: Tbx2 | D3: chr11:85832550-85841948 | E3: WT_U | F3: WT_D | G3: OK | H3: 11.7553 | I3: 8.92727 | J3: -0.3970203925 | K3: 2.0182 | L3: 0.00365 | M3: 0.0197639 | N3: yes
A4: ENSMUSG00000000120.6 | B4: ENSMUSG00000000120.6 | C4: Ngfr | D4: chr11:95568817-95587735 | E4: WT_U | F4: WT_D | G4: OK | H4: 93.5808 | I4: 74.3631 | J4: -0.3316256484 | K4: 1.93892 | L4: 0.00645 | M4: 0.0317759 | N4: yes
A5: ENSMUSG00000000125.5 | B5: ENSMUSG00000000125.5 | C5: Wnt3 | D5: chr11:103774149-103817957 | E5: WT_U | F5: WT_D | G5: OK | H5: 2.20987 | I5: 3.02174 | J5: 0.4514180291 | K5: -2.13722 | L5: 0.0023 | M5: 0.0133873 | N5: yes
A6: ENSMUSG00000000171.4 | B6: ENSMUSG00000000171.4 | C6: Sdhd | D6: chr9:50596337-50603849 | E6: WT_U | F6: WT_D | G6: OK | H6: 94.7292 | I6: 74.8404 | J6: -0.3399919314 | K6: 1.98507 | L6: 0.0043 | M6: 0.0226542 | N6: yes
A7: ENSMUSG00000000253.12 | B7: ENSMUSG00000000253.12 | C7: Gmpr | D7: chr13:45507443-45546382 | E7: WT_U | F7: WT_D | G7: OK | H7: 8.63107 | I7: 6.25952 | J7: -0.4634873915 | K7: 2.17349 | L7: 0.0013 | M7: 0.00823191 | N7: yes
A8: ENSMUSG00000000278.10 | B8: ENSMUSG00000000278.10 | C8: Scpep1 | D8: chr11:88905927-88955465 | E8: WT_U | F8: WT_D | G8: OK | H8: 58.3994 | I8: 78.6192 | J8: 0.4289281367 | K8: -2.5072 | L8: 0.00035 | M8: 0.00265006 | N8: yes
A9: ENSMUSG00000000290.13 | B9: ENSMUSG00000000290.13 | C9: Itgb2 | D9: chr10:77530251-77565708 | E9: WT_U | F9: WT_D | G9: OK | H9: 0.0855821 | I9: 0.526577 | J9: 2.621263523 | K9: -4.67504 | L9: 5e-05 | M9: 0.00046241 | N9: yes
A10: ENSMUSG00000000308.14 | B10: ENSMUSG00000000308.14 | C10: Ckmt1 | D10: chr2:121357713-121387168 | E10: WT_U | F10: WT_D | G10: OK | H10: 6.75931 | I10: 4.48516 | J10: -0.59171653 | K10: 2.75745 | L10: 5e-05 | M10: 0.00046241 | N10: yes
A11: ENSMUSG00000000386.14 | B11: ENSMUSG00000000386.14 | C11: Mx1 | D11: chr16:97447034-97462907 | E11: WT_U | F11: WT_D | G11: OK | H11: 0.318147 | I11: 1.11825 | J11: 1.813477336 | K11: -5.12957 | L11: 5e-05 | M11: 0.00046241 | N11: yes
A12: ENSMUSG00000000409.14 | B12: ENSMUSG00000000409.14 | C12: Lck | D12: chr4:129548343-129573641 | E12: WT_U | F12: WT_D | G12: OK | H12: 19.7073 | I12: 34.2224 | J12: 0.7962108055 | K12: -2.9677 | L12: 5e-05 | M12: 0.00046241 | N12: yes
A13: ENSMUSG00000000440.12 | B13: ENSMUSG00000000440.12 | C13: Pparg | D13: chr6:115360950-115490399 | E13: WT_U | F13: WT_D | G13: OK | H13: 5.86211 | I13: 10.5055 | J13: 0.8416528825 | K13: -2.49863 | L13: 5e-05 | M13: 0.00046241 | N13: yes
A14: ENSMUSG00000000530.16 | B14: ENSMUSG00000000530.16 | C14: Acvrl1 | D14: chr15:101128521-101145336 | E14: WT_U | F14: WT_D | G14: OK | H14: 0.988849 | I14: 0.247976 | J14: -1.995549736 | K14: 2.36005 | L14: 0.0001 | M14: 0.000870202 | N14: yes
A15: ENSMUSG00000000531.4 | B15: ENSMUSG00000000531.4 | C15: Grasp | D15: chr15:101224206-101232755 | E15: WT_U | F15: WT_D | G15: OK | H15: 9.33606 | I15: 7.04576 | J15: -0.4060584997 | K15: 2.00755 | L15: 0.0052 | M15: 0.0265674 | N15: yes
A16: ENSMUSG00000000555.6 | B16: ENSMUSG00000000555.6 | C16: Itga5 | D16: chr15:103344288-103366763 | E16: WT_U | F16: WT_D | G16: OK | H16: 2.54409 | I16: 1.67039 | J16: -0.6069647283 | K16: 2.90403 | L16: 5e-05 | M16: 0.00046241 | N16: yes
A17: ENSMUSG00000000567.5 | B17: ENSMUSG00000000567.5 | C17: Sox9 | D17: chr11:112782223-112787760 | E17: WT_U | F17: WT_D | G17: OK | H17: 15.9287 | I17: 10.0684 | J17: -0.6617940895 | K17: 3.59119 | L17: 5e-05 | M17: 0.00046241 | N17: yes
A18: ENSMUSG00000000730.13 | B18: ENSMUSG00000000730.13 | C18: Dnmt3l | D18: chr10:78030021-78063622 | E18: WT_U | F18: WT_D | G18: OK | H18: 0.0303538 | I18: 0.570378 | J18: 4.231969293 | K18: -1.8317 | L18: 0.0001 | M18: 0.000870202 | N18: yes
A19: ENSMUSG00000000731.15 | B19: ENSMUSG00000000731.15 | C19: Aire | D19: chr10:78030021-78063622 | E19: WT_U | F19: WT_D | G19: OK | H19: 0.114148 | I19: 0.00498251 | J19: -4.517889071 | K19: 0.701493 | L19: 5e-05 | M19: 0.00046241 | N19: yes
A20: ENSMUSG00000000753.15 | B20: ENSMUSG00000000753.15 | C20: Serpinf1 | D20: chr11:75409768-75422701 | E20: WT_U | F20: WT_D | G20: OK | H20: 14.5589 | I20: 19.7719 | J20: 0.4415501583 | K20: -1.82576 | L20: 0.0085 | M20: 0.0398455 | N20: yes
A21: ENSMUSG00000000792.2 | B21: ENSMUSG00000000792.2 | C21: Slc5a5 | D21: chr8:70882888-70892757 | E21: WT_U | F21: WT_D | G21: OK | H21: 0.416493 | I21: 0.286258 | J21: -0.5409762359 | K21: 1.84194 | L21: 0.00935 | M21: 0.0430664 | N21: yes
A22: ENSMUSG00000000794.9 | B22: ENSMUSG00000000794.9 | C22: Kcnn3 | D22: chr3:89520163-89675132 | E22: WT_U | F22: WT_D | G22: OK | H22: 3.95755 | I22: 1.88747 | J22: -1.068153864 | K22: 4.50227 | L22: 5e-05 | M22: 0.00046241 | N22: yes
A23: ENSMUSG00000000889.8 | B23: ENSMUSG00000000889.8 | C23: Dbh | D23: chr2:27165232-27183200 | E23: WT_U | F23: WT_D | G23: OK | H23: 3.96222 | I23: 2.40962 | J23: -0.7175033376 | K23: 3.13757 | L23: 5e-05 | M23: 0.00046241 | N23: yes
A24: ENSMUSG00000000901.15 | B24: ENSMUSG00000000901.15 | C24: Mmp11 | D24: chr10:75923221-75932502 | E24: WT_U | F24: WT_D | G24: OK | H24: 10.6846 | I24: 18.4633 | J24: 0.7891275344 | K24: -3.49534 | L24: 5e-05 | M24: 0.00046241 | N24: yes
A25: ENSMUSG00000001014.5 | B25: ENSMUSG00000001014.5 | C25: Icam4 | D25: chr9:21029372-21030531 | E25: WT_U | F25: WT_D | G25: OK | H25: 0.64364 | I25: 0.270449 | J25: -1.250897424 | K25: 2.82375 | L25: 0.00095 | M25: 0.00629407 | N25: yes
A26: ENSMUSG00000001020.8 | B26: ENSMUSG00000001020.8 | C26: S100a4 | D26: chr3:90560555-90606045 | E26: WT_U | F26: WT_D | G26: OK | H26: 15.5086 | I26: 4.6188 | J26: -1.747478474 | K26: 6.70341 | L26: 5e-05 | M26: 0.00046241 | N26: yes
A27: ENSMUSG00000001025.8 | B27: ENSMUSG00000001025.8 | C27: S100a6 | D27: chr3:90612881-90624181 | E27: WT_U | F27: WT_D | G27: OK | H27: 92.7309 | I27: 46.9917 | J27: -0.9806441966 | K27: 4.92132 | L27: 5e-05 | M27: 0.00046241 | N27: yes
A28: ENSMUSG00000001029.15 | B28: ENSMUSG00000001029.15 | C28: Icam2 | D28: chr11:106377655-106388075 | E28: WT_U | F28: WT_D | G28: OK | H28: 17.5114 | I28: 13.2851 | J28: -0.3984853415 | K28: 1.90271 | L28: 0.00595 | M28: 0.0296952 | N28: yes
A29: ENSMUSG00000001053.15 | B29: ENSMUSG00000001053.15 | C29: N4bp3 | D29: chr11:51643062-51650842 | E29: WT_U | F29: WT_D | G29: OK | H29: 9.07893 | I29: 6.83426 | J29: -0.4097371441 | K29: 1.94592 | L29: 0.00435 | M29: 0.0228744 | N29: yes
A30: ENSMUSG00000001119.7 | B30: ENSMUSG00000001119.7 | C30: Col6a1 | D30: chr10:76708791-76726168 | E30: WT_U | F30: WT_D | G30: OK | H30: 1.57292 | I30: 0.916479 | J30: -0.7792715673 | K30: 3.50871 | L30: 5e-05 | M30: 0.00046241 | N30: yes
A31: ENSMUSG00000001123.15 | B31: ENSMUSG00000001123.15 | C31: Lgals9 | D31: chr11:78962973-78984946 | E31: WT_U | F31: WT_D | G31: OK | H31: 4.31839 | I31: 3.09666 | J31: -0.4797805511 | K31: 2.17367 | L31: 0.0016 | M31: 0.00983992 | N31: yes
A32: ENSMUSG00000001227.11 | B32: ENSMUSG00000001227.11 | C32: Sema6b | D32: chr17:56123084-56140343 | E32: WT_U | F32: WT_D | G32: OK | H32: 1.33772 | I32: 0.823959 | J32: -0.699131719 | K32: 3.08682 | L32: 5e-05 | M32: 0.00046241 | N32: yes
A33: ENSMUSG00000001334.9 | B33: ENSMUSG00000001334.9 | C33: Fndc5 | D33: chr4:129136998-129144593 | E33: WT_U | F33: WT_D | G33: OK | H33: 4.64354 | I33: 2.39092 | J33: -0.9576592041 | K33: 4.57327 | L33: 5e-05 | M33: 0.00046241 | N33: yes
A34: ENSMUSG00000001349.4 | B34: ENSMUSG00000001349.4 | C34: Cnn1 | D34: chr9:22099280-22109630 | E34: WT_U | F34: WT_D | G34: OK | H34: 0.0802677 | I34: 0.0246628 | J34: -1.702482959 | K34: 2.35539 | L34: 0.0061 | M34: 0.0302974 | N34: yes
A35: ENSMUSG00000001552.14 | B35: ENSMUSG00000001552.14 | C35: Jup | D35: chr11:100368957-100397763 | E35: WT_U | F35: WT_D | G35: OK | H35: 25.3887 | I35: 16.809 | J35: -0.5949526269 | K35: 2.27955 | L35: 0.00075 | M35: 0.0051382 | N35: yes
A36: ENSMUSG00000001604.14 | B36: ENSMUSG00000001604.14 | C36: Tcea3 | D36: chr4:136247728-136274898 | E36: WT_U | F36: WT_D | G36: OK | H36: 1.62799 | I36: 0.881577 | J36: -0.8849333477 | K36: 2.89133 | L36: 0.00015 | M36: 0.00125317 | N36: yes
A37: ENSMUSG00000001622.15 | B37: ENSMUSG00000001622.15 | C37: Csn3 | D37: chr5:87908578-88008534 | E37: WT_U | F37: WT_D | G37: OK | H37: 0 | I37: 1.14601 | K37: -nan | L37: 5e-05 | M37: 0.00046241 | N37: yes
A38: ENSMUSG00000001642.18 | B38: ENSMUSG00000001642.18 | C38: Akr1b3 | D38: chr6:34290264-34324249 | E38: WT_U | F38: WT_D | G38: OK | H38: 107.062 | I38: 80.0163 | J38: -0.4200806844 | K38: 2.4274 | L38: 0.0006 | M38: 0.00423598 | N38: yes
A39: ENSMUSG00000001663.10 | B39: ENSMUSG00000001663.10 | C39: Gstt1 | D39: chr10:75783812-75798584 | E39: WT_U | F39: WT_D | G39: OK | H39: 0.638712 | I39: 0.307914 | J39: -1.052638092 | K39: 2.46071 | L39: 0.0006 | M39: 0.00423598 | N39: yes
A40: ENSMUSG00000001750.15 | B40: ENSMUSG00000001750.15 | C40: Tcirg1 | D40: chr19:3896049-3907133 | E40: WT_U | F40: WT_D | G40: OK | H40: 6.98512 | I40: 4.58489 | J40: -0.6073977791 | K40: 1.83983 | L40: 0.01085 | M40: 0.0486036 | N40: yes
A41: ENSMUSG00000001901.15 | B41: ENSMUSG00000001901.15 | C41: Kcnh6 | D41: chr11:106008123-106034549 | E41: WT_U | F41: WT_D | G41: OK | H41: 0.766494 | I41: 0.444439 | J41: -0.7862890784 | K41: 2.58635 | L41: 0.00035 | M41: 0.00265006 | N41: yes
A42: ENSMUSG00000001911.16 | B42: ENSMUSG00000001911.16 | C42: Nfix | D42: chr8:84699875-84800344 | E42: WT_U | F42: WT_D | G42: OK | H42: 7.06672 | I42: 4.39035 | J42: -0.6867047908 | K42: 2.31094 | L42: 0.0001 | M42: 0.000870202 | N42: yes
A43: ENSMUSG00000001946.13 | B43: ENSMUSG00000001946.13 | C43: Esam | D43: chr9:37528077-37538319 | E43: WT_U | F43: WT_D | G43: OK | H43: 0.641723 | I43: 1.31447 | J43: 1.034458619 | K43: -2.33142 | L43: 0.0015 | M43: 0.00931642 | N43: yes
A44: ENSMUSG00000001999.15 | B44: ENSMUSG00000001999.15 | C44: Blvra | D44: chr2:127070664-127097084 | E44: WT_U | F44: WT_D | G44: OK | H44: 12.4304 | I44: 9.62378 | J44: -0.3691971539 | K44: 1.77983 | L44: 0.0097 | M44: 0.0443624 | N44: yes
A45: ENSMUSG00000002043.16 | B45: ENSMUSG00000002043.16 | C45: Trappc6a | D45: chr7:19508669-19516145 | E45: WT_U | F45: WT_D | G45: OK | H45: 11.1826 | I45: 17.2171 | J45: 0.6225865 | K45: -2.94485 | L45: 5e-05 | M45: 0.00046241 | N45: yes
A46: ENSMUSG00000002228.7 | B46: ENSMUSG00000002228.7 | C46: Ppm1j | D46: chr3:104752726-104786018 | E46: WT_U | F46: WT_D | G46: OK | H46: 0.391898 | I46: 0.780605 | J46: 0.9941144933 | K46: -1.84312 | L46: 0.0076 | M46: 0.0363372 | N46: yes
A47: ENSMUSG00000002233.13 | B47: ENSMUSG00000002233.13 | C47: Rhoc | D47: chr3:104788374-104794459 | E47: WT_U | F47: WT_D | G47: OK | H47: 85.1547 | I47: 159.629 | J47: 0.9065647067 | K47: -4.89825 | L47: 5e-05 | M47: 0.00046241 | N47: yes
A48: ENSMUSG00000002249.17 | B48: ENSMUSG00000002249.17 | C48: Tead3 | D48: chr17:28331670-28350805 | E48: WT_U | F48: WT_D | G48: OK | H48: 3.00794 | I48: 1.11951 | J48: -1.425908374 | K48: 3.61256 | L48: 5e-05 | M48: 0.00046241 | N48: yes
A49: ENSMUSG00000002274.12 | B49: ENSMUSG00000002274.12 | C49: Metrn | D49: chr17:25794570-25985680 | E49: WT_U | F49: WT_D | G49: OK | H49: 24.4544 | I49: 56.3219 | J49: 1.203601936 | K49: -2.06208 | L49: 0.00575 | M49: 0.028858 | N49: yes
A50: ENSMUSG00000002289.15 | B50: ENSMUSG00000002289.15 | C50: Angptl4 | D50: chr17:33773749-33781575 | E50: WT_U | F50: WT_D | G50: OK | H50: 0.0991802 | I50: 0.289772 | J50: 1.546794158 | K50: -2.39038 | L50: 0.0002 | M50: 0.00162246 | N50: yes
A51: ENSMUSG00000002324.7 | B51: ENSMUSG00000002324.7 | C51: Rec8 | D51: chr14:55618036-55625395 | E51: WT_U | F51: WT_D | G51: OK | H51: 4.86691 | I51: 23.3652 | J51: 2.263283385 | K51: -9.1783 | L51: 5e-05 | M51: 0.00046241 | N51: yes
A52: ENSMUSG00000002409.17 | B52: ENSMUSG00000002409.17 | C52: Dyrk1b | D52: chr7:28179468-28187294 | E52: WT_U | F52: WT_D | G52: OK | H52: 2.57112 | I52: 3.85607 | J52: 0.5847342957 | K52: -2.7194 | L52: 0.0001 | M52: 0.000870202 | N52: yes
A53: ENSMUSG00000002602.16 | B53: ENSMUSG00000002602.16 | C53: Axl | D53: chr7:25757272-25788705 | E53: WT_U | F53: WT_D | G53: OK | H53: 0.522676 | I53: 0.21655 | J53: -1.271216743 | K53: 1.85832 | L53: 0.00395 | M53: 0.0211044 | N53: yes
A54: ENSMUSG00000002603.15 | B54: ENSMUSG00000002603.15 | C54: Tgfb1 | D54: chr7:25687001-25705077 | E54: WT_U | F54: WT_D | G54: OK | H54: 5.10246 | I54: 3.62372 | J54: -0.4937214829 | K54: 2.26891 | L54: 0.0009 | M54: 0.00601451 | N54: yes
A55: ENSMUSG00000002661.14 | B55: ENSMUSG00000002661.14 | C55: Alkbh7 | D55: chr17:56997338-56999322 | E55: WT_U | F55: WT_D | G55: OK | H55: 10.6415 | I55: 15.294 | J55: 0.5232642552 | K55: -2.44975 | L55: 0.00055 | M55: 0.00392894 | N55: yes
A56: ENSMUSG00000002771.10 | B56: ENSMUSG00000002771.10 | C56: Grin2d | D56: chr7:45831882-45870928 | E56: WT_U | F56: WT_D | G56: OK | H56: 0.506745 | I56: 0.785742 | J56: 0.6327957295 | K56: -2.6173 | L56: 5e-05 | M56: 0.00046241 | N56: yes
A57: ENSMUSG00000002983.16 | B57: ENSMUSG00000002983.16 | C57: Relb | D57: chr7:19606216-19629438 | E57: WT_U | F57: WT_D | G57: OK | H57: 3.51919 | I57: 2.32221 | J57: -0.5997449643 | K57: 2.59898 | L57: 0.00015 | M57: 0.00125317 | N57: yes
A58: ENSMUSG00000003039.8 | B58: ENSMUSG00000003039.8 | C58: Fam32a | D58: chr8:72219729-72223764 | E58: WT_U | F58: WT_D | G58: OK | H58: 22.6823 | I58: 29.4064 | J58: 0.374563239 | K58: -1.91575 | L58: 0.0055 | M58: 0.0278165 | N58: yes
A59: ENSMUSG00000003123.15 | B59: ENSMUSG00000003123.15 | C59: Lipe | D59: chr7:25376818-25566417 | E59: WT_U | F59: WT_D | G59: OK | H59: 1.63508 | I59: 2.39538 | J59: 0.5508933168 | K59: -1.89118 | L59: 0.0032 | M59: 0.0176662 | N59: yes
A60: ENSMUSG00000003153.10 | B60: ENSMUSG00000003153.10 | C60: Slc2a3 | D60: chr6:122727808-122801640 | E60: WT_U | F60: WT_D | G60: OK | H60: 59.045 | I60: 34.948 | J60: -0.7566050001 | K60: 2.8301 | L60: 5e-05 | M60: 0.00046241 | N60: yes
A61: ENSMUSG00000003411.10 | B61: ENSMUSG00000003411.10 | C61: Rab3b | D61: chr4:108879062-108972077 | E61: WT_U | F61: WT_D | G61: OK | H61: 1.79143 | I61: 1.21006 | J61: -0.5660330871 | K61: 1.89465 | L61: 0.00705 | M61: 0.0341805 | N61: yes
A62: ENSMUSG00000003452.15 | B62: ENSMUSG00000003452.15 | C62: Bicd1 | D62: chr6:149408885-149563329 | E62: WT_U | F62: WT_D | G62: OK | H62: 9.35172 | I62: 16.0703 | J62: 0.7810932216 | K62: -2.95179 | L62: 5e-05 | M62: 0.00046241 | N62: yes
A63: ENSMUSG00000003545.2 | B63: ENSMUSG00000003545.2 | C63: Fosb | D63: chr7:19302720-19310045 | E63: WT_U | F63: WT_D | G63: OK | H63: 0.653901 | I63: 0.44019 | J63: -0.5709458583 | K63: 2.2697 | L63: 0.0009 | M63: 0.00601451 | N63: yes
A64: ENSMUSG00000003948.16 | B64: ENSMUSG00000003948.16 | C64: Mmd | D64: chr11:90187683-90278589 | E64: WT_U | F64: WT_D | G64: OK | H64: 31.7547 | I64: 51.7446 | J64: 0.7044381723 | K64: -4.07592 | L64: 5e-05 | M64: 0.00046241 | N64: yes
A65: ENSMUSG00000003955.7 | B65: ENSMUSG00000003955.7 | C65: Fam162a | D65: chr16:36043843-36071515 | E65: WT_U | F65: WT_D | G65: OK | H65: 78.4314 | I65: 52.128 | J65: -0.5893728438 | K65: 2.98122 | L65: 5e-05 | M65: 0.00046241 | N65: yes
A66: ENSMUSG00000003992.14 | B66: ENSMUSG00000003992.14 | C66: Ssbp2 | D66: chr13:91460282-91786148 | E66: WT_U | F66: WT_D | G66: OK | H66: 71.6707 | I66: 51.7657 | J66: =LOG(I66/H66,2) -> -0.4693869618 | K66: 2.5314 | L66: 0.00035 | M66: 0.00265006 | N66: yes
A67: ENSMUSG00000004031.13 | B67: ENSMUSG00000004031.13 | C67: Brinp2 | D67: chr1:158245268-158356326 | E67: WT_U | F67: WT_D | G67: OK | H67: 3.44905 | I67: 2.65838 | J67: -0.3756516991 | K67: 1.83689 | L67: 0.0082 | M67: 0.0387017 | N67: yes
A68: ENSMUSG00000004035.12 | B68: ENSMUSG00000004035.12 | C68: Gstm7 | D68: chr3:107926333-107931817 | E68: WT_U | F68: WT_D | G68: OK | H68: 0.957406 | I68: 1.53793 | J68: 0.683787087 | K68: -1.83 | L68: 0.0092 | M68: 0.0425044 | N68: yes
A69: ENSMUSG00000004040.16 | B69: ENSMUSG00000004040.16 | C69: Stat3 | D69: chr11:100859350-100939540 | E69: WT_U | F69: WT_D | G69: OK | H69: 26.8421 | I69: 17.9936 | J69: -0.5770136885 | K69: 2.53228 | L69: 5e-05 | M69: 0.00046241 | N69: yes
A70: ENSMUSG00000004044.9 | B70: ENSMUSG00000004044.9 | C70: Ptrf | D70: chr11:100956732-100970887 | E70: WT_U | F70: WT_D | G70: OK | H70: 9.51972 | I70: 5.10068 | J70: -0.9002295471 | K70: 4.37447 | L70: 5e-05 | M70: 0.00046241 | N70: yes
A71: ENSMUSG00000004069.16 | B71: ENSMUSG00000004069.16 | C71: Dnaja3 | D71: chr16:4626132-4707695 | E71: WT_U | F71: WT_D | G71: OK | H71: 35.5186 | I71: 50.6456 | J71: 0.5118622181 | K71: -2.54356 | L71: 0.00035 | M71: 0.00265006 | N71: yes
A72: ENSMUSG00000004105.8 | B72: ENSMUSG00000004105.8 | C72: Angptl2 | D72: chr2:33133416-33371486 | E72: WT_U | F72: WT_D | G72: OK | H72: 4.34188 | I72: 2.21428 | J72: -0.9714821884 | K72: 2.13103 | L72: 0.00315 | M72: 0.0174353 | N72: yes
A73: ENSMUSG00000004266.15 | B73: ENSMUSG00000004266.15 | C73: Ptpn6 | D73: chr6:124720706-124738714 | E73: WT_U | F73: WT_D | G73: OK | H73: 1.04364 | I73: 0.523152 | J73: -0.9963220625 | K73: 2.12211 | L73: 0.00035 | M73: 0.00265006 | N73: yes
A74: ENSMUSG00000004328.15 | B74: ENSMUSG00000004328.15 | C74: Hif3a | D74: chr7:17031506-17062427 | E74: WT_U | F74: WT_D | G74: OK | H74: 0.147139 | I74: 0.0407711 | J74: -1.851560905 | K74: 1.65566 | L74: 0.00015 | M74: 0.00125317 | N74: yes
A75: ENSMUSG00000004558.14 | B75: ENSMUSG00000004558.14 | C75: Ndrg2 | D75: chr14:51905270-51913488 | E75: WT_U | F75: WT_D | G75: OK | H75: 6.16645 | I75: 3.02849 | J75: -1.025841527 | K75: 4.90648 | L75: 5e-05 | M75: 0.00046241 | N75: yes
A76: ENSMUSG00000004562.16 | B76: ENSMUSG00000004562.16 | C76: Arhgef40 | D76: chr14:51984718-52020733 | E76: WT_U | F76: WT_D | G76: OK | H76: 30.4727 | I76: 19.7508 | J76: -0.6256062437 | K76: 1.44455 | L76: 0.0093 | M76: 0.0428893 | N76: yes
A77: ENSMUSG00000004665.10 | B77: ENSMUSG00000004665.10 | C77: Cnn2 | D77: chr10:79988583-79996062 | E77: WT_U | F77: WT_D | G77: OK | H77: 53.2765 | I77: 30.8372 | J77: -0.7888275323 | K77: 4.06303 | L77: 5e-05 | M77: 0.00046241 | N77: yes
A78: ENSMUSG00000004698.9 | B78: ENSMUSG00000004698.9 | C78: Hdac9 | D78: chr12:34371502-34528889 | E78: WT_U | F78: WT_D | G78: OK | H78: 7.47331 | I78: 4.36152 | J78: -0.7769163626 | K78: 3.91314 | L78: 5e-05 | M78: 0.00046241 | N78: yes
A79: ENSMUSG00000004791.6 | B79: ENSMUSG00000004791.6 | C79: Pgf | D79: chr12:85166638-85177296 | E79: WT_U | F79: WT_D | G79: OK | H79: 11.3026 | I79: 5.80653 | J79: -0.9609065147 | K79: 4.66804 | L79: 5e-05 | M79: 0.00046241 | N79: yes
A80: ENSMUSG00000004798.14 | B80: ENSMUSG00000004798.14 | C80: Ulk2 | D80: chr11:61775648-61855073 | E80: WT_U | F80: WT_D | G80: OK | H80: 3.92387 | I80: 5.52389 | J80: 0.4934073457 | K80: -2.15224 | L80: 0.00115 | M80: 0.00741326 | N80: yes
A81: ENSMUSG00000004872.15 | B81: ENSMUSG00000004872.15 | C81: Pax3 | D81: chr1:78101266-78197134 | E81: WT_U | F81: WT_D | G81: OK | H81: 1.54306 | I81: 2.25777 | J81: 0.5491043652 | K81: -2.53734 | L81: 0.00035 | M81: 0.00265006 | N81: yes
A82: ENSMUSG00000005043.13 | B82: ENSMUSG00000005043.13 | C82: Sgsh | D82: chr11:119307767-119355536 | E82: WT_U | F82: WT_D | G82: OK | H82: 6.42148 | I82: 4.19602 | J82: -0.6138842885 | K82: 1.99433 | L82: 0.00515 | M82: 0.0263483 | N82: yes
A83: ENSMUSG00000005054.6 | B83: ENSMUSG00000005054.6 | C83: Cstb | D83: chr10:78425669-78427619 | E83: WT_U | F83: WT_D | G83: OK | H83: 109.971 | I83: 154.44 | J83: 0.4899233327 | K83: -2.65956 | L83: 5e-05 | M83: 0.00046241 | N83: yes
A84: ENSMUSG00000005142.9 | B84: ENSMUSG00000005142.9 | C84: Man2b1 | D84: chr8:85083268-85098739 | E84: WT_U | F84: WT_D | G84: OK | H84: 8.35876 | I84: 6.11862 | J84: -0.4500826355 | K84: 2.28224 | L84: 0.00105 | M84: 0.0068582 | N84: yes
A85: ENSMUSG00000005397.7 | B85: ENSMUSG00000005397.7 | C85: Nid1 | D85: chr13:13437601-13512275 | E85: WT_U | F85: WT_D | G85: OK | H85: 1.83851 | I85: 1.07552 | J85: -0.7735026708 | K85: 3.68681 | L85: 5e-05 | M85: 0.00046241 | N85: yes
A86: ENSMUSG00000005413.7 | B86: ENSMUSG00000005413.7 | C86: Hmox1 | D86: chr8:75093590-75100596 | E86: WT_U | F86: WT_D | G86: OK | H86: 46.7025 | I86: 60.5719 | J86: 0.3751488862 | K86: -2.17251 | L86: 0.0018 | M86: 0.0108711 | N86: yes
A87: ENSMUSG00000005465.8 | B87: ENSMUSG00000005465.8 | C87: Il27ra | D87: chr8:84021470-84042575 | E87: WT_U | F87: WT_D | G87: OK | H87: 2.27397 | I87: 1.43702 | J87: -0.6621330803 | K87: 2.945 | L87: 5e-05 | M87: 0.00046241 | N87: yes
A88: ENSMUSG00000005493.15 | B88: ENSMUSG00000005493.15 | C88: Msh4 | D88: chr3:153857148-153906138 | E88: WT_U | F88: WT_D | G88: OK | H88: 0.111417 | I88: 0.0556419 | J88: -1.001725786 | K88: 1.64849 | L88: 0.01055 | M88: 0.0475189 | N88: yes
A89: ENSMUSG00000005611.15 | B89: ENSMUSG00000005611.15 | C89: Mrvi1 | D89: chr7:110868265-110982461 | E89: WT_U | F89: WT_D | G89: OK | H89: 4.45127 | I89: 2.19494 | J89: -1.020035509 | K89: 2.26549 | L89: 0.00075 | M89: 0.0051382 | N89: yes
A90: ENSMUSG00000005699.15 | B90: ENSMUSG00000005699.15 | C90: Pard6a | D90: chr8:105701153-105703493 | E90: WT_U | F90: WT_D | G90: OK | H90: 9.7679 | I90: 12.7167 | J90: 0.3806040022 | K90: -1.87274 | L90: 0.0067 | M90: 0.0327802 | N90: yes
A91: ENSMUSG00000005803.14 | B91: ENSMUSG00000005803.14 | C91: Sqrdl | D91: chr2:122765236-122809569 | E91: WT_U | F91: WT_D | G91: OK | H91: 0.845315 | I91: 2.18001 | J91: 1.366773797 | K91: -4.1591 | L91: 5e-05 | M91: 0.00046241 | N91: yes
A92: ENSMUSG00000005949.9 | B92: ENSMUSG00000005949.9 | C92: Ctns | D92: chr11:73183595-73199042 | E92: WT_U | F92: WT_D | G92: OK | H92: 2.72872 | I92: 4.34385 | J92: 0.6707499214 | K92: -2.72159 | L92: 0.0002 | M92: 0.00162246 | N92: yes
A93: ENSMUSG00000005951.13 | B93: ENSMUSG00000005951.13 | C93: Shpk | D93: chr11:73199459-73224511 | E93: WT_U | F93: WT_D | G93: OK | H93: 0.540257 | I93: 1.08604 | J93: 1.007359475 | K93: -4.02192 | L93: 5e-05 | M93: 0.00046241 | N93: yes
A94: ENSMUSG00000005958.14 | B94: ENSMUSG00000005958.14 | C94: Ephb3 | D94: chr16:21204754-21223305 | E94: WT_U | F94: WT_D | G94: OK | H94: 0.5128 | I94: 1.04799 | J94: 1.031156784 | K94: -4.29673 | L94: 5e-05 | M94: 0.00046241 | N94: yes
A95: ENSMUSG00000005968.14 | B95: ENSMUSG00000005968.14 | C95: Tuft1 | D95: chr3:94612756-94658872 | E95: WT_U | F95: WT_D | G95: OK | H95: 3.26638 | I95: 2.31753 | J95: -0.4951046247 | K95: 1.88724 | L95: 0.00435 | M95: 0.0228744 | N95: yes
A96: ENSMUSG00000006154.13 | B96: ENSMUSG00000006154.13 | C96: Eps8l1 | D96: chr7:4445696-4480487 | E96: WT_U | F96: WT_D | G96: OK | H96: 0.154645 | I96: 0.0292011 | J96: -2.404865568 | K96: 0.76369 | L96: 0.00175 | M96: 0.0106113 | N96: yes
A97: ENSMUSG00000006219.12 | B97: ENSMUSG00000006219.12 | C97: Fblim1 | D97: chr4:141576061-141606096 | E97: WT_U | F97: WT_D | G97: OK | H97: 2.79847 | I97: 1.67712 | J97: -0.7386523627 | K97: 2.6181 | L97: 5e-05 | M97: 0.00046241 | N97: yes
A98: ENSMUSG00000006235.5 | B98: ENSMUSG00000006235.5 | C98: Epor | D98: chr9:21958898-21963576 | E98: WT_U | F98: WT_D | G98: OK | H98: 1.89892 | I98: 1.01919 | J98: -0.8977560997 | K98: 3.66461 | L98: 5e-05 | M98: 0.00046241 | N98: yes
A99: ENSMUSG00000006304.14 | B99: ENSMUSG00000006304.14 | C99: Arpc2 | D99: chr1:74236083-74268209 | E99: WT_U | F99: WT_D | G99: OK | H99: 482.126 | I99: 375.447 | J99: -0.3608009692 | K99: 2.09134 | L99: 0.0026 | M99: 0.0148564 | N99: yes
A100: ENSMUSG00000006342.14 | B100: ENSMUSG00000006342.14 | C100: Susd2 | D100: chr10:75636618-75644008 | E100: WT_U | F100: WT_D | G100: OK | H100: 0.958184 | I100: 0.382283 | J100: -1.325661678 | K100: 5.10648 | L100: 5e-05 | M100: 0.00046241 | N100: yes
A101: ENSMUSG00000006345.10 | B101: ENSMUSG00000006345.10 | C101: Ggt1 | D101: chr10:75561603-75586200 | E101: WT_U | F101: WT_D | G101: OK | H101: 0.811707 | I101: 0.440423 | J101: -0.882069243 | K101: 1.89145 | L101: 0.0011 | M101: 0.00713086 | N101: yes
A102: ENSMUSG00000006356.10 | B102: ENSMUSG00000006356.10 | C102: Crip2 | D102: chr12:113140235-113145506 | E102: WT_U | F102: WT_D | G102: OK | H102: 125.193 | I102: 79.0683 | J102: -0.6629825866 | K102: 3.60272 | L102: 5e-05 | M102: 0.00046241 | N102: yes
A103: ENSMUSG00000006360.11 | B103: ENSMUSG00000006360.11 | C103: Crip1 | D103: chr12:113146315-113153879 | E103: WT_U | F103: WT_D | G103: OK | H103: 112.455 | I103: 53.4862 | J103: -1.072109194 | K103: 5.27096 | L103: 5e-05 | M103: 0.00046241 | N103: yes
A104: ENSMUSG00000006369.14 | B104: ENSMUSG00000006369.14 | C104: Fbln1 | D104: chr15:85205948-85286535 | E104: WT_U | F104: WT_D | G104: OK | H104: 154.428 | I104: 113.989 | J104: -0.4380397473 | K104: 2.49782 | L104: 0.0005 | M104: 0.00361297 | N104: yes
A105: ENSMUSG00000006411.12 | B105: ENSMUSG00000006411.12 | C105: Pvrl4 | D105: chr1:171370098-171388598 | E105: WT_U | F105: WT_D | G105: OK | H105: 0.951027 | I105: 1.4849 | J105: 0.6428075712 | K105: -2.81713 | L105: 0.0001 | M105: 0.000870202 | N105: yes
A106: ENSMUSG00000006494.11 | B106: ENSMUSG00000006494.11 | C106: Pdk1 | D106: chr2:71873223-71903858 | E106: WT_U | F106: WT_D | G106: OK | H106: 3.18597 | I106: 0.555309 | J106: -2.520369999 | K106: 6.13497 | L106: 5e-05 | M106: 0.00046241 | N106: yes
A107: ENSMUSG00000006546.3 | B107: ENSMUSG00000006546.3 | C107: Cryba2 | D107: chr1:74889933-74893143 | E107: WT_U | F107: WT_D | G107: OK | H107: 0.294133 | I107: 0.803647 | J107: 1.450093285 | K107: -3.115 | L107: 0.0001 | M107: 0.000870202 | N107: yes
A108: ENSMUSG00000006586.15 | B108: ENSMUSG00000006586.15 | C108: Runx1t1 | D108: chr4:13743435-13893649 | E108: WT_U | F108: WT_D | G108: OK | H108: 0.23313 | I108: 0.513749 | J108: 1.139929013 | K108: -2.9251 | L108: 5e-05 | M108: 0.00046241 | N108: yes
A109: ENSMUSG00000006611.14 | B109: ENSMUSG00000006611.14 | C109: Hfe | D109: chr13:23702033-23710854 | E109: WT_U | F109: WT_D | G109: OK | H109: 1.39298 | I109: 2.29787 | J109: 0.7221226368 | K109: -3.03863 | L109: 5e-05 | M109: 0.00046241 | N109: yes
A110: ENSMUSG00000006731.9 | B110: ENSMUSG00000006731.9 | C110: B4galnt1 | D110: chr10:127165155-127172340 | E110: WT_U | F110: WT_D | G110: OK | H110: 8.36895 | I110: 13.0487 | J110: 0.6407875496 | K110: -3.22826 | L110: 5e-05 | M110: 0.00046241 | N110: yes
A111: ENSMUSG00000007682.5 | B111: ENSMUSG00000007682.5 | C111: Dio2 | D111: chr12:90724553-90750693 | E111: WT_U | F111: WT_D | G111: OK | H111: 0.524027 | I111: 0.155667 | J111: -1.751178009 | K111: 6.51334 | L111: 5e-05 | M111: 0.00046241 | N111: yes
A112: ENSMUSG00000007721.5 | B112: ENSMUSG00000007721.5 | C112: Ccdc124 | D112: chr8:70868226-70873490 | E112: WT_U | F112: WT_D | G112: OK | H112: 164.799 | I112: 132.336 | J112: -0.31650191 | K112: 1.85065 | L112: 0.00905 | M112: 0.0419352 | N112: yes
A113: ENSMUSG00000007872.3 | B113: ENSMUSG00000007872.3 | C113: Id3 | D113: chr4:136143496-136145755 | E113: WT_U | F113: WT_D | G113: OK | H113: 27.6497 | I113: 6.59328 | J113: -2.068195572 | K113: 9.52642 | L113: 5e-05 | M113: 0.00046241 | N113: yes
A114: ENSMUSG00000007891.15 | B114: ENSMUSG00000007891.15 | C114: Ctsd | D114: chr7:142325836-142388038 | E114: WT_U | F114: WT_D | G114: OK | H114: 307.515 | I114: 403.091 | J114: 0.3904487877 | K114: -1.92363 | L114: 0.00545 | M114: 0.0276054 | N114: yes
A115: ENSMUSG00000008206.15 | B115: ENSMUSG00000008206.15 | C115: Cers4 | D115: chr8:4493025-4531680 | E115: WT_U | F115: WT_D | G115: OK | H115: 20.0555 | I115: 15.0234 | J115: -0.4167865828 | K115: 1.67088 | L115: 0.0085 | M115: 0.0398455 | N115: yes
A116: ENSMUSG00000008305.18 | B116: ENSMUSG00000008305.18 | C116: Tle1 | D116: chr4:72117141-72200919 | E116: WT_U | F116: WT_D | G116: OK | H116: 6.46521 | I116: 4.62376 | J116: -0.4836307162 | K116: 2.13986 | L116: 0.00145 | M116: 0.00904287 | N116: yes
A117: ENSMUSG00000008348.9 | B117: ENSMUSG00000008348.9 | C117: Ubc | D117: chr5:125385964-125390554 | E117: WT_U | F117: WT_D | G117: OK | H117: 2.82058 | I117: 4.03508 | J117: 0.5166054202 | K117: -2.44967 | L117: 0.00065 | M117: 0.00454161 | N117: yes
A118: ENSMUSG00000008384.8 | B118: ENSMUSG00000008384.8 | C118: Sertad1 | D118: chr7:27486909-27490316 | E118: WT_U | F118: WT_D | G118: OK | H118: 6.99996 | I118: 4.95382 | J118: -0.4988052297 | K118: 2.24481 | L118: 0.00085 | M118: 0.0057262 | N118: yes
A119: ENSMUSG00000008398.14 | B119: ENSMUSG00000008398.14 | C119: Elk3 | D119: chr10:93247413-93311135 | E119: WT_U | F119: WT_D | G119: OK | H119: 18.4049 | I119: 13.1892 | J119: -0.4807328515 | K119: 2.30391 | L119: 0.00095 | M119: 0.00629407 | N119: yes
A120: ENSMUSG00000008590.4 | B120: ENSMUSG00000008590.4 | C120: Htr3b | D120: chr9:48935007-48964990 | E120: WT_U | F120: WT_D | G120: OK | H120: 0.376921 | I120: 0.0504267 | J120: -2.902002455 | K120: 5.80612 | L120: 5e-05 | M120: 0.00046241 | N120: yes
A121: ENSMUSG00000008932.9 | B121: ENSMUSG00000008932.9 | C121: Slc1a7 | D121: chr4:107968331-108013532 | E121: WT_U | F121: WT_D | G121: OK | H121: 0.192033 | I121: 0.325782 | J121: 0.7625526419 | K121: -2.36238 | L121: 0.00095 | M121: 0.00629407 | N121: yes
A122: ENSMUSG00000009097.9 | B122: ENSMUSG00000009097.9 | C122: Tbx1 | D122: chr16:18581712-18586969 | E122: WT_U | F122: WT_D | G122: OK | H122: 2.37015 | I122: 3.52312 | J122: 0.5718752489 | K122: -2.58443 | L122: 0.00045 | M122: 0.00330168 | N122: yes
A123: ENSMUSG00000009378.3 | B123: ENSMUSG00000009378.3 | C123: Slc16a12 | D123: chr19:34668402-34747289 | E123: WT_U | F123: WT_D | G123: OK | H123: 2.47019 | I123: 1.72624 | J123: -0.516988957 | K123: 2.45696 | L123: 0.00055 | M123: 0.00392894 | N123: yes
A124: ENSMUSG00000009394.13 | B124: ENSMUSG00000009394.13 | C124: Syn2 | D124: chr6:115134901-115282006 | E124: WT_U | F124: WT_D | G124: OK | H124: 39.5852 | I124: 24.0289 | J124: -0.7201905345 | K124: 4.09403 | L124: 5e-05 | M124: 0.00046241 | N124: yes
A125: ENSMUSG00000009487.9 | B125: ENSMUSG00000009487.9 | C125: Otog | D125: chr7:46240986-46311434 | E125: WT_U | F125: WT_D | G125: OK | H125: 0.00693951 | I125: 0.135117 | J125: 4.283231594 | K125: -7.34417 | L125: 5e-05 | M125: 0.00046241 | N125: yes
A126: ENSMUSG00000009596.9 | B126: ENSMUSG00000009596.9 | C126: Taf7l | D126: chrX:134460117-134476490 | E126: WT_U | F126: WT_D | G126: OK | H126: 0.100878 | I126: 1.57541 | J126: 3.965043855 | K126: -6.32967 | L126: 5e-05 | M126: 0.00046241 | N126: yes
A127: ENSMUSG00000009633.3 | B127: ENSMUSG00000009633.3 | C127: G0s2 | D127: chr1:193203037-193343878 | E127: WT_U | F127: WT_D | G127: OK | H127: 0.446962 | I127: 3.34443 | J127: 2.903536263 | K127: -7.96867 | L127: 5e-05 | M127: 0.00046241 | N127: yes
A128: ENSMUSG00000009687.14 | B128: ENSMUSG00000009687.14 | C128: Fxyd5 | D128: chr7:31032721-31042481 | E128: WT_U | F128: WT_D | G128: OK | H128: 29.0746 | I128: 18.6335 | J128: -0.6418606571 | K128: 2.86751 | L128: 5e-05 | M128: 0.00046241 | N128: yes
A129: ENSMUSG00000009876.13 | B129: ENSMUSG00000009876.13 | C129: Cox4i2 | D129: chr2:152754172-152765037 | E129: WT_U | F129: WT_D | G129: OK | H129: 6.14946 | I129: 0.564946 | J129: -3.444274849 | K129: 9.90783 | L129: 5e-05 | M129: 0.00046241 | N129: yes
A130: ENSMUSG00000010311.15 | B130: ENSMUSG00000010311.15 | C130: Optc | D130: chr1:133897198-133921414 | E130: WT_U | F130: WT_D | G130: OK | H130: 2.17355 | I130: 7.48742 | J130: =LOG(I130/H130,2) -> 1.7844154 | K130: -7.87822 | L130: 5e-05 | M130: 0.00046241 | N130: yes
A131: ENSMUSG00000010362.9 | B131: ENSMUSG00000010362.9 | C131: Rdm1 | D131: chr11:101627194-101636100 | E131: WT_U | F131: WT_D | G131: OK | H131: 6.58938 | I131: 4.03116 | J131: -0.7089476812 | K131: 2.91113 | L131: 5e-05 | M131: 0.00046241 | N131: yes
A132: ENSMUSG00000010505.15 | B132: ENSMUSG00000010505.15 | C132: Myt1 | D132: chr2:181763331-181827797 | E132: WT_U | F132: WT_D | G132: OK | H132: 21.5016 | I132: 35.7275 | J132: 0.732590947 | K132: -2.5117 | L132: 0.00015 | M132: 0.00125317 | N132: yes
A133: ENSMUSG00000010601.13 | B133: ENSMUSG00000010601.13 | C133: Apol7a | D133: chr15:77388220-77399110 | E133: WT_U | F133: WT_D | G133: OK | H133: 0.527895 | I133: 0.219336 | J133: -1.267108378 | K133: 2.53563 | L133: 5e-05 | M133: 0.00046241 | N133: yes
A134: ENSMUSG00000010609.15 | B134: ENSMUSG00000010609.15 | C134: Psen2 | D134: chr1:180227003-180274963 | E134: WT_U | F134: WT_D | G134: OK | H134: 4.46987 | I134: 6.01212 | J134: 0.4276409321 | K134: -1.9283 | L134: 0.0041 | M134: 0.0217665 | N134: yes
A135: ENSMUSG00000010663.4 | B135: ENSMUSG00000010663.4 | C135: Fads1 | D135: chr19:10182887-10196870 | E135: WT_U | F135: WT_D | G135: OK | H135: 43.7846 | I135: 55.7932 | J135: 0.3496657674 | K135: -2.04785 | L135: 0.0031 | M135: 0.017209 | N135: yes
A136: ENSMUSG00000010797.6 | B136: ENSMUSG00000010797.6 | C136: Wnt2 | D136: chr6:17988939-18030585 | E136: WT_U | F136: WT_D | G136: OK | H136: 0.183543 | I136: 0.635201 | J136: 1.79109509 | K136: -5.34753 | L136: 5e-05 | M136: 0.00046241 | N136: yes
A137: ENSMUSG00000011148.13 | B137: ENSMUSG00000011148.13 | C137: Adssl1 | D137: chr12:112620044-112641354 | E137: WT_U | F137: WT_D | G137: OK | H137: 0.296153 | I137: 0.710164 | J137: 1.261809528 | K137: -3.88029 | L137: 5e-05 | M137: 0.00046241 | N137: yes
A138: ENSMUSG00000011752.6 | B138: ENSMUSG00000011752.6 | C138: Pgam1 | D138: chr19:41911870-41918664 | E138: WT_U | F138: WT_D | G138: OK | H138: 69.0036 | I138: 40.1985 | J138: -0.7795299625 | K138: 4.54542 | L138: 5e-05 | M138: 0.00046241 | N138: yes
A139: ENSMUSG00000011832.15 | B139: ENSMUSG00000011832.15 | C139: Evi5l | D139: chr8:4162521-4217459 | E139: WT_U | F139: WT_D | G139: OK | H139: 8.85725 | I139: 12.3864 | J139: 0.4838261963 | K139: -1.76214 | L139: 0.0061 | M139: 0.0302974 | N139: yes
A140: ENSMUSG00000012017.3 | B140: ENSMUSG00000012017.3 | C140: Scarf2 | D140: chr16:17797281-17808287 | E140: WT_U | F140: WT_D | G140: OK | H140: 5.24754 | I140: 3.35462 | J140: -0.6454919066 | K140: 3.16874 | L140: 5e-05 | M140: 0.00046241 | N140: yes
A141: ENSMUSG00000012396.12 | B141: ENSMUSG00000012396.12 | C141: Nanog | D141: chr6:122707488-122714633 | E141: WT_U | F141: WT_D | G141: OK | H141: 0.101167 | I141: 0.0446777 | J141: -1.179111946 | K141: 1.82145 | L141: 0.0108 | M141: 0.0484229 | N141: yes
A142: ENSMUSG00000012483.4 | B142: ENSMUSG00000012483.4 | C142: Rpa3 | D142: chr6:8255935-8259173 | E142: WT_U | F142: WT_D | G142: OK | H142: 127.267 | I142: 157.448 | J142: 0.3070170509 | K142: -1.78136 | L142: 0.011 | M142: 0.0491371 | N142: yes
A143: ENSMUSG00000012520.10 | B143: ENSMUSG00000012520.10 | C143: Phox2b | D143: chr5:67094398-67099301 | E143: WT_U | F143: WT_D | G143: OK | H143: 49.6153 | I143: 35.1926 | J143: -0.4955129737 | K143: 2.87089 | L143: 5e-05 | M143: 0.00046241 | N143: yes
A144: ENSMUSG00000012889.8 | B144: ENSMUSG00000012889.8 | C144: Podnl1 | D144: chr8:84125988-84132527 | E144: WT_U | F144: WT_D | G144: OK | H144: 0.171212 | I144: 0.0680977 | J144: -1.330105845 | K144: 2.83117 | L144: 0.00055 | M144: 0.00392894 | N144: yes
A145: ENSMUSG00000013076.15 | B145: ENSMUSG00000013076.15 | C145: Amotl1 | D145: chr9:14541965-14615483 | E145: WT_U | F145: WT_D | G145: OK | H145: 0.166371 | I145: 0.273179 | J145: 0.7154426037 | K145: -1.52966 | L145: 0.008 | M145: 0.0379114 | N145: yes
A146: ENSMUSG00000014303.13 | B146: ENSMUSG00000014303.13 | C146: Glis2 | D146: chr16:4594712-4624988 | E146: WT_U | F146: WT_D | G146: OK | H146: 8.64752 | I146: 12.7344 | J146: 0.5583726361 | K146: -1.76496 | L146: 0.0072 | M146: 0.0347681 | N146: yes
A147: ENSMUSG00000014599.10 | B147: ENSMUSG00000014599.10 | C147: Csf1 | D147: chr3:107741047-107760469 | E147: WT_U | F147: WT_D | G147: OK | H147: 7.20777 | I147: 3.59634 | J147: -1.003023555 | K147: 3.50432 | L147: 5e-05 | M147: 0.00046241 | N147: yes
A148: ENSMUSG00000014603.2 | B148: ENSMUSG00000014603.2 | C148: Alx3 | D148: chr3:107595030-107605776 | E148: WT_U | F148: WT_D | G148: OK | H148: 0.0840334 | I148: 0.541077 | J148: 2.686799155 | K148: -5.85479 | L148: 5e-05 | M148: 0.00046241 | N148: yes
A149: ENSMUSG00000014633.15 | B149: ENSMUSG00000014633.15 | C149: Cmc2 | D149: chr8:116888684-116921455 | E149: WT_U | F149: WT_D | G149: OK | H149: 43.3306 | I149: 29.3436 | J149: -0.5623403358 | K149: 2.0944 | L149: 0.00265 | M149: 0.0151033 | N149: yes
A150: ENSMUSG00000014776.6 | B150: ENSMUSG00000014776.6 | C150: Nol3 | D150: chr8:105276446-105289528 | E150: WT_U | F150: WT_D | G150: OK | H150: 8.72049 | I150: 12.8268 | J150: 0.5566801884 | K150: -2.14626 | L150: 0.00295 | M150: 0.016519 | N150: yes
A151: ENSMUSG00000014778.10 | B151: ENSMUSG00000014778.10 | C151: Fhod1 | D151: chr8:105326353-105347953 | E151: WT_U | F151: WT_D | G151: OK | H151: 4.75752 | I151: 2.76638 | J151: -0.7822103775 | K151: 1.86761 | L151: 0.0018 | M151: 0.0108711 | N151: yes
A152: ENSMUSG00000014905.3 | B152: ENSMUSG00000014905.3 | C152: Dnajb9 | D152: chr12:44205896-44210068 | E152: WT_U | F152: WT_D | G152: OK | H152: 23.4465 | I152: 72.1155 | J152: 1.620936797 | K152: -8.81179 | L152: 5e-05 | M152: 0.00046241 | N152: yes
A153: ENSMUSG00000015053.14 | B153: ENSMUSG00000015053.14 | C153: Gata2 | D153: chr6:88193890-88207032 | E153: WT_U | F153: WT_D | G153: OK | H153: 74.1142 | I153: 43.3633 | J153: -0.7732754322 | K153: 2.29348 | L153: 0.0011 | M153: 0.00713086 | N153: yes
A154: ENSMUSG00000015202.13 | B154: ENSMUSG00000015202.13 | C154: Cnksr3 | D154: chr10:7119062-7212237 | E154: WT_U | F154: WT_D | G154: OK | H154: 0.0584299 | I154: 0.127851 | J154: 1.12968472 | K154: -2.36024 | L154: 0.0016 | M154: 0.00983992 | N154: yes
A155: ENSMUSG00000015243.4 | B155: ENSMUSG00000015243.4 | C155: Abca1 | D155: chr4:53030786-53159895 | E155: WT_U | F155: WT_D | G155: OK | H155: 0.609998 | I155: 1.0153 | J155: 0.7350296591 | K155: -3.14171 | L155: 5e-05 | M155: 0.00046241 | N155: yes
A156: ENSMUSG00000015312.8 | B156: ENSMUSG00000015312.8 | C156: Gadd45b | D156: chr10:80930090-80932204 | E156: WT_U | F156: WT_D | G156: OK | H156: 6.13499 | I156: 1.74535 | J156: -1.813544619 | K156: 7.74653 | L156: 5e-05 | M156: 0.00046241 | N156: yes
A157: ENSMUSG00000015396.3 | B157: ENSMUSG00000015396.3 | C157: Cd83 | D157: chr13:43785106-43803130 | E157: WT_U | F157: WT_D | G157: OK | H157: 0.543764 | I157: 0.314954 | J157: -0.7878395067 | K157: 2.55097 | L157: 0.00065 | M157: 0.00454161 | N157: yes
A158: ENSMUSG00000015533.8 | B158: ENSMUSG00000015533.8 | C158: Itga2 | D158: chr13:114835915-114932041 | E158: WT_U | F158: WT_D | G158: OK | H158: 1.38544 | I158: 0.883326 | J158: -0.6493263508 | K158: 2.92424 | L158: 5e-05 | M158: 0.00046241 | N158: yes
A159: ENSMUSG00000015619.10 | B159: ENSMUSG00000015619.10 | C159: Gata3 | D159: chr2:9857077-9890034 | E159: WT_U | F159: WT_D | G159: OK | H159: 5.5008 | I159: 3.76432 | J159: -0.547252175 | K159: 2.50347 | L159: 0.0003 | M159: 0.00231843 | N159: yes
A160: ENSMUSG00000015647.9 | B160: ENSMUSG00000015647.9 | C160: Lama5 | D160: chr2:180176372-180225859 | E160: WT_U | F160: WT_D | G160: OK | H160: 3.42446 | I160: 1.77665 | J160: -0.9467170103 | K160: 4.68504 | L160: 5e-05 | M160: 0.00046241 | N160: yes
A161: ENSMUSG00000015652.9 | B161: ENSMUSG00000015652.9 | C161: Steap1 | D161: chr5:5736316-5749326 | E161: WT_U | F161: WT_D | G161: OK | H161: 0.783652 | I161: 3.02277 | J161: 1.947586172 | K161: -7.1471 | L161: 5e-05 | M161: 0.00046241 | N161: yes
A162: ENSMUSG00000015653.13 | B162: ENSMUSG00000015653.13 | C162: Steap2 | D162: chr5:5664828-5694578 | E162: WT_U | F162: WT_D | G162: OK | H162: 0.0134971 | I162: 0.0856087 | J162: 2.665107957 | K162: -2.44711 | L162: 0.00015 | M162: 0.00125317 | N162: yes
A163: ENSMUSG00000015829.13 | B163: ENSMUSG00000015829.13 | C163: Tnr | D163: chr1:159523768-159931729 | E163: WT_U | F163: WT_D | G163: OK | H163: 0.227891 | I163: 0.815983 | J163: 1.840195146 | K163: -3.54998 | L163: 5e-05 | M163: 0.00046241 | N163: yes
A164: ENSMUSG00000015837.15 | B164: ENSMUSG00000015837.15 | C164: Sqstm1 | D164: chr11:50174443-50210827 | E164: WT_U | F164: WT_D | G164: OK | H164: 190.436 | I164: 396.933 | J164: 1.059589278 | K164: -4.83583 | L164: 5e-05 | M164: 0.00046241 | N164: yes
A165: ENSMUSG00000015839.6 | B165: ENSMUSG00000015839.6 | C165: Nfe2l2 | D165: chr2:75675512-75704641 | E165: WT_U | F165: WT_D | G165: OK | H165: 20.6423 | I165: 28.7123 | J165: 0.4760651751 | K165: -2.54986 | L165: 0.0001 | M165: 0.000870202 | N165: yes
A166: ENSMUSG00000015850.11 | B166: ENSMUSG00000015850.11 | C166: Adamtsl4 | D166: chr3:95676200-95687917 | E166: WT_U | F166: WT_D | G166: OK | H166: 0.262489 | I166: 0.0925412 | J166: -1.504089254 | K166: 1.39465 | L166: 0.00165 | M166: 0.0100954 | N166: yes
A167: ENSMUSG00000015879.8 | B167: ENSMUSG00000015879.8 | C167: Fam184b | D167: chr5:45529704-45645469 | E167: WT_U | F167: WT_D | G167: OK | H167: 0.767584 | I167: 0.298847 | J167: -1.360917579 | K167: 5.2062 | L167: 5e-05 | M167: 0.00046241 | N167: yes
A168: ENSMUSG00000015942.9 | B168: ENSMUSG00000015942.9 | C168: Gtf2ird2 | D168: chr5:134184018-134229625 | E168: WT_U | F168: WT_D | G168: OK | H168: 0.858784 | I168: 1.44015 | J168: 0.7458518669 | K168: -2.02515 | L168: 0.0044 | M168: 0.0230937 | N168: yes
A169: ENSMUSG00000015943.11 | B169: ENSMUSG00000015943.11 | C169: Bola1 | D169: chr3:96196587-96220308 | E169: WT_U | F169: WT_D | G169: OK | H169: 13.3603 | I169: 19.3704 | J169: 0.5359013427 | K169: -2.53536 | L169: 0.00015 | M169: 0.00125317 | N169: yes
A170: ENSMUSG00000016206.6 | B170: ENSMUSG00000016206.6 | C170: H2-M3 | D170: chr17:37270219-37274484 | E170: WT_U | F170: WT_D | G170: OK | H170: 3.36298 | I170: 4.68637 | J170: 0.4787306639 | K170: -2.1798 | L170: 0.00195 | M170: 0.0116367 | N170: yes
A171: ENSMUSG00000016262.14 | B171: ENSMUSG00000016262.14 | C171: Sertad4 | D171: chr1:192844487-192856246 | E171: WT_U | F171: WT_D | G171: OK | H171: 13.5352 | I171: 9.88446 | J171: -0.4534821483 | K171: 1.99257 | L171: 0.0018 | M171: 0.0108711 | N171: yes
A172: ENSMUSG00000016344.14 | B172: ENSMUSG00000016344.14 | C172: Ppdpf | D172: chr2:181187246-181188771 | E172: WT_U | F172: WT_D | G172: OK | H172: 25.0604 | I172: 35.9018 | J172: 0.5186467356 | K172: -2.38305 | L172: 0.0005 | M172: 0.00361297 | N172: yes
A173: ENSMUSG00000016349.10 | B173: ENSMUSG00000016349.10 | C173: Eef1a2 | D173: chr2:181147652-181157014 | E173: WT_U | F173: WT_D | G173: OK | H173: 115.128 | I173: 165.843 | J173: 0.5265793688 | K173: -3.0791 | L173: 5e-05 | M173: 0.00046241 | N173: yes
A174: ENSMUSG00000016528.10 | B174: ENSMUSG00000016528.10 | C174: Mapkapk2 | D174: chr1:131053699-131097826 | E174: WT_U | F174: WT_D | G174: OK | H174: 21.1088 | I174: 14.8656 | J174: -0.5058668723 | K174: 2.53646 | L174: 0.0002 | M174: 0.00162246 | N174: yes
A175: ENSMUSG00000017057.9 | B175: ENSMUSG00000017057.9 | C175: Il13ra1 | D175: chrX:36112109-36171259 | E175: WT_U | F175: WT_D | G175: OK | H175: 2.66133 | I175: 0.935817 | J175: -1.507849071 | K175: 6.88385 | L175: 5e-05 | M175: 0.00046241 | N175: yes
A176: ENSMUSG00000017309.11 | B176: ENSMUSG00000017309.11 | C176: Cd300lg | D176: chr11:102041508-102055620 | E176: WT_U | F176: WT_D | G176: OK | H176: 0.0961182 | I176: 0.0281423 | J176: -1.77206939 | K176: 1.9268 | L176: 0.0028 | M176: 0.0158161 | N176: yes
A177: ENSMUSG00000017311.15 | B177: ENSMUSG00000017311.15 | C177: Pyy | D177: chr11:102106675-102107832 | E177: WT_U | F177: WT_D | G177: OK | H177: 0.106631 | I177: 0.391535 | J177: 1.876514356 | K177: -1.92718 | L177: 0.00985 | M177: 0.0449009 | N177: yes
A178: ENSMUSG00000017314.12 | B178: ENSMUSG00000017314.12 | C178: Mpp2 | D178: chr11:102057014-102088515 | E178: WT_U | F178: WT_D | G178: OK | H178: 12.9441 | I178: 8.95588 | J178: -0.5313875558 | K178: 1.88109 | L178: 0.0006 | M178: 0.00423598 | N178: yes
A179: ENSMUSG00000017390.15 | B179: ENSMUSG00000017390.15 | C179: Aldoc | D179: chr11:78322967-78327781 | E179: WT_U | F179: WT_D | G179: OK | H179: 3.88545 | I179: 2.33922 | J179: -0.7320541452 | K179: 2.92198 | L179: 5e-05 | M179: 0.00046241 | N179: yes
A180: ENSMUSG00000017453.4 | B180: ENSMUSG00000017453.4 | C180: Pipox | D180: chr11:77880614-77894096 | E180: WT_U | F180: WT_D | G180: OK | H180: 1.94439 | I180: 2.92563 | J180: 0.5894297061 | K180: -2.11499 | L180: 0.00205 | M180: 0.0121387 | N180: yes
A181: ENSMUSG00000017491.8 | B181: ENSMUSG00000017491.8 | C181: Rarb | D181: chr14:16430841-16575472 | E181: WT_U | F181: WT_D | G181: OK | H181: 0.0289955 | I181: 0.103804 | J181: 1.839961116 | K181: -3.1133 | L181: 0.0003 | M181: 0.00231843 | N181: yes
A182: ENSMUSG00000017561.16 | B182: ENSMUSG00000017561.16 | C182: Crlf3 | D182: chr11:80046492-80080991 | E182: WT_U | F182: WT_D | G182: OK | H182: 19.8071 | I182: 15.104 | J182: -0.3910869978 | K182: 1.64704 | L182: 0.00985 | M182: 0.0449009 | N182: yes
A183: ENSMUSG00000017692.8 | B183: ENSMUSG00000017692.8 | C183: Rhbdl3 | D183: chr11:80300911-80355955 | E183: WT_U | F183: WT_D | G183: OK | H183: 0.249457 | I183: 0.497995 | J183: 0.997340104 | K183: -3.08566 | L183: 5e-05 | M183: 0.00046241 | N183: yes
A184: ENSMUSG00000017707.9 | B184: ENSMUSG00000017707.9 | C184: Serinc3 | D184: chr2:163623271-163645801 | E184: WT_U | F184: WT_D | G184: OK | H184: 28.0097 | I184: 36.1936 | J184: 0.3698080813 | K184: -2.07249 | L184: 0.0023 | M184: 0.0133873 | N184: yes
A185: ENSMUSG00000018102.4 | B185: ENSMUSG00000018102.4 | C185: Hist1h2bc | D185: chr13:23684198-23692488 | E185: WT_U | F185: WT_D | G185: OK | H185: 26.3343 | I185: 6.86292 | J185: -1.940048669 | K185: 9.00932 | L185: 5e-05 | M185: 0.00046241 | N185: yes
A186: ENSMUSG00000018217.12 | B186: ENSMUSG00000018217.12 | C186: Pmp22 | D186: chr11:63128981-63159547 | E186: WT_U | F186: WT_D | G186: OK | H186: 78.3243 | I186: 37.4056 | J186: -1.066205699 | K186: 6.03787 | L186: 5e-05 | M186: 0.00046241 | N186: yes
A187: ENSMUSG00000018340.13 | B187: ENSMUSG00000018340.13 | C187: Anxa6 | D187: chr11:54979107-55033445 | E187: WT_U | F187: WT_D | G187: OK | H187: 119.756 | I187: 72.0298 | J187: -0.7334321359 | K187: 4.28289 | L187: 5e-05 | M187: 0.00046241 | N187: yes
A188: ENSMUSG00000018387.12 | B188: ENSMUSG00000018387.12 | C188: Shroom1 | D188: chr11:53457204-53467766 | E188: WT_U | F188: WT_D | G188: OK | H188: 0.995213 | I188: 1.42497 | J188: 0.5178543105 | K188: -2.06586 | L188: 0.002 | M188: 0.0118982 | N188: yes
A189: ENSMUSG00000018395.19 | B189: ENSMUSG00000018395.19 | C189: Kif3a | D189: chr11:53567378-53601967 | E189: WT_U | F189: WT_D | G189: OK | H189: 38.0395 | I189: 47.2758 | J189: 0.3136035884 | K189: -1.75697 | L189: 0.01085 | M189: 0.0486036 | N189: yes
A190: ENSMUSG00000018427.7 | B190: ENSMUSG00000018427.7 | C190: Ypel2 | D190: chr11:86936424-86993707 | E190: WT_U | F190: WT_D | G190: OK | H190: 1.50974 | I190: 2.27018 | J190: 0.5885065746 | K190: -2.81457 | L190: 5e-05 | M190: 0.00046241 | N190: yes
A191: ENSMUSG00000018470.8 | B191: ENSMUSG00000018470.8 | C191: Kcnab3 | D191: chr11:69326257-69333042 | E191: WT_U | F191: WT_D | G191: OK | H191: 1.71226 | I191: 1.04344 | J191: -0.7145541411 | K191: 2.78944 | L191: 5e-05 | M191: 0.00046241 | N191: yes
A192: ENSMUSG00000018476.7 | B192: ENSMUSG00000018476.7 | C192: Kdm6b | D192: chr11:69398507-69413675 | E192: WT_U | F192: WT_D | G192: OK | H192: 25.3127 | I192: 33.4172 | J192: 0.4007294543 | K192: -1.88754 | L192: 0.0028 | M192: 0.0158161 | N192: yes
A193: ENSMUSG00000018554.13 | B193: ENSMUSG00000018554.13 | C193: Ybx2 | D193: chr11:69935795-69941605 | E193: WT_U | F193: WT_D | G193: OK | H193: 0.09568 | I193: 0.56955 | J193: 2.573533205 | K193: -3.59999 | L193: 5e-05 | M193: 0.00046241 | N193: yes
A194: ENSMUSG00000018570.17 | B194: ENSMUSG00000018570.17 | C194: 2810408A11Rik | D194: chr11:69897351-69900987 | E194: WT_U | F194: WT_D | G194: OK | H194: 1.67489 | I194: 2.67558 | J194: =LOG(I194/H194,2) -> 0.6757853179 | K194: -2.1049 | L194: 0.0028 | M194: 0.0158161 | N194: yes
A195: ENSMUSG00000018593.12 | B195: ENSMUSG00000018593.12 | C195: Sparc | D195: chr11:55394499-55420080 | E195: WT_U | F195: WT_D | G195: OK | H195: 76.5447 | I195: 30.3888 | J195: -1.332762782 | K195: 7.75725 | L195: 5e-05 | M195: 0.00046241 | N195: yes
A196: ENSMUSG00000018634.10 | B196: ENSMUSG00000018634.10 | C196: Crhr1 | D196: chr11:104132854-104175523 | E196: WT_U | F196: WT_D | G196: OK | H196: 3.3156 | I196: 1.92022 | J196: -0.7879983577 | K196: 3.63487 | L196: 5e-05 | M196: 0.00046241 | N196: yes
A197: ENSMUSG00000018672.15 | B197: ENSMUSG00000018672.15 | C197: Copz2 | D197: chr11:96849869-96861203 | E197: WT_U | F197: WT_D | G197: OK | H197: 12.5589 | I197: 6.41853 | J197: -0.9683952801 | K197: 4.50144 | L197: 5e-05 | M197: 0.00046241 | N197: yes
A198: ENSMUSG00000018770.9 | B198: ENSMUSG00000018770.9 | C198: Atp5g3 | D198: chr2:73908446-73911326 | E198: WT_U | F198: WT_D | G198: OK | H198: 537.802 | I198: 394.554 | J198: -0.4468523545 | K198: 2.60858 | L198: 0.0003 | M198: 0.00231843 | N198: yes
A199: ENSMUSG00000018796.12 | B199: ENSMUSG00000018796.12 | C199: Acsl1 | D199: chr8:46471040-46536051 | E199: WT_U | F199: WT_D | G199: OK | H199: 30.0213 | I199: 38.9897 | J199: 0.3771066035 | K199: -1.83013 | L199: 0.00475 | M199: 0.0246058 | N199: yes
A200: ENSMUSG00000018819.10 | B200: ENSMUSG00000018819.10 | C200: Lsp1 | D200: chr7:142460808-142516009 | E200: WT_U | F200: WT_D | G200: OK | H200: 15.596 | I200: 34.7872 | J200: 1.157380502 | K200: -4.07674 | L200: 5e-05 | M200: 0.00046241 | N200: yes
... 1725 more rows

Sheet 2-fold
A1: test_id | B1: gene_id | C1: gene | D1: locus | E1: sample_2 | F1: sample_1 | G1: status | H1: value_2 | I1: value_1 | J1: log2(fold_change) | K1: test_stat | L1: p_value | M1: q_value | N1: significant
A2: ENSMUSG00000000290.13 | B2: ENSMUSG00000000290.13 | C2: Itgb2 | D2: chr10:77530251-77565708 | E2: WT_U | F2: WT_D | G2: OK | H2: 0.0855821 | I2: 0.526577 | J2: =LOG(I2/H2,2) -> 2.621263523 | K2: -4.67504 | L2: 5e-05 | M2: 0.00046241 | N2: yes
A3: ENSMUSG00000000386.14 | B3: ENSMUSG00000000386.14 | C3: Mx1 | D3: chr16:97447034-97462907 | E3: WT_U | F3: WT_D | G3: OK | H3: 0.318147 | I3: 1.11825 | J3: 1.813477336 | K3: -5.12957 | L3: 5e-05 | M3: 0.00046241 | N3: yes
A4: ENSMUSG00000000530.16 | B4: ENSMUSG00000000530.16 | C4: Acvrl1 | D4: chr15:101128521-101145336 | E4: WT_U | F4: WT_D | G4: OK | H4: 0.988849 | I4: 0.247976 | J4: -1.995549736 | K4: 2.36005 | L4: 0.0001 | M4: 0.000870202 | N4: yes
A5: ENSMUSG00000000730.13 | B5: ENSMUSG00000000730.13 | C5: Dnmt3l | D5: chr10:78030021-78063622 | E5: WT_U | F5: WT_D | G5: OK | H5: 0.0303538 | I5: 0.570378 | J5: 4.231969293 | K5: -1.8317 | L5: 0.0001 | M5: 0.000870202 | N5: yes
A6: ENSMUSG00000000731.15 | B6: ENSMUSG00000000731.15 | C6: Aire | D6: chr10:78030021-78063622 | E6: WT_U | F6: WT_D | G6: OK | H6: 0.114148 | I6: 0.00498251 | J6: -4.517889071 | K6: 0.701493 | L6: 5e-05 | M6: 0.00046241 | N6: yes
A7: ENSMUSG00000000794.9 | B7: ENSMUSG00000000794.9 | C7: Kcnn3 | D7: chr3:89520163-89675132 | E7: WT_U | F7: WT_D | G7: OK | H7: 3.95755 | I7: 1.88747 | J7: -1.068153864 | K7: 4.50227 | L7: 5e-05 | M7: 0.00046241 | N7: yes
A8: ENSMUSG00000001014.5 | B8: ENSMUSG00000001014.5 | C8: Icam4 | D8: chr9:21029372-21030531 | E8: WT_U | F8: WT_D | G8: OK | H8: 0.64364 | I8: 0.270449 | J8: -1.250897424 | K8: 2.82375 | L8: 0.00095 | M8: 0.00629407 | N8: yes
A9: ENSMUSG00000001020.8 | B9: ENSMUSG00000001020.8 | C9: S100a4 | D9: chr3:90560555-90606045 | E9: WT_U | F9: WT_D | G9: OK | H9: 15.5086 | I9: 4.6188 | J9: -1.747478474 | K9: 6.70341 | L9: 5e-05 | M9: 0.00046241 | N9: yes
A10: ENSMUSG00000001349.4 | B10: ENSMUSG00000001349.4 | C10: Cnn1 | D10: chr9:22099280-22109630 | E10: WT_U | F10: WT_D | G10: OK | H10: 0.0802677 | I10: 0.0246628 | J10: -1.702482959 | K10: 2.35539 | L10: 0.0061 | M10: 0.0302974 | N10: yes
A11: ENSMUSG00000001663.10 | B11: ENSMUSG00000001663.10 | C11: Gstt1 | D11: chr10:75783812-75798584 | E11: WT_U | F11: WT_D | G11: OK | H11: 0.638712 | I11: 0.307914 | J11: -1.052638092 | K11: 2.46071 | L11: 0.0006 | M11: 0.00423598 | N11: yes
A12: ENSMUSG00000001946.13 | B12: ENSMUSG00000001946.13 | C12: Esam | D12: chr9:37528077-37538319 | E12: WT_U | F12: WT_D | G12: OK | H12: 0.641723 | I12: 1.31447 | J12: 1.034458619 | K12: -2.33142 | L12: 0.0015 | M12: 0.00931642 | N12: yes
A13: ENSMUSG00000002249.17 | B13: ENSMUSG00000002249.17 | C13: Tead3 | D13: chr17:28331670-28350805 | E13: WT_U | F13: WT_D | G13: OK | H13: 3.00794 | I13: 1.11951 | J13: -1.425908374 | K13: 3.61256 | L13: 5e-05 | M13: 0.00046241 | N13: yes
A14: ENSMUSG00000002274.12 | B14: ENSMUSG00000002274.12 | C14: Metrn | D14: chr17:25794570-25985680 | E14: WT_U | F14: WT_D | G14: OK | H14: 24.4544 | I14: 56.3219 | J14: 1.203601936 | K14: -2.06208 | L14: 0.00575 | M14: 0.028858 | N14: yes
A15: ENSMUSG00000002289.15 | B15: ENSMUSG00000002289.15 | C15: Angptl4 | D15: chr17:33773749-33781575 | E15: WT_U | F15: WT_D | G15: OK | H15: 0.0991802 | I15: 0.289772 | J15: 1.546794158 | K15: -2.39038 | L15: 0.0002 | M15: 0.00162246 | N15: yes
A16: ENSMUSG00000002324.7 | B16: ENSMUSG00000002324.7 | C16: Rec8 | D16: chr14:55618036-55625395 | E16: WT_U | F16: WT_D | G16: OK | H16: 4.86691 | I16: 23.3652 | J16: 2.263283385 | K16: -9.1783 | L16: 5e-05 | M16: 0.00046241 | N16: yes
A17: ENSMUSG00000002602.16 | B17: ENSMUSG00000002602.16 | C17: Axl | D17: chr7:25757272-25788705 | E17: WT_U | F17: WT_D | G17: OK | H17: 0.522676 | I17: 0.21655 | J17: -1.271216743 | K17: 1.85832 | L17: 0.00395 | M17: 0.0211044 | N17: yes
A18: ENSMUSG00000004328.15 | B18: ENSMUSG00000004328.15 | C18: Hif3a | D18: chr7:17031506-17062427 | E18: WT_U | F18: WT_D | G18: OK | H18: 0.147139 | I18: 0.0407711 | J18: -1.851560905 | K18: 1.65566 | L18: 0.00015 | M18: 0.00125317 | N18: yes
A19: ENSMUSG00000004558.14 | B19: ENSMUSG00000004558.14 | C19: Ndrg2 | D19: chr14:51905270-51913488 | E19: WT_U | F19: WT_D | G19: OK | H19: 6.16645 | I19: 3.02849 | J19: -1.025841527 | K19: 4.90648 | L19: 5e-05 | M19: 0.00046241 | N19: yes
A20: ENSMUSG00000005493.15 | B20: ENSMUSG00000005493.15 | C20: Msh4 | D20: chr3:153857148-153906138 | E20: WT_U | F20: WT_D | G20: OK | H20: 0.111417 | I20: 0.0556419 | J20: -1.001725786 | K20: 1.64849 | L20: 0.01055 | M20: 0.0475189 | N20: yes
A21: ENSMUSG00000005611.15 | B21: ENSMUSG00000005611.15 | C21: Mrvi1 | D21: chr7:110868265-110982461 | E21: WT_U | F21: WT_D | G21: OK | H21: 4.45127 | I21: 2.19494 | J21: -1.020035509 | K21: 2.26549 | L21: 0.00075 | M21: 0.0051382 | N21: yes
A22: ENSMUSG00000005803.14 | B22: ENSMUSG00000005803.14 | C22: Sqrdl | D22: chr2:122765236-122809569 | E22: WT_U | F22: WT_D | G22: OK | H22: 0.845315 | I22: 2.18001 | J22: 1.366773797 | K22: -4.1591 | L22: 5e-05 | M22: 0.00046241 | N22: yes
A23: ENSMUSG00000005951.13 | B23: ENSMUSG00000005951.13 | C23: Shpk | D23: chr11:73199459-73224511 | E23: WT_U | F23: WT_D | G23: OK | H23: 0.540257 | I23: 1.08604 | J23: 1.007359475 | K23: -4.02192 | L23: 5e-05 | M23: 0.00046241 | N23: yes
A24: ENSMUSG00000005958.14 | B24: ENSMUSG00000005958.14 | C24: Ephb3 | D24: chr16:21204754-21223305 | E24: WT_U | F24: WT_D | G24: OK | H24: 0.5128 | I24: 1.04799 | J24: 1.031156784 | K24: -4.29673 | L24: 5e-05 | M24: 0.00046241 | N24: yes
A25: ENSMUSG00000006154.13 | B25: ENSMUSG00000006154.13 | C25: Eps8l1 | D25: chr7:4445696-4480487 | E25: WT_U | F25: WT_D | G25: OK | H25: 0.154645 | I25: 0.0292011 | J25: -2.404865568 | K25: 0.76369 | L25: 0.00175 | M25: 0.0106113 | N25: yes
A26: ENSMUSG00000006342.14 | B26: ENSMUSG00000006342.14 | C26: Susd2 | D26: chr10:75636618-75644008 | E26: WT_U | F26: WT_D | G26: OK | H26: 0.958184 | I26: 0.382283 | J26: -1.325661678 | K26: 5.10648 | L26: 5e-05 | M26: 0.00046241 | N26: yes
A27: ENSMUSG00000006360.11 | B27: ENSMUSG00000006360.11 | C27: Crip1 | D27: chr12:113146315-113153879 | E27: WT_U | F27: WT_D | G27: OK | H27: 112.455 | I27: 53.4862 | J27: -1.072109194 | K27: 5.27096 | L27: 5e-05 | M27: 0.00046241 | N27: yes
A28: ENSMUSG00000006494.11 | B28: ENSMUSG00000006494.11 | C28: Pdk1 | D28: chr2:71873223-71903858 | E28: WT_U | F28: WT_D | G28: OK | H28: 3.18597 | I28: 0.555309 | J28: -2.520369999 | K28: 6.13497 | L28: 5e-05 | M28: 0.00046241 | N28: yes
A29: ENSMUSG00000006546.3 | B29: ENSMUSG00000006546.3 | C29: Cryba2 | D29: chr1:74889933-74893143 | E29: WT_U | F29: WT_D | G29: OK | H29: 0.294133 | I29: 0.803647 | J29: 1.450093285 | K29: -3.115 | L29: 0.0001 | M29: 0.000870202 | N29: yes
A30: ENSMUSG00000006586.15 | B30: ENSMUSG00000006586.15 | C30: Runx1t1 | D30: chr4:13743435-13893649 | E30: WT_U | F30: WT_D | G30: OK | H30: 0.23313 | I30: 0.513749 | J30: 1.139929013 | K30: -2.9251 | L30: 5e-05 | M30: 0.00046241 | N30: yes
A31: ENSMUSG00000007682.5 | B31: ENSMUSG00000007682.5 | C31: Dio2 | D31: chr12:90724553-90750693 | E31: WT_U | F31: WT_D | G31: OK | H31: 0.524027 | I31: 0.155667 | J31: -1.751178009 | K31: 6.51334 | L31: 5e-05 | M31: 0.00046241 | N31: yes
A32: ENSMUSG00000007872.3 | B32: ENSMUSG00000007872.3 | C32: Id3 | D32: chr4:136143496-136145755 | E32: WT_U | F32: WT_D | G32: OK | H32: 27.6497 | I32: 6.59328 | J32: -2.068195572 | K32: 9.52642 | L32: 5e-05 | M32: 0.00046241 | N32: yes
A33: ENSMUSG00000008590.4 | B33: ENSMUSG00000008590.4 | C33: Htr3b | D33: chr9:48935007-48964990 | E33: WT_U | F33: WT_D | G33: OK | H33: 0.376921 | I33: 0.0504267 | J33: -2.902002455 | K33: 5.80612 | L33: 5e-05 | M33: 0.00046241 | N33: yes
A34: ENSMUSG00000009487.9 | B34: ENSMUSG00000009487.9 | C34: Otog | D34: chr7:46240986-46311434 | E34: WT_U | F34: WT_D | G34: OK | H34: 0.00693951 | I34: 0.135117 | J34: 4.283231594 | K34: -7.34417 | L34: 5e-05 | M34: 0.00046241 | N34: yes
A35: ENSMUSG00000009596.9 | B35: ENSMUSG00000009596.9 | C35: Taf7l | D35: chrX:134460117-134476490 | E35: WT_U | F35: WT_D | G35: OK | H35: 0.100878 | I35: 1.57541 | J35: 3.965043855 | K35: -6.32967 | L35: 5e-05 | M35: 0.00046241 | N35: yes
A36: ENSMUSG00000009633.3 | B36: ENSMUSG00000009633.3 | C36: G0s2 | D36: chr1:193203037-193343878 | E36: WT_U | F36: WT_D | G36: OK | H36: 0.446962 | I36: 3.34443 | J36: 2.903536263 | K36: -7.96867 | L36: 5e-05 | M36: 0.00046241 | N36: yes
A37: ENSMUSG00000009876.13 | B37: ENSMUSG00000009876.13 | C37: Cox4i2 | D37: chr2:152754172-152765037 | E37: WT_U | F37: WT_D | G37: OK | H37: 6.14946 | I37: 0.564946 | J37: -3.444274849 | K37: 9.90783 | L37: 5e-05 | M37: 0.00046241 | N37: yes
A38: ENSMUSG00000010311.15 | B38: ENSMUSG00000010311.15 | C38: Optc | D38: chr1:133897198-133921414 | E38: WT_U | F38: WT_D | G38: OK | H38: 2.17355 | I38: 7.48742 | J38: 1.7844154 | K38: -7.87822 | L38: 5e-05 | M38: 0.00046241 | N38: yes
A39: ENSMUSG00000010601.13 | B39: ENSMUSG00000010601.13 | C39: Apol7a | D39: chr15:77388220-77399110 | E39: WT_U | F39: WT_D | G39: OK | H39: 0.527895 | I39: 0.219336 | J39: -1.267108378 | K39: 2.53563 | L39: 5e-05 | M39: 0.00046241 | N39: yes
A40: ENSMUSG00000010797.6 | B40: ENSMUSG00000010797.6 | C40: Wnt2 | D40: chr6:17988939-18030585 | E40: WT_U | F40: WT_D | G40: OK | H40: 0.183543 | I40: 0.635201 | J40: 1.79109509 | K40: -5.34753 | L40: 5e-05 | M40: 0.00046241 | N40: yes
A41: ENSMUSG00000011148.13 | B41: ENSMUSG00000011148.13 | C41: Adssl1 | D41: chr12:112620044-112641354 | E41: WT_U | F41: WT_D | G41: OK | H41: 0.296153 | I41: 0.710164 | J41: 1.261809528 | K41: -3.88029 | L41: 5e-05 | M41: 0.00046241 | N41: yes
A42: ENSMUSG00000012396.12 | B42: ENSMUSG00000012396.12 | C42: Nanog | D42: chr6:122707488-122714633 | E42: WT_U | F42: WT_D | G42: OK | H42: 0.101167 | I42: 0.0446777 | J42: -1.179111946 | K42: 1.82145 | L42: 0.0108 | M42: 0.0484229 | N42: yes
A43: ENSMUSG00000012889.8 | B43: ENSMUSG00000012889.8 | C43: Podnl1 | D43: chr8:84125988-84132527 | E43: WT_U | F43: WT_D | G43: OK | H43: 0.171212 | I43: 0.0680977 | J43: -1.330105845 | K43: 2.83117 | L43: 0.00055 | M43: 0.00392894 | N43: yes
A44: ENSMUSG00000014599.10 | B44: ENSMUSG00000014599.10 | C44: Csf1 | D44: chr3:107741047-107760469 | E44: WT_U | F44: WT_D | G44: OK | H44: 7.20777 | I44: 3.59634 | J44: -1.003023555 | K44: 3.50432 | L44: 5e-05 | M44: 0.00046241 | N44: yes
A45: ENSMUSG00000014603.2 | B45: ENSMUSG00000014603.2 | C45: Alx3 | D45: chr3:107595030-107605776 | E45: WT_U | F45: WT_D | G45: OK | H45: 0.0840334 | I45: 0.541077 | J45: 2.686799155 | K45: -5.85479 | L45: 5e-05 | M45: 0.00046241 | N45: yes
A46: ENSMUSG00000014905.3 | B46: ENSMUSG00000014905.3 | C46: Dnajb9 | D46: chr12:44205896-44210068 | E46: WT_U | F46: WT_D | G46: OK | H46: 23.4465 | I46: 72.1155 | J46: 1.620936797 | K46: -8.81179 | L46: 5e-05 | M46: 0.00046241 | N46: yes
A47: ENSMUSG00000015202.13 | B47: ENSMUSG00000015202.13 | C47: Cnksr3 | D47: chr10:7119062-7212237 | E47: WT_U | F47: WT_D | G47: OK | H47: 0.0584299 | I47: 0.127851 | J47: 1.12968472 | K47: -2.36024 | L47: 0.0016 | M47: 0.00983992 | N47: yes
A48: ENSMUSG00000015312.8 | B48: ENSMUSG00000015312.8 | C48: Gadd45b | D48: chr10:80930090-80932204 | E48: WT_U | F48: WT_D | G48: OK | H48: 6.13499 | I48: 1.74535 | J48: -1.813544619 | K48: 7.74653 | L48: 5e-05 | M48: 0.00046241 | N48: yes
A49: ENSMUSG00000015652.9 | B49: ENSMUSG00000015652.9 | C49: Steap1 | D49: chr5:5736316-5749326 | E49: WT_U | F49: WT_D | G49: OK | H49: 0.783652 | I49: 3.02277 | J49: 1.947586172 | K49: -7.1471 | L49: 5e-05 | M49: 0.00046241 | N49: yes
A50: ENSMUSG00000015653.13 | B50: ENSMUSG00000015653.13 | C50: Steap2 | D50: chr5:5664828-5694578 | E50: WT_U | F50: WT_D | G50: OK | H50: 0.0134971 | I50: 0.0856087 | J50: 2.665107957 | K50: -2.44711 | L50: 0.00015 | M50: 0.00125317 | N50: yes
A51: ENSMUSG00000015829.13 | B51: ENSMUSG00000015829.13 | C51: Tnr | D51: chr1:159523768-159931729 | E51: WT_U | F51: WT_D | G51: OK | H51: 0.227891 | I51: 0.815983 | J51: 1.840195146 | K51: -3.54998 | L51: 5e-05 | M51: 0.00046241 | N51: yes
A52: ENSMUSG00000015837.15 | B52: ENSMUSG00000015837.15 | C52: Sqstm1 | D52: chr11:50174443-50210827 | E52: WT_U | F52: WT_D | G52: OK | H52: 190.436 | I52: 396.933 | J52: 1.059589278 | K52: -4.83583 | L52: 5e-05 | M52: 0.00046241 | N52: yes
A53: ENSMUSG00000015850.11 | B53: ENSMUSG00000015850.11 | C53: Adamtsl4 | D53: chr3:95676200-95687917 | E53: WT_U | F53: WT_D | G53: OK | H53: 0.262489 | I53: 0.0925412 | J53: -1.504089254 | K53: 1.39465 | L53: 0.00165 | M53: 0.0100954 | N53: yes
A54: ENSMUSG00000015879.8 | B54: ENSMUSG00000015879.8 | C54: Fam184b | D54: chr5:45529704-45645469 | E54: WT_U | F54: WT_D | G54: OK | H54: 0.767584 | I54: 0.298847 | J54: -1.360917579 | K54: 5.2062 | L54: 5e-05 | M54: 0.00046241 | N54: yes
A55: ENSMUSG00000017057.9 | B55: ENSMUSG00000017057.9 | C55: Il13ra1 | D55: chrX:36112109-36171259 | E55: WT_U | F55: WT_D | G55: OK | H55: 2.66133 | I55: 0.935817 | J55: -1.507849071 | K55: 6.88385 | L55: 5e-05 | M55: 0.00046241 | N55: yes
A56: ENSMUSG00000017309.11 | B56: ENSMUSG00000017309.11 | C56: Cd300lg | D56: chr11:102041508-102055620 | E56: WT_U | F56: WT_D | G56: OK | H56: 0.0961182 | I56: 0.0281423 | J56: -1.77206939 | K56: 1.9268 | L56: 0.0028 | M56: 0.0158161 | N56: yes
A57: ENSMUSG00000017311.15 | B57: ENSMUSG00000017311.15 | C57: Pyy | D57: chr11:102106675-102107832 | E57: WT_U | F57: WT_D | G57: OK | H57: 0.106631 | I57: 0.391535 | J57: 1.876514356 | K57: -1.92718 | L57: 0.00985 | M57: 0.0449009 | N57: yes
A58: ENSMUSG00000017491.8 | B58: ENSMUSG00000017491.8 | C58: Rarb | D58: chr14:16430841-16575472 | E58: WT_U | F58: WT_D | G58: OK | H58: 0.0289955 | I58: 0.103804 | J58: 1.839961116 | K58: -3.1133 | L58: 0.0003 | M58: 0.00231843 | N58: yes
A59: ENSMUSG00000018102.4 | B59: ENSMUSG00000018102.4 | C59: Hist1h2bc | D59: chr13:23684198-23692488 | E59: WT_U | F59: WT_D | G59: OK | H59: 26.3343 | I59: 6.86292 | J59: -1.940048669 | K59: 9.00932 | L59: 5e-05 | M59: 0.00046241 | N59: yes
A60: ENSMUSG00000018217.12 | B60: ENSMUSG00000018217.12 | C60: Pmp22 | D60: chr11:63128981-63159547 | E60: WT_U | F60: WT_D | G60: OK | H60: 78.3243 | I60: 37.4056 | J60: -1.066205699 | K60: 6.03787 | L60: 5e-05 | M60: 0.00046241 | N60: yes
A61: ENSMUSG00000018554.13 | B61: ENSMUSG00000018554.13 | C61: Ybx2 | D61: chr11:69935795-69941605 | E61: WT_U | F61: WT_D | G61: OK | H61: 0.09568 | I61: 0.56955 | J61: 2.573533205 | K61: -3.59999 | L61: 5e-05 | M61: 0.00046241 | N61: yes
A62: ENSMUSG00000018593.12 | B62: ENSMUSG00000018593.12 | C62: Sparc | D62: chr11:55394499-55420080 | E62: WT_U | F62: WT_D | G62: OK | H62: 76.5447 | I62: 30.3888 | J62: -1.332762782 | K62: 7.75725 | L62: 5e-05 | M62: 0.00046241 | N62: yes
A63: ENSMUSG00000018819.10 | B63: ENSMUSG00000018819.10 | C63: Lsp1 | D63: chr7:142460808-142516009 | E63: WT_U | F63: WT_D | G63: OK | H63: 15.596 | I63: 34.7872 | J63: 1.157380502 | K63: -4.07674 | L63: 5e-05 | M63: 0.00046241 | N63: yes
A64: ENSMUSG00000019102.10 | B64: ENSMUSG00000019102.10 | C64: Aldh3a1 | D64: chr11:61207536-61218421 | E64: WT_U | F64: WT_D | G64: OK | H64: 1.18375 | I64: 0.570862 | J64: -1.052150489 | K64: 2.10031 | L64: 0.00285 | M64: 0.0160515 | N64: yes
A65: ENSMUSG00000019732.14 | B65: ENSMUSG00000019732.14 | C65: Calr3 | D65: chr8:72424175-72443870 | E65: WT_U | F65: WT_D | G65: OK | H65: 0.958192 | I65: 2.17702 | J65: 1.183967988 | K65: -4.66221 | L65: 5e-05 | M65: 0.00046241 | N65: yes
A66: ENSMUSG00000019772.4 | B66: ENSMUSG00000019772.4 | C66: Vip | D66: chr10:5639217-5647614 | E66: WT_U | F66: WT_D | G66: OK | H66: 0.554372 | I66: 0.0694988 | J66: =LOG(I66/H66,2) -> -2.995794419 | K66: 5.62005 | L66: 5e-05 | M66: 0.00046241 | N66: yes
A67: ENSMUSG00000019779.14 | B67: ENSMUSG00000019779.14 | C67: Frk | D67: chr10:34483399-34611226 | E67: WT_U | F67: WT_D | G67: OK | H67: 0.134589 | I67: 0.0362856 | J67: -1.891091472 | K67: 4.17571 | L67: 5e-05 | M67: 0.00046241 | N67: yes
A68: ENSMUSG00000019832.3 | B68: ENSMUSG00000019832.3 | C68: Rab32 | D68: chr10:10545010-10558233 | E68: WT_U | F68: WT_D | G68: OK | H68: 6.18864 | I68: 1.91386 | J68: -1.693137102 | K68: 7.84142 | L68: 5e-05 | M68: 0.00046241 | N68: yes
A69: ENSMUSG00000019850.11 | B69: ENSMUSG00000019850.11 | C69: Tnfaip3 | D69: chr10:19000909-19015657 | E69: WT_U | F69: WT_D | G69: OK | H69: 1.18691 | I69: 0.343332 | J69: -1.78953431 | K69: 5.8495 | L69: 5e-05 | M69: 0.00046241 | N69: yes
A70: ENSMUSG00000019906.14 | B70: ENSMUSG00000019906.14 | C70: Lin7a | D70: chr10:107271842-107425143 | E70: WT_U | F70: WT_D | G70: OK | H70: 0.0145426 | I70: 0.198847 | J70: 3.773301667 | K70: -6.74127 | L70: 5e-05 | M70: 0.00046241 | N70: yes
A71: ENSMUSG00000020017.14 | B71: ENSMUSG00000020017.14 | C71: Hal | D71: chr10:93488767-93519304 | E71: WT_U | F71: WT_D | G71: OK | H71: 0.165715 | I71: 0.0710032 | J71: -1.222748246 | K71: 1.49817 | L71: 0.0098 | M71: 0.0447299 | N71: yes
A72: ENSMUSG00000020032.14 | B72: ENSMUSG00000020032.14 | C72: Nuak1 | D72: chr10:84370904-84440597 | E72: WT_U | F72: WT_D | G72: OK | H72: 4.23121 | I72: 1.96071 | J72: -1.109694122 | K72: 5.45405 | L72: 5e-05 | M72: 0.00046241 | N72: yes
A73: ENSMUSG00000020044.13 | B73: ENSMUSG00000020044.13 | C73: Timp3 | D73: chr10:86055124-86498896 | E73: WT_U | F73: WT_D | G73: OK | H73: 2.25725 | I73: 0.830062 | J73: -1.443275207 | K73: 5.42129 | L73: 5e-05 | M73: 0.00046241 | N73: yes
A74: ENSMUSG00000020085.15 | B74: ENSMUSG00000020085.15 | C74: Aifm2 | D74: chr10:61715262-61784147 | E74: WT_U | F74: WT_D | G74: OK | H74: 8.07128 | I74: 17.566 | J74: 1.121916319 | K74: -3.49901 | L74: 5e-05 | M74: 0.00046241 | N74: yes
A75: ENSMUSG00000020160.18 | B75: ENSMUSG00000020160.18 | C75: Meis1 | D75: chr11:18879816-19018985 | E75: WT_U | F75: WT_D | G75: OK | H75: 6.86787 | I75: 17.0811 | J75: 1.314466249 | K75: -6.24953 | L75: 5e-05 | M75: 0.00046241 | N75: yes
A76: ENSMUSG00000020310.8 | B76: ENSMUSG00000020310.8 | C76: Madcam1 | D76: chr10:79664573-79668536 | E76: WT_U | F76: WT_D | G76: OK | H76: 0.665177 | I76: 0.268194 | J76: -1.310461323 | K76: 3.62603 | L76: 5e-05 | M76: 0.00046241 | N76: yes
A77: ENSMUSG00000020435.17 | B77: ENSMUSG00000020435.17 | C77: Osbp2 | D77: chr11:3703730-3863903 | E77: WT_U | F77: WT_D | G77: OK | H77: 0.0217851 | I77: 0.198155 | J77: 3.18521573 | K77: -1.78125 | L77: 0.0059 | M77: 0.0295015 | N77: yes
A78: ENSMUSG00000020583.4 | B78: ENSMUSG00000020583.4 | C78: Matn3 | D78: chr12:8947928-8972028 | E78: WT_U | F78: WT_D | G78: OK | H78: 1.42956 | I78: 0.554278 | J78: -1.366889521 | K78: 5.61764 | L78: 5e-05 | M78: 0.00046241 | N78: yes
A79: ENSMUSG00000020641.15 | B79: ENSMUSG00000020641.15 | C79: Rsad2 | D79: chr12:26442752-26456452 | E79: WT_U | F79: WT_D | G79: OK | H79: 0.278326 | I79: 0.782482 | J79: 1.49128188 | K79: -3.69043 | L79: 5e-05 | M79: 0.00046241 | N79: yes
A80: ENSMUSG00000020644.8 | B80: ENSMUSG00000020644.8 | C80: Id2 | D80: chr12:25093800-25096092 | E80: WT_U | F80: WT_D | G80: OK | H80: 19.5172 | I80: 7.88593 | J80: -1.307393285 | K80: 6.38726 | L80: 5e-05 | M80: 0.00046241 | N80: yes
A81: ENSMUSG00000020682.17 | B81: ENSMUSG00000020682.17 | C81: Mmp28 | D81: chr11:83437676-83463071 | E81: WT_U | F81: WT_D | G81: OK | H81: 0.418186 | I81: 1.06177 | J81: 1.344254615 | K81: -4.47703 | L81: 5e-05 | M81: 0.00046241 | N81: yes
A82: ENSMUSG00000020684.14 | B82: ENSMUSG00000020684.14 | C82: Rasl10b | D82: chr11:83409136-83421039 | E82: WT_U | F82: WT_D | G82: OK | H82: 2.02599 | I82: 5.11587 | J82: 1.336352551 | K82: -6.28209 | L82: 5e-05 | M82: 0.00046241 | N82: yes
A83: ENSMUSG00000020689.4 | B83: ENSMUSG00000020689.4 | C83: Itgb3 | D83: chr11:104607999-104670476 | E83: WT_U | F83: WT_D | G83: OK | H83: 5.04743 | I83: 2.17064 | J83: -1.217428523 | K83: 6.06292 | L83: 5e-05 | M83: 0.00046241 | N83: yes
A84: ENSMUSG00000020717.19 | B84: ENSMUSG00000020717.19 | C84: Pecam1 | D84: chr11:106654216-106750628 | E84: WT_U | F84: WT_D | G84: OK | H84: 2.03678 | I84: 0.994642 | J84: -1.034040901 | K84: 3.6944 | L84: 5e-05 | M84: 0.00046241 | N84: yes
A85: ENSMUSG00000020905.11 | B85: ENSMUSG00000020905.11 | C85: Usp43 | D85: chr11:67854522-67965651 | E85: WT_U | F85: WT_D | G85: OK | H85: 0.564092 | I85: 4.78502 | J85: 3.084522573 | K85: -11.036 | L85: 5e-05 | M85: 0.00046241 | N85: yes
A86: ENSMUSG00000021061.15 | B86: ENSMUSG00000021061.15 | C86: Sptb | D86: chr12:76580487-76710547 | E86: WT_U | F86: WT_D | G86: OK | H86: 0.0527327 | I86: 0.242901 | J86: 2.203598657 | K86: -3.66509 | L86: 5e-05 | M86: 0.00046241 | N86: yes
A87: ENSMUSG00000021070.5 | B87: ENSMUSG00000021070.5 | C87: Bdkrb2 | D87: chr12:105563171-105593071 | E87: WT_U | F87: WT_D | G87: OK | H87: 4.87597 | I87: 10.6954 | J87: 1.133229284 | K87: -5.48138 | L87: 5e-05 | M87: 0.00046241 | N87: yes
A88: ENSMUSG00000021130.7 | B88: ENSMUSG00000021130.7 | C88: Galnt16 | D88: chr12:80518989-80603896 | E88: WT_U | F88: WT_D | G88: OK | H88: 0.0154263 | I88: 0.138744 | J88: 3.168961405 | K88: -4.85555 | L88: 0.0001 | M88: 0.000870202 | N88: yes
A89: ENSMUSG00000021186.8 | B89: ENSMUSG00000021186.8 | C89: Fbln5 | D89: chr12:101746564-101819055 | E89: WT_U | F89: WT_D | G89: OK | H89: 0.0621555 | I89: 0.1667 | J89: 1.423300141 | K89: -4.07056 | L89: 5e-05 | M89: 0.00046241 | N89: yes
A90: ENSMUSG00000021226.7 | B90: ENSMUSG00000021226.7 | C90: Acot2 | D90: chr12:83987860-83993873 | E90: WT_U | F90: WT_D | G90: OK | H90: 2.68788 | I90: 9.52305 | J90: 1.824954977 | K90: -8.74766 | L90: 5e-05 | M90: 0.00046241 | N90: yes
A91: ENSMUSG00000021260.7 | B91: ENSMUSG00000021260.7 | C91: Hhipl1 | D91: chr12:108306269-108328300 | E91: WT_U | F91: WT_D | G91: OK | H91: 0.456108 | I91: 1.04451 | J91: 1.195378925 | K91: -4.56016 | L91: 5e-05 | M91: 0.00046241 | N91: yes
A92: ENSMUSG00000021266.16 | B92: ENSMUSG00000021266.16 | C92: Wars | D92: chr12:108860029-108894174 | E92: WT_U | F92: WT_D | G92: OK | H92: 55.5809 | I92: 127.53 | J92: 1.198175564 | K92: -6.58142 | L92: 5e-05 | M92: 0.00046241 | N92: yes
A93: ENSMUSG00000021340.12 | B93: ENSMUSG00000021340.12 | C93: Gpld1 | D93: chr13:24943151-24990753 | E93: WT_U | F93: WT_D | G93: OK | H93: 0.338502 | I93: 0.719778 | J93: 1.088387649 | K93: -3.74024 | L93: 5e-05 | M93: 0.00046241 | N93: yes
A94: ENSMUSG00000021379.1 | B94: ENSMUSG00000021379.1 | C94: Id4 | D94: chr13:48044230-48264036 | E94: WT_U | F94: WT_D | G94: OK | H94: 8.64697 | I94: 4.21253 | J94: -1.037507723 | K94: 4.953 | L94: 5e-05 | M94: 0.00046241 | N94: yes
A95: ENSMUSG00000021403.2 | B95: ENSMUSG00000021403.2 | C95: Serpinb9b | D95: chr13:33027415-33041884 | E95: WT_U | F95: WT_D | G95: OK | H95: 0.0123285 | I95: 0.0921131 | J95: 2.901409067 | K95: -3.64584 | L95: 0.00135 | M95: 0.00850605 | N95: yes
A96: ENSMUSG00000021439.7 | B96: ENSMUSG00000021439.7 | C96: Ctsq | D96: chr13:61035026-61040631 | E96: WT_U | F96: WT_D | G96: OK | H96: 0.1195 | I96: 0.252895 | J96: 1.081527895 | K96: -2.1083 | L96: 0.00515 | M96: 0.0263483 | N96: yes
A97: ENSMUSG00000021613.8 | B97: ENSMUSG00000021613.8 | C97: Hapln1 | D97: chr13:89540635-89611832 | E97: WT_U | F97: WT_D | G97: OK | H97: 0.25491 | I97: 0.0633282 | J97: -2.009067992 | K97: 4.82167 | L97: 5e-05 | M97: 0.00046241 | N97: yes
A98: ENSMUSG00000021680.7 | B98: ENSMUSG00000021680.7 | C98: Crhbp | D98: chr13:95431370-95444831 | E98: WT_U | F98: WT_D | G98: OK | H98: 0.0956579 | I98: 0.342563 | J98: 1.84041331 | K98: -3.87674 | L98: 5e-05 | M98: 0.00046241 | N98: yes
A99: ENSMUSG00000021685.11 | B99: ENSMUSG00000021685.11 | C99: Otp | D99: chr13:94875601-94885130 | E99: WT_U | F99: WT_D | G99: OK | H99: 0.0977833 | I99: 0.263195 | J99: 1.428472083 | K99: -3.18278 | L99: 5e-05 | M99: 0.00046241 | N99: yes
A100: ENSMUSG00000021708.16 | B100: ENSMUSG00000021708.16 | C100: Rasgrf2 | D100: chr13:91880399-92131656 | E100: WT_U | F100: WT_D | G100: OK | H100: 0.114 | I100: 0.054295 | J100: -1.070142572 | K100: 1.65973 | L100: 0.00565 | M100: 0.0284359 | N100: yes
A101: ENSMUSG00000021751.13 | B101: ENSMUSG00000021751.13 | C101: Acox2 | D101: chr14:8225510-8259353 | E101: WT_U | F101: WT_D | G101: OK | H101: 0.0231544 | I101: 0.431856 | J101: 4.221192056 | K101: -1.67486 | L101: 0.0004 | M101: 0.00298 | N101: yes
A102: ENSMUSG00000021763.16 | B102: ENSMUSG00000021763.16 | C102: BC067074 | D102: chr13:113317083-113379711 | E102: WT_U | F102: WT_D | G102: OK | H102: 0.0207997 | I102: 0.106954 | J102: 2.362355814 | K102: -2.34569 | L102: 0.0005 | M102: 0.00361297 | N102: yes
A103: ENSMUSG00000021765.7 | B103: ENSMUSG00000021765.7 | C103: Fst | D103: chr13:114452261-114458730 | E103: WT_U | F103: WT_D | G103: OK | H103: 3.24853 | I103: 0.76805 | J103: -2.08051489 | K103: 8.8052 | L103: 5e-05 | M103: 0.00046241 | N103: yes
A104: ENSMUSG00000021803.9 | B104: ENSMUSG00000021803.9 | C104: Cdhr1 | D104: chr14:37077849-37098311 | E104: WT_U | F104: WT_D | G104: OK | H104: 0.0507684 | I104: 0.111428 | J104: 1.134109105 | K104: -2.64503 | L104: 0.00095 | M104: 0.00629407 | N104: yes
A105: ENSMUSG00000021822.2 | B105: ENSMUSG00000021822.2 | C105: Plau | D105: chr14:20836661-20843388 | E105: WT_U | F105: WT_D | G105: OK | H105: 0.57856 | I105: 0.277265 | J105: -1.061201071 | K105: 3.46871 | L105: 5e-05 | M105: 0.00046241 | N105: yes
A106: ENSMUSG00000021895.9 | B106: ENSMUSG00000021895.9 | C106: Arhgef3 | D106: chr14:27238038-27403904 | E106: WT_U | F106: WT_D | G106: OK | H106: 8.81127 | I106: 20.4109 | J106: 1.211917918 | K106: -6.55616 | L106: 5e-05 | M106: 0.00046241 | N106: yes
A107: ENSMUSG00000021939.7 | B107: ENSMUSG00000021939.7 | C107: Ctsb | D107: chr14:63122461-63177793 | E107: WT_U | F107: WT_D | G107: OK | H107: 45.9906 | I107: 144.283 | J107: 1.649490401 | K107: -7.93735 | L107: 5e-05 | M107: 0.00046241 | N107: yes
A108: ENSMUSG00000022018.7 | B108: ENSMUSG00000022018.7 | C108: Rgcc | D108: chr14:79288755-79301645 | E108: WT_U | F108: WT_D | G108: OK | H108: 0.49916 | I108: 0.232392 | J108: -1.102941924 | K108: 2.3315 | L108: 0.0036 | M108: 0.0195365 | N108: yes
A109: ENSMUSG00000022037.14 | B109: ENSMUSG00000022037.14 | C109: Clu | D109: chr14:65968482-65981548 | E109: WT_U | F109: WT_D | G109: OK | H109: 4.22774 | I109: 22.6058 | J109: 2.418734413 | K109: -8.58169 | L109: 5e-05 | M109: 0.00046241 | N109: yes
A110: ENSMUSG00000022096.14 | B110: ENSMUSG00000022096.14 | C110: Hr | D110: chr14:70552211-70573548 | E110: WT_U | F110: WT_D | G110: OK | H110: 11.2899 | I110: 3.97985 | J110: -1.504246746 | K110: 2.54366 | L110: 5e-05 | M110: 0.00046241 | N110: yes
A111: ENSMUSG00000022197.15 | B111: ENSMUSG00000022197.15 | C111: Pdzd2 | D111: chr15:12359710-12739924 | E111: WT_U | F111: WT_D | G111: OK | H111: 6.38812 | I111: 2.67736 | J111: -1.254580276 | K111: 3.42073 | L111: 5e-05 | M111: 0.00046241 | N111: yes
A112: ENSMUSG00000022489.5 | B112: ENSMUSG00000022489.5 | C112: Pde1b | D112: chr15:103503297-103530052 | E112: WT_U | F112: WT_D | G112: OK | H112: 0.454652 | I112: 1.20044 | J112: 1.400728693 | K112: -5.5446 | L112: 5e-05 | M112: 0.00046241 | N112: yes
A113: ENSMUSG00000022490.6 | B113: ENSMUSG00000022490.6 | C113: Ppp1r1a | D113: chr15:103530278-103537992 | E113: WT_U | F113: WT_D | G113: OK | H113: 0.407119 | I113: 1.07425 | J113: 1.399807319 | K113: -4.2961 | L113: 5e-05 | M113: 0.00046241 | N113: yes
A114: ENSMUSG00000022676.6 | B114: ENSMUSG00000022676.6 | C114: Snai2 | D114: chr16:14705851-14709395 | E114: WT_U | F114: WT_D | G114: OK | H114: 0.370567 | I114: 1.30608 | J114: 1.817436951 | K114: -6.38343 | L114: 5e-05 | M114: 0.00046241 | N114: yes
A115: ENSMUSG00000022871.12 | B115: ENSMUSG00000022871.12 | C115: Fetub | D115: chr16:22918381-22939766 | E115: WT_U | F115: WT_D | G115: OK | H115: 8.22158 | I115: 19.8585 | J115: 1.272269075 | K115: -6.28282 | L115: 5e-05 | M115: 0.00046241 | N115: yes
A116: ENSMUSG00000022885.15 | B116: ENSMUSG00000022885.15 | C116: St6gal1 | D116: chr16:23175287-23360350 | E116: WT_U | F116: WT_D | G116: OK | H116: 6.16748 | I116: 13.9941 | J116: 1.182065669 | K116: -6.19861 | L116: 5e-05 | M116: 0.00046241 | N116: yes
A117: ENSMUSG00000022887.8 | B117: ENSMUSG00000022887.8 | C117: Masp1 | D117: chr16:23451784-23520590 | E117: WT_U | F117: WT_D | G117: OK | H117: 0.660286 | I117: 1.58091 | J117: 1.259592276 | K117: -5.22985 | L117: 5e-05 | M117: 0.00046241 | N117: yes
A118: ENSMUSG00000022941.8 | B118: ENSMUSG00000022941.8 | C118: Ripply3 | D118: chr16:94328419-94336935 | E118: WT_U | F118: WT_D | G118: OK | H118: 2.34311 | I118: 0.963068 | J118: -1.282715113 | K118: 5.06198 | L118: 5e-05 | M118: 0.00046241 | N118: yes
A119: ENSMUSG00000023045.12 | B119: ENSMUSG00000023045.12 | C119: Soat2 | D119: chr15:102150525-102163474 | E119: WT_U | F119: WT_D | G119: OK | H119: 1.73899 | I119: 4.04323 | J119: 1.217258637 | K119: -5.54447 | L119: 5e-05 | M119: 0.00046241 | N119: yes
A120: ENSMUSG00000023046.6 | B120: ENSMUSG00000023046.6 | C120: Igfbp6 | D120: chr15:102144361-102149511 | E120: WT_U | F120: WT_D | G120: OK | H120: 4.67563 | I120: 16.2539 | J120: 1.79755325 | K120: -8.44061 | L120: 5e-05 | M120: 0.00046241 | N120: yes
A121: ENSMUSG00000023083.7 | B121: ENSMUSG00000023083.7 | C121: H2-M10.2 | D121: chr17:36284226-36286490 | E121: WT_U | F121: WT_D | G121: OK | H121: 0.0227248 | I121: 0.350778 | J121: 3.948218766 | K121: -3.74707 | L121: 0.0065 | M121: 0.0319766 | N121: yes
A122: ENSMUSG00000023439.11 | B122: ENSMUSG00000023439.11 | C122: Gnb3 | D122: chr6:124834239-124840275 | E122: WT_U | F122: WT_D | G122: OK | H122: 2.88546 | I122: 7.19907 | J122: 1.319009215 | K122: -5.22188 | L122: 5e-05 | M122: 0.00046241 | N122: yes
A123: ENSMUSG00000023826.14 | B123: ENSMUSG00000023826.14 | C123: Park2 | D123: chr17:10840383-12063361 | E123: WT_U | F123: WT_D | G123: OK | H123: 0.0262294 | I123: 0.120968 | J123: 2.205368747 | K123: -1.41345 | L123: 0.0045 | M123: 0.023531 | N123: yes
A124: ENSMUSG00000023918.12 | B124: ENSMUSG00000023918.12 | C124: Adgrf4 | D124: chr17:42656890-42692284 | E124: WT_U | F124: WT_D | G124: OK | H124: 2.27913 | I124: 17.242 | J124: 2.919372008 | K124: -13.5685 | L124: 5e-05 | M124: 0.00046241 | N124: yes
A125: ENSMUSG00000024164.15 | B125: ENSMUSG00000024164.15 | C125: C3 | D125: chr17:57203969-57228136 | E125: WT_U | F125: WT_D | G125: OK | H125: 0.0913654 | I125: 0.00549062 | J125: -4.056606949 | K125: 0.521203 | L125: 0.0061 | M125: 0.0302974 | N125: yes
A126: ENSMUSG00000024245.4 | B126: ENSMUSG00000024245.4 | C126: Tmem178 | D126: chr17:80944631-81001816 | E126: WT_U | F126: WT_D | G126: OK | H126: 0.321898 | I126: 1.08041 | J126: 1.74690338 | K126: -5.6087 | L126: 5e-05 | M126: 0.00046241 | N126: yes
A127: ENSMUSG00000024448.14 | B127: ENSMUSG00000024448.14 | C127: H2-M10.1 | D127: chr17:36322857-36326155 | E127: WT_U | F127: WT_D | G127: OK | H127: 0.251912 | I127: 2.95989 | J127: 3.554551809 | K127: -9.71227 | L127: 5e-05 | M127: 0.00046241 | N127: yes
A128: ENSMUSG00000024575.15 | B128: ENSMUSG00000024575.15 | C128: Pde6a | D128: chr18:61220481-61289924 | E128: WT_U | F128: WT_D | G128: OK | H128: 0.305582 | I128: 0.0606623 | J128: -2.332687462 | K128: 3.7905 | L128: 5e-05 | M128: 0.00046241 | N128: yes
A129: ENSMUSG00000024610.14 | B129: ENSMUSG00000024610.14 | C129: Cd74 | D129: chr18:60803847-60812646 | E129: WT_U | F129: WT_D | G129: OK | H129: 9.42522 | I129: 23.0019 | J129: 1.287154837 | K129: -6.36419 | L129: 5e-05 | M129: 0.00046241 | N129: yes
A130: ENSMUSG00000024778.12 | B130: ENSMUSG00000024778.12 | C130: Fas | D130: chr19:34290658-34327770 | E130: WT_U | F130: WT_D | G130: OK | H130: 0.270526 | I130: 0.0759146 | J130: =LOG(I130/H130,2) -> -1.833317978 | K130: 2.81819 | L130: 0.00045 | M130: 0.00330168 | N130: yes
A131: ENSMUSG00000024883.6 | B131: ENSMUSG00000024883.6 | C131: Rin1 | D131: chr19:5050807-5057071 | E131: WT_U | F131: WT_D | G131: OK | H131: 3.41175 | I131: 7.57178 | J131: 1.150120558 | K131: -5.74007 | L131: 5e-05 | M131: 0.00046241 | N131: yes
A132: ENSMUSG00000024985.18 | B132: ENSMUSG00000024985.18 | C132: Tcf7l2 | D132: chr19:55741809-55933654 | E132: WT_U | F132: WT_D | G132: OK | H132: 3.92882 | I132: 1.71577 | J132: -1.1952399 | K132: 3.75873 | L132: 5e-05 | M132: 0.00046241 | N132: yes
A133: ENSMUSG00000025020.11 | B133: ENSMUSG00000025020.11 | C133: Slit1 | D133: chr19:41600256-41743665 | E133: WT_U | F133: WT_D | G133: OK | H133: 2.07178 | I133: 0.727455 | J133: -1.509940901 | K133: 4.81458 | L133: 5e-05 | M133: 0.00046241 | N133: yes
A134: ENSMUSG00000025161.16 | B134: ENSMUSG00000025161.16 | C134: Slc16a3 | D134: chr11:120948479-120960868 | E134: WT_U | F134: WT_D | G134: OK | H134: 163.572 | I134: 68.91 | J134: -1.247140549 | K134: 6.39892 | L134: 5e-05 | M134: 0.00046241 | N134: yes
A135: ENSMUSG00000025225.14 | B135: ENSMUSG00000025225.14 | C135: Nfkb2 | D135: chr19:46304736-46327156 | E135: WT_U | F135: WT_D | G135: OK | H135: 9.72584 | I135: 4.75835 | J135: -1.031361465 | K135: 3.21544 | L135: 5e-05 | M135: 0.00046241 | N135: yes
A136: ENSMUSG00000025355.6 | B136: ENSMUSG00000025355.6 | C136: Mmp19 | D136: chr10:128790952-128804370 | E136: WT_U | F136: WT_D | G136: OK | H136: 0.307218 | I136: 1.69933 | J136: 2.467631391 | K136: -2.85743 | L136: 0.0028 | M136: 0.0158161 | N136: yes
A137: ENSMUSG00000025408.15 | B137: ENSMUSG00000025408.15 | C137: Ddit3 | D137: chr10:127289695-127311786 | E137: WT_U | F137: WT_D | G137: OK | H137: 91.8046 | I137: 196.804 | J137: 1.100121195 | K137: -2.73463 | L137: 0.0003 | M137: 0.00231843 | N137: yes
A138: ENSMUSG00000025429.8 | B138: ENSMUSG00000025429.8 | C138: Pstpip2 | D138: chr18:77793258-77882007 | E138: WT_U | F138: WT_D | G138: OK | H138: 0.187627 | I138: 0.433649 | J138: 1.208660332 | K138: -2.887 | L138: 0.00035 | M138: 0.00265006 | N138: yes
A139: ENSMUSG00000025432.11 | B139: ENSMUSG00000025432.11 | C139: Avil | D139: chr10:127000708-127030840 | E139: WT_U | F139: WT_D | G139: OK | H139: 0.489749 | I139: 9.44207 | J139: 4.268988727 | K139: -3.42753 | L139: 5e-05 | M139: 0.00046241 | N139: yes
A140: ENSMUSG00000025492.6 | B140: ENSMUSG00000025492.6 | C140: Ifitm3 | D140: chr7:141009585-141010770 | E140: WT_U | F140: WT_D | G140: OK | H140: 6.13744 | I140: 2.89236 | J140: -1.085389886 | K140: 4.31329 | L140: 5e-05 | M140: 0.00046241 | N140: yes
A141: ENSMUSG00000025551.13 | B141: ENSMUSG00000025551.13 | C141: Fgf14 | D141: chr14:123977906-124677127 | E141: WT_U | F141: WT_D | G141: OK | H141: 0.308027 | I141: 0.628774 | J141: 1.029484748 | K141: -3.78089 | L141: 5e-05 | M141: 0.00046241 | N141: yes
A142: ENSMUSG00000025582.4 | B142: ENSMUSG00000025582.4 | C142: Nptx1 | D142: chr11:119538718-119547753 | E142: WT_U | F142: WT_D | G142: OK | H142: 1.08949 | I142: 0.440325 | J142: -1.307012292 | K142: 5.6543 | L142: 5e-05 | M142: 0.00046241 | N142: yes
A143: ENSMUSG00000025592.17 | B143: ENSMUSG00000025592.17 | C143: Dach2 | D143: chrX:113297509-113836386 | E143: WT_U | F143: WT_D | G143: OK | H143: 0.277757 | I143: 1.44344 | J143: 2.377615964 | K143: -8.21313 | L143: 5e-05 | M143: 0.00046241 | N143: yes
A144: ENSMUSG00000025888.5 | B144: ENSMUSG00000025888.5 | C144: Casp1 | D144: chr9:5298516-5307265 | E144: WT_U | F144: WT_D | G144: OK | H144: 0.0957909 | I144: 0.287908 | J144: 1.587647364 | K144: -3.09549 | L144: 0.0003 | M144: 0.00231843 | N144: yes
A145: ENSMUSG00000025934.15 | B145: ENSMUSG00000025934.15 | C145: Gsta3 | D145: chr1:21240588-21271593 | E145: WT_U | F145: WT_D | G145: OK | H145: 0.018645 | I145: 0.255836 | J145: 3.778358585 | K145: -1.81047 | L145: 0.0086 | M145: 0.0402202 | N145: yes
A146: ENSMUSG00000025993.10 | B146: ENSMUSG00000025993.10 | C146: Slc40a1 | D146: chr1:45908067-45926523 | E146: WT_U | F146: WT_D | G146: OK | H146: 1.06281 | I146: 2.17006 | J146: 1.029851225 | K146: -2.5175 | L146: 0.0004 | M146: 0.00298 | N146: yes
A147: ENSMUSG00000026193.15 | B147: ENSMUSG00000026193.15 | C147: Fn1 | D147: chr1:71585519-71662843 | E147: WT_U | F147: WT_D | G147: OK | H147: 161.083 | I147: 64.8751 | J147: -1.312067484 | K147: 4.84245 | L147: 5e-05 | M147: 0.00046241 | N147: yes
A148: ENSMUSG00000026220.6 | B148: ENSMUSG00000026220.6 | C148: Slc16a14 | D148: chr1:84905897-84935134 | E148: WT_U | F148: WT_D | G148: OK | H148: 0.748486 | I148: 1.9654 | J148: 1.392775724 | K148: -3.16151 | L148: 5e-05 | M148: 0.00046241 | N148: yes
A149: ENSMUSG00000026305.15 | B149: ENSMUSG00000026305.15 | C149: Lrrfip1 | D149: chr1:90998736-91128944 | E149: WT_U | F149: WT_D | G149: OK | H149: 0.234814 | I149: 1.2945 | J149: 2.462804633 | K149: -5.68185 | L149: 5e-05 | M149: 0.00046241 | N149: yes
A150: ENSMUSG00000026360.9 | B150: ENSMUSG00000026360.9 | C150: Rgs2 | D150: chr1:143999337-144004161 | E150: WT_U | F150: WT_D | G150: OK | H150: 0.172483 | I150: 0.0417834 | J150: -2.045452379 | K150: 1.50692 | L150: 0.00615 | M150: 0.030511 | N150: yes
A151: ENSMUSG00000026380.10 | B151: ENSMUSG00000026380.10 | C151: Tfcp2l1 | D151: chr1:118627944-118685168 | E151: WT_U | F151: WT_D | G151: OK | H151: 0.0703532 | I151: 0.576089 | J151: 3.03360376 | K151: -7.11669 | L151: 5e-05 | M151: 0.00046241 | N151: yes
A152: ENSMUSG00000026414.13 | B152: ENSMUSG00000026414.13 | C152: Tnnt2 | D152: chr1:135836353-135852260 | E152: WT_U | F152: WT_D | G152: OK | H152: 13.0786 | I152: 2.84647 | J152: -2.199962316 | K152: 9.51677 | L152: 5e-05 | M152: 0.00046241 | N152: yes
A153: ENSMUSG00000026421.14 | B153: ENSMUSG00000026421.14 | C153: Csrp1 | D153: chr1:135720060-135752232 | E153: WT_U | F153: WT_D | G153: OK | H153: 105.66 | I153: 49.016 | J153: -1.108104653 | K153: 6.47403 | L153: 5e-05 | M153: 0.00046241 | N153: yes
A154: ENSMUSG00000026456.18 | B154: ENSMUSG00000026456.18 | C154: Cyb5r1 | D154: chr1:134405558-134411740 | E154: WT_U | F154: WT_D | G154: OK | H154: 47.0568 | I154: 118.743 | J154: 1.335367346 | K154: -6.51365 | L154: 5e-05 | M154: 0.00046241 | N154: yes
A155: ENSMUSG00000026471.14 | B155: ENSMUSG00000026471.14 | C155: Mr1 | D155: chr1:155127276-155146814 | E155: WT_U | F155: WT_D | G155: OK | H155: 1.93235 | I155: 0.914865 | J155: -1.078725652 | K155: 4.19698 | L155: 5e-05 | M155: 0.00046241 | N155: yes
A156: ENSMUSG00000026480.12 | B156: ENSMUSG00000026480.12 | C156: Ncf2 | D156: chr1:152800193-152836991 | E156: WT_U | F156: WT_D | G156: OK | H156: 0.33239 | I156: 0.740403 | J156: 1.155433762 | K156: -1.78662 | L156: 0.00855 | M156: 0.0400349 | N156: yes
A157: ENSMUSG00000026483.13 | B157: ENSMUSG00000026483.13 | C157: Fam129a | D157: chr1:151571185-151721939 | E157: WT_U | F157: WT_D | G157: OK | H157: 6.52539 | I157: 24.2048 | J157: 1.891157139 | K157: -5.4088 | L157: 5e-05 | M157: 0.00046241 | N157: yes
A158: ENSMUSG00000026494.12 | B158: ENSMUSG00000026494.12 | C158: Kif26b | D158: chr1:178529124-178939200 | E158: WT_U | F158: WT_D | G158: OK | H158: 0.110346 | I158: 0.0520309 | J158: -1.084593766 | K158: 2.79189 | L158: 0.0002 | M158: 0.00162246 | N158: yes
A159: ENSMUSG00000026548.4 | B159: ENSMUSG00000026548.4 | C159: Slamf9 | D159: chr1:172475357-172478575 | E159: WT_U | F159: WT_D | G159: OK | H159: 0.414588 | I159: 1.35879 | J159: 1.712572242 | K159: -5.42772 | L159: 5e-05 | M159: 0.00046241 | N159: yes
A160: ENSMUSG00000026628.13 | B160: ENSMUSG00000026628.13 | C160: Atf3 | D160: chr1:191170295-191218039 | E160: WT_U | F160: WT_D | G160: OK | H160: 15.7852 | I160: 36.7732 | J160: 1.220082185 | K160: -4.31669 | L160: 5e-05 | M160: 0.00046241 | N160: yes
A161: ENSMUSG00000026639.18 | B161: ENSMUSG00000026639.18 | C161: Lamb3 | D161: chr1:193203037-193343878 | E161: WT_U | F161: WT_D | G161: OK | H161: 0.00398906 | I161: 0.160147 | J161: 5.327204139 | K161: -0.298446 | L161: 0.0012 | M161: 0.00768809 | N161: yes
A162: ENSMUSG00000026650.15 | B162: ENSMUSG00000026650.15 | C162: Meig1 | D162: chr2:3409042-3422648 | E162: WT_U | F162: WT_D | G162: OK | H162: 0.0809348 | I162: 0.30241 | J162: 1.901673782 | K162: -1.49265 | L162: 0.00755 | M162: 0.0361395 | N162: yes
A163: ENSMUSG00000026678.10 | B163: ENSMUSG00000026678.10 | C163: Rgs5 | D163: chr1:169655500-169695813 | E163: WT_U | F163: WT_D | G163: OK | H163: 0.0808546 | I163: 0.018607 | J163: -2.119484385 | K163: 2.03294 | L163: 0.00135 | M163: 0.00850605 | N163: yes
A164: ENSMUSG00000026726.10 | B164: ENSMUSG00000026726.10 | C164: Cubn | D164: chr2:13271600-13491813 | E164: WT_U | F164: WT_D | G164: OK | H164: 0.134936 | I164: 0.0629354 | J164: -1.100331661 | K164: 2.46585 | L164: 0.00015 | M164: 0.00125317 | N164: yes
A165: ENSMUSG00000026728.9 | B165: ENSMUSG00000026728.9 | C165: Vim | D165: chr2:13573926-13582826 | E165: WT_U | F165: WT_D | G165: OK | H165: 667.709 | I165: 328.274 | J165: -1.024318996 | K165: 4.84489 | L165: 5e-05 | M165: 0.00046241 | N165: yes
A166: ENSMUSG00000026807.8 | B166: ENSMUSG00000026807.8 | C166: Ak8 | D166: chr2:28700163-28813165 | E166: WT_U | F166: WT_D | G166: OK | H166: 0.035336 | I166: 0.127456 | J166: 1.850788647 | K166: -1.40438 | L166: 0.00985 | M166: 0.0449009 | N166: yes
A167: ENSMUSG00000026822.14 | B167: ENSMUSG00000026822.14 | C167: Lcn2 | D167: chr2:32384632-32388252 | E167: WT_U | F167: WT_D | G167: OK | H167: 0.0642084 | I167: 3.07539 | J167: 5.581863516 | K167: -6.75575 | L167: 5e-05 | M167: 0.00046241 | N167: yes
A168: ENSMUSG00000026828.11 | B168: ENSMUSG00000026828.11 | C168: Galnt5 | D168: chr2:57997883-58052864 | E168: WT_U | F168: WT_D | G168: OK | H168: 1.05496 | I168: 0.127986 | J168: -3.043130387 | K168: 10.2282 | L168: 5e-05 | M168: 0.00046241 | N168: yes
A169: ENSMUSG00000026879.14 | B169: ENSMUSG00000026879.14 | C169: Gsn | D169: chr2:35256379-35307892 | E169: WT_U | F169: WT_D | G169: OK | H169: 49.4959 | I169: 17.2329 | J169: -1.522143522 | K169: 6.89069 | L169: 5e-05 | M169: 0.00046241 | N169: yes
A170: ENSMUSG00000026904.17 | B170: ENSMUSG00000026904.17 | C170: Slc4a10 | D170: chr2:62046461-62326730 | E170: WT_U | F170: WT_D | G170: OK | H170: 0.0690753 | I170: 0.226392 | J170: 1.712581151 | K170: -1.94774 | L170: 0.0019 | M170: 0.0113865 | N170: yes
A171: ENSMUSG00000026994.9 | B171: ENSMUSG00000026994.9 | C171: Galnt3 | D171: chr2:66082765-66124994 | E171: WT_U | F171: WT_D | G171: OK | H171: 10.5887 | I171: 23.1239 | J171: 1.126859261 | K171: -4.09279 | L171: 5e-05 | M171: 0.00046241 | N171: yes
A172: ENSMUSG00000027078.14 | B172: ENSMUSG00000027078.14 | C172: Ube2l6 | D172: chr2:84798827-84810335 | E172: WT_U | F172: WT_D | G172: OK | H172: 5.8992 | I172: 2.82231 | J172: -1.063642861 | K172: 4.63677 | L172: 5e-05 | M172: 0.00046241 | N172: yes
A173: ENSMUSG00000027204.13 | B173: ENSMUSG00000027204.13 | C173: Fbn1 | D173: chr2:125300593-125507993 | E173: WT_U | F173: WT_D | G173: OK | H173: 8.71764 | I173: 3.4859 | J173: -1.322406445 | K173: 5.99633 | L173: 5e-05 | M173: 0.00046241 | N173: yes
A174: ENSMUSG00000027239.14 | B174: ENSMUSG00000027239.14 | C174: Mdk | D174: chr2:91929804-91932297 | E174: WT_U | F174: WT_D | G174: OK | H174: 1.67545 | I174: 4.24858 | J174: 1.342432098 | K174: -4.93916 | L174: 5e-05 | M174: 0.00046241 | N174: yes
A175: ENSMUSG00000027253.15 | B175: ENSMUSG00000027253.15 | C175: Lrp4 | D175: chr2:91457510-91513779 | E175: WT_U | F175: WT_D | G175: OK | H175: 0.471784 | I175: 0.150449 | J175: -1.648851975 | K175: 3.26896 | L175: 5e-05 | M175: 0.00046241 | N175: yes
A176: ENSMUSG00000027259.15 | B176: ENSMUSG00000027259.15 | C176: Adal | D176: chr2:121128306-121156680 | E176: WT_U | F176: WT_D | G176: OK | H176: 0.0124322 | I176: 0.0805385 | J176: 2.695596985 | K176: -1.19166 | L176: 0.00125 | M176: 0.00795906 | N176: yes
A177: ENSMUSG00000027356.8 | B177: ENSMUSG00000027356.8 | C177: Fermt1 | D177: chr2:132904388-132945906 | E177: WT_U | F177: WT_D | G177: OK | H177: 0.294407 | I177: 0.143006 | J177: -1.041736296 | K177: 1.29692 | L177: 0.01065 | M177: 0.0478875 | N177: yes
A178: ENSMUSG00000027737.10 | B178: ENSMUSG00000027737.10 | C178: Slc7a11 | D178: chr3:49892525-50443614 | E178: WT_U | F178: WT_D | G178: OK | H178: 6.62423 | I178: 18.8816 | J178: 1.511156351 | K178: -8.07079 | L178: 5e-05 | M178: 0.00046241 | N178: yes
A179: ENSMUSG00000027886.7 | B179: ENSMUSG00000027886.7 | C179: 1700013F07Rik | D179: chr3:108455693-108544723 | E179: WT_U | F179: WT_D | G179: OK | H179: 1.21782 | I179: 3.61209 | J179: 1.568532929 | K179: -3.50262 | L179: 5e-05 | M179: 0.00046241 | N179: yes
A180: ENSMUSG00000027947.11 | B180: ENSMUSG00000027947.11 | C180: Il6ra | D180: chr3:89864058-89914053 | E180: WT_U | F180: WT_D | G180: OK | H180: 0.0435226 | I180: 0.16396 | J180: 1.913507246 | K180: -3.73215 | L180: 5e-05 | M180: 0.00046241 | N180: yes
A181: ENSMUSG00000027985.14 | B181: ENSMUSG00000027985.14 | C181: Lef1 | D181: chr3:131109025-131224356 | E181: WT_U | F181: WT_D | G181: OK | H181: 1.32553 | I181: 3.59905 | J181: 1.441046823 | K181: -2.61284 | L181: 0.0002 | M181: 0.00162246 | N181: yes
A182: ENSMUSG00000028167.15 | B182: ENSMUSG00000028167.15 | C182: Bdh2 | D182: chr3:135281220-135304426 | E182: WT_U | F182: WT_D | G182: OK | H182: 2.44272 | I182: 1.09725 | J182: -1.154596232 | K182: 3.94041 | L182: 5e-05 | M182: 0.00046241 | N182: yes
A183: ENSMUSG00000028179.12 | B183: ENSMUSG00000028179.12 | C183: Cth | D183: chr3:157894247-157925077 | E183: WT_U | F183: WT_D | G183: OK | H183: 21.0494 | I183: 55.2115 | J183: 1.391189686 | K183: -7.28034 | L183: 5e-05 | M183: 0.00046241 | N183: yes
A184: ENSMUSG00000028211.11 | B184: ENSMUSG00000028211.11 | C184: Trp53inp1 | D184: chr4:11156430-11174379 | E184: WT_U | F184: WT_D | G184: OK | H184: 0.556048 | I184: 1.82333 | J184: 1.713294363 | K184: -7.10728 | L184: 5e-05 | M184: 0.00046241 | N184: yes
A185: ENSMUSG00000028217.11 | B185: ENSMUSG00000028217.11 | C185: Cdh17 | D185: chr4:11758146-11817895 | E185: WT_U | F185: WT_D | G185: OK | H185: 0.372522 | I185: 0.13071 | J185: -1.51095611 | K185: 4.59199 | L185: 5e-05 | M185: 0.00046241 | N185: yes
A186: ENSMUSG00000028268.14 | B186: ENSMUSG00000028268.14 | C186: Gbp3 | D186: chr3:142560025-142573209 | E186: WT_U | F186: WT_D | G186: OK | H186: 0.301897 | I186: 0.0912487 | J186: -1.72618051 | K186: 2.10517 | L186: 0.00045 | M186: 0.00330168 | N186: yes
A187: ENSMUSG00000028341.9 | B187: ENSMUSG00000028341.9 | C187: Nr4a3 | D187: chr4:48045152-48086447 | E187: WT_U | F187: WT_D | G187: OK | H187: 3.47139 | I187: 1.62973 | J187: -1.090880486 | K187: 4.05072 | L187: 5e-05 | M187: 0.00046241 | N187: yes
A188: ENSMUSG00000028364.15 | B188: ENSMUSG00000028364.15 | C188: Tnc | D188: chr4:63959784-64149924 | E188: WT_U | F188: WT_D | G188: OK | H188: 0.656475 | I188: 0.129422 | J188: -2.342657194 | K188: 8.75061 | L188: 5e-05 | M188: 0.00046241 | N188: yes
A189: ENSMUSG00000028475.8 | B189: ENSMUSG00000028475.8 | C189: 5430416O09Rik | D189: chr4:43730033-43734534 | E189: WT_U | F189: WT_D | G189: OK | H189: 0.0968993 | I189: 0.0262833 | J189: -1.882339819 | K189: 3.45929 | L189: 0.0004 | M189: 0.00298 | N189: yes
A190: ENSMUSG00000028494.12 | B190: ENSMUSG00000028494.12 | C190: Plin2 | D190: chr4:86648385-86670060 | E190: WT_U | F190: WT_D | G190: OK | H190: 23.4977 | I190: 50.698 | J190: 1.109409285 | K190: -4.58824 | L190: 5e-05 | M190: 0.00046241 | N190: yes
A191: ENSMUSG00000028497.12 | B191: ENSMUSG00000028497.12 | C191: Hacd4 | D191: chr4:88094628-88438928 | E191: WT_U | F191: WT_D | G191: OK | H191: 1.61829 | I191: 3.46876 | J191: 1.099949861 | K191: -2.72364 | L191: 0.0005 | M191: 0.00361297 | N191: yes
A192: ENSMUSG00000028527.18 | B192: ENSMUSG00000028527.18 | C192: Ak4 | D192: chr4:101419276-101466995 | E192: WT_U | F192: WT_D | G192: OK | H192: 15.3758 | I192: 7.5273 | J192: -1.030457099 | K192: 2.58448 | L192: 0.0001 | M192: 0.000870202 | N192: yes
A193: ENSMUSG00000028542.17 | B193: ENSMUSG00000028542.17 | C193: Slc6a9 | D193: chr4:117834505-117883487 | E193: WT_U | F193: WT_D | G193: OK | H193: 12.8271 | I193: 25.6953 | J193: 1.002309459 | K193: -2.40489 | L193: 0.0001 | M193: 0.000870202 | N193: yes
A194: ENSMUSG00000028599.10 | B194: ENSMUSG00000028599.10 | C194: Tnfrsf1b | D194: chr4:145213462-145246870 | E194: WT_U | F194: WT_D | G194: OK | H194: 0.0124244 | I194: 0.092051 | J194: =LOG(I194/H194,2) -> 2.889257212 | K194: -1.22051 | L194: 0.0042 | M194: 0.0222068 | N194: yes
A195: ENSMUSG00000028631.7 | B195: ENSMUSG00000028631.7 | C195: Kcnq4 | D195: chr4:120696137-120748612 | E195: WT_U | F195: WT_D | G195: OK | H195: 0.037753 | I195: 0.112322 | J195: 1.572977333 | K195: -2.13791 | L195: 0.00115 | M195: 0.00741326 | N195: yes
A196: ENSMUSG00000028634.16 | B196: ENSMUSG00000028634.16 | C196: Hivep3 | D196: chr4:119733783-120138045 | E196: WT_U | F196: WT_D | G196: OK | H196: 0.129542 | I196: 0.450713 | J196: 1.798789139 | K196: -2.20886 | L196: 0.0002 | M196: 0.00162246 | N196: yes
A197: ENSMUSG00000028654.13 | B197: ENSMUSG00000028654.13 | C197: Mycl | D197: chr4:122995651-123002485 | E197: WT_U | F197: WT_D | G197: OK | H197: 0.420612 | I197: 1.65147 | J197: 1.973188847 | K197: -5.52694 | L197: 5e-05 | M197: 0.00046241 | N197: yes
A198: ENSMUSG00000028751.13 | B198: ENSMUSG00000028751.13 | C198: Pla2g2e | D198: chr4:138877941-138882817 | E198: WT_U | F198: WT_D | G198: OK | H198: 7.16974 | I198: 19.2524 | J198: 1.425045595 | K198: -6.6207 | L198: 5e-05 | M198: 0.00046241 | N198: yes
A199: ENSMUSG00000028763.17 | B199: ENSMUSG00000028763.17 | C199: Hspg2 | D199: chr4:137468768-137570630 | E199: WT_U | F199: WT_D | G199: OK | H199: 15.2718 | I199: 7.62403 | J199: -1.002244413 | K199: 5.0563 | L199: 5e-05 | M199: 0.00046241 | N199: yes
A200: ENSMUSG00000028766.10 | B200: ENSMUSG00000028766.10 | C200: Alpl | D200: chr4:137741732-137796384 | E200: WT_U | F200: WT_D | G200: OK | H200: 0.276059 | I200: 1.2934 | J200: 2.228119974 | K200: -4.38409 | L200: 5e-05 | M200: 0.00046241 | N200: yes
... 395 more rows

Sheet 2-fold_FPKMover1
A1: test_id | B1: gene_id | C1: gene | D1: locus | E1: sample_2 | F1: sample_1 | G1: status | H1: value_2 | I1: value_1 | J1: log2(fold_change) | K1: test_stat | L1: p_value | M1: q_value | N1: significant
A2: ENSMUSG00000027886.7 | B2: ENSMUSG00000027886.7 | C2: 1700013F07Rik | D2: chr3:108455693-108544723 | E2: WT_U | F2: WT_D | G2: OK | H2: 1.21782 | I2: 3.61209 | J2: =LOG(I2/H2,2) -> 1.568532929 | K2: -3.50262 | L2: 5e-05 | M2: 0.00046241 | N2: yes
A3: ENSMUSG00000063838.6 | B3: ENSMUSG00000063838.6 | C3: 1700027J19Rik | D3: chr7:4151259-4164860 | E3: WT_U | F3: WT_D | G3: OK | H3: 5.18462 | I3: 1.22959 | J3: -2.076060915 | K3: 7.09171 | L3: 5e-05 | M3: 0.00046241 | N3: yes
A4: ENSMUSG00000078607.3 | B4: ENSMUSG00000078607.3 | C4: 1810010H24Rik | D4: chr11:107028117-107030443 | E4: WT_U | F4: WT_D | G4: OK | H4: 1.4533 | I4: 4.3547 | J4: 1.583240789 | K4: -6.47308 | L4: 5e-05 | M4: 0.00046241 | N4: yes
A5: ENSMUSG00000099528.1 | B5: ENSMUSG00000099528.1 | C5: 2410012E07Rik | D5: chr14:70852932-70873954 | E5: WT_U | F5: WT_D | G5: OK | H5: 1.76962 | I5: 0.659063 | J5: -1.424951311 | K5: 5.06336 | L5: 5e-05 | M5: 0.00046241 | N5: yes
A6: ENSMUSG00000085562.7 | B6: ENSMUSG00000085562.7 | C6: 2610028E06Rik | D6: chr4:125887850-125922417 | E6: WT_U | F6: WT_D | G6: OK | H6: 2.6545 | I6: 0.6922 | J6: -1.939179295 | K6: 4.40954 | L6: 5e-05 | M6: 0.00046241 | N6: yes
A7: ENSMUSG00000074415.10 | B7: ENSMUSG00000074415.10 | C7: 2610203C20Rik | D7: chr9:41376396-41617772 | E7: WT_U | F7: WT_D | G7: OK | H7: 4.55389 | I7: 2.09603 | J7: -1.119440077 | K7: 5.02179 | L7: 5e-05 | M7: 0.00046241 | N7: yes
A8: ENSMUSG00000085936.7 | B8: ENSMUSG00000085936.7 | C8: 2610307P16Rik | D8: chr13:28460033-28885620 | E8: WT_U | F8: WT_D | G8: OK | H8: 0.664281 | I8: 1.44635 | J8: 1.122551154 | K8: -2.872 | L8: 5e-05 | M8: 0.00046241 | N8: yes
A9: ENSMUSG00000032712.16 | B9: ENSMUSG00000032712.16 | C9: 2810474O19Rik | D9: chr6:149309413-149335663 | E9: WT_U | F9: WT_D | G9: OK | H9: 10.0832 | I9: 24.1517 | J9: 1.260171177 | K9: -5.22832 | L9: 5e-05 | M9: 0.00046241 | N9: yes
A10: ENSMUSG00000036242.14 | B10: ENSMUSG00000036242.14 | C10: 3632451O06Rik | D10: chr14:49681559-49783383 | E10: WT_U | F10: WT_D | G10: OK | H10: 4.48471 | I10: 1.93849 | J10: -1.210081405 | K10: 5.71811 | L10: 5e-05 | M10: 0.00046241 | N10: yes
A11: ENSMUSG00000045877.2 | B11: ENSMUSG00000045877.2 | C11: 4933415A04Rik | D11: chr11:43587039-43589048 | E11: WT_U | F11: WT_D | G11: OK | H11: 0.240556 | I11: 1.37208 | J11: 2.511919912 | K11: -8.06366 | L11: 5e-05 | M11: 0.00046241 | N11: yes
A12: ENSMUSG00000066607.4 | B12: ENSMUSG00000066607.4 | C12: 6030419C18Rik | D12: chr9:58488602-58499742 | E12: WT_U | F12: WT_D | G12: OK | H12: 3.2999 | I12: 7.49756 | J12: 1.183998857 | K12: -5.69203 | L12: 5e-05 | M12: 0.00046241 | N12: yes
A13: ENSMUSG00000068151.7 | B13: ENSMUSG00000068151.7 | C13: A230006K03Rik | D13: chr7:61127995-61311721 | E13: WT_U | F13: WT_D | G13: OK | H13: 2.77569 | I13: 6.044 | J13: 1.122657209 | K13: -4.74063 | L13: 5e-05 | M13: 0.00046241 | N13: yes
A14: ENSMUSG00000029095.17 | B14: ENSMUSG00000029095.17 | C14: Ablim2 | D14: chr5:35757879-35884973 | E14: WT_U | F14: WT_D | G14: OK | H14: 0.57548 | I14: 1.15575 | J14: 1.005991667 | K14: -1.67687 | L14: 0.01055 | M14: 0.0475189 | N14: yes
A15: ENSMUSG00000021226.7 | B15: ENSMUSG00000021226.7 | C15: Acot2 | D15: chr12:83987860-83993873 | E15: WT_U | F15: WT_D | G15: OK | H15: 2.68788 | I15: 9.52305 | J15: 1.824954977 | K15: -8.74766 | L15: 5e-05 | M15: 0.00046241 | N15: yes
A16: ENSMUSG00000035783.8 | B16: ENSMUSG00000035783.8 | C16: Acta2 | D16: chr19:34241089-34255336 | E16: WT_U | F16: WT_D | G16: OK | H16: 40.1608 | I16: 12.7946 | J16: -1.650252963 | K16: 8.84228 | L16: 5e-05 | M16: 0.00046241 | N16: yes
A17: ENSMUSG00000029778.12 | B17: ENSMUSG00000029778.12 | C17: Adcyap1r1 | D17: chr6:55451977-55501451 | E17: WT_U | F17: WT_D | G17: OK | H17: 46.2322 | I17: 22.3534 | J17: -1.048403731 | K17: 4.47111 | L17: 5e-05 | M17: 0.00046241 | N17: yes
A18: ENSMUSG00000023918.12 | B18: ENSMUSG00000023918.12 | C18: Adgrf4 | D18: chr17:42656890-42692284 | E18: WT_U | F18: WT_D | G18: OK | H18: 2.27913 | I18: 17.242 | J18: 2.919372008 | K18: -13.5685 | L18: 5e-05 | M18: 0.00046241 | N18: yes
A19: ENSMUSG00000030790.14 | B19: ENSMUSG00000030790.14 | C19: Adm | D19: chr7:110626280-110639358 | E19: WT_U | F19: WT_D | G19: OK | H19: 2.18177 | I19: 0.488886 | J19: -2.157929025 | K19: 6.67628 | L19: 5e-05 | M19: 0.00046241 | N19: yes
A20: ENSMUSG00000029314.14 | B20: ENSMUSG00000029314.14 | C20: Agpat9 | D20: chr5:100840796-100899102 | E20: WT_U | F20: WT_D | G20: OK | H20: 2.06673 | I20: 7.81421 | J20: 1.918750101 | K20: -8.41698 | L20: 5e-05 | M20: 0.00046241 | N20: yes
A21: ENSMUSG00000069833.12 | B21: ENSMUSG00000069833.12 | C21: Ahnak | D21: chr19:8989283-9076919 | E21: WT_U | F21: WT_D | G21: OK | H21: 19.8454 | I21: 3.0918 | J21: -2.682285738 | K21: 7.43834 | L21: 5e-05 | M21: 0.00046241 | N21: yes
A22: ENSMUSG00000034382.14 | B22: ENSMUSG00000034382.14 | C22: AI661453 | D22: chr17:47412733-47470638 | E22: WT_U | F22: WT_D | G22: OK | H22: 0.524976 | I22: 1.77518 | J22: 1.757641944 | K22: -6.31142 | L22: 5e-05 | M22: 0.00046241 | N22: yes
A23: ENSMUSG00000097023.8 | B23: ENSMUSG00000097023.8 | C23: AI854517 | D23: chr7:79500025-79534403 | E23: WT_U | F23: WT_D | G23: OK | H23: 1.3641 | I23: 0.392219 | J23: -1.79821808 | K23: 3.04738 | L23: 5e-05 | M23: 0.00046241 | N23: yes
A24: ENSMUSG00000020085.15 | B24: ENSMUSG00000020085.15 | C24: Aifm2 | D24: chr10:61715262-61784147 | E24: WT_U | F24: WT_D | G24: OK | H24: 8.07128 | I24: 17.566 | J24: 1.121916319 | K24: -3.49901 | L24: 5e-05 | M24: 0.00046241 | N24: yes
A25: ENSMUSG00000028527.18 | B25: ENSMUSG00000028527.18 | C25: Ak4 | D25: chr4:101419276-101466995 | E25: WT_U | F25: WT_D | G25: OK | H25: 15.3758 | I25: 7.5273 | J25: -1.030457099 | K25: 2.58448 | L25: 0.0001 | M25: 0.000870202 | N25: yes
A26: ENSMUSG00000039058.11 | B26: ENSMUSG00000039058.11 | C26: Ak5 | D26: chr3:152395472-152681432 | E26: WT_U | F26: WT_D | G26: OK | H26: 1.87217 | I26: 4.28725 | J26: 1.195341104 | K26: -1.36013 | L26: 0.01065 | M26: 0.0478875 | N26: yes
A27: ENSMUSG00000052131.7 | B27: ENSMUSG00000052131.7 | C27: Akr1b7 | D27: chr6:34412333-34445436 | E27: WT_U | F27: WT_D | G27: OK | H27: 0.757591 | I27: 6.16975 | J27: 3.025720935 | K27: -11.5182 | L27: 5e-05 | M27: 0.00046241 | N27: yes
A28: ENSMUSG00000019102.10 | B28: ENSMUSG00000019102.10 | C28: Aldh3a1 | D28: chr11:61207536-61218421 | E28: WT_U | F28: WT_D | G28: OK | H28: 1.18375 | I28: 0.570862 | J28: -1.052150489 | K28: 2.10031 | L28: 0.00285 | M28: 0.0160515 | N28: yes
A29: ENSMUSG00000028766.10 | B29: ENSMUSG00000028766.10 | C29: Alpl | D29: chr4:137741732-137796384 | E29: WT_U | F29: WT_D | G29: OK | H29: 0.276059 | I29: 1.2934 | J29: 2.228119974 | K29: -4.38409 | L29: 5e-05 | M29: 0.00046241 | N29: yes
A30: ENSMUSG00000038742.6 | B30: ENSMUSG00000038742.6 | C30: Angptl6 | D30: chr9:20868641-20879727 | E30: WT_U | F30: WT_D | G30: OK | H30: 2.63506 | I30: 6.93029 | J30: 1.395079911 | K30: -6.36241 | L30: 5e-05 | M30: 0.00046241 | N30: yes
A31: ENSMUSG00000032231.14 | B31: ENSMUSG00000032231.14 | C31: Anxa2 | D31: chr9:69453619-69491795 | E31: WT_U | F31: WT_D | G31: OK | H31: 80.5483 | I31: 9.71678 | J31: -3.051303931 | K31: 15.8042 | L31: 5e-05 | M31: 0.00046241 | N31: yes
A32: ENSMUSG00000071847.12 | B32: ENSMUSG00000071847.12 | C32: Apcdd1 | D32: chr18:62922326-62953195 | E32: WT_U | F32: WT_D | G32: OK | H32: 7.46505 | I32: 2.55406 | J32: -1.547359506 | K32: 7.48846 | L32: 5e-05 | M32: 0.00046241 | N32: yes
A33: ENSMUSG00000021895.9 | B33: ENSMUSG00000021895.9 | C33: Arhgef3 | D33: chr14:27238038-27403904 | E33: WT_U | F33: WT_D | G33: OK | H33: 8.81127 | I33: 20.4109 | J33: 1.211917918 | K33: -6.55616 | L33: 5e-05 | M33: 0.00046241 | N33: yes
A34: ENSMUSG00000033007.15 | B34: ENSMUSG00000033007.15 | C34: Asic4 | D34: chr1:75450435-75474343 | E34: WT_U | F34: WT_D | G34: OK | H34: 1.95063 | I34: 7.50008 | J34: 1.942965834 | K34: -9.17319 | L34: 5e-05 | M34: 0.00046241 | N34: yes
A35: ENSMUSG00000026628.13 | B35: ENSMUSG00000026628.13 | C35: Atf3 | D35: chr1:191170295-191218039 | E35: WT_U | F35: WT_D | G35: OK | H35: 15.7852 | I35: 36.7732 | J35: 1.220082185 | K35: -4.31669 | L35: 5e-05 | M35: 0.00046241 | N35: yes
A36: ENSMUSG00000038539.14 | B36: ENSMUSG00000038539.14 | C36: Atf5 | D36: chr7:44812255-44840809 | E36: WT_U | F36: WT_D | G36: OK | H36: 67.1691 | I36: 207.397 | J36: 1.626525422 | K36: -6.96141 | L36: 5e-05 | M36: 0.00046241 | N36: yes
A37: ENSMUSG00000025432.11 | B37: ENSMUSG00000025432.11 | C37: Avil | D37: chr10:127000708-127030840 | E37: WT_U | F37: WT_D | G37: OK | H37: 0.489749 | I37: 9.44207 | J37: 4.268988727 | K37: -3.42753 | L37: 5e-05 | M37: 0.00046241 | N37: yes
A38: ENSMUSG00000078349.2 | B38: ENSMUSG00000078349.2 | C38: AW011738 | D38: chr4:156203303-156205151 | E38: WT_U | F38: WT_D | G38: OK | H38: 1.55818 | I38: 3.91613 | J38: 1.329566755 | K38: -5.86778 | L38: 5e-05 | M38: 0.00046241 | N38: yes
A39: ENSMUSG00000084938.1 | B39: ENSMUSG00000084938.1 | C39: BB557941 | D39: chr2:57127478-57181754 | E39: WT_U | F39: WT_D | G39: OK | H39: 0.569039 | I39: 2.95039 | J39: 2.374306233 | K39: -7.92569 | L39: 5e-05 | M39: 0.00046241 | N39: yes
A40: ENSMUSG00000028167.15 | B40: ENSMUSG00000028167.15 | C40: Bdh2 | D40: chr3:135281220-135304426 | E40: WT_U | F40: WT_D | G40: OK | H40: 2.44272 | I40: 1.09725 | J40: -1.154596232 | K40: 3.94041 | L40: 5e-05 | M40: 0.00046241 | N40: yes
A41: ENSMUSG00000021070.5 | B41: ENSMUSG00000021070.5 | C41: Bdkrb2 | D41: chr12:105563171-105593071 | E41: WT_U | F41: WT_D | G41: OK | H41: 4.87597 | I41: 10.6954 | J41: 1.133229284 | K41: -5.48138 | L41: 5e-05 | M41: 0.00046241 | N41: yes
A42: ENSMUSG00000042182.16 | B42: ENSMUSG00000042182.16 | C42: Bend6 | D42: chr1:33852051-33907816 | E42: WT_U | F42: WT_D | G42: OK | H42: 2.65007 | I42: 6.06978 | J42: 1.195613759 | K42: -4.62004 | L42: 5e-05 | M42: 0.00046241 | N42: yes
A43: ENSMUSG00000078566.8 | B43: ENSMUSG00000078566.8 | C43: Bnip3 | D43: chr7:138890835-138909519 | E43: WT_U | F43: WT_D | G43: OK | H43: 56.1375 | I43: 15.398 | J43: -1.866221841 | K43: 8.33125 | L43: 5e-05 | M43: 0.00046241 | N43: yes
A44: ENSMUSG00000055172.10 | B44: ENSMUSG00000055172.10 | C44: C1ra | D44: chr6:124512404-124523443 | E44: WT_U | F44: WT_D | G44: OK | H44: 1.20677 | I44: 0.502921 | J44: -1.262747036 | K44: 5.07874 | L44: 5e-05 | M44: 0.00046241 | N44: yes
A45: ENSMUSG00000019732.14 | B45: ENSMUSG00000019732.14 | C45: Calr3 | D45: chr8:72424175-72443870 | E45: WT_U | F45: WT_D | G45: OK | H45: 0.958192 | I45: 2.17702 | J45: 1.183967988 | K45: -4.66221 | L45: 5e-05 | M45: 0.00046241 | N45: yes
A46: ENSMUSG00000046447.3 | B46: ENSMUSG00000046447.3 | C46: Camk2n1 | D46: chr4:138454313-138460123 | E46: WT_U | F46: WT_D | G46: OK | H46: 9.30983 | I46: 23.3329 | J46: 1.325538899 | K46: -7.20403 | L46: 5e-05 | M46: 0.00046241 | N46: yes
A47: ENSMUSG00000032373.14 | B47: ENSMUSG00000032373.14 | C47: Car12 | D47: chr9:66713685-66766845 | E47: WT_U | F47: WT_D | G47: OK | H47: 21.9738 | I47: 10.3526 | J47: -1.085791243 | K47: 5.70419 | L47: 5e-05 | M47: 0.00046241 | N47: yes
A48: ENSMUSG00000028972.11 | B48: ENSMUSG00000028972.11 | C48: Car6 | D48: chr4:150187014-150201332 | E48: WT_U | F48: WT_D | G48: OK | H48: 2.15805 | I48: 26.5679 | J48: 3.621884002 | K48: -15.4054 | L48: 5e-05 | M48: 0.00046241 | N48: yes
A49: ENSMUSG00000056018.14 | B49: ENSMUSG00000056018.14 | C49: Ccdc7b | D49: chr8:129067133-129183732 | E49: WT_U | F49: WT_D | G49: OK | H49: 0.129987 | I49: 1.87356 | J49: 3.849342928 | K49: -4.95833 | L49: 5e-05 | M49: 0.00046241 | N49: yes
A50: ENSMUSG00000047810.8 | B50: ENSMUSG00000047810.8 | C50: Ccdc88b | D50: chr19:6844622-6858211 | E50: WT_U | F50: WT_D | G50: OK | H50: 0.673561 | I50: 1.69457 | J50: 1.331038721 | K50: -6.03814 | L50: 5e-05 | M50: 0.00046241 | N50: yes
A51: ENSMUSG00000035385.5 | B51: ENSMUSG00000035385.5 | C51: Ccl2 | D51: chr11:82028223-82038562 | E51: WT_U | F51: WT_D | G51: OK | H51: 2.23246 | I51: 0.56699 | J51: -1.97723913 | K51: 5.79349 | L51: 5e-05 | M51: 0.00046241 | N51: yes
A52: ENSMUSG00000044707.7 | B52: ENSMUSG00000044707.7 | C52: Ccnjl | D52: chr11:43528783-43586997 | E52: WT_U | F52: WT_D | G52: OK | H52: 2.59594 | I52: 16.5892 | J52: 2.675915371 | K52: -11.4539 | L52: 5e-05 | M52: 0.00046241 | N52: yes
A53: ENSMUSG00000032679.12 | B53: ENSMUSG00000032679.12 | C53: Cd59a | D53: chr2:104095800-104115354 | E53: WT_U | F53: WT_D | G53: OK | H53: 1.87091 | I53: 4.24061 | J53: 1.180531648 | K53: -4.9317 | L53: 5e-05 | M53: 0.00046241 | N53: yes
A54: ENSMUSG00000024610.14 | B54: ENSMUSG00000024610.14 | C54: Cd74 | D54: chr18:60803847-60812646 | E54: WT_U | F54: WT_D | G54: OK | H54: 9.42522 | I54: 23.0019 | J54: 1.287154837 | K54: -6.36419 | L54: 5e-05 | M54: 0.00046241 | N54: yes
A55: ENSMUSG00000053166.14 | B55: ENSMUSG00000053166.14 | C55: Cdh22 | D55: chr2:165111506-165234853 | E55: WT_U | F55: WT_D | G55: OK | H55: 3.56316 | I55: 1.29654 | J55: -1.458490552 | K55: 6.74911 | L55: 5e-05 | M55: 0.00046241 | N55: yes
A56: ENSMUSG00000037664.12 | B56: ENSMUSG00000037664.12 | C56: Cdkn1c | D56: chr7:143458349-143461050 | E56: WT_U | F56: WT_D | G56: OK | H56: 0.624795 | I56: 1.30047 | J56: 1.057578305 | K56: -4.00999 | L56: 5e-05 | M56: 0.00046241 | N56: yes
A57: ENSMUSG00000039518.7 | B57: ENSMUSG00000039518.7 | C57: Cdsn | D57: chr17:35552127-35557180 | E57: WT_U | F57: WT_D | G57: OK | H57: 0.976999 | I57: 6.38369 | J57: 2.707961604 | K57: -12.1741 | L57: 5e-05 | M57: 0.00046241 | N57: yes
A58: ENSMUSG00000056501.3 | B58: ENSMUSG00000056501.3 | C58: Cebpb | D58: chr2:167553313-167690418 | E58: WT_U | F58: WT_D | G58: OK | H58: 23.5491 | I58: 50.6604 | J58: 1.105186544 | K58: -3.32264 | L58: 5e-05 | M58: 0.00046241 | N58: yes
A59: ENSMUSG00000049422.6 | B59: ENSMUSG00000049422.6 | C59: Chchd10 | D59: chr10:75935572-75940672 | E59: WT_U | F59: WT_D | G59: OK | H59: 137.847 | I59: 385.588 | J59: 1.483992284 | K59: -8.66415 | L59: 5e-05 | M59: 0.00046241 | N59: yes
A60: ENSMUSG00000022037.14 | B60: ENSMUSG00000022037.14 | C60: Clu | D60: chr14:65968482-65981548 | E60: WT_U | F60: WT_D | G60: OK | H60: 4.22774 | I60: 22.6058 | J60: 2.418734413 | K60: -8.58169 | L60: 5e-05 | M60: 0.00046241 | N60: yes
A61: ENSMUSG00000040690.15 | B61: ENSMUSG00000040690.15 | C61: Col16a1 | D61: chr4:130047839-130099283 | E61: WT_U | F61: WT_D | G61: OK | H61: 3.80765 | I61: 1.32564 | J61: -1.522211832 | K61: 4.47495 | L61: 5e-05 | M61: 0.00046241 | N61: yes
A62: ENSMUSG00000009876.13 | B62: ENSMUSG00000009876.13 | C62: Cox4i2 | D62: chr2:152754172-152765037 | E62: WT_U | F62: WT_D | G62: OK | H62: 6.14946 | I62: 0.564946 | J62: -3.444274849 | K62: 9.90783 | L62: 5e-05 | M62: 0.00046241 | N62: yes
A63: ENSMUSG00000030785.8 | B63: ENSMUSG00000030785.8 | C63: Cox6a2 | D63: chr7:128154018-128223816 | E63: WT_U | F63: WT_D | G63: OK | H63: 2.42732 | I63: 20.4372 | J63: 3.073761333 | K63: -12.4486 | L63: 5e-05 | M63: 0.00046241 | N63: yes
A64: ENSMUSG00000032291.8 | B64: ENSMUSG00000032291.8 | C64: Crabp1 | D64: chr9:54764747-54773110 | E64: WT_U | F64: WT_D | G64: OK | H64: 5.12342 | I64: 2.34958 | J64: -1.124704273 | K64: 4.49951 | L64: 5e-05 | M64: 0.00046241 | N64: yes
A65: ENSMUSG00000006360.11 | B65: ENSMUSG00000006360.11 | C65: Crip1 | D65: chr12:113146315-113153879 | E65: WT_U | F65: WT_D | G65: OK | H65: 112.455 | I65: 53.4862 | J65: -1.072109194 | K65: 5.27096 | L65: 5e-05 | M65: 0.00046241 | N65: yes
A66: ENSMUSG00000014599.10 | B66: ENSMUSG00000014599.10 | C66: Csf1 | D66: chr3:107741047-107760469 | E66: WT_U | F66: WT_D | G66: OK | H66: 7.20777 | I66: 3.59634 | J66: =LOG(I66/H66,2) -> -1.003023555 | K66: 3.50432 | L66: 5e-05 | M66: 0.00046241 | N66: yes
A67: ENSMUSG00000032482.9 | B67: ENSMUSG00000032482.9 | C67: Cspg5 | D67: chr9:110243782-110262576 | E67: WT_U | F67: WT_D | G67: OK | H67: 0.78964 | I67: 2.09399 | J67: 1.406987575 | K67: -5.08339 | L67: 5e-05 | M67: 0.00046241 | N67: yes
A68: ENSMUSG00000026421.14 | B68: ENSMUSG00000026421.14 | C68: Csrp1 | D68: chr1:135720060-135752232 | E68: WT_U | F68: WT_D | G68: OK | H68: 105.66 | I68: 49.016 | J68: -1.108104653 | K68: 6.47403 | L68: 5e-05 | M68: 0.00046241 | N68: yes
A69: ENSMUSG00000028179.12 | B69: ENSMUSG00000028179.12 | C69: Cth | D69: chr3:157894247-157925077 | E69: WT_U | F69: WT_D | G69: OK | H69: 21.0494 | I69: 55.2115 | J69: 1.391189686 | K69: -7.28034 | L69: 5e-05 | M69: 0.00046241 | N69: yes
A70: ENSMUSG00000074874.9 | B70: ENSMUSG00000074874.9 | C70: Ctla2b | D70: chr13:60895350-60897447 | E70: WT_U | F70: WT_D | G70: OK | H70: 11.2537 | I70: 5.49503 | J70: -1.034200147 | K70: 4.73343 | L70: 5e-05 | M70: 0.00046241 | N70: yes
A71: ENSMUSG00000021939.7 | B71: ENSMUSG00000021939.7 | C71: Ctsb | D71: chr14:63122461-63177793 | E71: WT_U | F71: WT_D | G71: OK | H71: 45.9906 | I71: 144.283 | J71: 1.649490401 | K71: -7.93735 | L71: 5e-05 | M71: 0.00046241 | N71: yes
A72: ENSMUSG00000029380.11 | B72: ENSMUSG00000029380.11 | C72: Cxcl1 | D72: chr5:90891240-90893115 | E72: WT_U | F72: WT_D | G72: OK | H72: 3.20775 | I72: 1.54037 | J72: -1.058284777 | K72: 4.0382 | L72: 5e-05 | M72: 0.00046241 | N72: yes
A73: ENSMUSG00000026456.18 | B73: ENSMUSG00000026456.18 | C73: Cyb5r1 | D73: chr1:134405558-134411740 | E73: WT_U | F73: WT_D | G73: OK | H73: 47.0568 | I73: 118.743 | J73: 1.335367346 | K73: -6.51365 | L73: 5e-05 | M73: 0.00046241 | N73: yes
A74: ENSMUSG00000063415.12 | B74: ENSMUSG00000063415.12 | C74: Cyp26b1 | D74: chr6:84571413-84593908 | E74: WT_U | F74: WT_D | G74: OK | H74: 1.53643 | I74: 90.2253 | J74: 5.875878091 | K74: -30.1428 | L74: 5e-05 | M74: 0.00046241 | N74: yes
A75: ENSMUSG00000040260.7 | B75: ENSMUSG00000040260.7 | C75: Daam2 | D75: chr17:49456021-49564337 | E75: WT_U | F75: WT_D | G75: OK | H75: 11.0025 | I75: 3.90343 | J75: -1.495017068 | K75: 8.04748 | L75: 5e-05 | M75: 0.00046241 | N75: yes
A76: ENSMUSG00000025592.17 | B76: ENSMUSG00000025592.17 | C76: Dach2 | D76: chrX:113297509-113836386 | E76: WT_U | F76: WT_D | G76: OK | H76: 0.277757 | I76: 1.44344 | J76: 2.377615964 | K76: -8.21313 | L76: 5e-05 | M76: 0.00046241 | N76: yes
A77: ENSMUSG00000025408.15 | B77: ENSMUSG00000025408.15 | C77: Ddit3 | D77: chr10:127289695-127311786 | E77: WT_U | F77: WT_D | G77: OK | H77: 91.8046 | I77: 196.804 | J77: 1.100121195 | K77: -2.73463 | L77: 0.0003 | M77: 0.00231843 | N77: yes
A78: ENSMUSG00000052572.15 | B78: ENSMUSG00000052572.15 | C78: Dlg2 | D78: chr7:91090705-92447003 | E78: WT_U | F78: WT_D | G78: OK | H78: 7.67849 | I78: 20.4221 | J78: 1.411236693 | K78: -5.66504 | L78: 5e-05 | M78: 0.00046241 | N78: yes
A79: ENSMUSG00000014905.3 | B79: ENSMUSG00000014905.3 | C79: Dnajb9 | D79: chr12:44205896-44210068 | E79: WT_U | F79: WT_D | G79: OK | H79: 23.4465 | I79: 72.1155 | J79: 1.620936797 | K79: -8.81179 | L79: 5e-05 | M79: 0.00046241 | N79: yes
A80: ENSMUSG00000040265.16 | B80: ENSMUSG00000040265.16 | C80: Dnm3 | D80: chr1:161942085-162479943 | E80: WT_U | F80: WT_D | G80: OK | H80: 1.14792 | I80: 0.518133 | J80: -1.147627725 | K80: 1.59541 | L80: 0.01035 | M80: 0.0467926 | N80: yes
A81: ENSMUSG00000038608.15 | B81: ENSMUSG00000038608.15 | C81: Dock10 | D81: chr1:80501072-80758527 | E81: WT_U | F81: WT_D | G81: OK | H81: 2.61036 | I81: 0.733058 | J81: -1.832249531 | K81: 6.40996 | L81: 5e-05 | M81: 0.00046241 | N81: yes
A82: ENSMUSG00000061576.15 | B82: ENSMUSG00000061576.15 | C82: Dpp6 | D82: chr5:26817202-27727505 | E82: WT_U | F82: WT_D | G82: OK | H82: 0.878842 | I82: 1.78095 | J82: 1.01897129 | K82: -4.57751 | L82: 5e-05 | M82: 0.00046241 | N82: yes
A83: ENSMUSG00000050272.9 | B83: ENSMUSG00000050272.9 | C83: Dscam | D83: chr16:96592078-97170752 | E83: WT_U | F83: WT_D | G83: OK | H83: 0.632143 | I83: 1.67744 | J83: 1.407938305 | K83: -6.62411 | L83: 5e-05 | M83: 0.00046241 | N83: yes
A84: ENSMUSG00000073599.9 | B84: ENSMUSG00000073599.9 | C84: Ecscr | D84: chr18:35703224-35730869 | E84: WT_U | F84: WT_D | G84: OK | H84: 4.01234 | I84: 1.98748 | J84: -1.01350352 | K84: 3.94578 | L84: 5e-05 | M84: 0.00046241 | N84: yes
A85: ENSMUSG00000048988.8 | B85: ENSMUSG00000048988.8 | C85: Elfn1 | D85: chr5:139907942-139974722 | E85: WT_U | F85: WT_D | G85: OK | H85: 2.13534 | I85: 0.877251 | J85: -1.283404209 | K85: 2.96063 | L85: 0.0001 | M85: 0.000870202 | N85: yes
A86: ENSMUSG00000051166.9 | B86: ENSMUSG00000051166.9 | C86: Eml5 | D86: chr12:98746967-98901484 | E86: WT_U | F86: WT_D | G86: OK | H86: 22.1332 | I86: 54.8738 | J86: 1.309905436 | K86: -6.06596 | L86: 5e-05 | M86: 0.00046241 | N86: yes
A87: ENSMUSG00000040212.11 | B87: ENSMUSG00000040212.11 | C87: Emp3 | D87: chr7:45918022-45921426 | E87: WT_U | F87: WT_D | G87: OK | H87: 5.50548 | I87: 2.62402 | J87: -1.069089636 | K87: 4.28533 | L87: 5e-05 | M87: 0.00046241 | N87: yes
A88: ENSMUSG00000005958.14 | B88: ENSMUSG00000005958.14 | C88: Ephb3 | D88: chr16:21204754-21223305 | E88: WT_U | F88: WT_D | G88: OK | H88: 0.5128 | I88: 1.04799 | J88: 1.031156784 | K88: -4.29673 | L88: 5e-05 | M88: 0.00046241 | N88: yes
A89: ENSMUSG00000038776.13 | B89: ENSMUSG00000038776.13 | C89: Ephx1 | D89: chr1:180976157-181020904 | E89: WT_U | F89: WT_D | G89: OK | H89: 11.3399 | I89: 23.8371 | J89: 1.071800811 | K89: -5.38881 | L89: 5e-05 | M89: 0.00046241 | N89: yes
A90: ENSMUSG00000040640.9 | B90: ENSMUSG00000040640.9 | C90: Erc2 | D90: chr14:27622441-28478537 | E90: WT_U | F90: WT_D | G90: OK | H90: 2.23311 | I90: 5.49384 | J90: 1.298760577 | K90: -6.495 | L90: 5e-05 | M90: 0.00046241 | N90: yes
A91: ENSMUSG00000001946.13 | B91: ENSMUSG00000001946.13 | C91: Esam | D91: chr9:37528077-37538319 | E91: WT_U | F91: WT_D | G91: OK | H91: 0.641723 | I91: 1.31447 | J91: 1.034458619 | K91: -2.33142 | L91: 0.0015 | M91: 0.00931642 | N91: yes
A92: ENSMUSG00000032035.15 | B92: ENSMUSG00000032035.15 | C92: Ets1 | D92: chr9:32636220-32757820 | E92: WT_U | F92: WT_D | G92: OK | H92: 6.54911 | I92: 3.04609 | J92: -1.104340295 | K92: 5.10876 | L92: 5e-05 | M92: 0.00046241 | N92: yes
A93: ENSMUSG00000039109.15 | B93: ENSMUSG00000039109.15 | C93: F13a1 | D93: chr13:36867177-37050244 | E93: WT_U | F93: WT_D | G93: OK | H93: 1.37009 | I93: 0.471682 | J93: -1.538384214 | K93: 6.46997 | L93: 5e-05 | M93: 0.00046241 | N93: yes
A94: ENSMUSG00000026483.13 | B94: ENSMUSG00000026483.13 | C94: Fam129a | D94: chr1:151571185-151721939 | E94: WT_U | F94: WT_D | G94: OK | H94: 6.52539 | I94: 24.2048 | J94: 1.891157139 | K94: -5.4088 | L94: 5e-05 | M94: 0.00046241 | N94: yes
A95: ENSMUSG00000078907.1 | B95: ENSMUSG00000078907.1 | C95: Fam186b | D95: chr15:99271017-99287180 | E95: WT_U | F95: WT_D | G95: OK | H95: 0.251807 | I95: 1.15044 | J95: 2.191795449 | K95: -7.99525 | L95: 5e-05 | M95: 0.00046241 | N95: yes
A96: ENSMUSG00000027204.13 | B96: ENSMUSG00000027204.13 | C96: Fbn1 | D96: chr2:125300593-125507993 | E96: WT_U | F96: WT_D | G96: OK | H96: 8.71764 | I96: 3.4859 | J96: -1.322406445 | K96: 5.99633 | L96: 5e-05 | M96: 0.00046241 | N96: yes
A97: ENSMUSG00000022871.12 | B97: ENSMUSG00000022871.12 | C97: Fetub | D97: chr16:22918381-22939766 | E97: WT_U | F97: WT_D | G97: OK | H97: 8.22158 | I97: 19.8585 | J97: 1.272269075 | K97: -6.28282 | L97: 5e-05 | M97: 0.00046241 | N97: yes
A98: ENSMUSG00000054200.6 | B98: ENSMUSG00000054200.6 | C98: Ffar4 | D98: chr19:38097078-38114263 | E98: WT_U | F98: WT_D | G98: OK | H98: 1.2476 | I98: 2.84554 | J98: 1.189547002 | K98: -4.82139 | L98: 5e-05 | M98: 0.00046241 | N98: yes
A99: ENSMUSG00000036585.15 | B99: ENSMUSG00000036585.15 | C99: Fgf1 | D99: chr18:38601533-39389425 | E99: WT_U | F99: WT_D | G99: OK | H99: 3.39656 | I99: 7.44233 | J99: 1.131680023 | K99: -1.4305 | L99: 0.0097 | M99: 0.0443624 | N99: yes
A100: ENSMUSG00000041842.15 | B100: ENSMUSG00000041842.15 | C100: Fhdc1 | D100: chr3:84442197-84480429 | E100: WT_U | F100: WT_D | G100: OK | H100: 1.76141 | I100: 6.26658 | J100: 1.830947542 | K100: -8.30464 | L100: 5e-05 | M100: 0.00046241 | N100: yes
A101: ENSMUSG00000031380.10 | B101: ENSMUSG00000031380.10 | C101: Figf | D101: chrX:164373377-164402650 | E101: WT_U | F101: WT_D | G101: OK | H101: 2.21351 | I101: 1.06336 | J101: -1.057705788 | K101: 3.9794 | L101: 5e-05 | M101: 0.00046241 | N101: yes
A102: ENSMUSG00000068699.12 | B102: ENSMUSG00000068699.12 | C102: Flnc | D102: chr6:29433255-29461883 | E102: WT_U | F102: WT_D | G102: OK | H102: 10.1127 | I102: 21.579 | J102: 1.093459775 | K102: -4.17894 | L102: 5e-05 | M102: 0.00046241 | N102: yes
A103: ENSMUSG00000089989.9 | B103: ENSMUSG00000089989.9 | C103: Flt3l | D103: chr7:45131188-45136432 | E103: WT_U | F103: WT_D | G103: OK | H103: 1.3414 | I103: 2.97625 | J103: 1.149756208 | K103: -4.44706 | L103: 5e-05 | M103: 0.00046241 | N103: yes
A104: ENSMUSG00000026193.15 | B104: ENSMUSG00000026193.15 | C104: Fn1 | D104: chr1:71585519-71662843 | E104: WT_U | F104: WT_D | G104: OK | H104: 161.083 | I104: 64.8751 | J104: -1.312067484 | K104: 4.84245 | L104: 5e-05 | M104: 0.00046241 | N104: yes
A105: ENSMUSG00000021765.7 | B105: ENSMUSG00000021765.7 | C105: Fst | D105: chr13:114452261-114458730 | E105: WT_U | F105: WT_D | G105: OK | H105: 3.24853 | I105: 0.76805 | J105: -2.08051489 | K105: 8.8052 | L105: 5e-05 | M105: 0.00046241 | N105: yes
A106: ENSMUSG00000009633.3 | B106: ENSMUSG00000009633.3 | C106: G0s2 | D106: chr1:193203037-193343878 | E106: WT_U | F106: WT_D | G106: OK | H106: 0.446962 | I106: 3.34443 | J106: 2.903536263 | K106: -7.96867 | L106: 5e-05 | M106: 0.00046241 | N106: yes
A107: ENSMUSG00000036390.8 | B107: ENSMUSG00000036390.8 | C107: Gadd45a | D107: chr6:67035095-67080654 | E107: WT_U | F107: WT_D | G107: OK | H107: 14.9294 | I107: 36.633 | J107: 1.294987667 | K107: -5.74707 | L107: 5e-05 | M107: 0.00046241 | N107: yes
A108: ENSMUSG00000015312.8 | B108: ENSMUSG00000015312.8 | C108: Gadd45b | D108: chr10:80930090-80932204 | E108: WT_U | F108: WT_D | G108: OK | H108: 6.13499 | I108: 1.74535 | J108: -1.813544619 | K108: 7.74653 | L108: 5e-05 | M108: 0.00046241 | N108: yes
A109: ENSMUSG00000026994.9 | B109: ENSMUSG00000026994.9 | C109: Galnt3 | D109: chr2:66082765-66124994 | E109: WT_U | F109: WT_D | G109: OK | H109: 10.5887 | I109: 23.1239 | J109: 1.126859261 | K109: -4.09279 | L109: 5e-05 | M109: 0.00046241 | N109: yes
A110: ENSMUSG00000026828.11 | B110: ENSMUSG00000026828.11 | C110: Galnt5 | D110: chr2:57997883-58052864 | E110: WT_U | F110: WT_D | G110: OK | H110: 1.05496 | I110: 0.127986 | J110: -3.043130387 | K110: 10.2282 | L110: 5e-05 | M110: 0.00046241 | N110: yes
A111: ENSMUSG00000052957.7 | B111: ENSMUSG00000052957.7 | C111: Gas1 | D111: chr13:60174404-60177365 | E111: WT_U | F111: WT_D | G111: OK | H111: 1.92037 | I111: 5.15916 | J111: 1.425751886 | K111: -6.79081 | L111: 5e-05 | M111: 0.00046241 | N111: yes
A112: ENSMUSG00000046814.3 | B112: ENSMUSG00000046814.3 | C112: Gchfr | D112: chr2:119167772-119172390 | E112: WT_U | F112: WT_D | G112: OK | H112: 34.6629 | I112: 16.6099 | J112: -1.061348972 | K112: 5.13365 | L112: 5e-05 | M112: 0.00046241 | N112: yes
A113: ENSMUSG00000035314.8 | B113: ENSMUSG00000035314.8 | C113: Gdpd5 | D113: chr7:99381548-99460983 | E113: WT_U | F113: WT_D | G113: OK | H113: 2.23797 | I113: 7.48687 | J113: 1.742172007 | K113: -8.51384 | L113: 5e-05 | M113: 0.00046241 | N113: yes
A114: ENSMUSG00000087187.1 | B114: ENSMUSG00000087187.1 | C114: Gm13431 | D114: chr2:36216776-36222934 | E114: WT_U | F114: WT_D | G114: OK | H114: 4.36108 | I114: 23.5805 | J114: 2.434836949 | K114: -9.40522 | L114: 5e-05 | M114: 0.00046241 | N114: yes
A115: ENSMUSG00000097311.7 | B115: ENSMUSG00000097311.7 | C115: Gm26871 | D115: chr3:118430323-118530022 | E115: WT_U | F115: WT_D | G115: OK | H115: 3.83469 | I115: 1.41515 | J115: -1.438154973 | K115: 3.24051 | L115: 5e-05 | M115: 0.00046241 | N115: yes
A116: ENSMUSG00000100832.1 | B116: ENSMUSG00000100832.1 | C116: Gm29260 | D116: chr1:41781807-41939560 | E116: WT_U | F116: WT_D | G116: OK | H116: 5.13318 | I116: 1.84518 | J116: -1.476091291 | K116: 6.41198 | L116: 5e-05 | M116: 0.00046241 | N116: yes
A117: ENSMUSG00000105402.4 | B117: ENSMUSG00000105402.4 | C117: Gm3716 | D117: chr5:64593856-64610700 | E117: WT_U | F117: WT_D | G117: OK | H117: 3.36866 | I117: 9.80929 | J117: 1.541973893 | K117: -6.98737 | L117: 5e-05 | M117: 0.00046241 | N117: yes
A118: ENSMUSG00000104033.1 | B118: ENSMUSG00000104033.1 | C118: Gm37773 | D118: chr3:118430323-118530022 | E118: WT_U | F118: WT_D | G118: OK | H118: 1.24568 | I118: 0.495631 | J118: -1.329595174 | K118: 3.9508 | L118: 5e-05 | M118: 0.00046241 | N118: yes
A119: ENSMUSG00000104362.1 | B119: ENSMUSG00000104362.1 | C119: Gm37928 | D119: chr3:118530882-118535013 | E119: WT_U | F119: WT_D | G119: OK | H119: 1.91993 | I119: 0.905984 | J119: -1.083496235 | K119: 4.93915 | L119: 5e-05 | M119: 0.00046241 | N119: yes
A120: ENSMUSG00000105867.1 | B120: ENSMUSG00000105867.1 | C120: Gm42517 | D120: chr5:108366072-108366547 | E120: WT_U | F120: WT_D | G120: OK | H120: 0.854602 | I120: 1.92662 | J120: 1.172747449 | K120: -2.84085 | L120: 0.00035 | M120: 0.00265006 | N120: yes
A121: ENSMUSG00000098077.1 | B121: ENSMUSG00000098077.1 | C121: Gm4960 | D121: chr5:7399361-7400362 | E121: WT_U | F121: WT_D | G121: OK | H121: 0.837653 | I121: 1.81949 | J121: 1.11910949 | K121: -3.80199 | L121: 5e-05 | M121: 0.00046241 | N121: yes
A122: ENSMUSG00000023439.11 | B122: ENSMUSG00000023439.11 | C122: Gnb3 | D122: chr6:124834239-124840275 | E122: WT_U | F122: WT_D | G122: OK | H122: 2.88546 | I122: 7.19907 | J122: 1.319009215 | K122: -5.22188 | L122: 5e-05 | M122: 0.00046241 | N122: yes
A123: ENSMUSG00000041468.7 | B123: ENSMUSG00000041468.7 | C123: Gpr12 | D123: chr5:146582397-146585239 | E123: WT_U | F123: WT_D | G123: OK | H123: 1.81627 | I123: 0.693565 | J123: -1.388875683 | K123: 3.45916 | L123: 5e-05 | M123: 0.00046241 | N123: yes
A124: ENSMUSG00000063856.7 | B124: ENSMUSG00000063856.7 | C124: Gpx1 | D124: chr9:108338902-108340343 | E124: WT_U | F124: WT_D | G124: OK | H124: 80.6527 | I124: 31.723 | J124: -1.34619362 | K124: 6.74106 | L124: 5e-05 | M124: 0.00046241 | N124: yes
A125: ENSMUSG00000026879.14 | B125: ENSMUSG00000026879.14 | C125: Gsn | D125: chr2:35256379-35307892 | E125: WT_U | F125: WT_D | G125: OK | H125: 49.4959 | I125: 17.2329 | J125: -1.522143522 | K125: 6.89069 | L125: 5e-05 | M125: 0.00046241 | N125: yes
A126: ENSMUSG00000068762.11 | B126: ENSMUSG00000068762.11 | C126: Gstm6 | D126: chr3:107938846-107943749 | E126: WT_U | F126: WT_D | G126: OK | H126: 0.852871 | I126: 2.09001 | J126: 1.293110395 | K126: -3.97782 | L126: 5e-05 | M126: 0.00046241 | N126: yes
A127: ENSMUSG00000067203.7 | B127: ENSMUSG00000067203.7 | C127: H2-K2 | D127: chr17:33974830-33978790 | E127: WT_U | F127: WT_D | G127: OK | H127: 2.90921 | I127: 6.01616 | J127: 1.048215496 | K127: -4.55362 | L127: 5e-05 | M127: 0.00046241 | N127: yes
A128: ENSMUSG00000024448.14 | B128: ENSMUSG00000024448.14 | C128: H2-M10.1 | D128: chr17:36322857-36326155 | E128: WT_U | F128: WT_D | G128: OK | H128: 0.251912 | I128: 2.95989 | J128: 3.554551809 | K128: -9.71227 | L128: 5e-05 | M128: 0.00046241 | N128: yes
A129: ENSMUSG00000028497.12 | B129: ENSMUSG00000028497.12 | C129: Hacd4 | D129: chr4:88094628-88438928 | E129: WT_U | F129: WT_D | G129: OK | H129: 1.61829 | I129: 3.46876 | J129: 1.099949861 | K129: -2.72364 | L129: 0.0005 | M129: 0.00361297 | N129: yes
A130: ENSMUSG00000032338.8 | B130: ENSMUSG00000032338.8 | C130: Hcn4 | D130: chr9:58823511-58860955 | E130: WT_U | F130: WT_D | G130: OK | H130: 2.38342 | I130: 7.74935 | J130: =LOG(I130/H130,2) -> 1.701042103 | K130: -8.36858 | L130: 5e-05 | M130: 0.00046241 | N130: yes
A131: ENSMUSG00000028778.15 | B131: ENSMUSG00000028778.15 | C131: Hcrtr1 | D131: chr4:130130216-130139359 | E131: WT_U | F131: WT_D | G131: OK | H131: 0.350224 | I131: 1.22792 | J131: 1.809866714 | K131: -4.29381 | L131: 5e-05 | M131: 0.00046241 | N131: yes
A132: ENSMUSG00000021260.7 | B132: ENSMUSG00000021260.7 | C132: Hhipl1 | D132: chr12:108306269-108328300 | E132: WT_U | F132: WT_D | G132: OK | H132: 0.456108 | I132: 1.04451 | J132: 1.195378925 | K132: -4.56016 | L132: 5e-05 | M132: 0.00046241 | N132: yes
A133: ENSMUSG00000049539.2 | B133: ENSMUSG00000049539.2 | C133: Hist1h1a | D133: chr13:23763716-23764358 | E133: WT_U | F133: WT_D | G133: OK | H133: 1.1166 | I133: 0.435388 | J133: -1.358738911 | K133: 3.09531 | L133: 0.0002 | M133: 0.00162246 | N133: yes
A134: ENSMUSG00000058773.2 | B134: ENSMUSG00000058773.2 | C134: Hist1h1b | D134: chr13:21779882-21780625 | E134: WT_U | F134: WT_D | G134: OK | H134: 3.20665 | I134: 1.08698 | J134: -1.560741499 | K134: 5.23201 | L134: 5e-05 | M134: 0.00046241 | N134: yes
A135: ENSMUSG00000036181.2 | B135: ENSMUSG00000036181.2 | C135: Hist1h1c | D135: chr13:23738807-23740367 | E135: WT_U | F135: WT_D | G135: OK | H135: 24.6654 | I135: 8.22535 | J135: -1.58433971 | K135: 7.88506 | L135: 5e-05 | M135: 0.00046241 | N135: yes
A136: ENSMUSG00000052565.6 | B136: ENSMUSG00000052565.6 | C136: Hist1h1d | D136: chr13:23555086-23555830 | E136: WT_U | F136: WT_D | G136: OK | H136: 2.36733 | I136: 0.618774 | J136: -1.935776345 | K136: 5.58475 | L136: 5e-05 | M136: 0.00046241 | N136: yes
A137: ENSMUSG00000051627.2 | B137: ENSMUSG00000051627.2 | C137: Hist1h1e | D137: chr13:23621754-23622502 | E137: WT_U | F137: WT_D | G137: OK | H137: 1.14149 | I137: 0.547658 | J137: -1.059571072 | K137: 2.77934 | L137: 0.00035 | M137: 0.00265006 | N137: yes
A138: ENSMUSG00000018102.4 | B138: ENSMUSG00000018102.4 | C138: Hist1h2bc | D138: chr13:23684198-23692488 | E138: WT_U | F138: WT_D | G138: OK | H138: 26.3343 | I138: 6.86292 | J138: -1.940048669 | K138: 9.00932 | L138: 5e-05 | M138: 0.00046241 | N138: yes
A139: ENSMUSG00000064288.4 | B139: ENSMUSG00000064288.4 | C139: Hist1h4k | D139: chr13:21750193-21750505 | E139: WT_U | F139: WT_D | G139: OK | H139: 1.53709 | I139: 0.429885 | J139: -1.838178964 | K139: 2.52993 | L139: 0.00535 | M139: 0.0271896 | N139: yes
A140: ENSMUSG00000050936.5 | B140: ENSMUSG00000050936.5 | C140: Hist2h2bb | D140: chr3:96267074-96279001 | E140: WT_U | F140: WT_D | G140: OK | H140: 1.00625 | I140: 0.453508 | J140: -1.149788878 | K140: 3.36626 | L140: 5e-05 | M140: 0.00046241 | N140: yes
A141: ENSMUSG00000046093.9 | B141: ENSMUSG00000046093.9 | C141: Hpcal4 | D141: chr4:123183226-123194701 | E141: WT_U | F141: WT_D | G141: OK | H141: 1.26296 | I141: 0.395713 | J141: -1.674282581 | K141: 4.24534 | L141: 5e-05 | M141: 0.00046241 | N141: yes
A142: ENSMUSG00000022096.14 | B142: ENSMUSG00000022096.14 | C142: Hr | D142: chr14:70552211-70573548 | E142: WT_U | F142: WT_D | G142: OK | H142: 11.2899 | I142: 3.97985 | J142: -1.504246746 | K142: 2.54366 | L142: 5e-05 | M142: 0.00046241 | N142: yes
A143: ENSMUSG00000039059.11 | B143: ENSMUSG00000039059.11 | C143: Hrh3 | D143: chr2:180099464-180104488 | E143: WT_U | F143: WT_D | G143: OK | H143: 3.32741 | I143: 1.13044 | J143: -1.557515224 | K143: 5.69439 | L143: 5e-05 | M143: 0.00046241 | N143: yes
A144: ENSMUSG00000039628.8 | B144: ENSMUSG00000039628.8 | C144: Hs3st6 | D144: chr17:24753002-24758683 | E144: WT_U | F144: WT_D | G144: OK | H144: 2.26755 | I144: 0.942042 | J144: -1.267271075 | K144: 4.72571 | L144: 5e-05 | M144: 0.00046241 | N144: yes
A145: ENSMUSG00000030825.17 | B145: ENSMUSG00000030825.17 | C145: Hsd17b14 | D145: chr7:45554892-45567752 | E145: WT_U | F145: WT_D | G145: OK | H145: 0.376209 | I145: 1.03599 | J145: 1.46140381 | K145: -1.86618 | L145: 0.0041 | M145: 0.0217665 | N145: yes
A146: ENSMUSG00000028763.17 | B146: ENSMUSG00000028763.17 | C146: Hspg2 | D146: chr4:137468768-137570630 | E146: WT_U | F146: WT_D | G146: OK | H146: 15.2718 | I146: 7.62403 | J146: -1.002244413 | K146: 5.0563 | L146: 5e-05 | M146: 0.00046241 | N146: yes
A147: ENSMUSG00000032269.7 | B147: ENSMUSG00000032269.7 | C147: Htr3a | D147: chr9:48899213-48911099 | E147: WT_U | F147: WT_D | G147: OK | H147: 21.7636 | I147: 4.75164 | J147: -2.195419776 | K147: 10.8191 | L147: 5e-05 | M147: 0.00046241 | N147: yes
A148: ENSMUSG00000020644.8 | B148: ENSMUSG00000020644.8 | C148: Id2 | D148: chr12:25093800-25096092 | E148: WT_U | F148: WT_D | G148: OK | H148: 19.5172 | I148: 7.88593 | J148: -1.307393285 | K148: 6.38726 | L148: 5e-05 | M148: 0.00046241 | N148: yes
A149: ENSMUSG00000007872.3 | B149: ENSMUSG00000007872.3 | C149: Id3 | D149: chr4:136143496-136145755 | E149: WT_U | F149: WT_D | G149: OK | H149: 27.6497 | I149: 6.59328 | J149: -2.068195572 | K149: 9.52642 | L149: 5e-05 | M149: 0.00046241 | N149: yes
A150: ENSMUSG00000021379.1 | B150: ENSMUSG00000021379.1 | C150: Id4 | D150: chr13:48044230-48264036 | E150: WT_U | F150: WT_D | G150: OK | H150: 8.64697 | I150: 4.21253 | J150: -1.037507723 | K150: 4.953 | L150: 5e-05 | M150: 0.00046241 | N150: yes
A151: ENSMUSG00000025492.6 | B151: ENSMUSG00000025492.6 | C151: Ifitm3 | D151: chr7:141009585-141010770 | E151: WT_U | F151: WT_D | G151: OK | H151: 6.13744 | I151: 2.89236 | J151: -1.085389886 | K151: 4.31329 | L151: 5e-05 | M151: 0.00046241 | N151: yes
A152: ENSMUSG00000023046.6 | B152: ENSMUSG00000023046.6 | C152: Igfbp6 | D152: chr15:102144361-102149511 | E152: WT_U | F152: WT_D | G152: OK | H152: 4.67563 | I152: 16.2539 | J152: 1.79755325 | K152: -8.44061 | L152: 5e-05 | M152: 0.00046241 | N152: yes
A153: ENSMUSG00000036256.13 | B153: ENSMUSG00000036256.13 | C153: Igfbp7 | D153: chr5:77310146-77408041 | E153: WT_U | F153: WT_D | G153: OK | H153: 55.1884 | I153: 21.2151 | J153: -1.379273581 | K153: 2.68884 | L153: 0.0009 | M153: 0.00601451 | N153: yes
A154: ENSMUSG00000040972.8 | B154: ENSMUSG00000040972.8 | C154: Igsf21 | D154: chr4:140026845-140246784 | E154: WT_U | F154: WT_D | G154: OK | H154: 0.146532 | I154: 1.19621 | J154: 3.02918302 | K154: -8.08727 | L154: 5e-05 | M154: 0.00046241 | N154: yes
A155: ENSMUSG00000073889.10 | B155: ENSMUSG00000073889.10 | C155: Il11ra1 | D155: chr4:41699988-41774247 | E155: WT_U | F155: WT_D | G155: OK | H155: 15.2592 | I155: 6.72865 | J155: -1.181290343 | K155: 2.02439 | L155: 0.00075 | M155: 0.0051382 | N155: yes
A156: ENSMUSG00000017057.9 | B156: ENSMUSG00000017057.9 | C156: Il13ra1 | D156: chrX:36112109-36171259 | E156: WT_U | F156: WT_D | G156: OK | H156: 2.66133 | I156: 0.935817 | J156: -1.507849071 | K156: 6.88385 | L156: 5e-05 | M156: 0.00046241 | N156: yes
A157: ENSMUSG00000034570.12 | B157: ENSMUSG00000034570.12 | C157: Inpp5j | D157: chr11:3488283-3504821 | E157: WT_U | F157: WT_D | G157: OK | H157: 0.491596 | I157: 1.26566 | J157: 1.364344817 | K157: -3.05019 | L157: 0.0001 | M157: 0.000870202 | N157: yes
A158: ENSMUSG00000060477.14 | B158: ENSMUSG00000060477.14 | C158: Irak2 | D158: chr6:113638466-113695026 | E158: WT_U | F158: WT_D | G158: OK | H158: 2.95234 | I158: 8.76955 | J158: 1.570643938 | K158: -4.6319 | L158: 5e-05 | M158: 0.00046241 | N158: yes
A159: ENSMUSG00000055980.2 | B159: ENSMUSG00000055980.2 | C159: Irs1 | D159: chr1:82233100-82291416 | E159: WT_U | F159: WT_D | G159: OK | H159: 5.01642 | I159: 12.2624 | J159: 1.289511323 | K159: -7.01522 | L159: 5e-05 | M159: 0.00046241 | N159: yes
A160: ENSMUSG00000035692.6 | B160: ENSMUSG00000035692.6 | C160: Isg15 | D160: chr4:156199423-156200818 | E160: WT_U | F160: WT_D | G160: OK | H160: 9.37893 | I160: 22.0564 | J160: 1.23370209 | K160: -5.8463 | L160: 5e-05 | M160: 0.00046241 | N160: yes
A161: ENSMUSG00000020689.4 | B161: ENSMUSG00000020689.4 | C161: Itgb3 | D161: chr11:104607999-104670476 | E161: WT_U | F161: WT_D | G161: OK | H161: 5.04743 | I161: 2.17064 | J161: -1.217428523 | K161: 6.06292 | L161: 5e-05 | M161: 0.00046241 | N161: yes
A162: ENSMUSG00000055675.6 | B162: ENSMUSG00000055675.6 | C162: Kbtbd11 | D162: chr8:15011024-15033333 | E162: WT_U | F162: WT_D | G162: OK | H162: 1.61362 | I162: 0.138349 | J162: -3.543916749 | K162: 4.69382 | L162: 5e-05 | M162: 0.00046241 | N162: yes
A163: ENSMUSG00000042604.5 | B163: ENSMUSG00000042604.5 | C163: Kcna4 | D163: chr2:107290638-107298502 | E163: WT_U | F163: WT_D | G163: OK | H163: 0.108149 | I163: 1.55889 | J163: 3.8494269 | K163: -6.05246 | L163: 5e-05 | M163: 0.00046241 | N163: yes
A164: ENSMUSG00000037610.15 | B164: ENSMUSG00000037610.15 | C164: Kcnmb2 | D164: chr3:31902506-32200180 | E164: WT_U | F164: WT_D | G164: OK | H164: 1.65095 | I164: 0.515245 | J164: -1.679965923 | K164: 4.95332 | L164: 5e-05 | M164: 0.00046241 | N164: yes
A165: ENSMUSG00000000794.9 | B165: ENSMUSG00000000794.9 | C165: Kcnn3 | D165: chr3:89520163-89675132 | E165: WT_U | F165: WT_D | G165: OK | H165: 3.95755 | I165: 1.88747 | J165: -1.068153864 | K165: 4.50227 | L165: 5e-05 | M165: 0.00046241 | N165: yes
A166: ENSMUSG00000041642.18 | B166: ENSMUSG00000041642.18 | C166: Kif21b | D166: chr1:136131388-136177998 | E166: WT_U | F166: WT_D | G166: OK | H166: 0.512284 | I166: 1.61746 | J166: 1.658714296 | K166: -6.53783 | L166: 5e-05 | M166: 0.00046241 | N166: yes
A167: ENSMUSG00000051890.13 | B167: ENSMUSG00000051890.13 | C167: Klhdc1 | D167: chr12:69241175-69284632 | E167: WT_U | F167: WT_D | G167: OK | H167: 2.0349 | I167: 4.23879 | J167: 1.058694595 | K167: -3.29172 | L167: 5e-05 | M167: 0.00046241 | N167: yes
A168: ENSMUSG00000052911.9 | B168: ENSMUSG00000052911.9 | C168: Lamb2 | D168: chr9:108479735-108490530 | E168: WT_U | F168: WT_D | G168: OK | H168: 4.5857 | I168: 1.29545 | J168: -1.823688642 | K168: 3.656 | L168: 5e-05 | M168: 0.00046241 | N168: yes
A169: ENSMUSG00000026822.14 | B169: ENSMUSG00000026822.14 | C169: Lcn2 | D169: chr2:32384632-32388252 | E169: WT_U | F169: WT_D | G169: OK | H169: 0.0642084 | I169: 3.07539 | J169: 5.581863516 | K169: -6.75575 | L169: 5e-05 | M169: 0.00046241 | N169: yes
A170: ENSMUSG00000027985.14 | B170: ENSMUSG00000027985.14 | C170: Lef1 | D170: chr3:131109025-131224356 | E170: WT_U | F170: WT_D | G170: OK | H170: 1.32553 | I170: 3.59905 | J170: 1.441046823 | K170: -2.61284 | L170: 0.0002 | M170: 0.00162246 | N170: yes
A171: ENSMUSG00000029570.5 | B171: ENSMUSG00000029570.5 | C171: Lfng | D171: chr5:140607319-140615545 | E171: WT_U | F171: WT_D | G171: OK | H171: 9.2003 | I171: 3.81137 | J171: -1.271371236 | K171: 4.97682 | L171: 5e-05 | M171: 0.00046241 | N171: yes
A172: ENSMUSG00000045312.11 | B172: ENSMUSG00000045312.11 | C172: Lhfpl2 | D172: chr13:94057795-94195409 | E172: WT_U | F172: WT_D | G172: OK | H172: 1.76899 | I172: 6.99979 | J172: 1.984385748 | K172: -7.7113 | L172: 5e-05 | M172: 0.00046241 | N172: yes
A173: ENSMUSG00000078952.9 | B173: ENSMUSG00000078952.9 | C173: Lincenc1 | D173: chr13:97434969-97497007 | E173: WT_U | F173: WT_D | G173: OK | H173: 0.5962 | I173: 1.2958 | J173: 1.119974782 | K173: -2.94041 | L173: 0.00015 | M173: 0.00125317 | N173: yes
A174: ENSMUSG00000041168.9 | B174: ENSMUSG00000041168.9 | C174: Lonp1 | D174: chr17:56614300-56626903 | E174: WT_U | F174: WT_D | G174: OK | H174: 86.5229 | I174: 180.076 | J174: 1.05745199 | K174: -6.16325 | L174: 5e-05 | M174: 0.00046241 | N174: yes
A175: ENSMUSG00000034205.16 | B175: ENSMUSG00000034205.16 | C175: Loxl2 | D175: chr14:69555423-69695834 | E175: WT_U | F175: WT_D | G175: OK | H175: 18.6308 | I175: 6.33375 | J175: -1.556557796 | K175: 8.41774 | L175: 5e-05 | M175: 0.00046241 | N175: yes
A176: ENSMUSG00000032495.8 | B176: ENSMUSG00000032495.8 | C176: Lrrc2 | D176: chr9:110951544-110984066 | E176: WT_U | F176: WT_D | G176: OK | H176: 3.08689 | I176: 1.37731 | J176: -1.164300761 | K176: 3.34928 | L176: 5e-05 | M176: 0.00046241 | N176: yes
A177: ENSMUSG00000026305.15 | B177: ENSMUSG00000026305.15 | C177: Lrrfip1 | D177: chr1:90998736-91128944 | E177: WT_U | F177: WT_D | G177: OK | H177: 0.234814 | I177: 1.2945 | J177: 2.462804633 | K177: -5.68185 | L177: 5e-05 | M177: 0.00046241 | N177: yes
A178: ENSMUSG00000043110.2 | B178: ENSMUSG00000043110.2 | C178: Lrrn4 | D178: chr2:132868304-132880891 | E178: WT_U | F178: WT_D | G178: OK | H178: 3.88311 | I178: 1.84228 | J178: -1.075720229 | K178: 5.16561 | L178: 5e-05 | M178: 0.00046241 | N178: yes
A179: ENSMUSG00000018819.10 | B179: ENSMUSG00000018819.10 | C179: Lsp1 | D179: chr7:142460808-142516009 | E179: WT_U | F179: WT_D | G179: OK | H179: 15.596 | I179: 34.7872 | J179: 1.157380502 | K179: -4.07674 | L179: 5e-05 | M179: 0.00046241 | N179: yes
A180: ENSMUSG00000036278.6 | B180: ENSMUSG00000036278.6 | C180: Macrod1 | D180: chr19:7056767-7198061 | E180: WT_U | F180: WT_D | G180: OK | H180: 1.44144 | I180: 3.19307 | J180: 1.147433395 | K180: -2.85987 | L180: 5e-05 | M180: 0.00046241 | N180: yes
A181: ENSMUSG00000033207.6 | B181: ENSMUSG00000033207.6 | C181: Mamdc2 | D181: chr19:23302608-23448322 | E181: WT_U | F181: WT_D | G181: OK | H181: 1.28166 | I181: 4.82602 | J181: 1.912820301 | K181: -8.95476 | L181: 5e-05 | M181: 0.00046241 | N181: yes
A182: ENSMUSG00000022887.8 | B182: ENSMUSG00000022887.8 | C182: Masp1 | D182: chr16:23451784-23520590 | E182: WT_U | F182: WT_D | G182: OK | H182: 0.660286 | I182: 1.58091 | J182: 1.259592276 | K182: -5.22985 | L182: 5e-05 | M182: 0.00046241 | N182: yes
A183: ENSMUSG00000020583.4 | B183: ENSMUSG00000020583.4 | C183: Matn3 | D183: chr12:8947928-8972028 | E183: WT_U | F183: WT_D | G183: OK | H183: 1.42956 | I183: 0.554278 | J183: -1.366889521 | K183: 5.61764 | L183: 5e-05 | M183: 0.00046241 | N183: yes
A184: ENSMUSG00000032135.14 | B184: ENSMUSG00000032135.14 | C184: Mcam | D184: chr9:44123767-44142727 | E184: WT_U | F184: WT_D | G184: OK | H184: 7.98151 | I184: 3.67412 | J184: -1.119262965 | K184: 5.19495 | L184: 5e-05 | M184: 0.00046241 | N184: yes
A185: ENSMUSG00000027239.14 | B185: ENSMUSG00000027239.14 | C185: Mdk | D185: chr2:91929804-91932297 | E185: WT_U | F185: WT_D | G185: OK | H185: 1.67545 | I185: 4.24858 | J185: 1.342432098 | K185: -4.93916 | L185: 5e-05 | M185: 0.00046241 | N185: yes
A186: ENSMUSG00000079033.9 | B186: ENSMUSG00000079033.9 | C186: Mef2b | D186: chr8:70139498-70167488 | E186: WT_U | F186: WT_D | G186: OK | H186: 5.30707 | I186: 13.4676 | J186: 1.343505294 | K186: -4.75141 | L186: 5e-05 | M186: 0.00046241 | N186: yes
A187: ENSMUSG00000020160.18 | B187: ENSMUSG00000020160.18 | C187: Meis1 | D187: chr11:18879816-19018985 | E187: WT_U | F187: WT_D | G187: OK | H187: 6.86787 | I187: 17.0811 | J187: 1.314466249 | K187: -6.24953 | L187: 5e-05 | M187: 0.00046241 | N187: yes
A188: ENSMUSG00000002274.12 | B188: ENSMUSG00000002274.12 | C188: Metrn | D188: chr17:25794570-25985680 | E188: WT_U | F188: WT_D | G188: OK | H188: 24.4544 | I188: 56.3219 | J188: 1.203601936 | K188: -2.06208 | L188: 0.00575 | M188: 0.028858 | N188: yes
A189: ENSMUSG00000039958.17 | B189: ENSMUSG00000039958.17 | C189: Mettl20 | D189: chr6:149139848-149151171 | E189: WT_U | F189: WT_D | G189: OK | H189: 1.02083 | I189: 3.45395 | J189: 1.758504566 | K189: -6.05959 | L189: 5e-05 | M189: 0.00046241 | N189: yes
A190: ENSMUSG00000038244.13 | B190: ENSMUSG00000038244.13 | C190: Mical2 | D190: chr7:112225855-112355194 | E190: WT_U | F190: WT_D | G190: OK | H190: 7.94174 | I190: 2.6287 | J190: -1.595105626 | K190: 6.16781 | L190: 5e-05 | M190: 0.00046241 | N190: yes
A191: ENSMUSG00000030771.15 | B191: ENSMUSG00000030771.15 | C191: Micalcl | D191: chr7:112368307-112413104 | E191: WT_U | F191: WT_D | G191: OK | H191: 3.23462 | I191: 0.763982 | J191: -2.081985683 | K191: 6.41252 | L191: 5e-05 | M191: 0.00046241 | N191: yes
A192: ENSMUSG00000040528.15 | B192: ENSMUSG00000040528.15 | C192: Milr1 | D192: chr11:106751225-106779537 | E192: WT_U | F192: WT_D | G192: OK | H192: 10.0657 | I192: 3.65949 | J192: -1.459732997 | K192: 4.62101 | L192: 5e-05 | M192: 0.00046241 | N192: yes
A193: ENSMUSG00000035158.15 | B193: ENSMUSG00000035158.15 | C193: Mitf | D193: chr6:97807051-98021349 | E193: WT_U | F193: WT_D | G193: OK | H193: 0.93606 | I193: 2.14297 | J193: 1.194938741 | K193: -4.8545 | L193: 5e-05 | M193: 0.00046241 | N193: yes
A194: ENSMUSG00000031790.7 | B194: ENSMUSG00000031790.7 | C194: Mmp15 | D194: chr8:95352267-95374293 | E194: WT_U | F194: WT_D | G194: OK | H194: 5.82957 | I194: 14.4292 | J194: =LOG(I194/H194,2) -> 1.307529938 | K194: -7.0433 | L194: 5e-05 | M194: 0.00046241 | N194: yes
A195: ENSMUSG00000025355.6 | B195: ENSMUSG00000025355.6 | C195: Mmp19 | D195: chr10:128790952-128804370 | E195: WT_U | F195: WT_D | G195: OK | H195: 0.307218 | I195: 1.69933 | J195: 2.467631391 | K195: -2.85743 | L195: 0.0028 | M195: 0.0158161 | N195: yes
A196: ENSMUSG00000020682.17 | B196: ENSMUSG00000020682.17 | C196: Mmp28 | D196: chr11:83437676-83463071 | E196: WT_U | F196: WT_D | G196: OK | H196: 0.418186 | I196: 1.06177 | J196: 1.344254615 | K196: -4.47703 | L196: 5e-05 | M196: 0.00046241 | N196: yes
A197: ENSMUSG00000026471.14 | B197: ENSMUSG00000026471.14 | C197: Mr1 | D197: chr1:155127276-155146814 | E197: WT_U | F197: WT_D | G197: OK | H197: 1.93235 | I197: 0.914865 | J197: -1.078725652 | K197: 4.19698 | L197: 5e-05 | M197: 0.00046241 | N197: yes
A198: ENSMUSG00000005611.15 | B198: ENSMUSG00000005611.15 | C198: Mrvi1 | D198: chr7:110868265-110982461 | E198: WT_U | F198: WT_D | G198: OK | H198: 4.45127 | I198: 2.19494 | J198: -1.020035509 | K198: 2.26549 | L198: 0.00075 | M198: 0.0051382 | N198: yes
A199: ENSMUSG00000032591.15 | B199: ENSMUSG00000032591.15 | C199: Mst1 | D199: chr9:108049241-108085003 | E199: WT_U | F199: WT_D | G199: OK | H199: 1.82736 | I199: 4.72186 | J199: 1.369594386 | K199: -1.9356 | L199: 0.0077 | M199: 0.0367364 | N199: yes
A200: ENSMUSG00000000386.14 | B200: ENSMUSG00000000386.14 | C200: Mx1 | D200: chr16:97447034-97462907 | E200: WT_U | F200: WT_D | G200: OK | H200: 0.318147 | I200: 1.11825 | J200: 1.813477336 | K200: -5.12957 | L200: 5e-05 | M200: 0.00046241 | N200: yes
... 125 more rows

Sheet Down_in_Diff
A1: test_id | B1: gene_id | C1: gene | D1: locus | E1: sample_2 | F1: sample_1 | G1: status | H1: value_2 | I1: value_1 | J1: log2(fold_change) | K1: test_stat | L1: p_value | M1: q_value | N1: significant
A2: ENSMUSG00000055675.6 | B2: ENSMUSG00000055675.6 | C2: Kbtbd11 | D2: chr8:15011024-15033333 | E2: WT_U | F2: WT_D | G2: OK | H2: 1.61362 | I2: 0.138349 | J2: =LOG(I2/H2,2) -> -3.543916749 | K2: 4.69382 | L2: 5e-05 | M2: 0.00046241 | N2: yes
A3: ENSMUSG00000009876.13 | B3: ENSMUSG00000009876.13 | C3: Cox4i2 | D3: chr2:152754172-152765037 | E3: WT_U | F3: WT_D | G3: OK | H3: 6.14946 | I3: 0.564946 | J3: -3.444274849 | K3: 9.90783 | L3: 5e-05 | M3: 0.00046241 | N3: yes
A4: ENSMUSG00000032231.14 | B4: ENSMUSG00000032231.14 | C4: Anxa2 | D4: chr9:69453619-69491795 | E4: WT_U | F4: WT_D | G4: OK | H4: 80.5483 | I4: 9.71678 | J4: -3.051303931 | K4: 15.8042 | L4: 5e-05 | M4: 0.00046241 | N4: yes
A5: ENSMUSG00000026828.11 | B5: ENSMUSG00000026828.11 | C5: Galnt5 | D5: chr2:57997883-58052864 | E5: WT_U | F5: WT_D | G5: OK | H5: 1.05496 | I5: 0.127986 | J5: -3.043130387 | K5: 10.2282 | L5: 5e-05 | M5: 0.00046241 | N5: yes
A6: ENSMUSG00000031636.6 | B6: ENSMUSG00000031636.6 | C6: Pdlim3 | D6: chr8:45885484-45919546 | E6: WT_U | F6: WT_D | G6: OK | H6: 18.608 | I6: 2.75844 | J6: -2.753998497 | K6: 12.964 | L6: 5e-05 | M6: 0.00046241 | N6: yes
A7: ENSMUSG00000069833.12 | B7: ENSMUSG00000069833.12 | C7: Ahnak | D7: chr19:8989283-9076919 | E7: WT_U | F7: WT_D | G7: OK | H7: 19.8454 | I7: 3.0918 | J7: -2.682285738 | K7: 7.43834 | L7: 5e-05 | M7: 0.00046241 | N7: yes
A8: ENSMUSG00000006494.11 | B8: ENSMUSG00000006494.11 | C8: Pdk1 | D8: chr2:71873223-71903858 | E8: WT_U | F8: WT_D | G8: OK | H8: 3.18597 | I8: 0.555309 | J8: -2.520369999 | K8: 6.13497 | L8: 5e-05 | M8: 0.00046241 | N8: yes
